Workbook

Sheet Sheet1 (hidden)
A2: * | B2: * | C2: *
A3: 2019-07-01 | B3: Monday | C3: الإثنين | F3: ='شهر 9 تفصيلي'!A1 -> 2021-09-01 | G3: 2
A4: 2019-07-02 | B4: Tuesday | C4: الثلاثاء | F4: =F3+1 -> 2021-09-02 | G4: 3
A5: 2019-07-03 | B5: Wednesday | C5: الأربعاء | F5: =F4+1 -> 2021-09-03 | G5: 4
A6: 2019-07-04 | B6: Thursday | C6: الخميس | F6: 2021-09-04 | G6: 5
A7: 2019-07-05 | B7: Friday | C7: الجمعة | F7: 2021-09-05 | G7: 6
A8: 2019-07-06 | B8: Saturday | C8: السبت | F8: 2021-09-06 | G8: 7
A9: 2019-07-07 | B9: Sunday | C9: الأحد | F9: 2021-09-07 | G9: 8
A10: 2019-07-08 | B10: Monday | C10: الإثنين | F10: 2021-09-08 | G10: 9
A11: 2019-07-09 | B11: Tuesday | C11: الثلاثاء | F11: 2021-09-09 | G11: 10
A12: 2019-07-10 | B12: Wednesday | C12: الأربعاء | F12: 2021-09-10 | G12: 11
A13: 2019-07-11 | B13: Thursday | C13: الخميس | F13: =F12 -> 2021-09-10 | G13: 12
A14: 2019-07-12 | B14: Friday | C14: الجمعة | F14: =F13+1 -> 2021-09-11 | G14: 13
A15: 2019-07-13 | B15: Saturday | C15: السبت | F15: =F14+1 -> 2021-09-12 | G15: 14
A16: 2019-07-14 | B16: Sunday | C16: الأحد | F16: 2021-09-13 | G16: 15
A17: 2019-07-15 | B17: Monday | C17: الإثنين | F17: 2021-09-14 | G17: 16
A18: 2019-07-16 | B18: Tuesday | C18: الثلاثاء | F18: 2021-09-15 | G18: 17
A19: 2019-07-17 | B19: Wednesday | C19: الأربعاء | F19: 2021-09-16 | G19: 18
A20: 2019-07-18 | B20: Thursday | C20: الخميس | F20: 2021-09-17 | G20: 19
A21: 2019-07-19 | B21: Friday | C21: الجمعة | F21: 2021-09-18 | G21: 20
A22: 2019-07-20 | B22: Saturday | C22: السبت | F22: 2021-09-19 | G22: 21
A23: 2019-07-21 | B23: Sunday | C23: الأحد | F23: 2021-09-20 | G23: 22
A24: 2019-07-22 | B24: Monday | C24: الإثنين | F24: 2021-09-21 | G24: 23
A25: 2019-07-23 | B25: Tuesday | C25: الثلاثاء | F25: 2021-09-22 | G25: 24
A26: 2019-07-24 | B26: Wednesday | C26: الأربعاء | F26: 2021-09-23 | G26: 25
A27: 2019-07-25 | B27: Thursday | C27: الخميس | F27: 2021-09-24 | G27: 26
A28: 2019-07-26 | B28: Friday | C28: الجمعة | F28: 2021-09-25 | G28: 27
A29: 2019-07-27 | B29: Saturday | C29: السبت | F29: 2021-09-26 | G29: 28
A30: 2019-07-28 | B30: Sunday | C30: الأحد | F30: 2021-09-27 | G30: 29
A31: 2019-07-29 | B31: Monday | C31: الإثنين | F31: 2021-09-28 | G31: 30
A32: 2019-07-30 | B32: Tuesday | C32: الثلاثاء | F32: 2021-09-29 | G32: 31
A33: 2019-07-31 | B33: Wednesday | C33: الأربعاء | F33: 2021-09-30 | G33: 32
A34: 2019-08-01 | B34: Thursday | C34: الخميس | F34: 2021-10-01 | G34: 33
A35: 2019-08-02 | B35: Friday | C35: الجمعة
A36: 2019-08-03 | B36: Saturday | C36: السبت
A37: 2019-08-04 | B37: Sunday | C37: الأحد
A38: 2019-08-05 | B38: Monday | C38: الإثنين
A39: 2019-08-06 | B39: Tuesday | C39: الثلاثاء
A40: 2019-08-07 | B40: Wednesday | C40: الأربعاء
A41: 2019-08-08 | B41: Thursday | C41: الخميس
A42: 2019-08-09 | B42: Friday | C42: الجمعة
A43: 2019-08-10 | B43: Saturday | C43: السبت
A44: 2019-08-11 | B44: Sunday | C44: الأحد
A45: 2019-08-12 | B45: Monday | C45: الإثنين
A46: 2019-08-13 | B46: Tuesday | C46: الثلاثاء
A47: 2019-08-14 | B47: Wednesday | C47: الأربعاء
A48: 2019-08-15 | B48: Thursday | C48: الخميس
A49: 2019-08-16 | B49: Friday | C49: الجمعة
A50: 2019-08-17 | B50: Saturday | C50: السبت
A51: 2019-08-18 | B51: Sunday | C51: الأحد
A52: 2019-08-19 | B52: Monday | C52: الإثنين
A53: 2019-08-20 | B53: Tuesday | C53: الثلاثاء
A54: 2019-08-21 | B54: Wednesday | C54: الأربعاء
A55: 2019-08-22 | B55: Thursday | C55: الخميس
A56: 2019-08-23 | B56: Friday | C56: الجمعة
A57: 2019-08-24 | B57: Saturday | C57: السبت
A58: 2019-08-25 | B58: Sunday | C58: الأحد
A59: 2019-08-26 | B59: Monday | C59: الإثنين
A60: 2019-08-27 | B60: Tuesday | C60: الثلاثاء
A61: 2019-08-28 | B61: Wednesday | C61: الأربعاء
A62: 2019-08-29 | B62: Thursday | C62: الخميس
A63: 2019-08-30 | B63: Friday | C63: الجمعة
A64: 2019-08-31 | B64: Saturday | C64: السبت
A65: 2019-09-01 | B65: Sunday | C65: الأحد
A66: 2019-09-02 | B66: Monday | C66: الإثنين
A67: 2019-09-03 | B67: Tuesday | C67: الثلاثاء
A68: 2019-09-04 | B68: Wednesday | C68: الأربعاء
A69: 2019-09-05 | B69: Thursday | C69: الخميس
A70: 2019-09-06 | B70: Friday | C70: الجمعة
A71: 2019-09-07 | B71: Saturday | C71: السبت
A72: 2019-09-08 | B72: Sunday | C72: الأحد
A73: 2019-09-09 | B73: Monday | C73: الإثنين
A74: 2019-09-10 | B74: Tuesday | C74: الثلاثاء
A75: 2019-09-11 | B75: Wednesday | C75: الأربعاء
A76: 2019-09-12 | B76: Thursday | C76: الخميس
A77: 2019-09-13 | B77: Friday | C77: الجمعة
A78: 2019-09-14 | B78: Saturday | C78: السبت
A79: 2019-09-15 | B79: Sunday | C79: الأحد
A80: 2019-09-16 | B80: Monday | C80: الإثنين
A81: 2019-09-17 | B81: Tuesday | C81: الثلاثاء
A82: 2019-09-18 | B82: Wednesday | C82: الأربعاء
A83: 2019-09-19 | B83: Thursday | C83: الخميس
A84: 2019-09-20 | B84: Friday | C84: الجمعة
A85: 2019-09-21 | B85: Saturday | C85: السبت
A86: 2019-09-22 | B86: Sunday | C86: الأحد
A87: 2019-09-23 | B87: Monday | C87: الإثنين
A88: 2019-09-24 | B88: Tuesday | C88: الثلاثاء
A89: 2019-09-25 | B89: Wednesday | C89: الأربعاء
A90: 2019-09-26 | B90: Thursday | C90: الخميس
A91: 2019-09-27 | B91: Friday | C91: الجمعة
A92: 2019-09-28 | B92: Saturday | C92: السبت
A93: 2019-09-29 | B93: Sunday | C93: الأحد
A94: 2019-09-30 | B94: Monday | C94: الإثنين
A95: 2019-10-01 | B95: Tuesday | C95: الثلاثاء
A96: 2019-10-02 | B96: Wednesday | C96: الأربعاء
A97: 2019-10-03 | B97: Thursday | C97: الخميس
A98: 2019-10-04 | B98: Friday | C98: الجمعة
A99: 2019-10-05 | B99: Saturday | C99: السبت
A100: 2019-10-06 | B100: Sunday | C100: الأحد
A101: 2019-10-07 | B101: Monday | C101: الإثنين
A102: 2019-10-08 | B102: Tuesday | C102: الثلاثاء
A103: 2019-10-09 | B103: Wednesday | C103: الأربعاء
A104: 2019-10-10 | B104: Thursday | C104: الخميس
A105: 2019-10-11 | B105: Friday | C105: الجمعة
A106: 2019-10-12 | B106: Saturday | C106: السبت
A107: 2019-10-13 | B107: Sunday | C107: الأحد
A108: 2019-10-14 | B108: Monday | C108: الإثنين
A109: 2019-10-15 | B109: Tuesday | C109: الثلاثاء
A110: 2019-10-16 | B110: Wednesday | C110: الأربعاء
A111: 2019-10-17 | B111: Thursday | C111: الخميس
A112: 2019-10-18 | B112: Friday | C112: الجمعة
A113: 2019-10-19 | B113: Saturday | C113: السبت
A114: 2019-10-20 | B114: Sunday | C114: الأحد
A115: 2019-10-21 | B115: Monday | C115: الإثنين
A116: 2019-10-22 | B116: Tuesday | C116: الثلاثاء
A117: 2019-10-23 | B117: Wednesday | C117: الأربعاء
A118: 2019-10-24 | B118: Thursday | C118: الخميس
A119: 2019-10-25 | B119: Friday | C119: الجمعة
A120: 2019-10-26 | B120: Saturday | C120: السبت
A121: 2019-10-27 | B121: Sunday | C121: الأحد
A122: 2019-10-28 | B122: Monday | C122: الإثنين
A123: 2019-10-29 | B123: Tuesday | C123: الثلاثاء
A124: 2019-10-30 | B124: Wednesday | C124: الأربعاء
A125: 2019-10-31 | B125: Thursday | C125: الخميس
A126: 2019-11-01 | B126: Friday | C126: الجمعة
A127: 2019-11-02 | B127: Saturday | C127: السبت
A128: 2019-11-03 | B128: Sunday | C128: الأحد
A129: 2019-11-04 | B129: Monday | C129: الإثنين
A130: 2019-11-05 | B130: Tuesday | C130: الثلاثاء
A131: 2019-11-06 | B131: Wednesday | C131: الأربعاء
A132: 2019-11-07 | B132: Thursday | C132: الخميس
A133: 2019-11-08 | B133: Friday | C133: الجمعة
A134: 2019-11-09 | B134: Saturday | C134: السبت
A135: 2019-11-10 | B135: Sunday | C135: الأحد
A136: 2019-11-11 | B136: Monday | C136: الإثنين
A137: 2019-11-12 | B137: Tuesday | C137: الثلاثاء
A138: 2019-11-13 | B138: Wednesday | C138: الأربعاء
A139: 2019-11-14 | B139: Thursday | C139: الخميس
A140: 2019-11-15 | B140: Friday | C140: الجمعة
A141: 2019-11-16 | B141: Saturday | C141: السبت
A142: 2019-11-17 | B142: Sunday | C142: الأحد
A143: 2019-11-18 | B143: Monday | C143: الإثنين
A144: 2019-11-19 | B144: Tuesday | C144: الثلاثاء
A145: 2019-11-20 | B145: Wednesday | C145: الأربعاء
A146: 2019-11-21 | B146: Thursday | C146: الخميس
A147: 2019-11-22 | B147: Friday | C147: الجمعة
A148: 2019-11-23 | B148: Saturday | C148: السبت
A149: 2019-11-24 | B149: Sunday | C149: الأحد
A150: 2019-11-25 | B150: Monday | C150: الإثنين
A151: 2019-11-26 | B151: Tuesday | C151: الثلاثاء
A152: 2019-11-27 | B152: Wednesday | C152: الأربعاء
A153: 2019-11-28 | B153: Thursday | C153: الخميس
A154: 2019-11-29 | B154: Friday | C154: الجمعة
A155: 2019-11-30 | B155: Saturday | C155: السبت
A156: 2019-12-01 | B156: Sunday | C156: الأحد
A157: 2019-12-02 | B157: Monday | C157: الإثنين
A158: 2019-12-03 | B158: Tuesday | C158: الثلاثاء
A159: 2019-12-04 | B159: Wednesday | C159: الأربعاء
A160: 2019-12-05 | B160: Thursday | C160: الخميس
A161: 2019-12-06 | B161: Friday | C161: الجمعة
A162: 2019-12-07 | B162: Saturday | C162: السبت
A163: 2019-12-08 | B163: Sunday | C163: الأحد
A164: 2019-12-09 | B164: Monday | C164: الإثنين
A165: 2019-12-10 | B165: Tuesday | C165: الثلاثاء
A166: 2019-12-11 | B166: Wednesday | C166: الأربعاء
A167: 2019-12-12 | B167: Thursday | C167: الخميس
A168: 2019-12-13 | B168: Friday | C168: الجمعة
A169: 2019-12-14 | B169: Saturday | C169: السبت
A170: 2019-12-15 | B170: Sunday | C170: الأحد
A171: 2019-12-16 | B171: Monday | C171: الإثنين
A172: 2019-12-17 | B172: Tuesday | C172: الثلاثاء
A173: 2019-12-18 | B173: Wednesday | C173: الأربعاء
A174: 2019-12-19 | B174: Thursday | C174: الخميس
A175: 2019-12-20 | B175: Friday | C175: الجمعة
A176: 2019-12-21 | B176: Saturday | C176: السبت
A177: 2019-12-22 | B177: Sunday | C177: الأحد
A178: 2019-12-23 | B178: Monday | C178: الإثنين
A179: 2019-12-24 | B179: Tuesday | C179: الثلاثاء
A180: 2019-12-25 | B180: Wednesday | C180: الأربعاء
A181: 2019-12-26 | B181: Thursday | C181: الخميس
A182: 2019-12-27 | B182: Friday | C182: الجمعة
A183: 2019-12-28 | B183: Saturday | C183: السبت
A184: 2019-12-29 | B184: Sunday | C184: الأحد
A185: 2019-12-30 | B185: Monday | C185: الإثنين
A186: 2019-12-31 | B186: Tuesday | C186: الثلاثاء
A187: 2020-01-01 | B187: Wednesday | C187: الأربعاء
A188: 2020-01-02 | B188: Thursday | C188: الخميس
A189: 2020-01-03 | B189: Friday | C189: الجمعة
A190: 2020-01-04 | B190: Saturday | C190: السبت
A191: 2020-01-05 | B191: Sunday | C191: الأحد
A192: 2020-01-06 | B192: Monday | C192: الإثنين
A193: 2020-01-07 | B193: Tuesday | C193: الثلاثاء
A194: 2020-01-08 | B194: Wednesday | C194: الأربعاء
A195: 2020-01-09 | B195: Thursday | C195: الخميس
A196: 2020-01-10 | B196: Friday | C196: الجمعة
A197: 2020-01-11 | B197: Saturday | C197: السبت
A198: 2020-01-12 | B198: Sunday | C198: الأحد
A199: 2020-01-13 | B199: Monday | C199: الإثنين
A200: 2020-01-14 | B200: Tuesday | C200: الثلاثاء
A201: 2020-01-15 | B201: Wednesday | C201: الأربعاء
... 1135 more rows

Sheet BUS (hidden)
B2: تسلسل | C2: رقم الباص | D2: رقم اللوحه | E2: نوع الباص | F2: الموقع
B3: SN. # | C3: Bus # | D3: Plate # | E3: Bus type | F3: LOCATION
B4: DHAHRAN 128 Big + 42 Small = 170 buses
B5: 1 | C5: 1027 | D5: 1827 EJA | E5: Travego | F5: DHA
B6: 2 | C6: 1038 | D6: 1838 EJA | E6: Travego | F6: DHA
B7: 3 | C7: 1045 | D7: 1845 EJA | E7: Travego | F7: DHA
B8: 4 | C8: 1050 | D8: 1850 EJA | E8: Travego | F8: DHA
B9: 5 | C9: 1056 | D9: 1856 EJA | E9: Travego | F9: DHA
B10: 6 | C10: 1057 | D10: 1857 EJA | E10: Travego | F10: DHA
B11: 7 | C11: 1059 | D11: 1859 EJA | E11: Travego | F11: DHA
B12: 8 | C12: 1063 | D12: 1863 EJA | E12: Travego | F12: DHA
B13: 9 | C13: 1090 | D13: 5259 EJA | E13: Travego | F13: DHA
B14: 10 | C14: 1092 | D14: 5261 EJA | E14: Travego | F14: DHA
B15: 11 | C15: 1094 | D15: 5263 EJA | E15: Travego | F15: DHA
B16: 12 | C16: 1095 | D16: 5264 EJA | E16: Travego | F16: DHA
B17: 13 | C17: 1098 | D17: 5270EJA | E17: Travego | F17: MUB
B18: 14 | C18: 1110 | D18: 5305 EJA | E18: Travego | F18: DHA
B19: 15 | C19: 1114 | D19: 5274 EJA | E19: Travego | F19: DHA
B20: 16 | C20: 1120 | D20: 5291 EJA | E20: Travego | F20: DHA
B21: 17 | C21: 1121 | D21: 5292 EJA | E21: Travego | F21: DHA
B22: 18 | C22: 1124 | D22: 5300 EJA | E22: Travego | F22: DHA
B23: 19 | C23: 1130 | D23: 5308 EJA | E23: Travego | F23: DHA
B24: 20 | C24: 1132 | D24: 5311 EJA | E24: Travego | F24: DHA
B25: 21 | C25: 1141 | D25: 5282 EJA | E25: Travego | F25: DHA
B26: 22 | C26: 1146 | D26: 4389 LJA | E26: Travego | F26: DHA
B27: 23 | C27: 1151 | D27: 5316 EJA | E27: Travego | F27: DHA
B28: 24 | C28: 1152 | D28: 5630 EJA | E28: Travego | F28: DHA
B29: 25 | C29: 1155 | D29: 5636 EJA | E29: Travego | F29: DHA
B30: 26 | C30: 1156 | D30: 5650 EJA | E30: Travego | F30: DHA
B31: 27 | C31: 1166 | D31: 8573 SJA | E31: Travego | F31: DHA
B32: 28 | C32: 1171 | D32: 8584 SJA | E32: Travego | F32: DHA
B33: 29 | C33: 1174 | D33: 8572 SJA | E33: Travego | F33: DHA
B34: 30 | C34: 1176 | D34: 8928 SJA | E34: Travego | F34: DHA
B35: 31 | C35: 1200 | D35: 4375 LJA | E35: Travego | F35: DHA
B36: 32 | C36: 1201 | D36: 8923 SJA | E36: Travego | F36: DHA
B37: 33 | C37: 1202 | D37: 4400 LJA | E37: Travego | F37: DHA
B38: 34 | C38: 1203 | D38: 8585 SJA | E38: Travego | F38: DHA
B39: 35 | C39: 1206 | D39: 4377 LJA | E39: Travego | F39: DHA
B40: 36 | C40: 1210 | D40: 8931 SJA | E40: Travego | F40: DHA
B41: 37 | C41: 1211 | D41: 4382 LJA | E41: Travego | F41: DHA
B42: 38 | C42: 1212 | D42: 4510 LJA | E42: Travego | F42: DHA
B43: 39 | C43: 1214 | D43: 4365 LJA | E43: Travego | F43: DHA
B44: 40 | C44: 1217 | D44: 4369 LJA | E44: Travego | F44: DHA
B45: 41 | C45: 1218 | D45: 4137 SJA | E45: Travego | F45: DHA
B46: 42 | C46: 1220 | D46: 4517 LJA | E46: Travego | F46: DHA
B47: 43 | C47: 1221 | D47: 4520 LJA | E47: Travego | F47: DHA
B48: 44 | C48: 1222 | D48: 4522 LJA | E48: Travego | F48: DHA
B49: 45 | C49: 1223 | D49: 4524 LJA | E49: Travego | F49: DHA
B50: 46 | C50: 1225 | D50: 4390 LJA | E50: Travego | F50: DHA
B51: 47 | C51: 1227 | D51: 4518 LJA | E51: Travego | F51: DHA
B52: 48 | C52: 1228 | D52: 4387 LJA | E52: Travego | F52: DHA
B53: 49 | C53: 1229 | D53: 4351 LJA | E53: Travego | F53: DHA
B54: 50 | C54: 1231 | D54: 4395 LJA | E54: Travego | F54: DHA
B55: 51 | C55: 1234 | D55: 4356 LJA | E55: Travego | F55: DHA
B56: 52 | C56: 1235 | D56: 4508 LJA | E56: Travego | F56: DHA
B57: 53 | C57: 1238 | D57: 8927 SJA | E57: Travego | F57: DHA
B58: 54 | C58: 1239 | D58: 8583 SJA | E58: Travego | F58: DHA
B59: 55 | C59: 1240 | D59: 4388 LJA | E59: Travego | F59: DHA
B60: 56 | C60: 1241 | D60: 4515 LJA | E60: Travego | F60: DHA
B61: 57 | C61: 1242 | D61: 4354 LJA | E61: Travego | F61: DHA
B62: 58 | C62: 1245 | D62: 4394 LJA | E62: Travego | F62: DHA
B63: 59 | C63: 1246 | D63: 4360 LJA | E63: Travego | F63: DHA
B64: 60 | C64: 1247 | D64: 4393 LJA | E64: Travego | F64: DHA
B65: 61 | C65: 1248 | D65: 4352 LJA | E65: Travego | F65: DHA
B66: 62 | C66: 1249 | D66: 4397 LJA | E66: Travego | F66: DHA
B67: 63 | C67: 1250 | D67: 4514 LJA | E67: Travego | F67: DHA
B68: 64 | C68: 1251 | D68: 4258 LJA | E68: Travego | F68: DHA
B69: 65 | C69: 1252 | D69: 4386 LJA | E69: Travego | F69: DHA
B70: 66 | C70: 1254 | D70: 8924 SJA | E70: Travego | F70: DHA
B71: 67 | C71: 1255 | D71: 4357 LJA | E71: Travego | F71: DHA
B72: 68 | C72: 1256 | D72: 4396 LJA | E72: Travego | F72: DHA
B73: 69 | C73: 1257 | D73: 4355 LJA | E73: Travego | F73: DHA
B74: 70 | C74: 1258 | D74: 4511 LJA | E74: Travego | F74: DHA
B75: 71 | C75: 1259 | D75: 4523 LJA | E75: Travego | F75: DHA
B76: 72 | C76: 1260 | D76: 4107 SJA | E76: Travego | F76: DHA
B77: 73 | C77: 1261 | D77: 8926 SJA | E77: Travego | F77: DHA
B78: 74 | C78: 1263 | D78: 2290 LJA | E78: Travego | F78: DHA
B79: 75 | C79: 1264 | D79: 2281 LJA | E79: Travego | F79: DHA
B80: 76 | C80: 1265 | D80: 2283 LJA | E80: Travego | F80: DHA
B81: 77 | C81: 1266 | D81: 2291 LJA | E81: Travego | F81: DHA
B82: 78 | C82: 1267 | D82: 2289 LJA | E82: Travego | F82: DHA
B83: 79 | C83: 1269 | D83: 1630 LJA | E83: Travego | F83: DHA
B84: 80 | C84: 1270 | D84: 1632 LJA | E84: Travego | F84: DHA
B85: 81 | C85: 1274 | D85: 8603 SJA | E85: Travego | F85: DHA
B86: 82 | C86: 1275 | D86: 1631 LJA | E86: Travego | F86: DHA
B87: 83 | C87: 1279 | D87: 1633 LJA | E87: Travego | F87: DHA
B88: 84 | C88: 1280 | D88: 8617 SJA | E88: Travego | F88: DHA
B89: 85 | C89: 1281 | D89: 1636 LJA | E89: Travego | F89: DHA
B90: 86 | C90: 1282 | D90: 1649 LJA | E90: Travego | F90: DHA
B91: 87 | C91: 1283 | D91: 8604 SJA | E91: Travego | F91: DHA
B92: 88 | C92: 1284 | D92: 8601 SJA | E92: Travego | F92: DHA
B93: 89 | C93: 1286 | D93: 1949 LJA | E93: Travego | F93: DHA
B94: 90 | C94: 1287 | D94: 1634 LJA | E94: Travego | F94: DHA
B95: 91 | C95: 1288 | D95: 1635 LJA | E95: Travego | F95: DHA
B96: 92 | C96: 1289 | D96: 8840 SJA | E96: Travego | F96: DHA
B97: 93 | C97: 1295 | D97: 8841 SJA | E97: Travego | F97: DHA
B98: 94 | C98: 1297 | D98: 1712 LJA | E98: Travego | F98: DHA
B99: 95 | C99: 1298 | D99: 1713 LJA | E99: Travego | F99: DHA
B100: 96 | C100: 1299 | D100: 4381 LJA | E100: Travego | F100: MUB
B101: 97 | C101: 1303 | D101: 4727 LJA | E101: Travego | F101: DHA
B102: 98 | C102: 1305 | D102: 8835 SJA | E102: Travego | F102: DHA
B103: 99 | C103: 1306 | D103: 2292 LJA | E103: Travego | F103: DHA
B104: 100 | C104: 1308 | D104: 4509 LJA | E104: Travego | F104: DHA
B105: 101 | C105: 1309 | D105: 2005 UJA | E105: Travego | F105: DHA
B106: 102 | C106: 1310 | D106: 8923 ADA | E106: Travego | F106: DHA
B107: 103 | C107: 1311 | D107: 8921 ADA | E107: Travego | F107: DHA
B108: 104 | C108: 1312 | D108: 8929 ADA | E108: Travego | F108: DHA
B109: 105 | C109: 1314 | D109: 8930 ADA | E109: Travego | F109: DHA
B110: 106 | C110: 1315 | D110: 8927 ADA | E110: Travego | F110: DHA
B111: 107 | C111: 1316 | D111: 8922 ADA | E111: Travego | F111: DHA
B112: 108 | C112: 1319 | D112: 4078 NDA | E112: Travego | F112: DHA
B113: 109 | C113: 1320 | D113: 4079 NDA | E113: Travego | F113: DHA
B114: 110 | C114: 1321 | D114: 4080 NDA | E114: Travego | F114: DHA
B115: 111 | C115: 1322 | D115: 4081 NDA | E115: Travego | F115: DHA
B116: 112 | C116: 1323 | D116: 4082 NDA | E116: Travego | F116: DHA
B117: 113 | C117: 1324 | D117: 2562 HDA | E117: Travego | F117: DHA
B118: 114 | C118: 1325 | D118: 2595 HDA | E118: Travego | F118: DHA
B119: 115 | C119: 1326 | D119: 2561 HDA | E119: Travego | F119: DHA
B120: 116 | C120: 1328 | D120: 2484 HDA | E120: Travego | F120: DHA
B121: 117 | C121: 1329 | D121: 2583 HDA | E121: Travego | F121: DHA
B122: 118 | C122: 1331 | D122: 2594 HDA | E122: Travego | F122: DHA
B123: 119 | C123: 1333 | D123: 2560 HDA | E123: Travego | F123: MUB
B124: 120 | C124: 1334 | D124: 2496 HDA | E124: Travego | F124: DHA
B125: 121 | C125: 1335 | D125: 2596 HDA | E125: Travego | F125: DHA
B126: 122 | C126: 1336 | D126: 2597 HDA | E126: Travego | F126: DHA
B127: 123 | C127: 1337 | D127: 2490 HDA | E127: Travego | F127: DHA
B128: 124 | C128: 1338 | D128: 2492 HDA | E128: Travego | F128: DHA
B129: 125 | C129: 1339 | D129: 2487 HDA | E129: Travego | F129: DHA
B130: 126 | C130: 1400 | D130: 2228 LJA | E130: Setra | F130: DHA
B131: 127 | C131: 1401 | D131: 2227 LJA | E131: Setra | F131: DHA
B132: 128 | C132: 1402 | D132: 2228 EJA | E132: Setra | F132: DHA
B133: 129 | C133: 1502 | D133: 8591 SJA | E133: Sprinter | F133: DHA
B134: 130 | C134: 1508 | D134: 8570 SJA | E134: Sprinter | F134: DHA
B135: 131 | C135: 1510 | D135: 8569 SJA | E135: Sprinter | F135: DHA
B136: 132 | C136: 1523 | D136: 8547 SJA | E136: Sprinter | F136: DHA
B137: 133 | C137: 1524 | D137: 8536 SJA | E137: Sprinter | F137: DHA
B138: 134 | C138: 1541 | D138: 8514 SJA | E138: Sprinter | F138: DHA
B139: 135 | C139: 1542 | D139: 8691 SJA | E139: Sprinter | F139: DHA
B140: 136 | C140: 1547 | D140: 8515 SJA | E140: Sprinter | F140: DHA
B141: 137 | C141: 1559 | D141: 4251 SJA | E141: Sprinter | F141: DHA
B142: 138 | C142: 1560 | D142: 4257 SJA | E142: Sprinter | F142: DHA
B143: 139 | C143: 1567 | D143: 4261 SJA | E143: Sprinter | F143: DHA
B144: 140 | C144: 1573 | D144: 2338 LJA | E144: Sprinter | F144: DHA
B145: 141 | C145: 1585 | D145: 2834 LJA | E145: Sprinter | F145: DHA
B146: 142 | C146: 1592 | D146: 2966 LJA | E146: Sprinter | F146: DHA
B147: 143 | C147: 1595 | D147: 2256 LJA | E147: Sprinter | F147: DHA
B148: 144 | C148: 1596 | D148: 2733 LJA | E148: Sprinter | F148: DHA
B149: 145 | C149: 1609 | D149: 1972 LJA | E149: Sprinter | F149: DHA
B150: 146 | C150: 1613 | D150: 8620 SJA | E150: Sprinter | F150: DHA
B151: 147 | C151: 1614 | D151: 8632 SJA | E151: Sprinter | F151: DHA
B152: 148 | C152: 1615 | D152: 8611 SJA | E152: Sprinter | F152: DHA
B153: 149 | C153: 1620 | D153: 8618 SJA | E153: Sprinter | F153: DHA
B154: 150 | C154: 1621 | D154: 8633 SJA | E154: Sprinter | F154: DHA
B155: 151 | C155: 1622 | D155: 8624 SJA | E155: Sprinter | F155: DHA
B156: 152 | C156: 1624 | D156: 8612 SJA | E156: Sprinter | F156: DHA
B157: 153 | C157: 1625 | D157: 1971 LJA | E157: Sprinter | F157: DHA
B158: 154 | C158: 1626 | D158: 8619 SJA | E158: Sprinter | F158: DHA
B159: 155 | C159: 1628 | D159: 8839 SJA | E159: Sprinter | F159: DHA
B160: 156 | C160: 1630 | D160: 8989 SJA | E160: Sprinter | F160: DHA
B161: 157 | C161: 1632 | D161: 8848 SJA | E161: Sprinter | F161: DHA
B162: 158 | C162: 1633 | D162: 8837 SJA | E162: Sprinter | F162: DHA
B163: 159 | C163: 1635 | D163: 8996 SJA | E163: Sprinter | F163: DHA
B164: 160 | C164: 1636 | D164: 8845 SJA | E164: Sprinter | F164: DHA
B165: 161 | C165: 1637 | D165: 8995 SJA | E165: Sprinter | F165: DHA
B166: 162 | C166: 1638 | D166: 8994 SJA | E166: Sprinter | F166: DHA
B167: 163 | C167: 1639 | D167: 8829 SJA | E167: Sprinter | F167: DHA
B168: 164 | C168: 1643 | D168: 8838 SJA | E168: Sprinter | F168: DHA
B169: 165 | C169: 1644 | D169: 8988 SJA | E169: Sprinter | F169: DHA
B170: 166 | C170: 1648 | D170: 8924 ADA | E170: Sprinter | F170: DHA
B171: 167 | C171: 1649 | D171: 8926 ADA | E171: Sprinter | F171: DHA
B172: 168 | C172: 1650 | D172: 8925 ADA | E172: Sprinter | F172: DHA
B173: 169 | C173: 1653 | D173: 9540 XGJ | E173: Sprinter | F173: DHA
B174: 170 | C174: 1654 | D174: 9541 XGJ | E174: Sprinter | F174: DHA
B175: KHORAIS 7 Big + 4 Small = 11 buses
B176: 1 | C176: 1060 | D176: 1860 EJA | E176: Travego | F176: KHO
B177: 2 | C177: 1065 | D177: 1865 EJA | E177: Travego | F177: KHO
B178: 3 | C178: 1067 | D178: 1867 EJA | E178: Travego | F178: KHO
B179: 4 | C179: 1097 | D179: 5268 EJA | E179: Travego | F179: KHO
B180: 5 | C180: 1148 | D180: 5295 EJA | E180: Travego | F180: KHO
B181: 6 | C181: 1233 | D181: 4512 LJA | E181: Travego | F181: KHO
B182: 7 | C182: 1268 | D182: 1948 LJA | E182: Travego | F182: KHO
B183: 8 | C183: 1538 | D183: 8513 SJA | E183: Sprinter | F183: KHO
B184: 9 | C184: 1566 | D184: 4259 SJA | E184: Sprinter | F184: KHO
B185: 10 | C185: 1645 | D185: 8847 SJA | E185: Sprinter | F185: KHO
B186: 11 | C186: 1647 | D186: 1974 LJA | E186: Sprinter | F186: KHO
B187: RIYADH 4 Big + 7 Small = 11 buses
B188: 1 | C188: 1058 | D188: 1858 EJA | E188: Travego | F188: RIY
B189: 2 | C189: 1108 | D189: 5297 EJA | E189: Travego | F189: RIY
B190: 3 | C190: 1230 | D190: 4367 LJA | E190: Travego | F190: RIY
B191: 4 | C191: 1232 | D191: 8944 SJA | E191: Travego | F191: RIY
B192: 5 | C192: 1545 | D192: 8695 SJA | E192: Sprinter | F192: RIY
B193: 6 | C193: 1607 | D193: 8628 SJA | E193: Sprinter | F193: RIY
B194: 7 | C194: 1608 | D194: 1973 LJA | E194: Sprinter | F194: RIY
B195: 8 | C195: 1610 | D195: 8610 SJA | E195: Sprinter | F195: RIY
B196: 9 | C196: 1617 | D196: 8629 SJA | E196: Sprinter | F196: RIY
B197: 10 | C197: 1619 | D197: 8630 SJA | E197: Sprinter | F197: RIY
B198: 11 | C198: 1627 | D198: 1072 LJA | E198: Sprinter | F198: RIY
B199: MUBARRAZ 61 Big + 17 Small = 78 buses
B200: 1 | C200: 1001 | D200: 1801 EJA | E200: Travego | F200: MUB
B201: 2 | C201: 1002 | D201: 1802 EJA | E201: Travego | F201: MUB
... 600 more rows

Sheet شهر 9 تفصيلي (hidden)
A1: 2021-09-01
A3: TRAVEGO ( Diesel )
A4: S/N | B4: Bus # | C4: 1 | D4: 2 | E4: 3 | F4: 4 | G4: 5 | H4: 6 | I4: 7 | J4: 8 | K4: 9 | L4: 10 | M4: 10(2) | N4: 11 | O4: 12 | P4: 13 | Q4: 14 | R4: 15 | S4: 16 | T4: 17 | U4: 18 | V4: 19 | W4: 20 | X4: 21 | Y4: 22 | Z4: 23 | AA4: 24 | AB4: 25 | AC4: 26 | AD4: 27 | AE4: 28 | AF4: 29 | AG4: 30 | AH4: 31 | AI4: Total
A5: 1 | B5: 1001
A6: 2 | B6: 1002
A7: 3 | B7: 1004
A8: 4 | B8: 1005
A9: 5 | B9: 1007
A10: 6 | B10: 1008
A11: 7 | B11: 1009
A12: 8 | B12: 1010
A13: 9 | B13: 1011
A14: 10 | B14: 1012
A15: 11 | B15: 1013
A16: 12 | B16: 1014
A17: 13 | B17: 1015
A18: 14 | B18: 1016
A19: 15 | B19: 1017
A20: 16 | B20: 1019
A21: 17 | B21: 1020
A22: 18 | B22: 1021
A23: 19 | B23: 1022
A24: 20 | B24: 1023
A25: 21 | B25: 1024
A26: 22 | B26: 1026
A27: 23 | B27: 1028
A28: 24 | B28: 1029
A29: 25 | B29: 1030
A30: 26 | B30: 1031
A31: 27 | B31: 1032
A32: 28 | B32: 1033
A33: 29 | B33: 1035
A34: 30 | B34: 1036
A35: 31 | B35: 1038
A36: 32 | B36: 1039
A37: 33 | B37: 1040
A38: 34 | B38: 1041
A39: 35 | B39: 1042
A40: 36 | B40: 1043
A41: 37 | B41: 1044
A42: 38 | B42: 1045
A43: 39 | B43: 1047
A44: 40 | B44: 1048
A45: 41 | B45: 1049
A46: 42 | B46: 1050
A47: 43 | B47: 1051
A48: 44 | B48: 1053
A49: 45 | B49: 1054
A50: 46 | B50: 1055
A51: 47 | B51: 1057
A52: 48 | B52: 1059
A53: 49 | B53: 1061
A54: 50 | B54: 1062
A55: 51 | B55: 1064
A56: 52 | B56: 1066
A57: 53 | B57: 1068
A58: 54 | B58: 1069
A59: 55 | B59: 1073
A60: 56 | B60: 1074
A61: 57 | B61: 1076
A62: 58 | B62: 1078
A63: 59 | B63: 1080
A64: 60 | B64: 1083
A65: 61 | B65: 1085
A66: 62 | B66: 1086
A67: 63 | B67: 1087
A68: 64 | B68: 1088
A69: 65 | B69: 1089
A70: 66 | B70: 1090
A71: 67 | B71: 1091
A72: 68 | B72: 1092
A73: 69 | B73: 1094
A74: 70 | B74: 1098
A75: 71 | B75: 1099
A76: 72 | B76: 1101
A77: 73 | B77: 1103
A78: 74 | B78: 1105
A79: 75 | B79: 1107
A80: 76 | B80: 1109
A81: 77 | B81: 1110
A82: 78 | B82: 1114
A83: 79 | B83: 1116
A84: 80 | B84: 1123
A85: 81 | B85: 1124
A86: 82 | B86: 1127
A87: 83 | B87: 1130
A88: 84 | B88: 1132
A89: 85 | B89: 1133
A90: 86 | B90: 1140
A91: 87 | B91: 1142
A92: 88 | B92: 1145
A93: 89 | B93: 1146
A94: 90 | B94: 1155
A95: 91 | B95: 1159
A96: 92 | B96: 1157
A97: 93 | B97: 1160
A98: 94 | B98: 1171
A99: 95 | B99: 1176
A100: 96 | B100: 1200
A101: 97 | B101: 1201
A102: 98 | B102: 1202
A103: 99 | B103: 1203
A104: 100 | B104: 1204
A105: 101 | B105: 1205
A106: 102 | B106: 1207
A107: 103 | B107: 1208
A108: 104 | B108: 1209
A109: 105 | B109: 1121
A110: 106 | B110: 1166
A111: 107 | B111: 1213
A112: 108 | B112: 1215
A113: 109 | B113: 1217
A114: 110 | B114: 1224
A115: 111 | B115: 1225
A116: 112 | B116: 1227
A117: 113 | B117: 1229
A118: 114 | B118: 1231
A119: 115 | B119: 1232
A120: 116 | B120: 1275
A121: 117 | B121: 1326
A122: 118 | B122: 1336
A123: 119 | B123: 1237
A124: 120 | B124: 1239
A125: 121 | B125: 1241
A126: 122 | B126: 1243
A127: 123 | B127: 1245
A128: 124 | B128: 1247
A129: 125 | B129: 1248
A130: 126 | B130: 1249
A131: 127 | B131: 1250
A132: 128 | B132: 1252
A133: 129 | B133: 1253
A134: 130 | B134: 1254
A135: 131 | B135: 1255
A136: 132 | B136: 1256
A137: 133 | B137: 1257
A138: 134 | B138: 1258
A139: 135 | B139: 1259
A140: 136 | B140: 1260
A141: 137 | B141: 1261
A142: 138 | B142: 1262
A143: 139 | B143: 1263
A144: 140 | B144: 1264
A145: 141 | B145: 1266
A146: 142 | B146: 1269
A147: 143 | B147: 1271
A148: 144 | B148: 1272
A149: 145 | B149: 1274
A150: 146 | B150: 1276
A151: 147 | B151: 1278
A152: 148 | B152: 1279
A153: 149 | B153: 1285
A154: 150 | B154: 1286
A155: 151 | B155: 1288
A156: 152 | B156: 1289
A157: 153 | B157: 1290
A158: 154 | B158: 1291
A159: 155 | B159: 1292
A160: 156 | B160: 1293
A161: 157 | B161: 1294
A162: 158 | B162: 1295
A163: 159 | B163: 1296
A164: 160 | B164: 1297
A165: 161 | B165: 1298
A166: 162 | B166: 1299
A167: 163 | B167: 1300
A168: 164 | B168: 1303
A169: 165 | B169: 1315
A170: 166 | B170: 1317
A171: 167 | B171: 1323
A172: 168 | B172: 1327
A173: 169 | B173: 1328
A174: 170 | B174: 1330
A175: 171 | B175: 1332
A176: 172 | B176: 1333
A177: 173 | B177: 1341
A178: 174 | B178: 1356
A179: 175 | B179: 1357
A180: 176 | B180: 1358
A181: 177 | B181: 1402
A182: 178 | B182: 1801
A183: 179 | B183: 1802
A184: 180 | B184: 1803
A185: 181 | B185: 1804
A186: 182 | B186: 1805
A187: 183 | B187: 1807
A188: 184 | B188: 1808
A189: 185 | B189: 1809
A190: 186 | B190: 1811
A191: 187 | B191: 1812
A192: 188 | B192: 1813
A193: 189 | B193: 1815
A194: 190 | B194: 1817
A195: 191 | B195: 1819
A196: 192 | B196: 1820
A197: 193 | B197: 1821
A198: 194 | B198: 1822
A199: 195 | B199: 1824
A200: 196 | B200: 11
A201: 197 | B201: 1656
... 185 more rows

Sheet شهر 9 تفاصيل الكيلو
A1: ='شهر 9 تفصيلي'!A1:B1 -> 2021-09-01
A3: TRAVEGO ( Diesel ) | E3: الكيلو D
A4: S/N | B4: Bus # | C4: 1 | D4: 2 | E4: 3 | F4: 4 | G4: 5 | H4: 6 | I4: 7 | J4: 8 | K4: 9 | L4: 10 | M4: 10 (2) | N4: 11 | O4: 12 | P4: 13 | Q4: 14 | R4: 15 | S4: 16 | T4: 17 | U4: 18 | V4: 19 | W4: 20 | X4: 21 | Y4: 22 | Z4: 23 | AA4: 24 | AB4: 25 | AC4: 26 | AD4: 27 | AE4: 28 | AF4: 29 | AG4: 30 | AH4: 31
A5: 1 | B5: 1001 | C5: =IFERROR(LOOKUP(2,1/('1'!$D$8:$I$10000=$B5),'1'!$E$8:$E$11000),"") ->  | D5: =IFERROR(LOOKUP(2,1/('2'!$D$8:$I$10000=$B5),'2'!$E$8:$E$11000),"") ->  | E5: =IFERROR(LOOKUP(2,1/('3'!$D$8:$I$10000=$B5),'3'!$E$8:$E$11000),"") ->  | F5: =IFERROR(LOOKUP(2,1/('4'!$D$8:$I$10000=$B5),'4'!$E$8:$E$11000),"") -> 12000 | G5: =IFERROR(LOOKUP(2,1/('5'!$D$8:$I$10000=$B5),'5'!$E$8:$E$11000),"") ->  | H5: =IFERROR(LOOKUP(2,1/('6'!$D$8:$I$10000=$B5),'6'!$E$8:$E$11000),"") ->  | I5: =IFERROR(LOOKUP(2,1/('7'!$D$8:$I$10000=$B5),'7'!$E$8:$E$11000),"") ->  | J5: =IFERROR(LOOKUP(2,1/('8'!$D$8:$I$10000=$B5),'8'!$E$8:$E$11000),"") -> 12540 | K5: =IFERROR(LOOKUP(2,1/('9'!$D$8:$I$10000=$B5),'9'!$E$8:$E$11000),"") -> 12830 | L5: =IFERROR(LOOKUP(2,1/('10'!$D$8:$I$10000=$B5),'10'!$E$8:$E$11000),"") ->  | M5: =IFERROR(LOOKUP(2,1/('10 (2)'!$D$8:$I$10000=$B5),'10 (2)'!$E$8:$E$11000),"") ->  | N5: =IFERROR(LOOKUP(2,1/('11'!$D$8:$I$10000=$B5),'11'!$E$8:$E$11000),"") -> 13151 | O5: =IFERROR(LOOKUP(2,1/('12'!$D$8:$I$10000=$B5),'12'!$E$8:$E$11000),"") -> 0 | P5: =IFERROR(LOOKUP(2,1/('13'!$D$8:$I$10000=$B5),'13'!$E$8:$E$11000),"") -> 0 | Q5: =IFERROR(LOOKUP(2,1/('14'!$D$8:$I$10000=$B5),'14'!$E$8:$E$11000),"") ->  | R5: =IFERROR(LOOKUP(2,1/('15'!$D$8:$I$10000=$B5),'15'!$E$8:$E$11000),"") -> 0 | S5: =IFERROR(LOOKUP(2,1/('16'!$D$8:$I$10000=$B5),'16'!$E$8:$E$11000),"") ->  | T5: =IFERROR(LOOKUP(2,1/('17'!$D$8:$I$10000=$B5),'17'!$E$8:$E$11000),"") ->  | U5: =IFERROR(LOOKUP(2,1/('18'!$D$8:$I$10000=$B5),'18'!$E$8:$E$11000),"") -> 0 | V5: =IFERROR(LOOKUP(2,1/(#REF!=$B5),#REF!),"") ->  | W5: =IFERROR(LOOKUP(2,1/(#REF!=$B5),#REF!),"") ->  | X5: =IFERROR(LOOKUP(2,1/(#REF!=$B5),#REF!),"") ->  | Y5: =IFERROR(LOOKUP(2,1/(#REF!=$B5),#REF!),"") ->  | Z5: =IFERROR(LOOKUP(2,1/(#REF!=$B5),#REF!),"") ->  | AA5: =IFERROR(LOOKUP(2,1/(#REF!=$B5),#REF!),"") ->  | AB5: =IFERROR(LOOKUP(2,1/(#REF!=$B5),#REF!),"") ->  | AC5: =IFERROR(LOOKUP(2,1/(#REF!=$B5),#REF!),"") ->  | AD5: =IFERROR(LOOKUP(2,1/(#REF!=$B5),#REF!),"") ->  | AE5: =IFERROR(LOOKUP(2,1/(#REF!=$B5),#REF!),"") ->  | AF5: =IFERROR(LOOKUP(2,1/(#REF!=$B5),#REF!),"") ->  | AG5: =IFERROR(LOOKUP(2,1/(#REF!=$B5),#REF!),"") ->  | AH5: =IFERROR(LOOKUP(2,1/(#REF!=$B5),#REF!),"") -> 
D6: =IFERROR(IF(OR(COUNT($C5:C5)<1,D5-MAX($C5:C5)<0),"",D5-MAX($C5:C5)),"") ->  | E6: =IFERROR(IF(OR(COUNT($C5:D5)<1,E5-MAX($C5:D5)<0),"",E5-MAX($C5:D5)),"") ->  | F6: =IFERROR(IF(OR(COUNT($C5:E5)<1,F5-MAX($C5:E5)<0),"",F5-MAX($C5:E5)),"") ->  | G6: =IFERROR(IF(OR(COUNT($C5:F5)<1,G5-MAX($C5:F5)<0),"",G5-MAX($C5:F5)),"") ->  | H6: =IFERROR(IF(OR(COUNT($C5:G5)<1,H5-MAX($C5:G5)<0),"",H5-MAX($C5:G5)),"") ->  | I6: =IFERROR(IF(OR(COUNT($C5:H5)<1,I5-MAX($C5:H5)<0),"",I5-MAX($C5:H5)),"") ->  | J6: =IFERROR(IF(OR(COUNT($C5:I5)<1,J5-MAX($C5:I5)<0),"",J5-MAX($C5:I5)),"") -> 540 | K6: =IFERROR(IF(OR(COUNT($C5:J5)<1,K5-MAX($C5:J5)<0),"",K5-MAX($C5:J5)),"") -> 290 | L6: =IFERROR(IF(OR(COUNT($C5:K5)<1,L5-MAX($C5:K5)<0),"",L5-MAX($C5:K5)),"") ->  | M6: =IFERROR(IF(OR(COUNT($C5:L5)<1,M5-MAX($C5:L5)<0),"",M5-MAX($C5:L5)),"") ->  | N6: =IFERROR(IF(OR(COUNT($C5:M5)<1,N5-MAX($C5:M5)<0),"",N5-MAX($C5:M5)),"") -> 321 | O6: =IFERROR(IF(OR(COUNT($C5:N5)<1,O5-MAX($C5:N5)<0),"",O5-MAX($C5:N5)),"") ->  | P6: =IFERROR(IF(OR(COUNT($C5:O5)<1,P5-MAX($C5:O5)<0),"",P5-MAX($C5:O5)),"") ->  | Q6: =IFERROR(IF(OR(COUNT($C5:P5)<1,Q5-MAX($C5:P5)<0),"",Q5-MAX($C5:P5)),"") ->  | R6: =IFERROR(IF(OR(COUNT($C5:Q5)<1,R5-MAX($C5:Q5)<0),"",R5-MAX($C5:Q5)),"") ->  | S6: =IFERROR(IF(OR(COUNT($C5:R5)<1,S5-MAX($C5:R5)<0),"",S5-MAX($C5:R5)),"") ->  | T6: =IFERROR(IF(OR(COUNT($C5:S5)<1,T5-MAX($C5:S5)<0),"",T5-MAX($C5:S5)),"") ->  | U6: =IFERROR(IF(OR(COUNT($C5:T5)<1,U5-MAX($C5:T5)<0),"",U5-MAX($C5:T5)),"") ->  | V6: =IFERROR(IF(OR(COUNT($C5:U5)<1,V5-MAX($C5:U5)<0),"",V5-MAX($C5:U5)),"") ->  | W6: =IFERROR(IF(OR(COUNT($C5:V5)<1,W5-MAX($C5:V5)<0),"",W5-MAX($C5:V5)),"") ->  | X6: =IFERROR(IF(OR(COUNT($C5:W5)<1,X5-MAX($C5:W5)<0),"",X5-MAX($C5:W5)),"") ->  | Y6: =IFERROR(IF(OR(COUNT($C5:X5)<1,Y5-MAX($C5:X5)<0),"",Y5-MAX($C5:X5)),"") ->  | Z6: =IFERROR(IF(OR(COUNT($C5:Y5)<1,Z5-MAX($C5:Y5)<0),"",Z5-MAX($C5:Y5)),"") ->  | AA6: =IFERROR(IF(OR(COUNT($C5:Z5)<1,AA5-MAX($C5:Z5)<0),"",AA5-MAX($C5:Z5)),"") ->  | AB6: =IFERROR(IF(OR(COUNT($C5:AA5)<1,AB5-MAX($C5:AA5)<0),"",AB5-MAX($C5:AA5)),"") ->  | AC6: =IFERROR(IF(OR(COUNT($C5:AB5)<1,AC5-MAX($C5:AB5)<0),"",AC5-MAX($C5:AB5)),"") ->  | AD6: =IFERROR(IF(OR(COUNT($C5:AC5)<1,AD5-MAX($C5:AC5)<0),"",AD5-MAX($C5:AC5)),"") ->  | AE6: =IFERROR(IF(OR(COUNT($C5:AD5)<1,AE5-MAX($C5:AD5)<0),"",AE5-MAX($C5:AD5)),"") ->  | AF6: =IFERROR(IF(OR(COUNT($C5:AE5)<1,AF5-MAX($C5:AE5)<0),"",AF5-MAX($C5:AE5)),"") ->  | AG6: =IFERROR(IF(OR(COUNT($C5:AF5)<1,AG5-MAX($C5:AF5)<0),"",AG5-MAX($C5:AF5)),"") ->  | AH6: =IFERROR(IF(OR(COUNT($C5:AG5)<1,AH5-MAX($C5:AG5)<0),"",AH5-MAX($C5:AG5)),"") -> 
A7: 2 | B7: 1011 | C7: =IFERROR(LOOKUP(2,1/('1'!$D$8:$I$10000=$B7),'1'!$E$8:$E$11000),"") -> 311000 | D7: =IFERROR(LOOKUP(2,1/('2'!$D$8:$I$10000=$B7),'2'!$E$8:$E$11000),"") ->  | E7: =IFERROR(LOOKUP(2,1/('3'!$D$8:$I$10000=$B7),'3'!$E$8:$E$11000),"") ->  | F7: =IFERROR(LOOKUP(2,1/('4'!$D$8:$I$10000=$B7),'4'!$E$8:$E$11000),"") ->  | G7: =IFERROR(LOOKUP(2,1/('5'!$D$8:$I$10000=$B7),'5'!$E$8:$E$11000),"") ->  | H7: =IFERROR(LOOKUP(2,1/('6'!$D$8:$I$10000=$B7),'6'!$E$8:$E$11000),"") -> 311480 | I7: =IFERROR(LOOKUP(2,1/('7'!$D$8:$I$10000=$B7),'7'!$E$8:$E$11000),"") -> 311925 | J7: =IFERROR(LOOKUP(2,1/('8'!$D$8:$I$10000=$B7),'8'!$E$8:$E$11000),"") -> 312198 | K7: =IFERROR(LOOKUP(2,1/('9'!$D$8:$I$10000=$B7),'9'!$E$8:$E$11000),"") ->  | L7: =IFERROR(LOOKUP(2,1/('10'!$D$8:$I$10000=$B7),'10'!$E$8:$E$11000),"") ->  | M7: =IFERROR(LOOKUP(2,1/('10 (2)'!$D$8:$I$10000=$B7),'10 (2)'!$E$8:$E$11000),"") ->  | N7: =IFERROR(LOOKUP(2,1/('11'!$D$8:$I$10000=$B7),'11'!$E$8:$E$11000),"") ->  | O7: =IFERROR(LOOKUP(2,1/('12'!$D$8:$I$10000=$B7),'12'!$E$8:$E$11000),"") -> 312503 | P7: =IFERROR(LOOKUP(2,1/('13'!$D$8:$I$10000=$B7),'13'!$E$8:$E$11000),"") -> 0 | Q7: =IFERROR(LOOKUP(2,1/('14'!$D$8:$I$10000=$B7),'14'!$E$8:$E$11000),"") -> 0 | R7: =IFERROR(LOOKUP(2,1/('15'!$D$8:$I$10000=$B7),'15'!$E$8:$E$11000),"") -> 0 | S7: =IFERROR(LOOKUP(2,1/('16'!$D$8:$I$10000=$B7),'16'!$E$8:$E$11000),"") -> 0 | T7: =IFERROR(LOOKUP(2,1/('17'!$D$8:$I$10000=$B7),'17'!$E$8:$E$11000),"") -> 0 | U7: =IFERROR(LOOKUP(2,1/('18'!$D$8:$I$10000=$B7),'18'!$E$8:$E$11000),"") -> 0 | V7: =IFERROR(LOOKUP(2,1/(#REF!=$B7),#REF!),"") ->  | W7: =IFERROR(LOOKUP(2,1/(#REF!=$B7),#REF!),"") ->  | X7: =IFERROR(LOOKUP(2,1/(#REF!=$B7),#REF!),"") ->  | Y7: =IFERROR(LOOKUP(2,1/(#REF!=$B7),#REF!),"") ->  | Z7: =IFERROR(LOOKUP(2,1/(#REF!=$B7),#REF!),"") ->  | AA7: =IFERROR(LOOKUP(2,1/(#REF!=$B7),#REF!),"") ->  | AB7: =IFERROR(LOOKUP(2,1/(#REF!=$B7),#REF!),"") ->  | AC7: =IFERROR(LOOKUP(2,1/(#REF!=$B7),#REF!),"") ->  | AD7: =IFERROR(LOOKUP(2,1/(#REF!=$B7),#REF!),"") ->  | AE7: =IFERROR(LOOKUP(2,1/(#REF!=$B7),#REF!),"") ->  | AF7: =IFERROR(LOOKUP(2,1/(#REF!=$B7),#REF!),"") ->  | AG7: =IFERROR(LOOKUP(2,1/(#REF!=$B7),#REF!),"") ->  | AH7: =IFERROR(LOOKUP(2,1/(#REF!=$B7),#REF!),"") -> 
D8: =IFERROR(IF(OR(COUNT($C7:C7)<1,D7-MAX($C7:C7)<0),"",D7-MAX($C7:C7)),"") ->  | E8: =IFERROR(IF(OR(COUNT($C7:D7)<1,E7-MAX($C7:D7)<0),"",E7-MAX($C7:D7)),"") ->  | F8: =IFERROR(IF(OR(COUNT($C7:E7)<1,F7-MAX($C7:E7)<0),"",F7-MAX($C7:E7)),"") ->  | G8: =IFERROR(IF(OR(COUNT($C7:F7)<1,G7-MAX($C7:F7)<0),"",G7-MAX($C7:F7)),"") ->  | H8: =IFERROR(IF(OR(COUNT($C7:G7)<1,H7-MAX($C7:G7)<0),"",H7-MAX($C7:G7)),"") -> 480 | I8: =IFERROR(IF(OR(COUNT($C7:H7)<1,I7-MAX($C7:H7)<0),"",I7-MAX($C7:H7)),"") -> 445 | J8: =IFERROR(IF(OR(COUNT($C7:I7)<1,J7-MAX($C7:I7)<0),"",J7-MAX($C7:I7)),"") -> 273 | K8: =IFERROR(IF(OR(COUNT($C7:J7)<1,K7-MAX($C7:J7)<0),"",K7-MAX($C7:J7)),"") ->  | L8: =IFERROR(IF(OR(COUNT($C7:K7)<1,L7-MAX($C7:K7)<0),"",L7-MAX($C7:K7)),"") ->  | M8: =IFERROR(IF(OR(COUNT($C7:L7)<1,M7-MAX($C7:L7)<0),"",M7-MAX($C7:L7)),"") ->  | N8: =IFERROR(IF(OR(COUNT($C7:M7)<1,N7-MAX($C7:M7)<0),"",N7-MAX($C7:M7)),"") ->  | O8: =IFERROR(IF(OR(COUNT($C7:N7)<1,O7-MAX($C7:N7)<0),"",O7-MAX($C7:N7)),"") -> 305 | P8: =IFERROR(IF(OR(COUNT($C7:O7)<1,P7-MAX($C7:O7)<0),"",P7-MAX($C7:O7)),"") ->  | Q8: =IFERROR(IF(OR(COUNT($C7:P7)<1,Q7-MAX($C7:P7)<0),"",Q7-MAX($C7:P7)),"") ->  | R8: =IFERROR(IF(OR(COUNT($C7:Q7)<1,R7-MAX($C7:Q7)<0),"",R7-MAX($C7:Q7)),"") ->  | S8: =IFERROR(IF(OR(COUNT($C7:R7)<1,S7-MAX($C7:R7)<0),"",S7-MAX($C7:R7)),"") ->  | T8: =IFERROR(IF(OR(COUNT($C7:S7)<1,T7-MAX($C7:S7)<0),"",T7-MAX($C7:S7)),"") ->  | U8: =IFERROR(IF(OR(COUNT($C7:T7)<1,U7-MAX($C7:T7)<0),"",U7-MAX($C7:T7)),"") ->  | V8: =IFERROR(IF(OR(COUNT($C7:U7)<1,V7-MAX($C7:U7)<0),"",V7-MAX($C7:U7)),"") ->  | W8: =IFERROR(IF(OR(COUNT($C7:V7)<1,W7-MAX($C7:V7)<0),"",W7-MAX($C7:V7)),"") ->  | X8: =IFERROR(IF(OR(COUNT($C7:W7)<1,X7-MAX($C7:W7)<0),"",X7-MAX($C7:W7)),"") ->  | Y8: =IFERROR(IF(OR(COUNT($C7:X7)<1,Y7-MAX($C7:X7)<0),"",Y7-MAX($C7:X7)),"") ->  | Z8: =IFERROR(IF(OR(COUNT($C7:Y7)<1,Z7-MAX($C7:Y7)<0),"",Z7-MAX($C7:Y7)),"") ->  | AA8: =IFERROR(IF(OR(COUNT($C7:Z7)<1,AA7-MAX($C7:Z7)<0),"",AA7-MAX($C7:Z7)),"") ->  | AB8: =IFERROR(IF(OR(COUNT($C7:AA7)<1,AB7-MAX($C7:AA7)<0),"",AB7-MAX($C7:AA7)),"") ->  | AC8: =IFERROR(IF(OR(COUNT($C7:AB7)<1,AC7-MAX($C7:AB7)<0),"",AC7-MAX($C7:AB7)),"") ->  | AD8: =IFERROR(IF(OR(COUNT($C7:AC7)<1,AD7-MAX($C7:AC7)<0),"",AD7-MAX($C7:AC7)),"") ->  | AE8: =IFERROR(IF(OR(COUNT($C7:AD7)<1,AE7-MAX($C7:AD7)<0),"",AE7-MAX($C7:AD7)),"") ->  | AF8: =IFERROR(IF(OR(COUNT($C7:AE7)<1,AF7-MAX($C7:AE7)<0),"",AF7-MAX($C7:AE7)),"") ->  | AG8: =IFERROR(IF(OR(COUNT($C7:AF7)<1,AG7-MAX($C7:AF7)<0),"",AG7-MAX($C7:AF7)),"") ->  | AH8: =IFERROR(IF(OR(COUNT($C7:AG7)<1,AH7-MAX($C7:AG7)<0),"",AH7-MAX($C7:AG7)),"") -> 
D12: المطلوب استخراج الناتج في الخلايا بالون الاصفر بدون ان اقوم بوضع معادلة الطرح في كل مره علماً : بان يتم تعبئة المركبات حسب الحاجه وعدد المركبات يتجاوز 213 مركبه

Sheet 1
G3: : | N3: :
AB5: محطة خشمان ( الماسة 7 )
B6: Checking the station manager | AB6: كشف بأرقام الفواتير اليومية
B7: ='شهر 9 تفصيلي'!$A$1 -> 2021-09-01 | F7: التاريخ / | I7: =#REF! ->  | M7: اليـــوم / | P7: محطة خشمان ( الماسة 7 ) | W7: 1 | AB7: =B7 -> 2021-09-01 | AF7: =I7 -> 
B8: S.NO | C8: رقم الفاتوره ديزل | D8: BUS | E8: الكيلو D | F8: D | G8: الوقت | H8: المراقب | I8: To | J8: رقم الفاتوره 95 | K8: BUS | L8: الكيلو 95 | M8: 95 | N8: الوقت | O8: المراقب | P8: To | Q8: رقم الفاتوره 91 | R8: BUS | S8: الكيلو 91 | T8: 91 | U8: الوقت | V8: المراقب | W8: To | AC8: رقم الفاتوره ديزل | AE8: رقم الفاتوره ديزل | AG8: رقم الفاتوره 95 | AI8: رقم الفاتوره 91
B9: 1 | C9: 20185 | D9: 1205 | F9: 100 | I9: =IFERROR(VLOOKUP(D9,BUS!$C$4:$AEB$946,4,0),"") -> MUB | J9: 1213 | K9: 1588 | M9: 69 | P9: =IFERROR(VLOOKUP(K9,BUS!$C$4:$AEB$946,4,0),"") -> UDH | Q9: 4050 | R9: 4016 | T9: 36 | W9: =IFERROR(VLOOKUP(R9,BUS!$C$4:$AEB$946,4,0),"") -> MUB | Y9: =IFERROR(VLOOKUP(D9,'شهر 9 تفصيلي'!$B$5:$AEB$965,1,0),"") -> 1205 | Z9: =IFERROR(VLOOKUP(K9,'شهر 9 تفصيلي'!$B$5:$AEB$965,1,0),"") -> 1588 | AA9: =IFERROR(VLOOKUP(R9,'شهر 9 تفصيلي'!$B$5:$AEB$965,1,0),"") -> 4016 | AB9: 1 | AC9: =IF(C9>0,C9) -> 20185 | AD9: 48 | AE9: =IF(C67>0,C67) -> 20233 | AF9: 1 | AG9: =IF(J9>0,J9) -> 1213 | AH9: 1 | AI9: =IF(Q9>0,Q9) -> 4050
B10: 2 | C10: 20186 | D10: 1040 | F10: 133 | I10: =IFERROR(VLOOKUP(D10,BUS!$C$4:$AEB$946,4,0),"") -> MUB | J10: 1214 | K10: 1589 | M10: 88 | P10: =IFERROR(VLOOKUP(K10,BUS!$C$4:$AEB$946,4,0),"") -> UDH | Q10: 4049 | R10: 6027 | T10: 40 | W10: =IFERROR(VLOOKUP(R10,BUS!$C$4:$AEB$946,4,0),"") -> MUB | Y10: =IFERROR(VLOOKUP(D10,'شهر 9 تفصيلي'!$B$5:$AEB$965,1,0),"") -> 1040 | Z10: =IFERROR(VLOOKUP(K10,'شهر 9 تفصيلي'!$B$5:$AEB$965,1,0),"") -> 1589 | AA10: =IFERROR(VLOOKUP(R10,'شهر 9 تفصيلي'!$B$5:$AEB$965,1,0),"") -> 6027 | AB10: 2 | AC10: =IF(C10>0,C10) -> 20186 | AD10: 49 | AE10: =IF(C68>0,C68) -> 20234 | AF10: 2 | AG10: =IF(J10>0,J10) -> 1214 | AH10: 2 | AI10: =IF(Q10>0,Q10) -> 4049
B11: 3 | C11: 20187 | D11: 1261 | F11: 90 | I11: =IFERROR(VLOOKUP(D11,BUS!$C$4:$AEB$946,4,0),"") -> DHA | J11: 1215 | K11: 1611 | M11: 79 | P11: =IFERROR(VLOOKUP(K11,BUS!$C$4:$AEB$946,4,0),"") -> UDH | Q11: 4040 | R11: se81 | T11: 24 | W11: =IFERROR(VLOOKUP(R11,BUS!$C$4:$AEB$946,4,0),"") -> MUB | Y11: =IFERROR(VLOOKUP(D11,'شهر 9 تفصيلي'!$B$5:$AEB$965,1,0),"") -> 1261 | Z11: =IFERROR(VLOOKUP(K11,'شهر 9 تفصيلي'!$B$5:$AEB$965,1,0),"") -> 1611 | AA11: =IFERROR(VLOOKUP(R11,'شهر 9 تفصيلي'!$B$5:$AEB$965,1,0),"") -> SE81 | AB11: 3 | AC11: 20187 | AD11: 50 | AE11: 20237 | AF11: 3 | AG11: 1215 | AH11: 3 | AI11: 4040
B12: 4 | C12: 20188 | D12: 1659 | F12: 44 | I12: =IFERROR(VLOOKUP(D12,BUS!$C$4:$AEB$946,4,0),"") -> MUB | J12: 1216 | K12: 1565 | M12: 49 | P12: =IFERROR(VLOOKUP(K12,BUS!$C$4:$AEB$946,4,0),"") -> UDH | Q12: 4041 | R12: 6027 | T12: 57 | W12: =IFERROR(VLOOKUP(R12,BUS!$C$4:$AEB$946,4,0),"") -> MUB | Y12: =IFERROR(VLOOKUP(D12,'شهر 9 تفصيلي'!$B$5:$AEB$965,1,0),"") -> 1659 | Z12: =IFERROR(VLOOKUP(K12,'شهر 9 تفصيلي'!$B$5:$AEB$965,1,0),"") -> 1565 | AA12: =IFERROR(VLOOKUP(R12,'شهر 9 تفصيلي'!$B$5:$AEB$965,1,0),"") -> 6027 | AB12: 4 | AC12: 20188 | AD12: 51 | AE12: 20257 | AF12: 4 | AG12: 1216 | AH12: 4 | AI12: 4041
B13: 5 | C13: 20189 | D13: 1114 | F13: 142 | I13: =IFERROR(VLOOKUP(D13,BUS!$C$4:$AEB$946,4,0),"") -> DHA | J13: 1217 | K13: 1503 | M13: 50 | P13: =IFERROR(VLOOKUP(K13,BUS!$C$4:$AEB$946,4,0),"") -> MUB | Q13: 4042 | R13: 6005 | T13: 45 | W13: =IFERROR(VLOOKUP(R13,BUS!$C$4:$AEB$946,4,0),"") -> MUB | Y13: =IFERROR(VLOOKUP(D13,'شهر 9 تفصيلي'!$B$5:$AEB$965,1,0),"") -> 1114 | Z13: =IFERROR(VLOOKUP(K13,'شهر 9 تفصيلي'!$B$5:$AEB$965,1,0),"") -> 1503 | AA13: =IFERROR(VLOOKUP(R13,'شهر 9 تفصيلي'!$B$5:$AEB$965,1,0),"") -> 6005 | AB13: 5 | AC13: 20189 | AD13: 52 | AE13: 20251 | AF13: 5 | AG13: 1217 | AH13: 5 | AI13: 4042
B14: 6 | C14: 20190 | D14: 1255 | F14: 131 | I14: =IFERROR(VLOOKUP(D14,BUS!$C$4:$AEB$946,4,0),"") -> DHA | J14: 1219 | K14: 1525 | M14: 55 | P14: =IFERROR(VLOOKUP(K14,BUS!$C$4:$AEB$946,4,0),"") -> MUB | Q14: 4043 | R14: 4157 | T14: 20 | W14: =IFERROR(VLOOKUP(R14,BUS!$C$4:$AEB$946,4,0),"") -> MUB | Y14: =IFERROR(VLOOKUP(D14,'شهر 9 تفصيلي'!$B$5:$AEB$965,1,0),"") -> 1255 | Z14: =IFERROR(VLOOKUP(K14,'شهر 9 تفصيلي'!$B$5:$AEB$965,1,0),"") -> 1525 | AA14: =IFERROR(VLOOKUP(R14,'شهر 9 تفصيلي'!$B$5:$AEB$965,1,0),"") -> 4157 | AB14: 6 | AC14: 20190 | AD14: 53 | AE14: 20252 | AF14: 6 | AG14: 1219 | AH14: 6 | AI14: 4043
B15: 7 | C15: 20191 | D15: 1050 | F15: 136 | I15: =IFERROR(VLOOKUP(D15,BUS!$C$4:$AEB$946,4,0),"") -> DHA | J15: 1218 | K15: 1506 | M15: 102 | P15: =IFERROR(VLOOKUP(K15,BUS!$C$4:$AEB$946,4,0),"") -> MUB | Q15: 4044 | R15: 4013 | T15: 23 | W15: =IFERROR(VLOOKUP(R15,BUS!$C$4:$AEB$946,4,0),"") -> MUB | Y15: =IFERROR(VLOOKUP(D15,'شهر 9 تفصيلي'!$B$5:$AEB$965,1,0),"") -> 1050 | Z15: =IFERROR(VLOOKUP(K15,'شهر 9 تفصيلي'!$B$5:$AEB$965,1,0),"") -> 1506 | AA15: =IFERROR(VLOOKUP(R15,'شهر 9 تفصيلي'!$B$5:$AEB$965,1,0),"") -> 4013 | AB15: 7 | AC15: 20191 | AD15: 54 | AE15: 20253 | AF15: 7 | AG15: 1218 | AH15: 7 | AI15: 4044
B16: 8 | C16: 20192 | D16: 1204 | F16: 60 | I16: =IFERROR(VLOOKUP(D16,BUS!$C$4:$AEB$946,4,0),"") -> MUB | J16: 1202 | K16: 1565 | M16: 68 | P16: =IFERROR(VLOOKUP(K16,BUS!$C$4:$AEB$946,4,0),"") -> UDH | Q16: 4046 | R16: 4091 | T16: 25 | W16: =IFERROR(VLOOKUP(R16,BUS!$C$4:$AEB$946,4,0),"") -> MUB | Y16: =IFERROR(VLOOKUP(D16,'شهر 9 تفصيلي'!$B$5:$AEB$965,1,0),"") -> 1204 | Z16: =IFERROR(VLOOKUP(K16,'شهر 9 تفصيلي'!$B$5:$AEB$965,1,0),"") -> 1565 | AA16: =IFERROR(VLOOKUP(R16,'شهر 9 تفصيلي'!$B$5:$AEB$965,1,0),"") -> 4091 | AB16: 8 | AC16: 20192 | AD16: 55 | AE16: 20254 | AF16: 8 | AG16: 1202 | AH16: 8 | AI16: 4046
B17: 9 | C17: 20193 | D17: 1808 | F17: 60 | I17: =IFERROR(VLOOKUP(D17,BUS!$C$4:$AEB$946,4,0),"") -> MUB | J17: 1203 | K17: 1511 | M17: 40 | P17: =IFERROR(VLOOKUP(K17,BUS!$C$4:$AEB$946,4,0),"") -> MUB | Q17: 4048 | R17: se82 | T17: 19 | W17: =IFERROR(VLOOKUP(R17,BUS!$C$4:$AEB$946,4,0),"") -> MUB | Y17: =IFERROR(VLOOKUP(D17,'شهر 9 تفصيلي'!$B$5:$AEB$965,1,0),"") -> 1808 | Z17: =IFERROR(VLOOKUP(K17,'شهر 9 تفصيلي'!$B$5:$AEB$965,1,0),"") -> 1511 | AA17: =IFERROR(VLOOKUP(R17,'شهر 9 تفصيلي'!$B$5:$AEB$965,1,0),"") -> SE82 | AB17: 9 | AC17: 20193 | AD17: 56 | AE17: 20255 | AF17: 9 | AG17: 1203 | AH17: 9 | AI17: 4048
B18: 10 | C18: 20194 | D18: 1237 | F18: 50 | I18: =IFERROR(VLOOKUP(D18,BUS!$C$4:$AEB$946,4,0),"") -> MUB | J18: 1204 | K18: 1552 | M18: 81 | P18: =IFERROR(VLOOKUP(K18,BUS!$C$4:$AEB$946,4,0),"") -> MUB | W18: =IFERROR(VLOOKUP(R18,BUS!$C$4:$AEB$946,4,0),"") ->  | Y18: =IFERROR(VLOOKUP(D18,'شهر 9 تفصيلي'!$B$5:$AEB$965,1,0),"") -> 1237 | Z18: =IFERROR(VLOOKUP(K18,'شهر 9 تفصيلي'!$B$5:$AEB$965,1,0),"") -> 1552 | AA18: =IFERROR(VLOOKUP(R18,'شهر 9 تفصيلي'!$B$5:$AEB$965,1,0),"") ->  | AB18: 10 | AC18: 20194 | AD18: 57 | AE18: 20256 | AF18: 10 | AG18: 1204 | AH18: 10 | AI18: FALSE
B19: 11 | C19: 20195 | D19: 1013 | F19: 125 | I19: =IFERROR(VLOOKUP(D19,BUS!$C$4:$AEB$946,4,0),"") -> MUB | J19: 1205 | K19: 1503 | M19: 56 | P19: =IFERROR(VLOOKUP(K19,BUS!$C$4:$AEB$946,4,0),"") -> MUB | W19: =IFERROR(VLOOKUP(R19,BUS!$C$4:$AEB$946,4,0),"") ->  | Y19: =IFERROR(VLOOKUP(D19,'شهر 9 تفصيلي'!$B$5:$AEB$965,1,0),"") -> 1013 | Z19: =IFERROR(VLOOKUP(K19,'شهر 9 تفصيلي'!$B$5:$AEB$965,1,0),"") -> 1503 | AA19: =IFERROR(VLOOKUP(R19,'شهر 9 تفصيلي'!$B$5:$AEB$965,1,0),"") ->  | AB19: 11 | AC19: 20195 | AD19: 58 | AE19: 20240 | AF19: 11 | AG19: 1205 | AH19: 11 | AI19: FALSE
B20: 12 | C20: 20195 | D20: 1358 | F20: 137 | I20: =IFERROR(VLOOKUP(D20,BUS!$C$4:$AEB$946,4,0),"") -> MUB | J20: 1206 | K20: 1504 | M20: 60 | P20: =IFERROR(VLOOKUP(K20,BUS!$C$4:$AEB$946,4,0),"") -> MUB | W20: =IFERROR(VLOOKUP(R20,BUS!$C$4:$AEB$946,4,0),"") ->  | Y20: =IFERROR(VLOOKUP(D20,'شهر 9 تفصيلي'!$B$5:$AEB$965,1,0),"") -> 1358 | Z20: =IFERROR(VLOOKUP(K20,'شهر 9 تفصيلي'!$B$5:$AEB$965,1,0),"") -> 1504 | AA20: =IFERROR(VLOOKUP(R20,'شهر 9 تفصيلي'!$B$5:$AEB$965,1,0),"") ->  | AB20: 12 | AC20: 20195 | AD20: 59 | AE20: 20241 | AF20: 12 | AG20: 1206 | AH20: 12 | AI20: FALSE
B21: 13 | C21: 20197 | D21: 1014 | F21: 135 | I21: =IFERROR(VLOOKUP(D21,BUS!$C$4:$AEB$946,4,0),"") -> MUB | J21: 1207 | K21: 1513 | M21: 37 | P21: =IFERROR(VLOOKUP(K21,BUS!$C$4:$AEB$946,4,0),"") -> MUB | W21: =IFERROR(VLOOKUP(R21,BUS!$C$4:$AEB$946,4,0),"") ->  | Y21: =IFERROR(VLOOKUP(D21,'شهر 9 تفصيلي'!$B$5:$AEB$965,1,0),"") -> 1014 | Z21: =IFERROR(VLOOKUP(K21,'شهر 9 تفصيلي'!$B$5:$AEB$965,1,0),"") -> 1513 | AA21: =IFERROR(VLOOKUP(R21,'شهر 9 تفصيلي'!$B$5:$AEB$965,1,0),"") ->  | AB21: 13 | AC21: 20197 | AD21: 60 | AE21: 20242 | AF21: 13 | AG21: 1207 | AH21: 13 | AI21: FALSE
B22: 14 | C22: 20198 | D22: 1051 | F22: 101 | I22: =IFERROR(VLOOKUP(D22,BUS!$C$4:$AEB$946,4,0),"") -> MUB | J22: 1208 | K22: 1520 | M22: 73 | P22: =IFERROR(VLOOKUP(K22,BUS!$C$4:$AEB$946,4,0),"") -> MUB | W22: =IFERROR(VLOOKUP(R22,BUS!$C$4:$AEB$946,4,0),"") ->  | Y22: =IFERROR(VLOOKUP(D22,'شهر 9 تفصيلي'!$B$5:$AEB$965,1,0),"") -> 1051 | Z22: =IFERROR(VLOOKUP(K22,'شهر 9 تفصيلي'!$B$5:$AEB$965,1,0),"") -> 1520 | AA22: =IFERROR(VLOOKUP(R22,'شهر 9 تفصيلي'!$B$5:$AEB$965,1,0),"") ->  | AB22: 14 | AC22: 20198 | AD22: 61 | AE22: 20239 | AF22: 14 | AG22: 1208 | AH22: 14 | AI22: FALSE
B23: 15 | C23: 20199 | D23: 1059 | F23: 75 | I23: =IFERROR(VLOOKUP(D23,BUS!$C$4:$AEB$946,4,0),"") -> DHA | J23: 1209 | K23: 1525 | M23: 59 | P23: =IFERROR(VLOOKUP(K23,BUS!$C$4:$AEB$946,4,0),"") -> MUB | W23: =IFERROR(VLOOKUP(R23,BUS!$C$4:$AEB$946,4,0),"") ->  | Y23: =IFERROR(VLOOKUP(D23,'شهر 9 تفصيلي'!$B$5:$AEB$965,1,0),"") -> 1059 | Z23: =IFERROR(VLOOKUP(K23,'شهر 9 تفصيلي'!$B$5:$AEB$965,1,0),"") -> 1525 | AA23: =IFERROR(VLOOKUP(R23,'شهر 9 تفصيلي'!$B$5:$AEB$965,1,0),"") ->  | AB23: 15 | AC23: 20199 | AD23: 62 | AE23: 20238 | AF23: 15 | AG23: 1209 | AH23: 15 | AI23: FALSE
B24: 16 | C24: 20200 | D24: 1298 | F24: 170 | I24: =IFERROR(VLOOKUP(D24,BUS!$C$4:$AEB$946,4,0),"") -> DHA | J24: 1211 | K24: 1655 | M24: 124 | P24: =IFERROR(VLOOKUP(K24,BUS!$C$4:$AEB$946,4,0),"") -> MUB | W24: =IFERROR(VLOOKUP(R24,BUS!$C$4:$AEB$946,4,0),"") ->  | Y24: =IFERROR(VLOOKUP(D24,'شهر 9 تفصيلي'!$B$5:$AEB$965,1,0),"") -> 1298 | Z24: =IFERROR(VLOOKUP(K24,'شهر 9 تفصيلي'!$B$5:$AEB$965,1,0),"") -> 1655 | AA24: =IFERROR(VLOOKUP(R24,'شهر 9 تفصيلي'!$B$5:$AEB$965,1,0),"") ->  | AB24: 16 | AC24: 20200 | AD24: 63 | AE24: 20243 | AF24: 16 | AG24: 1211 | AH24: 16 | AI24: FALSE
B25: 17 | C25: 20201 | D25: 1804 | F25: 170 | I25: =IFERROR(VLOOKUP(D25,BUS!$C$4:$AEB$946,4,0),"") -> MUB | J25: 1212 | K25: 1557 | M25: 95 | P25: =IFERROR(VLOOKUP(K25,BUS!$C$4:$AEB$946,4,0),"") -> MUB | W25: =IFERROR(VLOOKUP(R25,BUS!$C$4:$AEB$946,4,0),"") ->  | Y25: =IFERROR(VLOOKUP(D25,'شهر 9 تفصيلي'!$B$5:$AEB$965,1,0),"") -> 1804 | Z25: =IFERROR(VLOOKUP(K25,'شهر 9 تفصيلي'!$B$5:$AEB$965,1,0),"") -> 1557 | AA25: =IFERROR(VLOOKUP(R25,'شهر 9 تفصيلي'!$B$5:$AEB$965,1,0),"") ->  | AB25: 17 | AC25: 20201 | AD25: 64 | AE25: 20244 | AF25: 17 | AG25: 1212 | AH25: 17 | AI25: FALSE
B26: 18 | C26: 20202 | D26: 1208 | F26: 157 | I26: =IFERROR(VLOOKUP(D26,BUS!$C$4:$AEB$946,4,0),"") -> MUB | P26: =IFERROR(VLOOKUP(K26,BUS!$C$4:$AEB$946,4,0),"") ->  | W26: =IFERROR(VLOOKUP(R26,BUS!$C$4:$AEB$946,4,0),"") ->  | Y26: =IFERROR(VLOOKUP(D26,'شهر 9 تفصيلي'!$B$5:$AEB$965,1,0),"") -> 1208 | Z26: =IFERROR(VLOOKUP(K26,'شهر 9 تفصيلي'!$B$5:$AEB$965,1,0),"") ->  | AA26: =IFERROR(VLOOKUP(R26,'شهر 9 تفصيلي'!$B$5:$AEB$965,1,0),"") ->  | AB26: 18 | AC26: 20202 | AD26: 65 | AE26: 20245 | AF26: 18 | AG26: FALSE | AH26: 18 | AI26: FALSE
B27: 19 | C27: 20203 | D27: 1824 | F27: 150 | I27: =IFERROR(VLOOKUP(D27,BUS!$C$4:$AEB$946,4,0),"") -> MUB | P27: =IFERROR(VLOOKUP(K27,BUS!$C$4:$AEB$946,4,0),"") ->  | W27: =IFERROR(VLOOKUP(R27,BUS!$C$4:$AEB$946,4,0),"") ->  | Y27: =IFERROR(VLOOKUP(D27,'شهر 9 تفصيلي'!$B$5:$AEB$965,1,0),"") -> 1824 | Z27: =IFERROR(VLOOKUP(K27,'شهر 9 تفصيلي'!$B$5:$AEB$965,1,0),"") ->  | AA27: =IFERROR(VLOOKUP(R27,'شهر 9 تفصيلي'!$B$5:$AEB$965,1,0),"") ->  | AB27: 19 | AC27: 20203 | AD27: 66 | AE27: 20246 | AF27: 19 | AG27: FALSE | AH27: 19 | AI27: FALSE
B28: 20 | C28: 20204 | D28: 1225 | F28: 260 | I28: =IFERROR(VLOOKUP(D28,BUS!$C$4:$AEB$946,4,0),"") -> DHA | P28: =IFERROR(VLOOKUP(K28,BUS!$C$4:$AEB$946,4,0),"") ->  | W28: =IFERROR(VLOOKUP(R28,BUS!$C$4:$AEB$946,4,0),"") ->  | Y28: =IFERROR(VLOOKUP(D28,'شهر 9 تفصيلي'!$B$5:$AEB$965,1,0),"") -> 1225 | Z28: =IFERROR(VLOOKUP(K28,'شهر 9 تفصيلي'!$B$5:$AEB$965,1,0),"") ->  | AA28: =IFERROR(VLOOKUP(R28,'شهر 9 تفصيلي'!$B$5:$AEB$965,1,0),"") ->  | AB28: 20 | AC28: 20204 | AD28: 67 | AE28: 20247 | AF28: 20 | AG28: FALSE | AH28: 20 | AI28: FALSE
B29: 21 | C29: 20205 | D29: 1253 | F29: 190 | I29: =IFERROR(VLOOKUP(D29,BUS!$C$4:$AEB$946,4,0),"") -> MUB | P29: =IFERROR(VLOOKUP(K29,BUS!$C$4:$AEB$946,4,0),"") ->  | W29: =IFERROR(VLOOKUP(R29,BUS!$C$4:$AEB$946,4,0),"") ->  | Y29: =IFERROR(VLOOKUP(D29,'شهر 9 تفصيلي'!$B$5:$AEB$965,1,0),"") -> 1253 | Z29: =IFERROR(VLOOKUP(K29,'شهر 9 تفصيلي'!$B$5:$AEB$965,1,0),"") ->  | AA29: =IFERROR(VLOOKUP(R29,'شهر 9 تفصيلي'!$B$5:$AEB$965,1,0),"") ->  | AB29: 21 | AC29: 20205 | AD29: 68 | AE29: 20248 | AF29: 21 | AG29: FALSE | AH29: 21 | AI29: FALSE
B30: 22 | C30: 20206 | D30: 1011 | E30: 311000 | F30: 285 | I30: =IFERROR(VLOOKUP(D30,BUS!$C$4:$AEB$946,4,0),"") -> MUB | P30: =IFERROR(VLOOKUP(K30,BUS!$C$4:$AEB$946,4,0),"") ->  | W30: =IFERROR(VLOOKUP(R30,BUS!$C$4:$AEB$946,4,0),"") ->  | Y30: =IFERROR(VLOOKUP(D30,'شهر 9 تفصيلي'!$B$5:$AEB$965,1,0),"") -> 1011 | Z30: =IFERROR(VLOOKUP(K30,'شهر 9 تفصيلي'!$B$5:$AEB$965,1,0),"") ->  | AA30: =IFERROR(VLOOKUP(R30,'شهر 9 تفصيلي'!$B$5:$AEB$965,1,0),"") ->  | AB30: 22 | AC30: 20206 | AD30: 69 | AE30: 20249 | AF30: 22 | AG30: FALSE | AH30: 22 | AI30: FALSE
B31: 23 | C31: 20207 | D31: 1086 | F31: 250 | I31: =IFERROR(VLOOKUP(D31,BUS!$C$4:$AEB$946,4,0),"") -> MUB | P31: =IFERROR(VLOOKUP(K31,BUS!$C$4:$AEB$946,4,0),"") ->  | W31: =IFERROR(VLOOKUP(R31,BUS!$C$4:$AEB$946,4,0),"") ->  | Y31: =IFERROR(VLOOKUP(D31,'شهر 9 تفصيلي'!$B$5:$AEB$965,1,0),"") -> 1086 | Z31: =IFERROR(VLOOKUP(K31,'شهر 9 تفصيلي'!$B$5:$AEB$965,1,0),"") ->  | AA31: =IFERROR(VLOOKUP(R31,'شهر 9 تفصيلي'!$B$5:$AEB$965,1,0),"") ->  | AB31: 23 | AC31: 20207 | AD31: 70 | AE31: 20250 | AF31: 23 | AG31: FALSE | AH31: 23 | AI31: FALSE
B32: 24 | C32: 20208 | D32: 1815 | F32: 175 | I32: =IFERROR(VLOOKUP(D32,BUS!$C$4:$AEB$946,4,0),"") -> MUB | P32: =IFERROR(VLOOKUP(K32,BUS!$C$4:$AEB$946,4,0),"") ->  | W32: =IFERROR(VLOOKUP(R32,BUS!$C$4:$AEB$946,4,0),"") ->  | Y32: =IFERROR(VLOOKUP(D32,'شهر 9 تفصيلي'!$B$5:$AEB$965,1,0),"") -> 1815 | Z32: =IFERROR(VLOOKUP(K32,'شهر 9 تفصيلي'!$B$5:$AEB$965,1,0),"") ->  | AA32: =IFERROR(VLOOKUP(R32,'شهر 9 تفصيلي'!$B$5:$AEB$965,1,0),"") ->  | AB32: 24 | AC32: 20208 | AD32: 71 | AE32: FALSE | AF32: 24 | AG32: FALSE | AH32: 24 | AI32: FALSE
B33: 25 | C33: 20209 | D33: 1819 | F33: 91 | I33: =IFERROR(VLOOKUP(D33,BUS!$C$4:$AEB$946,4,0),"") -> MUB | P33: =IFERROR(VLOOKUP(K33,BUS!$C$4:$AEB$946,4,0),"") ->  | W33: =IFERROR(VLOOKUP(R33,BUS!$C$4:$AEB$946,4,0),"") ->  | Y33: =IFERROR(VLOOKUP(D33,'شهر 9 تفصيلي'!$B$5:$AEB$965,1,0),"") -> 1819 | Z33: =IFERROR(VLOOKUP(K33,'شهر 9 تفصيلي'!$B$5:$AEB$965,1,0),"") ->  | AA33: =IFERROR(VLOOKUP(R33,'شهر 9 تفصيلي'!$B$5:$AEB$965,1,0),"") ->  | AB33: 25 | AC33: 20209 | AD33: 72 | AE33: FALSE | AF33: 25 | AG33: FALSE | AH33: 25 | AI33: FALSE
B34: 26 | C34: 20210 | D34: 1276 | F34: 165 | I34: =IFERROR(VLOOKUP(D34,BUS!$C$4:$AEB$946,4,0),"") -> MUB | P34: =IFERROR(VLOOKUP(K34,BUS!$C$4:$AEB$946,4,0),"") ->  | W34: =IFERROR(VLOOKUP(R34,BUS!$C$4:$AEB$946,4,0),"") ->  | Y34: =IFERROR(VLOOKUP(D34,'شهر 9 تفصيلي'!$B$5:$AEB$965,1,0),"") -> 1276 | Z34: =IFERROR(VLOOKUP(K34,'شهر 9 تفصيلي'!$B$5:$AEB$965,1,0),"") ->  | AA34: =IFERROR(VLOOKUP(R34,'شهر 9 تفصيلي'!$B$5:$AEB$965,1,0),"") ->  | AB34: 26 | AC34: 20210 | AD34: 73 | AE34: FALSE | AF34: 26 | AG34: FALSE | AH34: 26 | AI34: FALSE
B35: 27 | C35: 20211 | D35: 1821 | F35: 230 | I35: =IFERROR(VLOOKUP(D35,BUS!$C$4:$AEB$946,4,0),"") -> MUB | P35: =IFERROR(VLOOKUP(K35,BUS!$C$4:$AEB$946,4,0),"") ->  | W35: =IFERROR(VLOOKUP(R35,BUS!$C$4:$AEB$946,4,0),"") ->  | Y35: =IFERROR(VLOOKUP(D35,'شهر 9 تفصيلي'!$B$5:$AEB$965,1,0),"") -> 1821 | Z35: =IFERROR(VLOOKUP(K35,'شهر 9 تفصيلي'!$B$5:$AEB$965,1,0),"") ->  | AA35: =IFERROR(VLOOKUP(R35,'شهر 9 تفصيلي'!$B$5:$AEB$965,1,0),"") ->  | AB35: 27 | AC35: 20211 | AD35: 74 | AE35: FALSE | AF35: 27 | AG35: FALSE | AH35: 27 | AI35: FALSE
B36: 28 | C36: 20212 | D36: 1142 | F36: 155 | I36: =IFERROR(VLOOKUP(D36,BUS!$C$4:$AEB$946,4,0),"") -> MUB | P36: =IFERROR(VLOOKUP(K36,BUS!$C$4:$AEB$946,4,0),"") ->  | W36: =IFERROR(VLOOKUP(R36,BUS!$C$4:$AEB$946,4,0),"") ->  | Y36: =IFERROR(VLOOKUP(D36,'شهر 9 تفصيلي'!$B$5:$AEB$965,1,0),"") -> 1142 | Z36: =IFERROR(VLOOKUP(K36,'شهر 9 تفصيلي'!$B$5:$AEB$965,1,0),"") ->  | AA36: =IFERROR(VLOOKUP(R36,'شهر 9 تفصيلي'!$B$5:$AEB$965,1,0),"") ->  | AB36: 28 | AC36: 20212 | AD36: 75 | AE36: FALSE | AF36: 28 | AG36: FALSE | AH36: 28 | AI36: FALSE
B37: 29 | C37: 20213 | D37: 1811 | F37: 125 | I37: =IFERROR(VLOOKUP(D37,BUS!$C$4:$AEB$946,4,0),"") -> MUB | P37: =IFERROR(VLOOKUP(K37,BUS!$C$4:$AEB$946,4,0),"") ->  | W37: =IFERROR(VLOOKUP(R37,BUS!$C$4:$AEB$946,4,0),"") ->  | Y37: =IFERROR(VLOOKUP(D37,'شهر 9 تفصيلي'!$B$5:$AEB$965,1,0),"") -> 1811 | Z37: =IFERROR(VLOOKUP(K37,'شهر 9 تفصيلي'!$B$5:$AEB$965,1,0),"") ->  | AA37: =IFERROR(VLOOKUP(R37,'شهر 9 تفصيلي'!$B$5:$AEB$965,1,0),"") ->  | AB37: 29 | AC37: 20213 | AD37: 76 | AE37: FALSE | AF37: 29 | AG37: FALSE | AH37: 29 | AI37: FALSE
B38: 30 | C38: 20214 | D38: 1040 | F38: 80 | I38: =IFERROR(VLOOKUP(D38,BUS!$C$4:$AEB$946,4,0),"") -> MUB | P38: =IFERROR(VLOOKUP(K38,BUS!$C$4:$AEB$946,4,0),"") ->  | W38: =IFERROR(VLOOKUP(R38,BUS!$C$4:$AEB$946,4,0),"") ->  | Y38: =IFERROR(VLOOKUP(D38,'شهر 9 تفصيلي'!$B$5:$AEB$965,1,0),"") -> 1040 | Z38: =IFERROR(VLOOKUP(K38,'شهر 9 تفصيلي'!$B$5:$AEB$965,1,0),"") ->  | AA38: =IFERROR(VLOOKUP(R38,'شهر 9 تفصيلي'!$B$5:$AEB$965,1,0),"") ->  | AB38: 30 | AC38: 20214 | AD38: 77 | AE38: FALSE | AF38: 30 | AG38: FALSE | AH38: 30 | AI38: FALSE
B39: 31 | C39: 20215 | D39: 1094 | F39: 170 | I39: =IFERROR(VLOOKUP(D39,BUS!$C$4:$AEB$946,4,0),"") -> DHA | P39: =IFERROR(VLOOKUP(K39,BUS!$C$4:$AEB$946,4,0),"") ->  | W39: =IFERROR(VLOOKUP(R39,BUS!$C$4:$AEB$946,4,0),"") ->  | Y39: =IFERROR(VLOOKUP(D39,'شهر 9 تفصيلي'!$B$5:$AEB$965,1,0),"") -> 1094 | Z39: =IFERROR(VLOOKUP(K39,'شهر 9 تفصيلي'!$B$5:$AEB$965,1,0),"") ->  | AA39: =IFERROR(VLOOKUP(R39,'شهر 9 تفصيلي'!$B$5:$AEB$965,1,0),"") ->  | AB39: 31 | AC39: 20215 | AD39: 78 | AE39: FALSE | AF39: 31 | AG39: FALSE | AH39: 31 | AI39: FALSE
B40: 32 | C40: 20216 | D40: 1074 | F40: 135 | I40: =IFERROR(VLOOKUP(D40,BUS!$C$4:$AEB$946,4,0),"") -> MUB | P40: =IFERROR(VLOOKUP(K40,BUS!$C$4:$AEB$946,4,0),"") ->  | W40: =IFERROR(VLOOKUP(R40,BUS!$C$4:$AEB$946,4,0),"") ->  | Y40: =IFERROR(VLOOKUP(D40,'شهر 9 تفصيلي'!$B$5:$AEB$965,1,0),"") -> 1074 | Z40: =IFERROR(VLOOKUP(K40,'شهر 9 تفصيلي'!$B$5:$AEB$965,1,0),"") ->  | AA40: =IFERROR(VLOOKUP(R40,'شهر 9 تفصيلي'!$B$5:$AEB$965,1,0),"") ->  | AB40: 32 | AC40: 20216 | AD40: 79 | AE40: FALSE | AF40: 32 | AG40: FALSE | AH40: 32 | AI40: FALSE
B41: 33 | C41: 20217 | D41: 1260 | F41: 260 | I41: =IFERROR(VLOOKUP(D41,BUS!$C$4:$AEB$946,4,0),"") -> DHA | P41: =IFERROR(VLOOKUP(K41,BUS!$C$4:$AEB$946,4,0),"") ->  | W41: =IFERROR(VLOOKUP(R41,BUS!$C$4:$AEB$946,4,0),"") ->  | Y41: =IFERROR(VLOOKUP(D41,'شهر 9 تفصيلي'!$B$5:$AEB$965,1,0),"") -> 1260 | Z41: =IFERROR(VLOOKUP(K41,'شهر 9 تفصيلي'!$B$5:$AEB$965,1,0),"") ->  | AA41: =IFERROR(VLOOKUP(R41,'شهر 9 تفصيلي'!$B$5:$AEB$965,1,0),"") ->  | AB41: 33 | AC41: 20217 | AD41: 80 | AE41: FALSE | AF41: 33 | AG41: FALSE | AH41: 33 | AI41: FALSE
B42: 34 | C42: 20218 | D42: 1327 | F42: 175 | I42: =IFERROR(VLOOKUP(D42,BUS!$C$4:$AEB$946,4,0),"") -> MUB | P42: =IFERROR(VLOOKUP(K42,BUS!$C$4:$AEB$946,4,0),"") ->  | W42: =IFERROR(VLOOKUP(R42,BUS!$C$4:$AEB$946,4,0),"") ->  | Y42: =IFERROR(VLOOKUP(D42,'شهر 9 تفصيلي'!$B$5:$AEB$965,1,0),"") -> 1327 | Z42: =IFERROR(VLOOKUP(K42,'شهر 9 تفصيلي'!$B$5:$AEB$965,1,0),"") ->  | AA42: =IFERROR(VLOOKUP(R42,'شهر 9 تفصيلي'!$B$5:$AEB$965,1,0),"") ->  | AB42: 34 | AC42: 20218 | AD42: 81 | AE42: FALSE | AF42: 34 | AG42: FALSE | AH42: 34 | AI42: FALSE
B43: 35 | C43: 20219 | D43: 1820 | F43: 165 | I43: =IFERROR(VLOOKUP(D43,BUS!$C$4:$AEB$946,4,0),"") -> MUB | P43: =IFERROR(VLOOKUP(K43,BUS!$C$4:$AEB$946,4,0),"") ->  | W43: =IFERROR(VLOOKUP(R43,BUS!$C$4:$AEB$946,4,0),"") ->  | Y43: =IFERROR(VLOOKUP(D43,'شهر 9 تفصيلي'!$B$5:$AEB$965,1,0),"") -> 1820 | Z43: =IFERROR(VLOOKUP(K43,'شهر 9 تفصيلي'!$B$5:$AEB$965,1,0),"") ->  | AA43: =IFERROR(VLOOKUP(R43,'شهر 9 تفصيلي'!$B$5:$AEB$965,1,0),"") ->  | AB43: 35 | AC43: 20219 | AD43: 82 | AE43: FALSE | AF43: 35 | AG43: FALSE | AH43: 35 | AI43: FALSE
B44: 36 | C44: 20220 | D44: 1266 | F44: 200 | I44: =IFERROR(VLOOKUP(D44,BUS!$C$4:$AEB$946,4,0),"") -> DHA | P44: =IFERROR(VLOOKUP(K44,BUS!$C$4:$AEB$946,4,0),"") ->  | W44: =IFERROR(VLOOKUP(R44,BUS!$C$4:$AEB$946,4,0),"") ->  | Y44: =IFERROR(VLOOKUP(D44,'شهر 9 تفصيلي'!$B$5:$AEB$965,1,0),"") -> 1266 | Z44: =IFERROR(VLOOKUP(K44,'شهر 9 تفصيلي'!$B$5:$AEB$965,1,0),"") ->  | AA44: =IFERROR(VLOOKUP(R44,'شهر 9 تفصيلي'!$B$5:$AEB$965,1,0),"") ->  | AB44: 36 | AC44: 20220 | AD44: 83 | AE44: FALSE | AF44: 36 | AG44: FALSE | AH44: 36 | AI44: FALSE
B45: 37 | C45: 20221 | D45: 1208 | F45: 100 | I45: =IFERROR(VLOOKUP(D45,BUS!$C$4:$AEB$946,4,0),"") -> MUB | P45: =IFERROR(VLOOKUP(K45,BUS!$C$4:$AEB$946,4,0),"") ->  | W45: =IFERROR(VLOOKUP(R45,BUS!$C$4:$AEB$946,4,0),"") ->  | Y45: =IFERROR(VLOOKUP(D45,'شهر 9 تفصيلي'!$B$5:$AEB$965,1,0),"") -> 1208 | Z45: =IFERROR(VLOOKUP(K45,'شهر 9 تفصيلي'!$B$5:$AEB$965,1,0),"") ->  | AA45: =IFERROR(VLOOKUP(R45,'شهر 9 تفصيلي'!$B$5:$AEB$965,1,0),"") ->  | AB45: 37 | AC45: 20221 | AD45: 84 | AE45: FALSE | AF45: 37 | AG45: FALSE | AH45: 37 | AI45: FALSE
B46: 38 | C46: 20222 | D46: 1811 | F46: 55 | I46: =IFERROR(VLOOKUP(D46,BUS!$C$4:$AEB$946,4,0),"") -> MUB | P46: =IFERROR(VLOOKUP(K46,BUS!$C$4:$AEB$946,4,0),"") ->  | W46: =IFERROR(VLOOKUP(R46,BUS!$C$4:$AEB$946,4,0),"") ->  | Y46: =IFERROR(VLOOKUP(D46,'شهر 9 تفصيلي'!$B$5:$AEB$965,1,0),"") -> 1811 | Z46: =IFERROR(VLOOKUP(K46,'شهر 9 تفصيلي'!$B$5:$AEB$965,1,0),"") ->  | AA46: =IFERROR(VLOOKUP(R46,'شهر 9 تفصيلي'!$B$5:$AEB$965,1,0),"") ->  | AB46: 38 | AC46: 20222 | AD46: 85 | AE46: FALSE | AF46: 38 | AG46: FALSE | AH46: 38 | AI46: FALSE
B47: 39 | C47: 20223 | D47: 1059 | F47: 135 | I47: =IFERROR(VLOOKUP(D47,BUS!$C$4:$AEB$946,4,0),"") -> DHA | P47: =IFERROR(VLOOKUP(K47,BUS!$C$4:$AEB$946,4,0),"") ->  | W47: =IFERROR(VLOOKUP(R47,BUS!$C$4:$AEB$946,4,0),"") ->  | Y47: =IFERROR(VLOOKUP(D47,'شهر 9 تفصيلي'!$B$5:$AEB$965,1,0),"") -> 1059 | Z47: =IFERROR(VLOOKUP(K47,'شهر 9 تفصيلي'!$B$5:$AEB$965,1,0),"") ->  | AA47: =IFERROR(VLOOKUP(R47,'شهر 9 تفصيلي'!$B$5:$AEB$965,1,0),"") ->  | AB47: 39 | AC47: 20223 | AD47: 86 | AE47: FALSE | AF47: 39 | AG47: FALSE | AH47: 39 | AI47: FALSE
B48: 40 | C48: 20224 | D48: 1074 | F48: 82 | I48: =IFERROR(VLOOKUP(D48,BUS!$C$4:$AEB$946,4,0),"") -> MUB | P48: =IFERROR(VLOOKUP(K48,BUS!$C$4:$AEB$946,4,0),"") ->  | W48: =IFERROR(VLOOKUP(R48,BUS!$C$4:$AEB$946,4,0),"") ->  | Y48: =IFERROR(VLOOKUP(D48,'شهر 9 تفصيلي'!$B$5:$AEB$965,1,0),"") -> 1074 | Z48: =IFERROR(VLOOKUP(K48,'شهر 9 تفصيلي'!$B$5:$AEB$965,1,0),"") ->  | AA48: =IFERROR(VLOOKUP(R48,'شهر 9 تفصيلي'!$B$5:$AEB$965,1,0),"") ->  | AB48: 40 | AC48: 20224 | AD48: 87 | AE48: FALSE | AF48: 40 | AG48: FALSE | AH48: 40 | AI48: FALSE
B49: 41 | C49: 20225 | D49: 1332 | F49: 220 | I49: =IFERROR(VLOOKUP(D49,BUS!$C$4:$AEB$946,4,0),"") -> MUB | P49: =IFERROR(VLOOKUP(K49,BUS!$C$4:$AEB$946,4,0),"") ->  | W49: =IFERROR(VLOOKUP(R49,BUS!$C$4:$AEB$946,4,0),"") ->  | Y49: =IFERROR(VLOOKUP(D49,'شهر 9 تفصيلي'!$B$5:$AEB$965,1,0),"") -> 1332 | Z49: =IFERROR(VLOOKUP(K49,'شهر 9 تفصيلي'!$B$5:$AEB$965,1,0),"") ->  | AA49: =IFERROR(VLOOKUP(R49,'شهر 9 تفصيلي'!$B$5:$AEB$965,1,0),"") ->  | AB49: 41 | AC49: 20225 | AD49: 88 | AE49: FALSE | AF49: 41 | AG49: FALSE | AH49: 41 | AI49: FALSE
B50: 42 | C50: 20226 | D50: 1114 | F50: 120 | I50: =IFERROR(VLOOKUP(D50,BUS!$C$4:$AEB$946,4,0),"") -> DHA | P50: =IFERROR(VLOOKUP(K50,BUS!$C$4:$AEB$946,4,0),"") ->  | W50: =IFERROR(VLOOKUP(R50,BUS!$C$4:$AEB$946,4,0),"") ->  | Y50: =IFERROR(VLOOKUP(D50,'شهر 9 تفصيلي'!$B$5:$AEB$965,1,0),"") -> 1114 | Z50: =IFERROR(VLOOKUP(K50,'شهر 9 تفصيلي'!$B$5:$AEB$965,1,0),"") ->  | AA50: =IFERROR(VLOOKUP(R50,'شهر 9 تفصيلي'!$B$5:$AEB$965,1,0),"") ->  | AB50: 42 | AC50: 20226 | AD50: 89 | AE50: FALSE | AF50: 42 | AH50: 42 | AI50: FALSE
B51: 43 | C51: 20227 | D51: 1041 | F51: 135 | I51: =IFERROR(VLOOKUP(D51,BUS!$C$4:$AEB$946,4,0),"") -> ABQ | P51: =IFERROR(VLOOKUP(K51,BUS!$C$4:$AEB$946,4,0),"") ->  | W51: =IFERROR(VLOOKUP(R51,BUS!$C$4:$AEB$946,4,0),"") ->  | Y51: =IFERROR(VLOOKUP(D51,'شهر 9 تفصيلي'!$B$5:$AEB$965,1,0),"") -> 1041 | Z51: =IFERROR(VLOOKUP(K51,'شهر 9 تفصيلي'!$B$5:$AEB$965,1,0),"") ->  | AA51: =IFERROR(VLOOKUP(R51,'شهر 9 تفصيلي'!$B$5:$AEB$965,1,0),"") ->  | AB51: 43 | AC51: 20227 | AD51: 90 | AE51: FALSE | AF51: 43 | AH51: 43 | AI51: FALSE
B52: 44 | C52: 20228 | D52: 1804 | F52: 55 | I52: =IFERROR(VLOOKUP(D52,BUS!$C$4:$AEB$946,4,0),"") -> MUB | P52: =IFERROR(VLOOKUP(K52,BUS!$C$4:$AEB$946,4,0),"") ->  | W52: =IFERROR(VLOOKUP(R52,BUS!$C$4:$AEB$946,4,0),"") ->  | Y52: =IFERROR(VLOOKUP(D52,'شهر 9 تفصيلي'!$B$5:$AEB$965,1,0),"") -> 1804 | Z52: =IFERROR(VLOOKUP(K52,'شهر 9 تفصيلي'!$B$5:$AEB$965,1,0),"") ->  | AA52: =IFERROR(VLOOKUP(R52,'شهر 9 تفصيلي'!$B$5:$AEB$965,1,0),"") ->  | AB52: 44 | AC52: 20228 | AD52: 91 | AE52: FALSE | AF52: 44 | AH52: 44 | AI52: FALSE
B53: 45 | C53: 20230 | D53: 1261 | F53: 80 | I53: =IFERROR(VLOOKUP(D53,BUS!$C$4:$AEB$946,4,0),"") -> DHA | P53: =IFERROR(VLOOKUP(K53,BUS!$C$4:$AEB$946,4,0),"") ->  | W53: =IFERROR(VLOOKUP(R53,BUS!$C$4:$AEB$946,4,0),"") ->  | Y53: =IFERROR(VLOOKUP(D53,'شهر 9 تفصيلي'!$B$5:$AEB$965,1,0),"") -> 1261 | Z53: =IFERROR(VLOOKUP(K53,'شهر 9 تفصيلي'!$B$5:$AEB$965,1,0),"") ->  | AA53: =IFERROR(VLOOKUP(R53,'شهر 9 تفصيلي'!$B$5:$AEB$965,1,0),"") ->  | AB53: 45 | AC53: 20230 | AD53: 92 | AE53: FALSE | AF53: 45 | AH53: 45 | AI53: FALSE
B54: 46 | C54: 20231 | D54: 1659 | F54: 50 | I54: =IFERROR(VLOOKUP(D54,BUS!$C$4:$AEB$946,4,0),"") -> MUB | P54: =IFERROR(VLOOKUP(K54,BUS!$C$4:$AEB$946,4,0),"") ->  | W54: =IFERROR(VLOOKUP(R54,BUS!$C$4:$AEB$946,4,0),"") ->  | Y54: =IFERROR(VLOOKUP(D54,'شهر 9 تفصيلي'!$B$5:$AEB$965,1,0),"") -> 1659 | Z54: =IFERROR(VLOOKUP(K54,'شهر 9 تفصيلي'!$B$5:$AEB$965,1,0),"") ->  | AA54: =IFERROR(VLOOKUP(R54,'شهر 9 تفصيلي'!$B$5:$AEB$965,1,0),"") ->  | AB54: 46 | AC54: 20231 | AD54: 93 | AF54: 46 | AH54: 46 | AI54: FALSE
B55: 47 | C55: 20232 | D55: 1050 | F55: 115 | I55: =IFERROR(VLOOKUP(D55,BUS!$C$4:$AEB$946,4,0),"") -> DHA | P55: =IFERROR(VLOOKUP(K55,BUS!$C$4:$AEB$946,4,0),"") ->  | W55: =IFERROR(VLOOKUP(R55,BUS!$C$4:$AEB$946,4,0),"") ->  | Y55: =IFERROR(VLOOKUP(D55,'شهر 9 تفصيلي'!$B$5:$AEB$965,1,0),"") -> 1050 | Z55: =IFERROR(VLOOKUP(K55,'شهر 9 تفصيلي'!$B$5:$AEB$965,1,0),"") ->  | AA55: =IFERROR(VLOOKUP(R55,'شهر 9 تفصيلي'!$B$5:$AEB$965,1,0),"") ->  | AB55: 47 | AC55: 20232 | AD55: 94 | AF55: 47 | AH55: 47 | AI55: FALSE
D56: TOTAL | F56: =SUM(F9:F55) -> 6424 | K56: TOTAL | M56: =SUM(M9:M55) -> 1185 | R56: TOTAL | T56: =SUM(T9:T55) -> 289
B57: Area manager | D57: Operation manager ( Bus D.) | K57: General manager ( Bus D) | T57: Maher-Hassan-2018
B64: Checking the station manager
B65: =B7 -> 2021-09-01 | F65: التاريخ / | I65: =I7 ->  | M65: اليـــوم / | P65: محطة خشمان ( الماسة 7 ) | W65: 2
B66: S.NO | C66: رقم الفاتوره ديزل | D66: BUS | E66: الكيلو D | F66: D | G66: الوقت | H66: المراقب | I66: To | J66: رقم الفاتوره 95 | K66: BUS | L66: الكيلو 95 | M66: 95 | N66: الوقت | O66: المراقب | P66: To | Q66: رقم الفاتوره 91 | R66: BUS | S66: الكيلو 91 | T66: 91 | U66: الوقت | V66: المراقب | W66: To
B67: 48 | C67: 20233 | D67: 1297 | F67: 130 | I67: =IFERROR(VLOOKUP(D67,BUS!$C$4:$AEB$946,4,0),"") -> DHA | P67: =IFERROR(VLOOKUP(K67,BUS!$C$4:$AEB$946,4,0),"") ->  | W67: =IFERROR(VLOOKUP(R67,BUS!$C$4:$AEB$946,4,0),"") ->  | Y67: =IFERROR(VLOOKUP(D67,'شهر 9 تفصيلي'!$B$5:$AEB$965,1,0),"") -> 1297 | Z67: =IFERROR(VLOOKUP(K67,'شهر 9 تفصيلي'!$B$5:$AEB$965,1,0),"") ->  | AA67: =IFERROR(VLOOKUP(R67,'شهر 9 تفصيلي'!$B$5:$AEB$965,1,0),"") -> 
B68: 49 | C68: 20234 | D68: 1356 | F68: 130 | I68: =IFERROR(VLOOKUP(D68,BUS!$C$4:$AEB$946,4,0),"") -> MUB | P68: =IFERROR(VLOOKUP(K68,BUS!$C$4:$AEB$946,4,0),"") ->  | W68: =IFERROR(VLOOKUP(R68,BUS!$C$4:$AEB$946,4,0),"") ->  | Y68: =IFERROR(VLOOKUP(D68,'شهر 9 تفصيلي'!$B$5:$AEB$965,1,0),"") -> 1356 | Z68: =IFERROR(VLOOKUP(K68,'شهر 9 تفصيلي'!$B$5:$AEB$965,1,0),"") ->  | AA68: =IFERROR(VLOOKUP(R68,'شهر 9 تفصيلي'!$B$5:$AEB$965,1,0),"") -> 
B69: 50 | C69: 20237 | D69: 1808 | F69: 95 | I69: =IFERROR(VLOOKUP(D69,BUS!$C$4:$AEB$946,4,0),"") -> MUB | P69: =IFERROR(VLOOKUP(K69,BUS!$C$4:$AEB$946,4,0),"") ->  | W69: =IFERROR(VLOOKUP(R69,BUS!$C$4:$AEB$946,4,0),"") ->  | Y69: =IFERROR(VLOOKUP(D69,'شهر 9 تفصيلي'!$B$5:$AEB$965,1,0),"") -> 1808 | Z69: =IFERROR(VLOOKUP(K69,'شهر 9 تفصيلي'!$B$5:$AEB$965,1,0),"") ->  | AA69: =IFERROR(VLOOKUP(R69,'شهر 9 تفصيلي'!$B$5:$AEB$965,1,0),"") -> 
B70: 51 | C70: 20257 | D70: 1086 | F70: 75 | I70: =IFERROR(VLOOKUP(D70,BUS!$C$4:$AEB$946,4,0),"") -> MUB | P70: =IFERROR(VLOOKUP(K70,BUS!$C$4:$AEB$946,4,0),"") ->  | W70: =IFERROR(VLOOKUP(R70,BUS!$C$4:$AEB$946,4,0),"") ->  | Y70: =IFERROR(VLOOKUP(D70,'شهر 9 تفصيلي'!$B$5:$AEB$965,1,0),"") -> 1086 | Z70: =IFERROR(VLOOKUP(K70,'شهر 9 تفصيلي'!$B$5:$AEB$965,1,0),"") ->  | AA70: =IFERROR(VLOOKUP(R70,'شهر 9 تفصيلي'!$B$5:$AEB$965,1,0),"") -> 
B71: 52 | C71: 20251 | D71: 1204 | F71: 150 | I71: =IFERROR(VLOOKUP(D71,BUS!$C$4:$AEB$946,4,0),"") -> MUB | P71: =IFERROR(VLOOKUP(K71,BUS!$C$4:$AEB$946,4,0),"") ->  | W71: =IFERROR(VLOOKUP(R71,BUS!$C$4:$AEB$946,4,0),"") ->  | Y71: =IFERROR(VLOOKUP(D71,'شهر 9 تفصيلي'!$B$5:$AEB$965,1,0),"") -> 1204 | Z71: =IFERROR(VLOOKUP(K71,'شهر 9 تفصيلي'!$B$5:$AEB$965,1,0),"") ->  | AA71: =IFERROR(VLOOKUP(R71,'شهر 9 تفصيلي'!$B$5:$AEB$965,1,0),"") -> 
B72: 53 | C72: 20252 | D72: 1271 | F72: 135 | I72: =IFERROR(VLOOKUP(D72,BUS!$C$4:$AEB$946,4,0),"") -> MUB | P72: =IFERROR(VLOOKUP(K72,BUS!$C$4:$AEB$946,4,0),"") ->  | W72: =IFERROR(VLOOKUP(R72,BUS!$C$4:$AEB$946,4,0),"") ->  | Y72: =IFERROR(VLOOKUP(D72,'شهر 9 تفصيلي'!$B$5:$AEB$965,1,0),"") -> 1271 | Z72: =IFERROR(VLOOKUP(K72,'شهر 9 تفصيلي'!$B$5:$AEB$965,1,0),"") ->  | AA72: =IFERROR(VLOOKUP(R72,'شهر 9 تفصيلي'!$B$5:$AEB$965,1,0),"") -> 
B73: 54 | C73: 20253 | D73: 1819 | F73: 135 | I73: =IFERROR(VLOOKUP(D73,BUS!$C$4:$AEB$946,4,0),"") -> MUB | P73: =IFERROR(VLOOKUP(K73,BUS!$C$4:$AEB$946,4,0),"") ->  | W73: =IFERROR(VLOOKUP(R73,BUS!$C$4:$AEB$946,4,0),"") ->  | Y73: =IFERROR(VLOOKUP(D73,'شهر 9 تفصيلي'!$B$5:$AEB$965,1,0),"") -> 1819 | Z73: =IFERROR(VLOOKUP(K73,'شهر 9 تفصيلي'!$B$5:$AEB$965,1,0),"") ->  | AA73: =IFERROR(VLOOKUP(R73,'شهر 9 تفصيلي'!$B$5:$AEB$965,1,0),"") -> 
B74: 55 | C74: 20254 | D74: 1094 | F74: 50 | I74: =IFERROR(VLOOKUP(D74,BUS!$C$4:$AEB$946,4,0),"") -> DHA | P74: =IFERROR(VLOOKUP(K74,BUS!$C$4:$AEB$946,4,0),"") ->  | W74: =IFERROR(VLOOKUP(R74,BUS!$C$4:$AEB$946,4,0),"") ->  | Y74: =IFERROR(VLOOKUP(D74,'شهر 9 تفصيلي'!$B$5:$AEB$965,1,0),"") -> 1094 | Z74: =IFERROR(VLOOKUP(K74,'شهر 9 تفصيلي'!$B$5:$AEB$965,1,0),"") ->  | AA74: =IFERROR(VLOOKUP(R74,'شهر 9 تفصيلي'!$B$5:$AEB$965,1,0),"") -> 
B75: 56 | C75: 20255 | D75: 1017 | F75: 165 | I75: =IFERROR(VLOOKUP(D75,BUS!$C$4:$AEB$946,4,0),"") -> MUB | P75: =IFERROR(VLOOKUP(K75,BUS!$C$4:$AEB$946,4,0),"") ->  | W75: =IFERROR(VLOOKUP(R75,BUS!$C$4:$AEB$946,4,0),"") ->  | Y75: =IFERROR(VLOOKUP(D75,'شهر 9 تفصيلي'!$B$5:$AEB$965,1,0),"") -> 1017 | Z75: =IFERROR(VLOOKUP(K75,'شهر 9 تفصيلي'!$B$5:$AEB$965,1,0),"") ->  | AA75: =IFERROR(VLOOKUP(R75,'شهر 9 تفصيلي'!$B$5:$AEB$965,1,0),"") -> 
B76: 57 | C76: 20256 | D76: 1043 | F76: 130 | I76: =IFERROR(VLOOKUP(D76,BUS!$C$4:$AEB$946,4,0),"") -> MUB | P76: =IFERROR(VLOOKUP(K76,BUS!$C$4:$AEB$946,4,0),"") ->  | W76: =IFERROR(VLOOKUP(R76,BUS!$C$4:$AEB$946,4,0),"") ->  | Y76: =IFERROR(VLOOKUP(D76,'شهر 9 تفصيلي'!$B$5:$AEB$965,1,0),"") -> 1043 | Z76: =IFERROR(VLOOKUP(K76,'شهر 9 تفصيلي'!$B$5:$AEB$965,1,0),"") ->  | AA76: =IFERROR(VLOOKUP(R76,'شهر 9 تفصيلي'!$B$5:$AEB$965,1,0),"") -> 
B77: 58 | C77: 20240 | D77: 1820 | F77: 90 | I77: =IFERROR(VLOOKUP(D77,BUS!$C$4:$AEB$946,4,0),"") -> MUB | P77: =IFERROR(VLOOKUP(K77,BUS!$C$4:$AEB$946,4,0),"") ->  | W77: =IFERROR(VLOOKUP(R77,BUS!$C$4:$AEB$946,4,0),"") ->  | Y77: =IFERROR(VLOOKUP(D77,'شهر 9 تفصيلي'!$B$5:$AEB$965,1,0),"") -> 1820 | Z77: =IFERROR(VLOOKUP(K77,'شهر 9 تفصيلي'!$B$5:$AEB$965,1,0),"") ->  | AA77: =IFERROR(VLOOKUP(R77,'شهر 9 تفصيلي'!$B$5:$AEB$965,1,0),"") -> 
B78: 59 | C78: 20241 | D78: 1291 | F78: 155 | I78: =IFERROR(VLOOKUP(D78,BUS!$C$4:$AEB$946,4,0),"") -> MUB | P78: =IFERROR(VLOOKUP(K78,BUS!$C$4:$AEB$946,4,0),"") ->  | W78: =IFERROR(VLOOKUP(R78,BUS!$C$4:$AEB$946,4,0),"") ->  | Y78: =IFERROR(VLOOKUP(D78,'شهر 9 تفصيلي'!$B$5:$AEB$965,1,0),"") -> 1291 | Z78: =IFERROR(VLOOKUP(K78,'شهر 9 تفصيلي'!$B$5:$AEB$965,1,0),"") ->  | AA78: =IFERROR(VLOOKUP(R78,'شهر 9 تفصيلي'!$B$5:$AEB$965,1,0),"") -> 
B79: 60 | C79: 20242 | D79: 1276 | F79: 75 | I79: =IFERROR(VLOOKUP(D79,BUS!$C$4:$AEB$946,4,0),"") -> MUB | P79: =IFERROR(VLOOKUP(K79,BUS!$C$4:$AEB$946,4,0),"") ->  | W79: =IFERROR(VLOOKUP(R79,BUS!$C$4:$AEB$946,4,0),"") ->  | Y79: =IFERROR(VLOOKUP(D79,'شهر 9 تفصيلي'!$B$5:$AEB$965,1,0),"") -> 1276 | Z79: =IFERROR(VLOOKUP(K79,'شهر 9 تفصيلي'!$B$5:$AEB$965,1,0),"") ->  | AA79: =IFERROR(VLOOKUP(R79,'شهر 9 تفصيلي'!$B$5:$AEB$965,1,0),"") -> 
B80: 61 | C80: 20239 | D80: 1815 | F80: 155 | I80: =IFERROR(VLOOKUP(D80,BUS!$C$4:$AEB$946,4,0),"") -> MUB | P80: =IFERROR(VLOOKUP(K80,BUS!$C$4:$AEB$946,4,0),"") ->  | W80: =IFERROR(VLOOKUP(R80,BUS!$C$4:$AEB$946,4,0),"") ->  | Y80: =IFERROR(VLOOKUP(D80,'شهر 9 تفصيلي'!$B$5:$AEB$965,1,0),"") -> 1815 | Z80: =IFERROR(VLOOKUP(K80,'شهر 9 تفصيلي'!$B$5:$AEB$965,1,0),"") ->  | AA80: =IFERROR(VLOOKUP(R80,'شهر 9 تفصيلي'!$B$5:$AEB$965,1,0),"") -> 
B81: 62 | C81: 20238 | D81: 1824 | F81: 65 | I81: =IFERROR(VLOOKUP(D81,BUS!$C$4:$AEB$946,4,0),"") -> MUB | P81: =IFERROR(VLOOKUP(K81,BUS!$C$4:$AEB$946,4,0),"") ->  | W81: =IFERROR(VLOOKUP(R81,BUS!$C$4:$AEB$946,4,0),"") ->  | Y81: =IFERROR(VLOOKUP(D81,'شهر 9 تفصيلي'!$B$5:$AEB$965,1,0),"") -> 1824 | Z81: =IFERROR(VLOOKUP(K81,'شهر 9 تفصيلي'!$B$5:$AEB$965,1,0),"") ->  | AA81: =IFERROR(VLOOKUP(R81,'شهر 9 تفصيلي'!$B$5:$AEB$965,1,0),"") -> 
B82: 63 | C82: 20243 | D82: 1298 | F82: 75 | I82: =IFERROR(VLOOKUP(D82,BUS!$C$4:$AEB$946,4,0),"") -> DHA | P82: =IFERROR(VLOOKUP(K82,BUS!$C$4:$AEB$946,4,0),"") ->  | W82: =IFERROR(VLOOKUP(R82,BUS!$C$4:$AEB$946,4,0),"") ->  | Y82: =IFERROR(VLOOKUP(D82,'شهر 9 تفصيلي'!$B$5:$AEB$965,1,0),"") -> 1298 | Z82: =IFERROR(VLOOKUP(K82,'شهر 9 تفصيلي'!$B$5:$AEB$965,1,0),"") ->  | AA82: =IFERROR(VLOOKUP(R82,'شهر 9 تفصيلي'!$B$5:$AEB$965,1,0),"") -> 
B83: 64 | C83: 20244 | D83: 1059 | F83: 115 | I83: =IFERROR(VLOOKUP(D83,BUS!$C$4:$AEB$946,4,0),"") -> DHA | P83: =IFERROR(VLOOKUP(K83,BUS!$C$4:$AEB$946,4,0),"") ->  | W83: =IFERROR(VLOOKUP(R83,BUS!$C$4:$AEB$946,4,0),"") ->  | Y83: =IFERROR(VLOOKUP(D83,'شهر 9 تفصيلي'!$B$5:$AEB$965,1,0),"") -> 1059 | Z83: =IFERROR(VLOOKUP(K83,'شهر 9 تفصيلي'!$B$5:$AEB$965,1,0),"") ->  | AA83: =IFERROR(VLOOKUP(R83,'شهر 9 تفصيلي'!$B$5:$AEB$965,1,0),"") -> 
B84: 65 | C84: 20245 | D84: 1821 | F84: 140 | I84: =IFERROR(VLOOKUP(D84,BUS!$C$4:$AEB$946,4,0),"") -> MUB | P84: =IFERROR(VLOOKUP(K84,BUS!$C$4:$AEB$946,4,0),"") ->  | W84: =IFERROR(VLOOKUP(R84,BUS!$C$4:$AEB$946,4,0),"") ->  | Y84: =IFERROR(VLOOKUP(D84,'شهر 9 تفصيلي'!$B$5:$AEB$965,1,0),"") -> 1821 | Z84: =IFERROR(VLOOKUP(K84,'شهر 9 تفصيلي'!$B$5:$AEB$965,1,0),"") ->  | AA84: =IFERROR(VLOOKUP(R84,'شهر 9 تفصيلي'!$B$5:$AEB$965,1,0),"") -> 
B85: 66 | C85: 20246 | D85: 1294 | F85: 90 | I85: =IFERROR(VLOOKUP(D85,BUS!$C$4:$AEB$946,4,0),"") -> MUB | P85: =IFERROR(VLOOKUP(K85,BUS!$C$4:$AEB$946,4,0),"") ->  | W85: =IFERROR(VLOOKUP(R85,BUS!$C$4:$AEB$946,4,0),"") ->  | Y85: =IFERROR(VLOOKUP(D85,'شهر 9 تفصيلي'!$B$5:$AEB$965,1,0),"") -> 1294 | Z85: =IFERROR(VLOOKUP(K85,'شهر 9 تفصيلي'!$B$5:$AEB$965,1,0),"") ->  | AA85: =IFERROR(VLOOKUP(R85,'شهر 9 تفصيلي'!$B$5:$AEB$965,1,0),"") -> 
B86: 67 | C86: 20247 | D86: 1808 | F86: 65 | I86: =IFERROR(VLOOKUP(D86,BUS!$C$4:$AEB$946,4,0),"") -> MUB | P86: =IFERROR(VLOOKUP(K86,BUS!$C$4:$AEB$946,4,0),"") ->  | W86: =IFERROR(VLOOKUP(R86,BUS!$C$4:$AEB$946,4,0),"") ->  | Y86: =IFERROR(VLOOKUP(D86,'شهر 9 تفصيلي'!$B$5:$AEB$965,1,0),"") -> 1808 | Z86: =IFERROR(VLOOKUP(K86,'شهر 9 تفصيلي'!$B$5:$AEB$965,1,0),"") ->  | AA86: =IFERROR(VLOOKUP(R86,'شهر 9 تفصيلي'!$B$5:$AEB$965,1,0),"") -> 
B87: 68 | C87: 20248 | D87: 1811 | F87: 75 | I87: =IFERROR(VLOOKUP(D87,BUS!$C$4:$AEB$946,4,0),"") -> MUB | P87: =IFERROR(VLOOKUP(K87,BUS!$C$4:$AEB$946,4,0),"") ->  | W87: =IFERROR(VLOOKUP(R87,BUS!$C$4:$AEB$946,4,0),"") ->  | Y87: =IFERROR(VLOOKUP(D87,'شهر 9 تفصيلي'!$B$5:$AEB$965,1,0),"") -> 1811 | Z87: =IFERROR(VLOOKUP(K87,'شهر 9 تفصيلي'!$B$5:$AEB$965,1,0),"") ->  | AA87: =IFERROR(VLOOKUP(R87,'شهر 9 تفصيلي'!$B$5:$AEB$965,1,0),"") -> 
B88: 69 | C88: 20249 | D88: 1253 | F88: 55 | I88: =IFERROR(VLOOKUP(D88,BUS!$C$4:$AEB$946,4,0),"") -> MUB | P88: =IFERROR(VLOOKUP(K88,BUS!$C$4:$AEB$946,4,0),"") ->  | W88: =IFERROR(VLOOKUP(R88,BUS!$C$4:$AEB$946,4,0),"") ->  | Y88: =IFERROR(VLOOKUP(D88,'شهر 9 تفصيلي'!$B$5:$AEB$965,1,0),"") -> 1253 | Z88: =IFERROR(VLOOKUP(K88,'شهر 9 تفصيلي'!$B$5:$AEB$965,1,0),"") ->  | AA88: =IFERROR(VLOOKUP(R88,'شهر 9 تفصيلي'!$B$5:$AEB$965,1,0),"") -> 
B89: 70 | C89: 20250 | D89: 1015 | F89: 150 | I89: =IFERROR(VLOOKUP(D89,BUS!$C$4:$AEB$946,4,0),"") -> MUB | P89: =IFERROR(VLOOKUP(K89,BUS!$C$4:$AEB$946,4,0),"") ->  | W89: =IFERROR(VLOOKUP(R89,BUS!$C$4:$AEB$946,4,0),"") ->  | Y89: =IFERROR(VLOOKUP(D89,'شهر 9 تفصيلي'!$B$5:$AEB$965,1,0),"") -> 1015 | Z89: =IFERROR(VLOOKUP(K89,'شهر 9 تفصيلي'!$B$5:$AEB$965,1,0),"") ->  | AA89: =IFERROR(VLOOKUP(R89,'شهر 9 تفصيلي'!$B$5:$AEB$965,1,0),"") -> 
B90: 71 | I90: =IFERROR(VLOOKUP(D90,BUS!$C$4:$AEB$946,4,0),"") ->  | P90: =IFERROR(VLOOKUP(K90,BUS!$C$4:$AEB$946,4,0),"") ->  | W90: =IFERROR(VLOOKUP(R90,BUS!$C$4:$AEB$946,4,0),"") ->  | Y90: =IFERROR(VLOOKUP(D90,'شهر 9 تفصيلي'!$B$5:$AEB$965,1,0),"") ->  | Z90: =IFERROR(VLOOKUP(K90,'شهر 9 تفصيلي'!$B$5:$AEB$965,1,0),"") ->  | AA90: =IFERROR(VLOOKUP(R90,'شهر 9 تفصيلي'!$B$5:$AEB$965,1,0),"") -> 
B91: 72 | I91: =IFERROR(VLOOKUP(D91,BUS!$C$4:$AEB$946,4,0),"") ->  | P91: =IFERROR(VLOOKUP(K91,BUS!$C$4:$AEB$946,4,0),"") ->  | W91: =IFERROR(VLOOKUP(R91,BUS!$C$4:$AEB$946,4,0),"") ->  | Y91: =IFERROR(VLOOKUP(D91,'شهر 9 تفصيلي'!$B$5:$AEB$965,1,0),"") ->  | Z91: =IFERROR(VLOOKUP(K91,'شهر 9 تفصيلي'!$B$5:$AEB$965,1,0),"") ->  | AA91: =IFERROR(VLOOKUP(R91,'شهر 9 تفصيلي'!$B$5:$AEB$965,1,0),"") -> 
B92: 73 | I92: =IFERROR(VLOOKUP(D92,BUS!$C$4:$AEB$946,4,0),"") ->  | P92: =IFERROR(VLOOKUP(K92,BUS!$C$4:$AEB$946,4,0),"") ->  | W92: =IFERROR(VLOOKUP(R92,BUS!$C$4:$AEB$946,4,0),"") ->  | Y92: =IFERROR(VLOOKUP(D92,'شهر 9 تفصيلي'!$B$5:$AEB$965,1,0),"") ->  | Z92: =IFERROR(VLOOKUP(K92,'شهر 9 تفصيلي'!$B$5:$AEB$965,1,0),"") ->  | AA92: =IFERROR(VLOOKUP(R92,'شهر 9 تفصيلي'!$B$5:$AEB$965,1,0),"") -> 
B93: 74 | I93: =IFERROR(VLOOKUP(D93,BUS!$C$4:$AEB$946,4,0),"") ->  | P93: =IFERROR(VLOOKUP(K93,BUS!$C$4:$AEB$946,4,0),"") ->  | W93: =IFERROR(VLOOKUP(R93,BUS!$C$4:$AEB$946,4,0),"") ->  | Y93: =IFERROR(VLOOKUP(D93,'شهر 9 تفصيلي'!$B$5:$AEB$965,1,0),"") ->  | Z93: =IFERROR(VLOOKUP(K93,'شهر 9 تفصيلي'!$B$5:$AEB$965,1,0),"") ->  | AA93: =IFERROR(VLOOKUP(R93,'شهر 9 تفصيلي'!$B$5:$AEB$965,1,0),"") -> 
B94: 75 | I94: =IFERROR(VLOOKUP(D94,BUS!$C$4:$AEB$946,4,0),"") ->  | P94: =IFERROR(VLOOKUP(K94,BUS!$C$4:$AEB$946,4,0),"") ->  | W94: =IFERROR(VLOOKUP(R94,BUS!$C$4:$AEB$946,4,0),"") ->  | Y94: =IFERROR(VLOOKUP(D94,'شهر 9 تفصيلي'!$B$5:$AEB$965,1,0),"") ->  | Z94: =IFERROR(VLOOKUP(K94,'شهر 9 تفصيلي'!$B$5:$AEB$965,1,0),"") ->  | AA94: =IFERROR(VLOOKUP(R94,'شهر 9 تفصيلي'!$B$5:$AEB$965,1,0),"") -> 
B95: 76 | I95: =IFERROR(VLOOKUP(D95,BUS!$C$4:$AEB$946,4,0),"") ->  | P95: =IFERROR(VLOOKUP(K95,BUS!$C$4:$AEB$946,4,0),"") ->  | W95: =IFERROR(VLOOKUP(R95,BUS!$C$4:$AEB$946,4,0),"") ->  | Y95: =IFERROR(VLOOKUP(D95,'شهر 9 تفصيلي'!$B$5:$AEB$965,1,0),"") ->  | Z95: =IFERROR(VLOOKUP(K95,'شهر 9 تفصيلي'!$B$5:$AEB$965,1,0),"") ->  | AA95: =IFERROR(VLOOKUP(R95,'شهر 9 تفصيلي'!$B$5:$AEB$965,1,0),"") -> 
B96: 77 | I96: =IFERROR(VLOOKUP(D96,BUS!$C$4:$AEB$946,4,0),"") ->  | P96: =IFERROR(VLOOKUP(K96,BUS!$C$4:$AEB$946,4,0),"") ->  | W96: =IFERROR(VLOOKUP(R96,BUS!$C$4:$AEB$946,4,0),"") ->  | Y96: =IFERROR(VLOOKUP(D96,'شهر 9 تفصيلي'!$B$5:$AEB$965,1,0),"") ->  | Z96: =IFERROR(VLOOKUP(K96,'شهر 9 تفصيلي'!$B$5:$AEB$965,1,0),"") ->  | AA96: =IFERROR(VLOOKUP(R96,'شهر 9 تفصيلي'!$B$5:$AEB$965,1,0),"") -> 
B97: 78 | I97: =IFERROR(VLOOKUP(D97,BUS!$C$4:$AEB$946,4,0),"") ->  | P97: =IFERROR(VLOOKUP(K97,BUS!$C$4:$AEB$946,4,0),"") ->  | W97: =IFERROR(VLOOKUP(R97,BUS!$C$4:$AEB$946,4,0),"") ->  | Y97: =IFERROR(VLOOKUP(D97,'شهر 9 تفصيلي'!$B$5:$AEB$965,1,0),"") ->  | Z97: =IFERROR(VLOOKUP(K97,'شهر 9 تفصيلي'!$B$5:$AEB$965,1,0),"") ->  | AA97: =IFERROR(VLOOKUP(R97,'شهر 9 تفصيلي'!$B$5:$AEB$965,1,0),"") -> 
B98: 79 | I98: =IFERROR(VLOOKUP(D98,BUS!$C$4:$AEB$946,4,0),"") ->  | P98: =IFERROR(VLOOKUP(K98,BUS!$C$4:$AEB$946,4,0),"") ->  | W98: =IFERROR(VLOOKUP(R98,BUS!$C$4:$AEB$946,4,0),"") ->  | Y98: =IFERROR(VLOOKUP(D98,'شهر 9 تفصيلي'!$B$5:$AEB$965,1,0),"") ->  | Z98: =IFERROR(VLOOKUP(K98,'شهر 9 تفصيلي'!$B$5:$AEB$965,1,0),"") ->  | AA98: =IFERROR(VLOOKUP(R98,'شهر 9 تفصيلي'!$B$5:$AEB$965,1,0),"") -> 
B99: 80 | I99: =IFERROR(VLOOKUP(D99,BUS!$C$4:$AEB$946,4,0),"") ->  | P99: =IFERROR(VLOOKUP(K99,BUS!$C$4:$AEB$946,4,0),"") ->  | W99: =IFERROR(VLOOKUP(R99,BUS!$C$4:$AEB$946,4,0),"") ->  | Y99: =IFERROR(VLOOKUP(D99,'شهر 9 تفصيلي'!$B$5:$AEB$965,1,0),"") ->  | Z99: =IFERROR(VLOOKUP(K99,'شهر 9 تفصيلي'!$B$5:$AEB$965,1,0),"") ->  | AA99: =IFERROR(VLOOKUP(R99,'شهر 9 تفصيلي'!$B$5:$AEB$965,1,0),"") -> 
B100: 81 | I100: =IFERROR(VLOOKUP(D100,BUS!$C$4:$AEB$946,4,0),"") ->  | P100: =IFERROR(VLOOKUP(K100,BUS!$C$4:$AEB$946,4,0),"") ->  | W100: =IFERROR(VLOOKUP(R100,BUS!$C$4:$AEB$946,4,0),"") ->  | Y100: =IFERROR(VLOOKUP(D100,'شهر 9 تفصيلي'!$B$5:$AEB$965,1,0),"") ->  | Z100: =IFERROR(VLOOKUP(K100,'شهر 9 تفصيلي'!$B$5:$AEB$965,1,0),"") ->  | AA100: =IFERROR(VLOOKUP(R100,'شهر 9 تفصيلي'!$B$5:$AEB$965,1,0),"") -> 
B101: 82 | I101: =IFERROR(VLOOKUP(D101,BUS!$C$4:$AEB$946,4,0),"") ->  | P101: =IFERROR(VLOOKUP(K101,BUS!$C$4:$AEB$946,4,0),"") ->  | W101: =IFERROR(VLOOKUP(R101,BUS!$C$4:$AEB$946,4,0),"") ->  | Y101: =IFERROR(VLOOKUP(D101,'شهر 9 تفصيلي'!$B$5:$AEB$965,1,0),"") ->  | Z101: =IFERROR(VLOOKUP(K101,'شهر 9 تفصيلي'!$B$5:$AEB$965,1,0),"") ->  | AA101: =IFERROR(VLOOKUP(R101,'شهر 9 تفصيلي'!$B$5:$AEB$965,1,0),"") -> 
B102: 83 | I102: =IFERROR(VLOOKUP(D102,BUS!$C$4:$AEB$946,4,0),"") ->  | P102: =IFERROR(VLOOKUP(K102,BUS!$C$4:$AEB$946,4,0),"") ->  | W102: =IFERROR(VLOOKUP(R102,BUS!$C$4:$AEB$946,4,0),"") ->  | Y102: =IFERROR(VLOOKUP(D102,'شهر 9 تفصيلي'!$B$5:$AEB$965,1,0),"") ->  | Z102: =IFERROR(VLOOKUP(K102,'شهر 9 تفصيلي'!$B$5:$AEB$965,1,0),"") ->  | AA102: =IFERROR(VLOOKUP(R102,'شهر 9 تفصيلي'!$B$5:$AEB$965,1,0),"") -> 
B103: 84 | I103: =IFERROR(VLOOKUP(D103,BUS!$C$4:$AEB$946,4,0),"") ->  | P103: =IFERROR(VLOOKUP(K103,BUS!$C$4:$AEB$946,4,0),"") ->  | W103: =IFERROR(VLOOKUP(R103,BUS!$C$4:$AEB$946,4,0),"") ->  | Y103: =IFERROR(VLOOKUP(D103,'شهر 9 تفصيلي'!$B$5:$AEB$965,1,0),"") ->  | Z103: =IFERROR(VLOOKUP(K103,'شهر 9 تفصيلي'!$B$5:$AEB$965,1,0),"") ->  | AA103: =IFERROR(VLOOKUP(R103,'شهر 9 تفصيلي'!$B$5:$AEB$965,1,0),"") -> 
B104: 85 | I104: =IFERROR(VLOOKUP(D104,BUS!$C$4:$AEB$946,4,0),"") ->  | P104: =IFERROR(VLOOKUP(K104,BUS!$C$4:$AEB$946,4,0),"") ->  | W104: =IFERROR(VLOOKUP(R104,BUS!$C$4:$AEB$946,4,0),"") ->  | Y104: =IFERROR(VLOOKUP(D104,'شهر 9 تفصيلي'!$B$5:$AEB$965,1,0),"") ->  | Z104: =IFERROR(VLOOKUP(K104,'شهر 9 تفصيلي'!$B$5:$AEB$965,1,0),"") ->  | AA104: =IFERROR(VLOOKUP(R104,'شهر 9 تفصيلي'!$B$5:$AEB$965,1,0),"") -> 
B105: 86 | I105: =IFERROR(VLOOKUP(D105,BUS!$C$4:$AEB$946,4,0),"") ->  | P105: =IFERROR(VLOOKUP(K105,BUS!$C$4:$AEB$946,4,0),"") ->  | W105: =IFERROR(VLOOKUP(R105,BUS!$C$4:$AEB$946,4,0),"") ->  | Y105: =IFERROR(VLOOKUP(D105,'شهر 9 تفصيلي'!$B$5:$AEB$965,1,0),"") ->  | Z105: =IFERROR(VLOOKUP(K105,'شهر 9 تفصيلي'!$B$5:$AEB$965,1,0),"") ->  | AA105: =IFERROR(VLOOKUP(R105,'شهر 9 تفصيلي'!$B$5:$AEB$965,1,0),"") -> 
B106: 87 | I106: =IFERROR(VLOOKUP(D106,BUS!$C$4:$AEB$946,4,0),"") ->  | P106: =IFERROR(VLOOKUP(K106,BUS!$C$4:$AEB$946,4,0),"") ->  | W106: =IFERROR(VLOOKUP(R106,BUS!$C$4:$AEB$946,4,0),"") ->  | Y106: =IFERROR(VLOOKUP(D106,'شهر 9 تفصيلي'!$B$5:$AEB$965,1,0),"") ->  | Z106: =IFERROR(VLOOKUP(K106,'شهر 9 تفصيلي'!$B$5:$AEB$965,1,0),"") ->  | AA106: =IFERROR(VLOOKUP(R106,'شهر 9 تفصيلي'!$B$5:$AEB$965,1,0),"") -> 
B107: 88 | I107: =IFERROR(VLOOKUP(D107,BUS!$C$4:$AEB$946,4,0),"") ->  | P107: =IFERROR(VLOOKUP(K107,BUS!$C$4:$AEB$946,4,0),"") ->  | W107: =IFERROR(VLOOKUP(R107,BUS!$C$4:$AEB$946,4,0),"") ->  | Y107: =IFERROR(VLOOKUP(D107,'شهر 9 تفصيلي'!$B$5:$AEB$965,1,0),"") ->  | Z107: =IFERROR(VLOOKUP(K107,'شهر 9 تفصيلي'!$B$5:$AEB$965,1,0),"") ->  | AA107: =IFERROR(VLOOKUP(R107,'شهر 9 تفصيلي'!$B$5:$AEB$965,1,0),"") -> 
B108: 89 | I108: =IFERROR(VLOOKUP(D108,BUS!$C$4:$AEB$946,4,0),"") ->  | P108: =IFERROR(VLOOKUP(K108,BUS!$C$4:$AEB$946,4,0),"") ->  | W108: =IFERROR(VLOOKUP(R108,BUS!$C$4:$AEB$946,4,0),"") ->  | Y108: =IFERROR(VLOOKUP(D108,'شهر 9 تفصيلي'!$B$5:$AEB$965,1,0),"") ->  | Z108: =IFERROR(VLOOKUP(K108,'شهر 9 تفصيلي'!$B$5:$AEB$965,1,0),"") ->  | AA108: =IFERROR(VLOOKUP(R108,'شهر 9 تفصيلي'!$B$5:$AEB$965,1,0),"") -> 
B109: 90 | I109: =IFERROR(VLOOKUP(D109,BUS!$C$4:$AEB$946,4,0),"") ->  | P109: =IFERROR(VLOOKUP(K109,BUS!$C$4:$AEB$946,4,0),"") ->  | W109: =IFERROR(VLOOKUP(R109,BUS!$C$4:$AEB$946,4,0),"") ->  | Y109: =IFERROR(VLOOKUP(D109,'شهر 9 تفصيلي'!$B$5:$AEB$965,1,0),"") ->  | Z109: =IFERROR(VLOOKUP(K109,'شهر 9 تفصيلي'!$B$5:$AEB$965,1,0),"") ->  | AA109: =IFERROR(VLOOKUP(R109,'شهر 9 تفصيلي'!$B$5:$AEB$965,1,0),"") -> 
B110: 91 | I110: =IFERROR(VLOOKUP(D110,BUS!$C$4:$AEB$946,4,0),"") ->  | P110: =IFERROR(VLOOKUP(K110,BUS!$C$4:$AEB$946,4,0),"") ->  | W110: =IFERROR(VLOOKUP(R110,BUS!$C$4:$AEB$946,4,0),"") ->  | Y110: =IFERROR(VLOOKUP(D110,'شهر 9 تفصيلي'!$B$5:$AEB$965,1,0),"") ->  | Z110: =IFERROR(VLOOKUP(K110,'شهر 9 تفصيلي'!$B$5:$AEB$965,1,0),"") ->  | AA110: =IFERROR(VLOOKUP(R110,'شهر 9 تفصيلي'!$B$5:$AEB$965,1,0),"") -> 
B111: 92 | I111: =IFERROR(VLOOKUP(D111,BUS!$C$4:$AEB$946,4,0),"") ->  | P111: =IFERROR(VLOOKUP(K111,BUS!$C$4:$AEB$946,4,0),"") ->  | W111: =IFERROR(VLOOKUP(R111,BUS!$C$4:$AEB$946,4,0),"") ->  | Y111: =IFERROR(VLOOKUP(D111,'شهر 9 تفصيلي'!$B$5:$AEB$965,1,0),"") ->  | Z111: =IFERROR(VLOOKUP(K111,'شهر 9 تفصيلي'!$B$5:$AEB$965,1,0),"") ->  | AA111: =IFERROR(VLOOKUP(R111,'شهر 9 تفصيلي'!$B$5:$AEB$965,1,0),"") -> 
B112: TOTAL | F112: =SUM(F67:F111)+F56 -> 8924 | K112: TOTAL | M112: =SUM(M67:M111)+M56 -> 1185 | R112: TOTAL | T112: =SUM(T67:T111)+T56 -> 289
B113: Area manager | D113: Operation manager ( Bus D.) | K113: General manager ( Bus D) | T113: Maher-Hassan-2018
AB120: محطة خشمان ( الماسة 7 )
B121: Checking the station manager | AB121: كشف بأرقام الفواتير اليومية
B122: =B7 -> 2021-09-01 | F122: التاريخ / | I122: =I7 ->  | M122: اليـــــــــــوم / | P122: محطة خشمان ( الماسة 7 ) | W122: 3 | AB122: =B122 -> 2021-09-01 | AF122: =I122 -> 
B123: S.NO | C123: رقم الفاتوره ديزل | D123: BUS | E123: الكيلو D | F123: D | G123: الوقت | H123: المراقب | I123: To | J123: رقم الفاتوره 95 | K123: BUS | L123: الكيلو 95 | M123: 95 | N123: الوقت | O123: المراقب | P123: To | Q123: رقم الفاتوره 91 | R123: BUS | S123: الكيلو 91 | T123: 91 | U123: الوقت | V123: المراقب | W123: To | AB123: S.NO | AC123: رقم الفاتوره ديزل | AG123: رقم الفاتوره 95 | AI123: رقم الفاتوره 91
B124: 93 | I124: =IFERROR(VLOOKUP(D124,BUS!$C$4:$AEB$946,4,0),"") ->  | P124: =IFERROR(VLOOKUP(K124,BUS!$C$4:$AEB$946,4,0),"") ->  | W124: =IFERROR(VLOOKUP(R124,BUS!$C$4:$AEB$946,4,0),"") ->  | Y124: =IFERROR(VLOOKUP(D124,'شهر 9 تفصيلي'!$B$5:$AEB$965,1,0),"") ->  | Z124: =IFERROR(VLOOKUP(K124,'شهر 9 تفصيلي'!$B$5:$AEB$965,1,0),"") ->  | AA124: =IFERROR(VLOOKUP(R124,'شهر 9 تفصيلي'!$B$5:$AEB$965,1,0),"") ->  | AB124: 93 | AC124: =C124 -> 0 | AG124: =J124 -> 0 | AI124: =Q124 -> 0
B125: 94 | I125: =IFERROR(VLOOKUP(D125,BUS!$C$4:$AEB$946,4,0),"") ->  | P125: =IFERROR(VLOOKUP(K125,BUS!$C$4:$AEB$946,4,0),"") ->  | W125: =IFERROR(VLOOKUP(R125,BUS!$C$4:$AEB$946,4,0),"") ->  | Y125: =IFERROR(VLOOKUP(D125,'شهر 9 تفصيلي'!$B$5:$AEB$965,1,0),"") ->  | Z125: =IFERROR(VLOOKUP(K125,'شهر 9 تفصيلي'!$B$5:$AEB$965,1,0),"") ->  | AA125: =IFERROR(VLOOKUP(R125,'شهر 9 تفصيلي'!$B$5:$AEB$965,1,0),"") ->  | AB125: 94 | AC125: =C125 -> 0 | AG125: =J125 -> 0 | AI125: =Q125 -> 0
B126: 95 | I126: =IFERROR(VLOOKUP(D126,BUS!$C$4:$AEB$946,4,0),"") ->  | P126: =IFERROR(VLOOKUP(K126,BUS!$C$4:$AEB$946,4,0),"") ->  | W126: =IFERROR(VLOOKUP(R126,BUS!$C$4:$AEB$946,4,0),"") ->  | Y126: =IFERROR(VLOOKUP(D126,'شهر 9 تفصيلي'!$B$5:$AEB$965,1,0),"") ->  | Z126: =IFERROR(VLOOKUP(K126,'شهر 9 تفصيلي'!$B$5:$AEB$965,1,0),"") ->  | AA126: =IFERROR(VLOOKUP(R126,'شهر 9 تفصيلي'!$B$5:$AEB$965,1,0),"") ->  | AB126: 95 | AC126: 0 | AG126: 0 | AI126: 0
B127: 96 | I127: =IFERROR(VLOOKUP(D127,BUS!$C$4:$AEB$946,4,0),"") ->  | P127: =IFERROR(VLOOKUP(K127,BUS!$C$4:$AEB$946,4,0),"") ->  | W127: =IFERROR(VLOOKUP(R127,BUS!$C$4:$AEB$946,4,0),"") ->  | Y127: =IFERROR(VLOOKUP(D127,'شهر 9 تفصيلي'!$B$5:$AEB$965,1,0),"") ->  | Z127: =IFERROR(VLOOKUP(K127,'شهر 9 تفصيلي'!$B$5:$AEB$965,1,0),"") ->  | AA127: =IFERROR(VLOOKUP(R127,'شهر 9 تفصيلي'!$B$5:$AEB$965,1,0),"") ->  | AB127: 96 | AC127: 0 | AG127: 0 | AI127: 0
B128: 97 | I128: =IFERROR(VLOOKUP(D128,BUS!$C$4:$AEB$946,4,0),"") ->  | P128: =IFERROR(VLOOKUP(K128,BUS!$C$4:$AEB$946,4,0),"") ->  | W128: =IFERROR(VLOOKUP(R128,BUS!$C$4:$AEB$946,4,0),"") ->  | Y128: =IFERROR(VLOOKUP(D128,'شهر 9 تفصيلي'!$B$5:$AEB$965,1,0),"") ->  | Z128: =IFERROR(VLOOKUP(K128,'شهر 9 تفصيلي'!$B$5:$AEB$965,1,0),"") ->  | AA128: =IFERROR(VLOOKUP(R128,'شهر 9 تفصيلي'!$B$5:$AEB$965,1,0),"") ->  | AB128: 97 | AC128: 0 | AG128: 0 | AI128: 0
B129: 98 | I129: =IFERROR(VLOOKUP(D129,BUS!$C$4:$AEB$946,4,0),"") ->  | P129: =IFERROR(VLOOKUP(K129,BUS!$C$4:$AEB$946,4,0),"") ->  | W129: =IFERROR(VLOOKUP(R129,BUS!$C$4:$AEB$946,4,0),"") ->  | Y129: =IFERROR(VLOOKUP(D129,'شهر 9 تفصيلي'!$B$5:$AEB$965,1,0),"") ->  | Z129: =IFERROR(VLOOKUP(K129,'شهر 9 تفصيلي'!$B$5:$AEB$965,1,0),"") ->  | AA129: =IFERROR(VLOOKUP(R129,'شهر 9 تفصيلي'!$B$5:$AEB$965,1,0),"") ->  | AB129: 98 | AC129: 0 | AG129: 0 | AI129: 0
B130: 99 | I130: =IFERROR(VLOOKUP(D130,BUS!$C$4:$AEB$946,4,0),"") ->  | P130: =IFERROR(VLOOKUP(K130,BUS!$C$4:$AEB$946,4,0),"") ->  | W130: =IFERROR(VLOOKUP(R130,BUS!$C$4:$AEB$946,4,0),"") ->  | Y130: =IFERROR(VLOOKUP(D130,'شهر 9 تفصيلي'!$B$5:$AEB$965,1,0),"") ->  | Z130: =IFERROR(VLOOKUP(K130,'شهر 9 تفصيلي'!$B$5:$AEB$965,1,0),"") ->  | AA130: =IFERROR(VLOOKUP(R130,'شهر 9 تفصيلي'!$B$5:$AEB$965,1,0),"") ->  | AB130: 99 | AC130: 0 | AG130: 0 | AI130: 0
B131: 100 | I131: =IFERROR(VLOOKUP(D131,BUS!$C$4:$AEB$946,4,0),"") ->  | P131: =IFERROR(VLOOKUP(K131,BUS!$C$4:$AEB$946,4,0),"") ->  | W131: =IFERROR(VLOOKUP(R131,BUS!$C$4:$AEB$946,4,0),"") ->  | Y131: =IFERROR(VLOOKUP(D131,'شهر 9 تفصيلي'!$B$5:$AEB$965,1,0),"") ->  | Z131: =IFERROR(VLOOKUP(K131,'شهر 9 تفصيلي'!$B$5:$AEB$965,1,0),"") ->  | AA131: =IFERROR(VLOOKUP(R131,'شهر 9 تفصيلي'!$B$5:$AEB$965,1,0),"") ->  | AB131: 100 | AC131: 0 | AG131: 0 | AI131: 0
B132: 101 | I132: =IFERROR(VLOOKUP(D132,BUS!$C$4:$AEB$946,4,0),"") ->  | P132: =IFERROR(VLOOKUP(K132,BUS!$C$4:$AEB$946,4,0),"") ->  | W132: =IFERROR(VLOOKUP(R132,BUS!$C$4:$AEB$946,4,0),"") ->  | Y132: =IFERROR(VLOOKUP(D132,'شهر 9 تفصيلي'!$B$5:$AEB$965,1,0),"") ->  | Z132: =IFERROR(VLOOKUP(K132,'شهر 9 تفصيلي'!$B$5:$AEB$965,1,0),"") ->  | AA132: =IFERROR(VLOOKUP(R132,'شهر 9 تفصيلي'!$B$5:$AEB$965,1,0),"") ->  | AB132: 101 | AC132: 0 | AG132: 0 | AI132: 0
B133: 102 | I133: =IFERROR(VLOOKUP(D133,BUS!$C$4:$AEB$946,4,0),"") ->  | P133: =IFERROR(VLOOKUP(K133,BUS!$C$4:$AEB$946,4,0),"") ->  | W133: =IFERROR(VLOOKUP(R133,BUS!$C$4:$AEB$946,4,0),"") ->  | Y133: =IFERROR(VLOOKUP(D133,'شهر 9 تفصيلي'!$B$5:$AEB$965,1,0),"") ->  | Z133: =IFERROR(VLOOKUP(K133,'شهر 9 تفصيلي'!$B$5:$AEB$965,1,0),"") ->  | AA133: =IFERROR(VLOOKUP(R133,'شهر 9 تفصيلي'!$B$5:$AEB$965,1,0),"") ->  | AB133: 102 | AC133: 0 | AG133: 0 | AI133: 0
B134: 103 | I134: =IFERROR(VLOOKUP(D134,BUS!$C$4:$AEB$946,4,0),"") ->  | P134: =IFERROR(VLOOKUP(K134,BUS!$C$4:$AEB$946,4,0),"") ->  | W134: =IFERROR(VLOOKUP(R134,BUS!$C$4:$AEB$946,4,0),"") ->  | Y134: =IFERROR(VLOOKUP(D134,'شهر 9 تفصيلي'!$B$5:$AEB$965,1,0),"") ->  | Z134: =IFERROR(VLOOKUP(K134,'شهر 9 تفصيلي'!$B$5:$AEB$965,1,0),"") ->  | AA134: =IFERROR(VLOOKUP(R134,'شهر 9 تفصيلي'!$B$5:$AEB$965,1,0),"") ->  | AB134: 103 | AC134: 0 | AG134: 0 | AI134: 0
B135: 104 | I135: =IFERROR(VLOOKUP(D135,BUS!$C$4:$AEB$946,4,0),"") ->  | P135: =IFERROR(VLOOKUP(K135,BUS!$C$4:$AEB$946,4,0),"") ->  | W135: =IFERROR(VLOOKUP(R135,BUS!$C$4:$AEB$946,4,0),"") ->  | Y135: =IFERROR(VLOOKUP(D135,'شهر 9 تفصيلي'!$B$5:$AEB$965,1,0),"") ->  | Z135: =IFERROR(VLOOKUP(K135,'شهر 9 تفصيلي'!$B$5:$AEB$965,1,0),"") ->  | AA135: =IFERROR(VLOOKUP(R135,'شهر 9 تفصيلي'!$B$5:$AEB$965,1,0),"") ->  | AB135: 104 | AC135: 0 | AG135: 0 | AI135: 0
B136: 105 | I136: =IFERROR(VLOOKUP(D136,BUS!$C$4:$AEB$946,4,0),"") ->  | P136: =IFERROR(VLOOKUP(K136,BUS!$C$4:$AEB$946,4,0),"") ->  | W136: =IFERROR(VLOOKUP(R136,BUS!$C$4:$AEB$946,4,0),"") ->  | Y136: =IFERROR(VLOOKUP(D136,'شهر 9 تفصيلي'!$B$5:$AEB$965,1,0),"") ->  | Z136: =IFERROR(VLOOKUP(K136,'شهر 9 تفصيلي'!$B$5:$AEB$965,1,0),"") ->  | AA136: =IFERROR(VLOOKUP(R136,'شهر 9 تفصيلي'!$B$5:$AEB$965,1,0),"") ->  | AB136: 105 | AC136: 0 | AG136: 0 | AI136: 0
B137: 106 | I137: =IFERROR(VLOOKUP(D137,BUS!$C$4:$AEB$946,4,0),"") ->  | P137: =IFERROR(VLOOKUP(K137,BUS!$C$4:$AEB$946,4,0),"") ->  | W137: =IFERROR(VLOOKUP(R137,BUS!$C$4:$AEB$946,4,0),"") ->  | Y137: =IFERROR(VLOOKUP(D137,'شهر 9 تفصيلي'!$B$5:$AEB$965,1,0),"") ->  | Z137: =IFERROR(VLOOKUP(K137,'شهر 9 تفصيلي'!$B$5:$AEB$965,1,0),"") ->  | AA137: =IFERROR(VLOOKUP(R137,'شهر 9 تفصيلي'!$B$5:$AEB$965,1,0),"") ->  | AB137: 106 | AC137: 0 | AG137: 0 | AI137: 0
B138: 107 | I138: =IFERROR(VLOOKUP(D138,BUS!$C$4:$AEB$946,4,0),"") ->  | P138: =IFERROR(VLOOKUP(K138,BUS!$C$4:$AEB$946,4,0),"") ->  | W138: =IFERROR(VLOOKUP(R138,BUS!$C$4:$AEB$946,4,0),"") ->  | Y138: =IFERROR(VLOOKUP(D138,'شهر 9 تفصيلي'!$B$5:$AEB$965,1,0),"") ->  | Z138: =IFERROR(VLOOKUP(K138,'شهر 9 تفصيلي'!$B$5:$AEB$965,1,0),"") ->  | AA138: =IFERROR(VLOOKUP(R138,'شهر 9 تفصيلي'!$B$5:$AEB$965,1,0),"") ->  | AB138: 107 | AC138: 0 | AG138: 0 | AI138: 0
B139: 108 | I139: =IFERROR(VLOOKUP(D139,BUS!$C$4:$AEB$946,4,0),"") ->  | P139: =IFERROR(VLOOKUP(K139,BUS!$C$4:$AEB$946,4,0),"") ->  | W139: =IFERROR(VLOOKUP(R139,BUS!$C$4:$AEB$946,4,0),"") ->  | Y139: =IFERROR(VLOOKUP(D139,'شهر 9 تفصيلي'!$B$5:$AEB$965,1,0),"") ->  | Z139: =IFERROR(VLOOKUP(K139,'شهر 9 تفصيلي'!$B$5:$AEB$965,1,0),"") ->  | AA139: =IFERROR(VLOOKUP(R139,'شهر 9 تفصيلي'!$B$5:$AEB$965,1,0),"") ->  | AB139: 108 | AC139: 0 | AG139: 0 | AI139: 0
B140: 109 | I140: =IFERROR(VLOOKUP(D140,BUS!$C$4:$AEB$946,4,0),"") ->  | P140: =IFERROR(VLOOKUP(K140,BUS!$C$4:$AEB$946,4,0),"") ->  | W140: =IFERROR(VLOOKUP(R140,BUS!$C$4:$AEB$946,4,0),"") ->  | Y140: =IFERROR(VLOOKUP(D140,'شهر 9 تفصيلي'!$B$5:$AEB$965,1,0),"") ->  | Z140: =IFERROR(VLOOKUP(K140,'شهر 9 تفصيلي'!$B$5:$AEB$965,1,0),"") ->  | AA140: =IFERROR(VLOOKUP(R140,'شهر 9 تفصيلي'!$B$5:$AEB$965,1,0),"") ->  | AB140: 109 | AC140: 0 | AG140: 0 | AI140: 0
B141: 110 | I141: =IFERROR(VLOOKUP(D141,BUS!$C$4:$AEB$946,4,0),"") ->  | P141: =IFERROR(VLOOKUP(K141,BUS!$C$4:$AEB$946,4,0),"") ->  | W141: =IFERROR(VLOOKUP(R141,BUS!$C$4:$AEB$946,4,0),"") ->  | Y141: =IFERROR(VLOOKUP(D141,'شهر 9 تفصيلي'!$B$5:$AEB$965,1,0),"") ->  | Z141: =IFERROR(VLOOKUP(K141,'شهر 9 تفصيلي'!$B$5:$AEB$965,1,0),"") ->  | AA141: =IFERROR(VLOOKUP(R141,'شهر 9 تفصيلي'!$B$5:$AEB$965,1,0),"") ->  | AB141: 110 | AC141: 0 | AG141: 0 | AI141: 0
B142: 111 | I142: =IFERROR(VLOOKUP(D142,BUS!$C$4:$AEB$946,4,0),"") ->  | P142: =IFERROR(VLOOKUP(K142,BUS!$C$4:$AEB$946,4,0),"") ->  | W142: =IFERROR(VLOOKUP(R142,BUS!$C$4:$AEB$946,4,0),"") ->  | Y142: =IFERROR(VLOOKUP(D142,'شهر 9 تفصيلي'!$B$5:$AEB$965,1,0),"") ->  | Z142: =IFERROR(VLOOKUP(K142,'شهر 9 تفصيلي'!$B$5:$AEB$965,1,0),"") ->  | AA142: =IFERROR(VLOOKUP(R142,'شهر 9 تفصيلي'!$B$5:$AEB$965,1,0),"") ->  | AB142: 111 | AC142: 0 | AG142: 0 | AI142: 0
B143: 112 | I143: =IFERROR(VLOOKUP(D143,BUS!$C$4:$AEB$946,4,0),"") ->  | P143: =IFERROR(VLOOKUP(K143,BUS!$C$4:$AEB$946,4,0),"") ->  | W143: =IFERROR(VLOOKUP(R143,BUS!$C$4:$AEB$946,4,0),"") ->  | Y143: =IFERROR(VLOOKUP(D143,'شهر 9 تفصيلي'!$B$5:$AEB$965,1,0),"") ->  | Z143: =IFERROR(VLOOKUP(K143,'شهر 9 تفصيلي'!$B$5:$AEB$965,1,0),"") ->  | AA143: =IFERROR(VLOOKUP(R143,'شهر 9 تفصيلي'!$B$5:$AEB$965,1,0),"") ->  | AB143: 112 | AC143: 0 | AG143: 0 | AI143: 0
B144: 113 | I144: =IFERROR(VLOOKUP(D144,BUS!$C$4:$AEB$946,4,0),"") ->  | P144: =IFERROR(VLOOKUP(K144,BUS!$C$4:$AEB$946,4,0),"") ->  | W144: =IFERROR(VLOOKUP(R144,BUS!$C$4:$AEB$946,4,0),"") ->  | Y144: =IFERROR(VLOOKUP(D144,'شهر 9 تفصيلي'!$B$5:$AEB$965,1,0),"") ->  | Z144: =IFERROR(VLOOKUP(K144,'شهر 9 تفصيلي'!$B$5:$AEB$965,1,0),"") ->  | AA144: =IFERROR(VLOOKUP(R144,'شهر 9 تفصيلي'!$B$5:$AEB$965,1,0),"") ->  | AB144: 113 | AC144: 0 | AG144: 0 | AI144: 0
B145: 114 | I145: =IFERROR(VLOOKUP(D145,BUS!$C$4:$AEB$946,4,0),"") ->  | P145: =IFERROR(VLOOKUP(K145,BUS!$C$4:$AEB$946,4,0),"") ->  | W145: =IFERROR(VLOOKUP(R145,BUS!$C$4:$AEB$946,4,0),"") ->  | Y145: =IFERROR(VLOOKUP(D145,'شهر 9 تفصيلي'!$B$5:$AEB$965,1,0),"") ->  | Z145: =IFERROR(VLOOKUP(K145,'شهر 9 تفصيلي'!$B$5:$AEB$965,1,0),"") ->  | AA145: =IFERROR(VLOOKUP(R145,'شهر 9 تفصيلي'!$B$5:$AEB$965,1,0),"") ->  | AB145: 114 | AC145: 0 | AG145: 0 | AI145: 0
B146: 115 | I146: =IFERROR(VLOOKUP(D146,BUS!$C$4:$AEB$946,4,0),"") ->  | P146: =IFERROR(VLOOKUP(K146,BUS!$C$4:$AEB$946,4,0),"") ->  | W146: =IFERROR(VLOOKUP(R146,BUS!$C$4:$AEB$946,4,0),"") ->  | Y146: =IFERROR(VLOOKUP(D146,'شهر 9 تفصيلي'!$B$5:$AEB$965,1,0),"") ->  | Z146: =IFERROR(VLOOKUP(K146,'شهر 9 تفصيلي'!$B$5:$AEB$965,1,0),"") ->  | AA146: =IFERROR(VLOOKUP(R146,'شهر 9 تفصيلي'!$B$5:$AEB$965,1,0),"") ->  | AB146: 115 | AC146: 0 | AG146: 0 | AI146: 0
B147: 116 | I147: =IFERROR(VLOOKUP(D147,BUS!$C$4:$AEB$946,4,0),"") ->  | P147: =IFERROR(VLOOKUP(K147,BUS!$C$4:$AEB$946,4,0),"") ->  | W147: =IFERROR(VLOOKUP(R147,BUS!$C$4:$AEB$946,4,0),"") ->  | Y147: =IFERROR(VLOOKUP(D147,'شهر 9 تفصيلي'!$B$5:$AEB$965,1,0),"") ->  | Z147: =IFERROR(VLOOKUP(K147,'شهر 9 تفصيلي'!$B$5:$AEB$965,1,0),"") ->  | AA147: =IFERROR(VLOOKUP(R147,'شهر 9 تفصيلي'!$B$5:$AEB$965,1,0),"") ->  | AB147: 116 | AC147: 0 | AG147: 0 | AI147: 0
B148: 117 | I148: =IFERROR(VLOOKUP(D148,BUS!$C$4:$AEB$946,4,0),"") ->  | P148: =IFERROR(VLOOKUP(K148,BUS!$C$4:$AEB$946,4,0),"") ->  | W148: =IFERROR(VLOOKUP(R148,BUS!$C$4:$AEB$946,4,0),"") ->  | Y148: =IFERROR(VLOOKUP(D148,'شهر 9 تفصيلي'!$B$5:$AEB$965,1,0),"") ->  | Z148: =IFERROR(VLOOKUP(K148,'شهر 9 تفصيلي'!$B$5:$AEB$965,1,0),"") ->  | AA148: =IFERROR(VLOOKUP(R148,'شهر 9 تفصيلي'!$B$5:$AEB$965,1,0),"") ->  | AB148: 117 | AC148: 0 | AG148: 0 | AI148: 0
B149: 118 | I149: =IFERROR(VLOOKUP(D149,BUS!$C$4:$AEB$946,4,0),"") ->  | P149: =IFERROR(VLOOKUP(K149,BUS!$C$4:$AEB$946,4,0),"") ->  | W149: =IFERROR(VLOOKUP(R149,BUS!$C$4:$AEB$946,4,0),"") ->  | Y149: =IFERROR(VLOOKUP(D149,'شهر 9 تفصيلي'!$B$5:$AEB$965,1,0),"") ->  | Z149: =IFERROR(VLOOKUP(K149,'شهر 9 تفصيلي'!$B$5:$AEB$965,1,0),"") ->  | AA149: =IFERROR(VLOOKUP(R149,'شهر 9 تفصيلي'!$B$5:$AEB$965,1,0),"") ->  | AB149: 118 | AC149: 0 | AG149: 0 | AI149: 0
B150: 119 | I150: =IFERROR(VLOOKUP(D150,BUS!$C$4:$AEB$946,4,0),"") ->  | P150: =IFERROR(VLOOKUP(K150,BUS!$C$4:$AEB$946,4,0),"") ->  | W150: =IFERROR(VLOOKUP(R150,BUS!$C$4:$AEB$946,4,0),"") ->  | Y150: =IFERROR(VLOOKUP(D150,'شهر 9 تفصيلي'!$B$5:$AEB$965,1,0),"") ->  | Z150: =IFERROR(VLOOKUP(K150,'شهر 9 تفصيلي'!$B$5:$AEB$965,1,0),"") ->  | AA150: =IFERROR(VLOOKUP(R150,'شهر 9 تفصيلي'!$B$5:$AEB$965,1,0),"") ->  | AB150: 119 | AC150: 0 | AG150: 0 | AI150: 0
B151: 120 | I151: =IFERROR(VLOOKUP(D151,BUS!$C$4:$AEB$946,4,0),"") ->  | P151: =IFERROR(VLOOKUP(K151,BUS!$C$4:$AEB$946,4,0),"") ->  | W151: =IFERROR(VLOOKUP(R151,BUS!$C$4:$AEB$946,4,0),"") ->  | Y151: =IFERROR(VLOOKUP(D151,'شهر 9 تفصيلي'!$B$5:$AEB$965,1,0),"") ->  | Z151: =IFERROR(VLOOKUP(K151,'شهر 9 تفصيلي'!$B$5:$AEB$965,1,0),"") ->  | AA151: =IFERROR(VLOOKUP(R151,'شهر 9 تفصيلي'!$B$5:$AEB$965,1,0),"") ->  | AB151: 120 | AC151: 0 | AG151: 0 | AI151: 0
B152: 121 | I152: =IFERROR(VLOOKUP(D152,BUS!$C$4:$AEB$946,4,0),"") ->  | P152: =IFERROR(VLOOKUP(K152,BUS!$C$4:$AEB$946,4,0),"") ->  | W152: =IFERROR(VLOOKUP(R152,BUS!$C$4:$AEB$946,4,0),"") ->  | Y152: =IFERROR(VLOOKUP(D152,'شهر 9 تفصيلي'!$B$5:$AEB$965,1,0),"") ->  | Z152: =IFERROR(VLOOKUP(K152,'شهر 9 تفصيلي'!$B$5:$AEB$965,1,0),"") ->  | AA152: =IFERROR(VLOOKUP(R152,'شهر 9 تفصيلي'!$B$5:$AEB$965,1,0),"") ->  | AB152: 121 | AC152: 0 | AG152: 0 | AI152: 0
B153: 122 | I153: =IFERROR(VLOOKUP(D153,BUS!$C$4:$AEB$946,4,0),"") ->  | P153: =IFERROR(VLOOKUP(K153,BUS!$C$4:$AEB$946,4,0),"") ->  | W153: =IFERROR(VLOOKUP(R153,BUS!$C$4:$AEB$946,4,0),"") ->  | Y153: =IFERROR(VLOOKUP(D153,'شهر 9 تفصيلي'!$B$5:$AEB$965,1,0),"") ->  | Z153: =IFERROR(VLOOKUP(K153,'شهر 9 تفصيلي'!$B$5:$AEB$965,1,0),"") ->  | AA153: =IFERROR(VLOOKUP(R153,'شهر 9 تفصيلي'!$B$5:$AEB$965,1,0),"") ->  | AB153: 122 | AC153: 0 | AG153: 0 | AI153: 0
B154: 123 | I154: =IFERROR(VLOOKUP(D154,BUS!$C$4:$AEB$946,4,0),"") ->  | P154: =IFERROR(VLOOKUP(K154,BUS!$C$4:$AEB$946,4,0),"") ->  | W154: =IFERROR(VLOOKUP(R154,BUS!$C$4:$AEB$946,4,0),"") ->  | Y154: =IFERROR(VLOOKUP(D154,'شهر 9 تفصيلي'!$B$5:$AEB$965,1,0),"") ->  | Z154: =IFERROR(VLOOKUP(K154,'شهر 9 تفصيلي'!$B$5:$AEB$965,1,0),"") ->  | AA154: =IFERROR(VLOOKUP(R154,'شهر 9 تفصيلي'!$B$5:$AEB$965,1,0),"") ->  | AB154: 123 | AC154: 0 | AG154: 0 | AI154: 0
B155: 124 | I155: =IFERROR(VLOOKUP(D155,BUS!$C$4:$AEB$946,4,0),"") ->  | P155: =IFERROR(VLOOKUP(K155,BUS!$C$4:$AEB$946,4,0),"") ->  | W155: =IFERROR(VLOOKUP(R155,BUS!$C$4:$AEB$946,4,0),"") ->  | Y155: =IFERROR(VLOOKUP(D155,'شهر 9 تفصيلي'!$B$5:$AEB$965,1,0),"") ->  | Z155: =IFERROR(VLOOKUP(K155,'شهر 9 تفصيلي'!$B$5:$AEB$965,1,0),"") ->  | AA155: =IFERROR(VLOOKUP(R155,'شهر 9 تفصيلي'!$B$5:$AEB$965,1,0),"") ->  | AB155: 124 | AC155: 0 | AG155: 0 | AI155: 0
B156: 125 | I156: =IFERROR(VLOOKUP(D156,BUS!$C$4:$AEB$946,4,0),"") ->  | P156: =IFERROR(VLOOKUP(K156,BUS!$C$4:$AEB$946,4,0),"") ->  | W156: =IFERROR(VLOOKUP(R156,BUS!$C$4:$AEB$946,4,0),"") ->  | Y156: =IFERROR(VLOOKUP(D156,'شهر 9 تفصيلي'!$B$5:$AEB$965,1,0),"") ->  | Z156: =IFERROR(VLOOKUP(K156,'شهر 9 تفصيلي'!$B$5:$AEB$965,1,0),"") ->  | AA156: =IFERROR(VLOOKUP(R156,'شهر 9 تفصيلي'!$B$5:$AEB$965,1,0),"") ->  | AB156: 125 | AC156: 0 | AG156: 0 | AI156: 0
B157: 126 | I157: =IFERROR(VLOOKUP(D157,BUS!$C$4:$AEB$946,4,0),"") ->  | P157: =IFERROR(VLOOKUP(K157,BUS!$C$4:$AEB$946,4,0),"") ->  | W157: =IFERROR(VLOOKUP(R157,BUS!$C$4:$AEB$946,4,0),"") ->  | Y157: =IFERROR(VLOOKUP(D157,'شهر 9 تفصيلي'!$B$5:$AEB$965,1,0),"") ->  | Z157: =IFERROR(VLOOKUP(K157,'شهر 9 تفصيلي'!$B$5:$AEB$965,1,0),"") ->  | AA157: =IFERROR(VLOOKUP(R157,'شهر 9 تفصيلي'!$B$5:$AEB$965,1,0),"") ->  | AB157: 126 | AC157: 0 | AG157: 0 | AI157: 0
B158: 127 | I158: =IFERROR(VLOOKUP(D158,BUS!$C$4:$AEB$946,4,0),"") ->  | P158: =IFERROR(VLOOKUP(K158,BUS!$C$4:$AEB$946,4,0),"") ->  | W158: =IFERROR(VLOOKUP(R158,BUS!$C$4:$AEB$946,4,0),"") ->  | Y158: =IFERROR(VLOOKUP(D158,'شهر 9 تفصيلي'!$B$5:$AEB$965,1,0),"") ->  | Z158: =IFERROR(VLOOKUP(K158,'شهر 9 تفصيلي'!$B$5:$AEB$965,1,0),"") ->  | AA158: =IFERROR(VLOOKUP(R158,'شهر 9 تفصيلي'!$B$5:$AEB$965,1,0),"") ->  | AB158: 127 | AC158: 0 | AG158: 0 | AI158: 0
B159: 128 | I159: =IFERROR(VLOOKUP(D159,BUS!$C$4:$AEB$946,4,0),"") ->  | P159: =IFERROR(VLOOKUP(K159,BUS!$C$4:$AEB$946,4,0),"") ->  | W159: =IFERROR(VLOOKUP(R159,BUS!$C$4:$AEB$946,4,0),"") ->  | Y159: =IFERROR(VLOOKUP(D159,'شهر 9 تفصيلي'!$B$5:$AEB$965,1,0),"") ->  | Z159: =IFERROR(VLOOKUP(K159,'شهر 9 تفصيلي'!$B$5:$AEB$965,1,0),"") ->  | AA159: =IFERROR(VLOOKUP(R159,'شهر 9 تفصيلي'!$B$5:$AEB$965,1,0),"") ->  | AB159: 128 | AC159: 0 | AG159: 0 | AI159: 0
B160: 129 | I160: =IFERROR(VLOOKUP(D160,BUS!$C$4:$AEB$946,4,0),"") ->  | P160: =IFERROR(VLOOKUP(K160,BUS!$C$4:$AEB$946,4,0),"") ->  | W160: =IFERROR(VLOOKUP(R160,BUS!$C$4:$AEB$946,4,0),"") ->  | Y160: =IFERROR(VLOOKUP(D160,'شهر 9 تفصيلي'!$B$5:$AEB$965,1,0),"") ->  | Z160: =IFERROR(VLOOKUP(K160,'شهر 9 تفصيلي'!$B$5:$AEB$965,1,0),"") ->  | AA160: =IFERROR(VLOOKUP(R160,'شهر 9 تفصيلي'!$B$5:$AEB$965,1,0),"") ->  | AB160: 129 | AC160: 0 | AG160: 0 | AI160: 0
B161: 130 | I161: =IFERROR(VLOOKUP(D161,BUS!$C$4:$AEB$946,4,0),"") ->  | P161: =IFERROR(VLOOKUP(K161,BUS!$C$4:$AEB$946,4,0),"") ->  | W161: =IFERROR(VLOOKUP(R161,BUS!$C$4:$AEB$946,4,0),"") ->  | Y161: =IFERROR(VLOOKUP(D161,'شهر 9 تفصيلي'!$B$5:$AEB$965,1,0),"") ->  | Z161: =IFERROR(VLOOKUP(K161,'شهر 9 تفصيلي'!$B$5:$AEB$965,1,0),"") ->  | AA161: =IFERROR(VLOOKUP(R161,'شهر 9 تفصيلي'!$B$5:$AEB$965,1,0),"") ->  | AB161: 130 | AC161: 0 | AG161: 0 | AI161: 0
B162: 131 | I162: =IFERROR(VLOOKUP(D162,BUS!$C$4:$AEB$946,4,0),"") ->  | P162: =IFERROR(VLOOKUP(K162,BUS!$C$4:$AEB$946,4,0),"") ->  | W162: =IFERROR(VLOOKUP(R162,BUS!$C$4:$AEB$946,4,0),"") ->  | Y162: =IFERROR(VLOOKUP(D162,'شهر 9 تفصيلي'!$B$5:$AEB$965,1,0),"") ->  | Z162: =IFERROR(VLOOKUP(K162,'شهر 9 تفصيلي'!$B$5:$AEB$965,1,0),"") ->  | AA162: =IFERROR(VLOOKUP(R162,'شهر 9 تفصيلي'!$B$5:$AEB$965,1,0),"") ->  | AB162: 131 | AC162: 0 | AG162: 0 | AI162: 0
B163: 132 | I163: =IFERROR(VLOOKUP(D163,BUS!$C$4:$AEB$946,4,0),"") ->  | P163: =IFERROR(VLOOKUP(K163,BUS!$C$4:$AEB$946,4,0),"") ->  | W163: =IFERROR(VLOOKUP(R163,BUS!$C$4:$AEB$946,4,0),"") ->  | Y163: =IFERROR(VLOOKUP(D163,'شهر 9 تفصيلي'!$B$5:$AEB$965,1,0),"") ->  | Z163: =IFERROR(VLOOKUP(K163,'شهر 9 تفصيلي'!$B$5:$AEB$965,1,0),"") ->  | AA163: =IFERROR(VLOOKUP(R163,'شهر 9 تفصيلي'!$B$5:$AEB$965,1,0),"") ->  | AB163: 132 | AC163: 0 | AG163: 0 | AI163: 0
B164: 133 | I164: =IFERROR(VLOOKUP(D164,BUS!$C$4:$AEB$946,4,0),"") ->  | P164: =IFERROR(VLOOKUP(K164,BUS!$C$4:$AEB$946,4,0),"") ->  | W164: =IFERROR(VLOOKUP(R164,BUS!$C$4:$AEB$946,4,0),"") ->  | Y164: =IFERROR(VLOOKUP(D164,'شهر 9 تفصيلي'!$B$5:$AEB$965,1,0),"") ->  | Z164: =IFERROR(VLOOKUP(K164,'شهر 9 تفصيلي'!$B$5:$AEB$965,1,0),"") ->  | AA164: =IFERROR(VLOOKUP(R164,'شهر 9 تفصيلي'!$B$5:$AEB$965,1,0),"") ->  | AB164: 133 | AC164: 0 | AG164: 0 | AI164: 0
B165: 134 | I165: =IFERROR(VLOOKUP(D165,BUS!$C$4:$AEB$946,4,0),"") ->  | P165: =IFERROR(VLOOKUP(K165,BUS!$C$4:$AEB$946,4,0),"") ->  | W165: =IFERROR(VLOOKUP(R165,BUS!$C$4:$AEB$946,4,0),"") ->  | Y165: =IFERROR(VLOOKUP(D165,'شهر 9 تفصيلي'!$B$5:$AEB$965,1,0),"") ->  | Z165: =IFERROR(VLOOKUP(K165,'شهر 9 تفصيلي'!$B$5:$AEB$965,1,0),"") ->  | AA165: =IFERROR(VLOOKUP(R165,'شهر 9 تفصيلي'!$B$5:$AEB$965,1,0),"") ->  | AB165: 134 | AC165: 0 | AG165: 0 | AI165: 0
B166: 135 | I166: =IFERROR(VLOOKUP(D166,BUS!$C$4:$AEB$946,4,0),"") ->  | P166: =IFERROR(VLOOKUP(K166,BUS!$C$4:$AEB$946,4,0),"") ->  | W166: =IFERROR(VLOOKUP(R166,BUS!$C$4:$AEB$946,4,0),"") ->  | Y166: =IFERROR(VLOOKUP(D166,'شهر 9 تفصيلي'!$B$5:$AEB$965,1,0),"") ->  | Z166: =IFERROR(VLOOKUP(K166,'شهر 9 تفصيلي'!$B$5:$AEB$965,1,0),"") ->  | AA166: =IFERROR(VLOOKUP(R166,'شهر 9 تفصيلي'!$B$5:$AEB$965,1,0),"") ->  | AB166: 135 | AC166: 0 | AG166: 0 | AI166: 0
B167: 136 | I167: =IFERROR(VLOOKUP(D167,BUS!$C$4:$AEB$946,4,0),"") ->  | P167: =IFERROR(VLOOKUP(K167,BUS!$C$4:$AEB$946,4,0),"") ->  | W167: =IFERROR(VLOOKUP(R167,BUS!$C$4:$AEB$946,4,0),"") ->  | Y167: =IFERROR(VLOOKUP(D167,'شهر 9 تفصيلي'!$B$5:$AEB$965,1,0),"") ->  | Z167: =IFERROR(VLOOKUP(K167,'شهر 9 تفصيلي'!$B$5:$AEB$965,1,0),"") ->  | AA167: =IFERROR(VLOOKUP(R167,'شهر 9 تفصيلي'!$B$5:$AEB$965,1,0),"") ->  | AB167: 136 | AC167: 0 | AG167: 0 | AI167: 0
B168: 137 | I168: =IFERROR(VLOOKUP(D168,BUS!$C$4:$AEB$946,4,0),"") ->  | P168: =IFERROR(VLOOKUP(K168,BUS!$C$4:$AEB$946,4,0),"") ->  | W168: =IFERROR(VLOOKUP(R168,BUS!$C$4:$AEB$946,4,0),"") ->  | Y168: =IFERROR(VLOOKUP(D168,'شهر 9 تفصيلي'!$B$5:$AEB$965,1,0),"") ->  | Z168: =IFERROR(VLOOKUP(K168,'شهر 9 تفصيلي'!$B$5:$AEB$965,1,0),"") ->  | AA168: =IFERROR(VLOOKUP(R168,'شهر 9 تفصيلي'!$B$5:$AEB$965,1,0),"") ->  | AB168: 137 | AC168: 0 | AG168: 0 | AI168: 0
B169: TOTAL | F169: =SUM(F124:F168)+F112 -> 8924 | I169: ـــــــــــــــــــــــــــــــــــ | K169: TOTAL | M169: =SUM(M124:M168)+M112 -> 1185 | P169: ـــــــــــــــــــــــــــــــــــ | R169: TOTAL | T169: =SUM(T124:T168)+T112 -> 289 | W169: ـــــــــــــــــــــــــــــــــــ | AB169: 46 | AC169: 0 | AG169: 0 | AI169: 0
B170: Area manager | D170: Operation manager ( Bus D.) | K170: General manager ( Bus D) | T170: Maher-Hassan-2018 | AB170: 47 | AC170: 0 | AG170: 0 | AI170: 0

Sheet 2
AB5: محطة خشمان ( الماسة 7 )
B6: Checking the station manager | AB6: كشف بأرقام الفواتير اليومية
B7: ='شهر 9 تفصيلي'!$A$1+1 -> 2021-09-02 | F7: التاريخ / | I7: =#REF! ->  | M7: اليـــوم / | P7: محطة خشمان ( الماسة 7 ) | W7: 1 | AB7: =B7 -> 2021-09-02 | AF7: =I7 -> 
B8: S.NO | C8: رقم الفاتوره ديزل | D8: BUS | E8: الكيلو D | F8: D | G8: الوقت | H8: المراقب | I8: To | J8: رقم الفاتوره 95 | K8: BUS | L8: الكيلو 95 | M8: 95 | N8: الوقت | O8: المراقب | P8: To | Q8: رقم الفاتوره 91 | R8: BUS | S8: الكيلو 91 | T8: 91 | U8: الوقت | V8: المراقب | W8: To | AC8: رقم الفاتوره ديزل | AE8: رقم الفاتوره ديزل | AG8: رقم الفاتوره 95 | AI8: رقم الفاتوره 91
B9: 1 | C9: 20312 | D9: 1358 | F9: 120 | I9: =IFERROR(VLOOKUP(D9,BUS!$C$4:$AEB$946,4,0),"") -> MUB | J9: 1220 | K9: 1513 | M9: 63 | P9: =IFERROR(VLOOKUP(K9,BUS!$C$4:$AEB$946,4,0),"") -> MUB | Q9: 4053 | R9: 6027 | T9: 62 | W9: =IFERROR(VLOOKUP(R9,BUS!$C$4:$AEB$946,4,0),"") -> MUB | Y9: =IFERROR(VLOOKUP(D9,'شهر 9 تفصيلي'!$B$5:$AEB$965,1,0),"") -> 1358 | Z9: =IFERROR(VLOOKUP(K9,'شهر 9 تفصيلي'!$B$5:$AEB$965,1,0),"") -> 1513 | AA9: =IFERROR(VLOOKUP(R9,'شهر 9 تفصيلي'!$B$5:$AEB$965,1,0),"") -> 6027 | AB9: 1 | AC9: =IF(C9>0,C9) -> 20312 | AD9: 48 | AE9: =IF(C67>0,C67) -> 20302 | AF9: 1 | AG9: =IF(J9>0,J9) -> 1220 | AH9: 1 | AI9: =IF(Q9>0,Q9) -> 4053
B10: 2 | C10: 20311 | D10: 4010 | F10: 64 | I10: =IFERROR(VLOOKUP(D10,BUS!$C$4:$AEB$946,4,0),"") -> MUB | J10: 1221 | K10: 1501 | M10: 84 | P10: =IFERROR(VLOOKUP(K10,BUS!$C$4:$AEB$946,4,0),"") -> MUB | Q10: 4051 | R10: 4013 | T10: 25 | W10: =IFERROR(VLOOKUP(R10,BUS!$C$4:$AEB$946,4,0),"") -> MUB | Y10: =IFERROR(VLOOKUP(D10,'شهر 9 تفصيلي'!$B$5:$AEB$965,1,0),"") -> 4010 | Z10: =IFERROR(VLOOKUP(K10,'شهر 9 تفصيلي'!$B$5:$AEB$965,1,0),"") -> 1501 | AA10: =IFERROR(VLOOKUP(R10,'شهر 9 تفصيلي'!$B$5:$AEB$965,1,0),"") -> 4013 | AB10: 2 | AC10: =IF(C10>0,C10) -> 20311 | AD10: 49 | AE10: =IF(C68>0,C68) -> 20304 | AF10: 2 | AG10: =IF(J10>0,J10) -> 1221 | AH10: 2 | AI10: =IF(Q10>0,Q10) -> 4051
B11: 3 | C11: 20310 | D11: 1253 | F11: 200 | I11: =IFERROR(VLOOKUP(D11,BUS!$C$4:$AEB$946,4,0),"") -> MUB | J11: 1222 | K11: 1511 | M11: 72 | P11: =IFERROR(VLOOKUP(K11,BUS!$C$4:$AEB$946,4,0),"") -> MUB | Q11: 4052 | R11: 6002 | T11: 45 | W11: =IFERROR(VLOOKUP(R11,BUS!$C$4:$AEB$946,4,0),"") -> MUB | Y11: =IFERROR(VLOOKUP(D11,'شهر 9 تفصيلي'!$B$5:$AEB$965,1,0),"") -> 1253 | Z11: =IFERROR(VLOOKUP(K11,'شهر 9 تفصيلي'!$B$5:$AEB$965,1,0),"") -> 1511 | AA11: =IFERROR(VLOOKUP(R11,'شهر 9 تفصيلي'!$B$5:$AEB$965,1,0),"") -> 6002 | AB11: 3 | AC11: 20310 | AD11: 50 | AE11: 20305 | AF11: 3 | AG11: 1222 | AH11: 3 | AI11: 4052
B12: 4 | C12: 20313 | D12: 1820 | F12: 185 | I12: =IFERROR(VLOOKUP(D12,BUS!$C$4:$AEB$946,4,0),"") -> MUB | J12: 1223 | K12: 1655 | M12: 65 | P12: =IFERROR(VLOOKUP(K12,BUS!$C$4:$AEB$946,4,0),"") -> MUB | Q12: 4055 | R12: 4157 | T12: 32 | W12: =IFERROR(VLOOKUP(R12,BUS!$C$4:$AEB$946,4,0),"") -> MUB | Y12: =IFERROR(VLOOKUP(D12,'شهر 9 تفصيلي'!$B$5:$AEB$965,1,0),"") -> 1820 | Z12: =IFERROR(VLOOKUP(K12,'شهر 9 تفصيلي'!$B$5:$AEB$965,1,0),"") -> 1655 | AA12: =IFERROR(VLOOKUP(R12,'شهر 9 تفصيلي'!$B$5:$AEB$965,1,0),"") -> 4157 | AB12: 4 | AC12: 20313 | AD12: 51 | AE12: 20306 | AF12: 4 | AG12: 1223 | AH12: 4 | AI12: 4055
B13: 5 | C13: 20314 | D13: 1808 | F13: 130 | I13: =IFERROR(VLOOKUP(D13,BUS!$C$4:$AEB$946,4,0),"") -> MUB | J13: 1224 | K13: 1520 | M13: 85 | P13: =IFERROR(VLOOKUP(K13,BUS!$C$4:$AEB$946,4,0),"") -> MUB | Q13: 4056 | R13: 4175 | T13: 25 | W13: =IFERROR(VLOOKUP(R13,BUS!$C$4:$AEB$946,4,0),"") -> MUB | Y13: =IFERROR(VLOOKUP(D13,'شهر 9 تفصيلي'!$B$5:$AEB$965,1,0),"") -> 1808 | Z13: =IFERROR(VLOOKUP(K13,'شهر 9 تفصيلي'!$B$5:$AEB$965,1,0),"") -> 1520 | AA13: =IFERROR(VLOOKUP(R13,'شهر 9 تفصيلي'!$B$5:$AEB$965,1,0),"") -> 4175 | AB13: 5 | AC13: 20314 | AD13: 52 | AE13: 20307 | AF13: 5 | AG13: 1224 | AH13: 5 | AI13: 4056
B14: 6 | C14: 20315 | D14: 1205 | F14: 105 | I14: =IFERROR(VLOOKUP(D14,BUS!$C$4:$AEB$946,4,0),"") -> MUB | J14: 1227 | K14: 1557 | M14: 60 | P14: =IFERROR(VLOOKUP(K14,BUS!$C$4:$AEB$946,4,0),"") -> MUB | Q14: 4057 | R14: 4176 | T14: 42 | W14: =IFERROR(VLOOKUP(R14,BUS!$C$4:$AEB$946,4,0),"") -> MUB | Y14: =IFERROR(VLOOKUP(D14,'شهر 9 تفصيلي'!$B$5:$AEB$965,1,0),"") -> 1205 | Z14: =IFERROR(VLOOKUP(K14,'شهر 9 تفصيلي'!$B$5:$AEB$965,1,0),"") -> 1557 | AA14: =IFERROR(VLOOKUP(R14,'شهر 9 تفصيلي'!$B$5:$AEB$965,1,0),"") -> 4176 | AB14: 6 | AC14: 20315 | AD14: 53 | AE14: 20308 | AF14: 6 | AG14: 1227 | AH14: 6 | AI14: 4057
B15: 7 | C15: 20285 | D15: 1811 | F15: 100 | I15: =IFERROR(VLOOKUP(D15,BUS!$C$4:$AEB$946,4,0),"") -> MUB | J15: 1233 | K15: 1595 | M15: 67 | P15: =IFERROR(VLOOKUP(K15,BUS!$C$4:$AEB$946,4,0),"") -> DHA | Q15: 4058 | R15: 4013 | T15: 29 | W15: =IFERROR(VLOOKUP(R15,BUS!$C$4:$AEB$946,4,0),"") -> MUB | Y15: =IFERROR(VLOOKUP(D15,'شهر 9 تفصيلي'!$B$5:$AEB$965,1,0),"") -> 1811 | Z15: =IFERROR(VLOOKUP(K15,'شهر 9 تفصيلي'!$B$5:$AEB$965,1,0),"") -> 1595 | AA15: =IFERROR(VLOOKUP(R15,'شهر 9 تفصيلي'!$B$5:$AEB$965,1,0),"") -> 4013 | AB15: 7 | AC15: 20285 | AD15: 54 | AE15: 20309 | AF15: 7 | AG15: 1233 | AH15: 7 | AI15: 4058
B16: 8 | C16: 20270 | D16: 1013 | F16: 200 | I16: =IFERROR(VLOOKUP(D16,BUS!$C$4:$AEB$946,4,0),"") -> MUB | J16: 1228 | K16: 1504 | M16: 72 | P16: =IFERROR(VLOOKUP(K16,BUS!$C$4:$AEB$946,4,0),"") -> MUB | W16: =IFERROR(VLOOKUP(R16,BUS!$C$4:$AEB$946,4,0),"") ->  | Y16: =IFERROR(VLOOKUP(D16,'شهر 9 تفصيلي'!$B$5:$AEB$965,1,0),"") -> 1013 | Z16: =IFERROR(VLOOKUP(K16,'شهر 9 تفصيلي'!$B$5:$AEB$965,1,0),"") -> 1504 | AA16: =IFERROR(VLOOKUP(R16,'شهر 9 تفصيلي'!$B$5:$AEB$965,1,0),"") ->  | AB16: 8 | AC16: 20270 | AD16: 55 | AE16: FALSE | AF16: 8 | AG16: 1228 | AH16: 8 | AI16: FALSE
B17: 9 | C17: 20272 | D17: 1051 | F17: 170 | I17: =IFERROR(VLOOKUP(D17,BUS!$C$4:$AEB$946,4,0),"") -> MUB | J17: 1229 | K17: 1552 | M17: 54 | P17: =IFERROR(VLOOKUP(K17,BUS!$C$4:$AEB$946,4,0),"") -> MUB | W17: =IFERROR(VLOOKUP(R17,BUS!$C$4:$AEB$946,4,0),"") ->  | Y17: =IFERROR(VLOOKUP(D17,'شهر 9 تفصيلي'!$B$5:$AEB$965,1,0),"") -> 1051 | Z17: =IFERROR(VLOOKUP(K17,'شهر 9 تفصيلي'!$B$5:$AEB$965,1,0),"") -> 1552 | AA17: =IFERROR(VLOOKUP(R17,'شهر 9 تفصيلي'!$B$5:$AEB$965,1,0),"") ->  | AB17: 9 | AC17: 20272 | AD17: 56 | AE17: FALSE | AF17: 9 | AG17: 1229 | AH17: 9 | AI17: FALSE
B18: 10 | C18: 20273 | D18: 1014 | F18: 210 | I18: =IFERROR(VLOOKUP(D18,BUS!$C$4:$AEB$946,4,0),"") -> MUB | J18: 1230 | K18: 1611 | M18: 82 | P18: =IFERROR(VLOOKUP(K18,BUS!$C$4:$AEB$946,4,0),"") -> UDH | W18: =IFERROR(VLOOKUP(R18,BUS!$C$4:$AEB$946,4,0),"") ->  | Y18: =IFERROR(VLOOKUP(D18,'شهر 9 تفصيلي'!$B$5:$AEB$965,1,0),"") -> 1014 | Z18: =IFERROR(VLOOKUP(K18,'شهر 9 تفصيلي'!$B$5:$AEB$965,1,0),"") -> 1611 | AA18: =IFERROR(VLOOKUP(R18,'شهر 9 تفصيلي'!$B$5:$AEB$965,1,0),"") ->  | AB18: 10 | AC18: 20273 | AD18: 57 | AE18: FALSE | AF18: 10 | AG18: 1230 | AH18: 10 | AI18: FALSE
B19: 11 | C19: 20274 | D19: 1820 | F19: 140 | I19: =IFERROR(VLOOKUP(D19,BUS!$C$4:$AEB$946,4,0),"") -> MUB | J19: 1232 | K19: 1511 | M19: 36 | P19: =IFERROR(VLOOKUP(K19,BUS!$C$4:$AEB$946,4,0),"") -> MUB | W19: =IFERROR(VLOOKUP(R19,BUS!$C$4:$AEB$946,4,0),"") ->  | Y19: =IFERROR(VLOOKUP(D19,'شهر 9 تفصيلي'!$B$5:$AEB$965,1,0),"") -> 1820 | Z19: =IFERROR(VLOOKUP(K19,'شهر 9 تفصيلي'!$B$5:$AEB$965,1,0),"") -> 1511 | AA19: =IFERROR(VLOOKUP(R19,'شهر 9 تفصيلي'!$B$5:$AEB$965,1,0),"") ->  | AB19: 11 | AC19: 20274 | AD19: 58 | AE19: FALSE | AF19: 11 | AG19: 1232 | AH19: 11 | AI19: FALSE
B20: 12 | C20: 20275 | D20: 1266 | F20: 215 | I20: =IFERROR(VLOOKUP(D20,BUS!$C$4:$AEB$946,4,0),"") -> DHA | J20: 1234 | K20: 1588 | M20: 65 | P20: =IFERROR(VLOOKUP(K20,BUS!$C$4:$AEB$946,4,0),"") -> UDH | W20: =IFERROR(VLOOKUP(R20,BUS!$C$4:$AEB$946,4,0),"") ->  | Y20: =IFERROR(VLOOKUP(D20,'شهر 9 تفصيلي'!$B$5:$AEB$965,1,0),"") -> 1266 | Z20: =IFERROR(VLOOKUP(K20,'شهر 9 تفصيلي'!$B$5:$AEB$965,1,0),"") -> 1588 | AA20: =IFERROR(VLOOKUP(R20,'شهر 9 تفصيلي'!$B$5:$AEB$965,1,0),"") ->  | AB20: 12 | AC20: 20275 | AD20: 59 | AE20: FALSE | AF20: 12 | AG20: 1234 | AH20: 12 | AI20: FALSE
B21: 13 | C21: 20276 | D21: 1824 | F21: 150 | I21: =IFERROR(VLOOKUP(D21,BUS!$C$4:$AEB$946,4,0),"") -> MUB | J21: 1235 | K21: 1589 | M21: 89 | P21: =IFERROR(VLOOKUP(K21,BUS!$C$4:$AEB$946,4,0),"") -> UDH | W21: =IFERROR(VLOOKUP(R21,BUS!$C$4:$AEB$946,4,0),"") ->  | Y21: =IFERROR(VLOOKUP(D21,'شهر 9 تفصيلي'!$B$5:$AEB$965,1,0),"") -> 1824 | Z21: =IFERROR(VLOOKUP(K21,'شهر 9 تفصيلي'!$B$5:$AEB$965,1,0),"") -> 1589 | AA21: =IFERROR(VLOOKUP(R21,'شهر 9 تفصيلي'!$B$5:$AEB$965,1,0),"") ->  | AB21: 13 | AC21: 20276 | AD21: 60 | AE21: FALSE | AF21: 13 | AG21: 1235 | AH21: 13 | AI21: FALSE
B22: 14 | C22: 20277 | D22: 1061 | F22: 235 | I22: =IFERROR(VLOOKUP(D22,BUS!$C$4:$AEB$946,4,0),"") -> MUB | J22: 1236 | K22: 1525 | M22: 87 | P22: =IFERROR(VLOOKUP(K22,BUS!$C$4:$AEB$946,4,0),"") -> MUB | W22: =IFERROR(VLOOKUP(R22,BUS!$C$4:$AEB$946,4,0),"") ->  | Y22: =IFERROR(VLOOKUP(D22,'شهر 9 تفصيلي'!$B$5:$AEB$965,1,0),"") -> 1061 | Z22: =IFERROR(VLOOKUP(K22,'شهر 9 تفصيلي'!$B$5:$AEB$965,1,0),"") -> 1525 | AA22: =IFERROR(VLOOKUP(R22,'شهر 9 تفصيلي'!$B$5:$AEB$965,1,0),"") ->  | AB22: 14 | AC22: 20277 | AD22: 61 | AE22: FALSE | AF22: 14 | AG22: 1236 | AH22: 14 | AI22: FALSE
B23: 15 | C23: 20278 | D23: 1290 | F23: 270 | I23: =IFERROR(VLOOKUP(D23,BUS!$C$4:$AEB$946,4,0),"") -> MUB | J23: 1237 | K23: 1611 | M23: 63 | P23: =IFERROR(VLOOKUP(K23,BUS!$C$4:$AEB$946,4,0),"") -> UDH | W23: =IFERROR(VLOOKUP(R23,BUS!$C$4:$AEB$946,4,0),"") ->  | Y23: =IFERROR(VLOOKUP(D23,'شهر 9 تفصيلي'!$B$5:$AEB$965,1,0),"") -> 1290 | Z23: =IFERROR(VLOOKUP(K23,'شهر 9 تفصيلي'!$B$5:$AEB$965,1,0),"") -> 1611 | AA23: =IFERROR(VLOOKUP(R23,'شهر 9 تفصيلي'!$B$5:$AEB$965,1,0),"") ->  | AB23: 15 | AC23: 20278 | AD23: 62 | AE23: FALSE | AF23: 15 | AG23: 1237 | AH23: 15 | AI23: FALSE
B24: 16 | C24: 20279 | D24: 1333 | F24: 250 | I24: =IFERROR(VLOOKUP(D24,BUS!$C$4:$AEB$946,4,0),"") -> MUB | P24: =IFERROR(VLOOKUP(K24,BUS!$C$4:$AEB$946,4,0),"") ->  | W24: =IFERROR(VLOOKUP(R24,BUS!$C$4:$AEB$946,4,0),"") ->  | Y24: =IFERROR(VLOOKUP(D24,'شهر 9 تفصيلي'!$B$5:$AEB$965,1,0),"") -> 1333 | Z24: =IFERROR(VLOOKUP(K24,'شهر 9 تفصيلي'!$B$5:$AEB$965,1,0),"") ->  | AA24: =IFERROR(VLOOKUP(R24,'شهر 9 تفصيلي'!$B$5:$AEB$965,1,0),"") ->  | AB24: 16 | AC24: 20279 | AD24: 63 | AE24: FALSE | AF24: 16 | AG24: FALSE | AH24: 16 | AI24: FALSE
B25: 17 | C25: 20280 | D25: 1276 | F25: 180 | I25: =IFERROR(VLOOKUP(D25,BUS!$C$4:$AEB$946,4,0),"") -> MUB | P25: =IFERROR(VLOOKUP(K25,BUS!$C$4:$AEB$946,4,0),"") ->  | W25: =IFERROR(VLOOKUP(R25,BUS!$C$4:$AEB$946,4,0),"") ->  | Y25: =IFERROR(VLOOKUP(D25,'شهر 9 تفصيلي'!$B$5:$AEB$965,1,0),"") -> 1276 | Z25: =IFERROR(VLOOKUP(K25,'شهر 9 تفصيلي'!$B$5:$AEB$965,1,0),"") ->  | AA25: =IFERROR(VLOOKUP(R25,'شهر 9 تفصيلي'!$B$5:$AEB$965,1,0),"") ->  | AB25: 17 | AC25: 20280 | AD25: 64 | AE25: FALSE | AF25: 17 | AG25: FALSE | AH25: 17 | AI25: FALSE
B26: 18 | C26: 20281 | D26: 1208 | F26: 175 | I26: =IFERROR(VLOOKUP(D26,BUS!$C$4:$AEB$946,4,0),"") -> MUB | P26: =IFERROR(VLOOKUP(K26,BUS!$C$4:$AEB$946,4,0),"") ->  | W26: =IFERROR(VLOOKUP(R26,BUS!$C$4:$AEB$946,4,0),"") ->  | Y26: =IFERROR(VLOOKUP(D26,'شهر 9 تفصيلي'!$B$5:$AEB$965,1,0),"") -> 1208 | Z26: =IFERROR(VLOOKUP(K26,'شهر 9 تفصيلي'!$B$5:$AEB$965,1,0),"") ->  | AA26: =IFERROR(VLOOKUP(R26,'شهر 9 تفصيلي'!$B$5:$AEB$965,1,0),"") ->  | AB26: 18 | AC26: 20281 | AD26: 65 | AE26: FALSE | AF26: 18 | AG26: FALSE | AH26: 18 | AI26: FALSE
B27: 19 | C27: 20282 | D27: 1819 | F27: 70 | I27: =IFERROR(VLOOKUP(D27,BUS!$C$4:$AEB$946,4,0),"") -> MUB | P27: =IFERROR(VLOOKUP(K27,BUS!$C$4:$AEB$946,4,0),"") ->  | W27: =IFERROR(VLOOKUP(R27,BUS!$C$4:$AEB$946,4,0),"") ->  | Y27: =IFERROR(VLOOKUP(D27,'شهر 9 تفصيلي'!$B$5:$AEB$965,1,0),"") -> 1819 | Z27: =IFERROR(VLOOKUP(K27,'شهر 9 تفصيلي'!$B$5:$AEB$965,1,0),"") ->  | AA27: =IFERROR(VLOOKUP(R27,'شهر 9 تفصيلي'!$B$5:$AEB$965,1,0),"") ->  | AB27: 19 | AC27: 20282 | AD27: 66 | AE27: FALSE | AF27: 19 | AG27: FALSE | AH27: 19 | AI27: FALSE
B28: 20 | C28: 20283 | D28: 1815 | F28: 165 | I28: =IFERROR(VLOOKUP(D28,BUS!$C$4:$AEB$946,4,0),"") -> MUB | P28: =IFERROR(VLOOKUP(K28,BUS!$C$4:$AEB$946,4,0),"") ->  | W28: =IFERROR(VLOOKUP(R28,BUS!$C$4:$AEB$946,4,0),"") ->  | Y28: =IFERROR(VLOOKUP(D28,'شهر 9 تفصيلي'!$B$5:$AEB$965,1,0),"") -> 1815 | Z28: =IFERROR(VLOOKUP(K28,'شهر 9 تفصيلي'!$B$5:$AEB$965,1,0),"") ->  | AA28: =IFERROR(VLOOKUP(R28,'شهر 9 تفصيلي'!$B$5:$AEB$965,1,0),"") ->  | AB28: 20 | AC28: 20283 | AD28: 67 | AE28: FALSE | AF28: 20 | AG28: FALSE | AH28: 20 | AI28: FALSE
B29: 21 | C29: 20284 | D29: 1291 | F29: 110 | I29: =IFERROR(VLOOKUP(D29,BUS!$C$4:$AEB$946,4,0),"") -> MUB | P29: =IFERROR(VLOOKUP(K29,BUS!$C$4:$AEB$946,4,0),"") ->  | W29: =IFERROR(VLOOKUP(R29,BUS!$C$4:$AEB$946,4,0),"") ->  | Y29: =IFERROR(VLOOKUP(D29,'شهر 9 تفصيلي'!$B$5:$AEB$965,1,0),"") -> 1291 | Z29: =IFERROR(VLOOKUP(K29,'شهر 9 تفصيلي'!$B$5:$AEB$965,1,0),"") ->  | AA29: =IFERROR(VLOOKUP(R29,'شهر 9 تفصيلي'!$B$5:$AEB$965,1,0),"") ->  | AB29: 21 | AC29: 20284 | AD29: 68 | AE29: FALSE | AF29: 21 | AG29: FALSE | AH29: 21 | AI29: FALSE
B30: 22 | C30: 20258 | D30: 1205 | F30: 165 | I30: =IFERROR(VLOOKUP(D30,BUS!$C$4:$AEB$946,4,0),"") -> MUB | P30: =IFERROR(VLOOKUP(K30,BUS!$C$4:$AEB$946,4,0),"") ->  | W30: =IFERROR(VLOOKUP(R30,BUS!$C$4:$AEB$946,4,0),"") ->  | Y30: =IFERROR(VLOOKUP(D30,'شهر 9 تفصيلي'!$B$5:$AEB$965,1,0),"") -> 1205 | Z30: =IFERROR(VLOOKUP(K30,'شهر 9 تفصيلي'!$B$5:$AEB$965,1,0),"") ->  | AA30: =IFERROR(VLOOKUP(R30,'شهر 9 تفصيلي'!$B$5:$AEB$965,1,0),"") ->  | AB30: 22 | AC30: 20258 | AD30: 69 | AE30: FALSE | AF30: 22 | AG30: FALSE | AH30: 22 | AI30: FALSE
B31: 23 | C31: 20259 | D31: 1237 | F31: 190 | I31: =IFERROR(VLOOKUP(D31,BUS!$C$4:$AEB$946,4,0),"") -> MUB | P31: =IFERROR(VLOOKUP(K31,BUS!$C$4:$AEB$946,4,0),"") ->  | W31: =IFERROR(VLOOKUP(R31,BUS!$C$4:$AEB$946,4,0),"") ->  | Y31: =IFERROR(VLOOKUP(D31,'شهر 9 تفصيلي'!$B$5:$AEB$965,1,0),"") -> 1237 | Z31: =IFERROR(VLOOKUP(K31,'شهر 9 تفصيلي'!$B$5:$AEB$965,1,0),"") ->  | AA31: =IFERROR(VLOOKUP(R31,'شهر 9 تفصيلي'!$B$5:$AEB$965,1,0),"") ->  | AB31: 23 | AC31: 20259 | AD31: 70 | AE31: FALSE | AF31: 23 | AG31: FALSE | AH31: 23 | AI31: FALSE
B32: 24 | C32: 20260 | D32: 1358 | F32: 255 | I32: =IFERROR(VLOOKUP(D32,BUS!$C$4:$AEB$946,4,0),"") -> MUB | P32: =IFERROR(VLOOKUP(K32,BUS!$C$4:$AEB$946,4,0),"") ->  | W32: =IFERROR(VLOOKUP(R32,BUS!$C$4:$AEB$946,4,0),"") ->  | Y32: =IFERROR(VLOOKUP(D32,'شهر 9 تفصيلي'!$B$5:$AEB$965,1,0),"") -> 1358 | Z32: =IFERROR(VLOOKUP(K32,'شهر 9 تفصيلي'!$B$5:$AEB$965,1,0),"") ->  | AA32: =IFERROR(VLOOKUP(R32,'شهر 9 تفصيلي'!$B$5:$AEB$965,1,0),"") ->  | AB32: 24 | AC32: 20260 | AD32: 71 | AE32: FALSE | AF32: 24 | AG32: FALSE | AH32: 24 | AI32: FALSE
B33: 25 | C33: 20261 | D33: 1255 | F33: 200 | I33: =IFERROR(VLOOKUP(D33,BUS!$C$4:$AEB$946,4,0),"") -> DHA | P33: =IFERROR(VLOOKUP(K33,BUS!$C$4:$AEB$946,4,0),"") ->  | W33: =IFERROR(VLOOKUP(R33,BUS!$C$4:$AEB$946,4,0),"") ->  | Y33: =IFERROR(VLOOKUP(D33,'شهر 9 تفصيلي'!$B$5:$AEB$965,1,0),"") -> 1255 | Z33: =IFERROR(VLOOKUP(K33,'شهر 9 تفصيلي'!$B$5:$AEB$965,1,0),"") ->  | AA33: =IFERROR(VLOOKUP(R33,'شهر 9 تفصيلي'!$B$5:$AEB$965,1,0),"") ->  | AB33: 25 | AC33: 20261 | AD33: 72 | AE33: FALSE | AF33: 25 | AG33: FALSE | AH33: 25 | AI33: FALSE
B34: 26 | C34: 20262 | D34: 1804 | F34: 150 | I34: =IFERROR(VLOOKUP(D34,BUS!$C$4:$AEB$946,4,0),"") -> MUB | P34: =IFERROR(VLOOKUP(K34,BUS!$C$4:$AEB$946,4,0),"") ->  | W34: =IFERROR(VLOOKUP(R34,BUS!$C$4:$AEB$946,4,0),"") ->  | Y34: =IFERROR(VLOOKUP(D34,'شهر 9 تفصيلي'!$B$5:$AEB$965,1,0),"") -> 1804 | Z34: =IFERROR(VLOOKUP(K34,'شهر 9 تفصيلي'!$B$5:$AEB$965,1,0),"") ->  | AA34: =IFERROR(VLOOKUP(R34,'شهر 9 تفصيلي'!$B$5:$AEB$965,1,0),"") ->  | AB34: 26 | AC34: 20262 | AD34: 73 | AE34: FALSE | AF34: 26 | AG34: FALSE | AH34: 26 | AI34: FALSE
B35: 27 | C35: 20263 | D35: 1142 | F35: 245 | I35: =IFERROR(VLOOKUP(D35,BUS!$C$4:$AEB$946,4,0),"") -> MUB | P35: =IFERROR(VLOOKUP(K35,BUS!$C$4:$AEB$946,4,0),"") ->  | W35: =IFERROR(VLOOKUP(R35,BUS!$C$4:$AEB$946,4,0),"") ->  | Y35: =IFERROR(VLOOKUP(D35,'شهر 9 تفصيلي'!$B$5:$AEB$965,1,0),"") -> 1142 | Z35: =IFERROR(VLOOKUP(K35,'شهر 9 تفصيلي'!$B$5:$AEB$965,1,0),"") ->  | AA35: =IFERROR(VLOOKUP(R35,'شهر 9 تفصيلي'!$B$5:$AEB$965,1,0),"") ->  | AB35: 27 | AC35: 20263 | AD35: 74 | AE35: FALSE | AF35: 27 | AG35: FALSE | AH35: 27 | AI35: FALSE
B36: 28 | C36: 20264 | D36: 1050 | F36: 150 | I36: =IFERROR(VLOOKUP(D36,BUS!$C$4:$AEB$946,4,0),"") -> DHA | P36: =IFERROR(VLOOKUP(K36,BUS!$C$4:$AEB$946,4,0),"") ->  | W36: =IFERROR(VLOOKUP(R36,BUS!$C$4:$AEB$946,4,0),"") ->  | Y36: =IFERROR(VLOOKUP(D36,'شهر 9 تفصيلي'!$B$5:$AEB$965,1,0),"") -> 1050 | Z36: =IFERROR(VLOOKUP(K36,'شهر 9 تفصيلي'!$B$5:$AEB$965,1,0),"") ->  | AA36: =IFERROR(VLOOKUP(R36,'شهر 9 تفصيلي'!$B$5:$AEB$965,1,0),"") ->  | AB36: 28 | AC36: 20264 | AD36: 75 | AE36: FALSE | AF36: 28 | AG36: FALSE | AH36: 28 | AI36: FALSE
B37: 29 | C37: 20265 | D37: 1260 | F37: 195 | I37: =IFERROR(VLOOKUP(D37,BUS!$C$4:$AEB$946,4,0),"") -> DHA | P37: =IFERROR(VLOOKUP(K37,BUS!$C$4:$AEB$946,4,0),"") ->  | W37: =IFERROR(VLOOKUP(R37,BUS!$C$4:$AEB$946,4,0),"") ->  | Y37: =IFERROR(VLOOKUP(D37,'شهر 9 تفصيلي'!$B$5:$AEB$965,1,0),"") -> 1260 | Z37: =IFERROR(VLOOKUP(K37,'شهر 9 تفصيلي'!$B$5:$AEB$965,1,0),"") ->  | AA37: =IFERROR(VLOOKUP(R37,'شهر 9 تفصيلي'!$B$5:$AEB$965,1,0),"") ->  | AB37: 29 | AC37: 20265 | AD37: 76 | AE37: FALSE | AF37: 29 | AG37: FALSE | AH37: 29 | AI37: FALSE
B38: 30 | C38: 20266 | D38: 1261 | F38: 165 | I38: =IFERROR(VLOOKUP(D38,BUS!$C$4:$AEB$946,4,0),"") -> DHA | P38: =IFERROR(VLOOKUP(K38,BUS!$C$4:$AEB$946,4,0),"") ->  | W38: =IFERROR(VLOOKUP(R38,BUS!$C$4:$AEB$946,4,0),"") ->  | Y38: =IFERROR(VLOOKUP(D38,'شهر 9 تفصيلي'!$B$5:$AEB$965,1,0),"") -> 1261 | Z38: =IFERROR(VLOOKUP(K38,'شهر 9 تفصيلي'!$B$5:$AEB$965,1,0),"") ->  | AA38: =IFERROR(VLOOKUP(R38,'شهر 9 تفصيلي'!$B$5:$AEB$965,1,0),"") ->  | AB38: 30 | AC38: 20266 | AD38: 77 | AE38: FALSE | AF38: 30 | AG38: FALSE | AH38: 30 | AI38: FALSE
B39: 31 | C39: 20267 | D39: 1041 | F39: 85 | I39: =IFERROR(VLOOKUP(D39,BUS!$C$4:$AEB$946,4,0),"") -> ABQ | P39: =IFERROR(VLOOKUP(K39,BUS!$C$4:$AEB$946,4,0),"") ->  | W39: =IFERROR(VLOOKUP(R39,BUS!$C$4:$AEB$946,4,0),"") ->  | Y39: =IFERROR(VLOOKUP(D39,'شهر 9 تفصيلي'!$B$5:$AEB$965,1,0),"") -> 1041 | Z39: =IFERROR(VLOOKUP(K39,'شهر 9 تفصيلي'!$B$5:$AEB$965,1,0),"") ->  | AA39: =IFERROR(VLOOKUP(R39,'شهر 9 تفصيلي'!$B$5:$AEB$965,1,0),"") ->  | AB39: 31 | AC39: 20267 | AD39: 78 | AE39: FALSE | AF39: 31 | AG39: FALSE | AH39: 31 | AI39: FALSE
B40: 32 | C40: 20269 | D40: 1059 | F40: 65 | I40: =IFERROR(VLOOKUP(D40,BUS!$C$4:$AEB$946,4,0),"") -> DHA | P40: =IFERROR(VLOOKUP(K40,BUS!$C$4:$AEB$946,4,0),"") ->  | W40: =IFERROR(VLOOKUP(R40,BUS!$C$4:$AEB$946,4,0),"") ->  | Y40: =IFERROR(VLOOKUP(D40,'شهر 9 تفصيلي'!$B$5:$AEB$965,1,0),"") -> 1059 | Z40: =IFERROR(VLOOKUP(K40,'شهر 9 تفصيلي'!$B$5:$AEB$965,1,0),"") ->  | AA40: =IFERROR(VLOOKUP(R40,'شهر 9 تفصيلي'!$B$5:$AEB$965,1,0),"") ->  | AB40: 32 | AC40: 20269 | AD40: 79 | AE40: FALSE | AF40: 32 | AG40: FALSE | AH40: 32 | AI40: FALSE
B41: 33 | C41: 20286 | D41: 1237 | F41: 55 | I41: =IFERROR(VLOOKUP(D41,BUS!$C$4:$AEB$946,4,0),"") -> MUB | P41: =IFERROR(VLOOKUP(K41,BUS!$C$4:$AEB$946,4,0),"") ->  | W41: =IFERROR(VLOOKUP(R41,BUS!$C$4:$AEB$946,4,0),"") ->  | Y41: =IFERROR(VLOOKUP(D41,'شهر 9 تفصيلي'!$B$5:$AEB$965,1,0),"") -> 1237 | Z41: =IFERROR(VLOOKUP(K41,'شهر 9 تفصيلي'!$B$5:$AEB$965,1,0),"") ->  | AA41: =IFERROR(VLOOKUP(R41,'شهر 9 تفصيلي'!$B$5:$AEB$965,1,0),"") ->  | AB41: 33 | AC41: 20286 | AD41: 80 | AE41: FALSE | AF41: 33 | AG41: FALSE | AH41: 33 | AI41: FALSE
B42: 34 | C42: 20287 | D42: 1298 | F42: 105 | I42: =IFERROR(VLOOKUP(D42,BUS!$C$4:$AEB$946,4,0),"") -> DHA | P42: =IFERROR(VLOOKUP(K42,BUS!$C$4:$AEB$946,4,0),"") ->  | W42: =IFERROR(VLOOKUP(R42,BUS!$C$4:$AEB$946,4,0),"") ->  | Y42: =IFERROR(VLOOKUP(D42,'شهر 9 تفصيلي'!$B$5:$AEB$965,1,0),"") -> 1298 | Z42: =IFERROR(VLOOKUP(K42,'شهر 9 تفصيلي'!$B$5:$AEB$965,1,0),"") ->  | AA42: =IFERROR(VLOOKUP(R42,'شهر 9 تفصيلي'!$B$5:$AEB$965,1,0),"") ->  | AB42: 34 | AC42: 20287 | AD42: 81 | AE42: FALSE | AF42: 34 | AG42: FALSE | AH42: 34 | AI42: FALSE
B43: 35 | C43: 20288 | D43: 4167 | F43: 45 | I43: =IFERROR(VLOOKUP(D43,BUS!$C$4:$AEB$946,4,0),"") -> MUB | P43: =IFERROR(VLOOKUP(K43,BUS!$C$4:$AEB$946,4,0),"") ->  | W43: =IFERROR(VLOOKUP(R43,BUS!$C$4:$AEB$946,4,0),"") ->  | Y43: =IFERROR(VLOOKUP(D43,'شهر 9 تفصيلي'!$B$5:$AEB$965,1,0),"") -> 4167 | Z43: =IFERROR(VLOOKUP(K43,'شهر 9 تفصيلي'!$B$5:$AEB$965,1,0),"") ->  | AA43: =IFERROR(VLOOKUP(R43,'شهر 9 تفصيلي'!$B$5:$AEB$965,1,0),"") ->  | AB43: 35 | AC43: 20288 | AD43: 82 | AE43: FALSE | AF43: 35 | AG43: FALSE | AH43: 35 | AI43: FALSE
B44: 36 | C44: 20289 | D44: 1357 | F44: 370 | I44: =IFERROR(VLOOKUP(D44,BUS!$C$4:$AEB$946,4,0),"") -> MUB | P44: =IFERROR(VLOOKUP(K44,BUS!$C$4:$AEB$946,4,0),"") ->  | W44: =IFERROR(VLOOKUP(R44,BUS!$C$4:$AEB$946,4,0),"") ->  | Y44: =IFERROR(VLOOKUP(D44,'شهر 9 تفصيلي'!$B$5:$AEB$965,1,0),"") -> 1357 | Z44: =IFERROR(VLOOKUP(K44,'شهر 9 تفصيلي'!$B$5:$AEB$965,1,0),"") ->  | AA44: =IFERROR(VLOOKUP(R44,'شهر 9 تفصيلي'!$B$5:$AEB$965,1,0),"") ->  | AB44: 36 | AC44: 20289 | AD44: 83 | AE44: FALSE | AF44: 36 | AG44: FALSE | AH44: 36 | AI44: FALSE
B45: 37 | C45: 20290 | D45: 1040 | F45: 150 | I45: =IFERROR(VLOOKUP(D45,BUS!$C$4:$AEB$946,4,0),"") -> MUB | P45: =IFERROR(VLOOKUP(K45,BUS!$C$4:$AEB$946,4,0),"") ->  | W45: =IFERROR(VLOOKUP(R45,BUS!$C$4:$AEB$946,4,0),"") ->  | Y45: =IFERROR(VLOOKUP(D45,'شهر 9 تفصيلي'!$B$5:$AEB$965,1,0),"") -> 1040 | Z45: =IFERROR(VLOOKUP(K45,'شهر 9 تفصيلي'!$B$5:$AEB$965,1,0),"") ->  | AA45: =IFERROR(VLOOKUP(R45,'شهر 9 تفصيلي'!$B$5:$AEB$965,1,0),"") ->  | AB45: 37 | AC45: 20290 | AD45: 84 | AE45: FALSE | AF45: 37 | AG45: FALSE | AH45: 37 | AI45: FALSE
B46: 38 | C46: 20291 | D46: 1327 | F46: 180 | I46: =IFERROR(VLOOKUP(D46,BUS!$C$4:$AEB$946,4,0),"") -> MUB | P46: =IFERROR(VLOOKUP(K46,BUS!$C$4:$AEB$946,4,0),"") ->  | W46: =IFERROR(VLOOKUP(R46,BUS!$C$4:$AEB$946,4,0),"") ->  | Y46: =IFERROR(VLOOKUP(D46,'شهر 9 تفصيلي'!$B$5:$AEB$965,1,0),"") -> 1327 | Z46: =IFERROR(VLOOKUP(K46,'شهر 9 تفصيلي'!$B$5:$AEB$965,1,0),"") ->  | AA46: =IFERROR(VLOOKUP(R46,'شهر 9 تفصيلي'!$B$5:$AEB$965,1,0),"") ->  | AB46: 38 | AC46: 20291 | AD46: 85 | AE46: FALSE | AF46: 38 | AG46: FALSE | AH46: 38 | AI46: FALSE
B47: 39 | C47: 20292 | D47: 1356 | F47: 95 | I47: =IFERROR(VLOOKUP(D47,BUS!$C$4:$AEB$946,4,0),"") -> MUB | P47: =IFERROR(VLOOKUP(K47,BUS!$C$4:$AEB$946,4,0),"") ->  | W47: =IFERROR(VLOOKUP(R47,BUS!$C$4:$AEB$946,4,0),"") ->  | Y47: =IFERROR(VLOOKUP(D47,'شهر 9 تفصيلي'!$B$5:$AEB$965,1,0),"") -> 1356 | Z47: =IFERROR(VLOOKUP(K47,'شهر 9 تفصيلي'!$B$5:$AEB$965,1,0),"") ->  | AA47: =IFERROR(VLOOKUP(R47,'شهر 9 تفصيلي'!$B$5:$AEB$965,1,0),"") ->  | AB47: 39 | AC47: 20292 | AD47: 86 | AE47: FALSE | AF47: 39 | AG47: FALSE | AH47: 39 | AI47: FALSE
B48: 40 | C48: 20293 | D48: 1332 | F48: 135 | I48: =IFERROR(VLOOKUP(D48,BUS!$C$4:$AEB$946,4,0),"") -> MUB | P48: =IFERROR(VLOOKUP(K48,BUS!$C$4:$AEB$946,4,0),"") ->  | W48: =IFERROR(VLOOKUP(R48,BUS!$C$4:$AEB$946,4,0),"") ->  | Y48: =IFERROR(VLOOKUP(D48,'شهر 9 تفصيلي'!$B$5:$AEB$965,1,0),"") -> 1332 | Z48: =IFERROR(VLOOKUP(K48,'شهر 9 تفصيلي'!$B$5:$AEB$965,1,0),"") ->  | AA48: =IFERROR(VLOOKUP(R48,'شهر 9 تفصيلي'!$B$5:$AEB$965,1,0),"") ->  | AB48: 40 | AC48: 20293 | AD48: 87 | AE48: FALSE | AF48: 40 | AG48: FALSE | AH48: 40 | AI48: FALSE
B49: 41 | C49: 20294 | D49: 1121 | F49: 260 | I49: =IFERROR(VLOOKUP(D49,BUS!$C$4:$AEB$946,4,0),"") -> DHA | P49: =IFERROR(VLOOKUP(K49,BUS!$C$4:$AEB$946,4,0),"") ->  | W49: =IFERROR(VLOOKUP(R49,BUS!$C$4:$AEB$946,4,0),"") ->  | Y49: =IFERROR(VLOOKUP(D49,'شهر 9 تفصيلي'!$B$5:$AEB$965,1,0),"") -> 1121 | Z49: =IFERROR(VLOOKUP(K49,'شهر 9 تفصيلي'!$B$5:$AEB$965,1,0),"") ->  | AA49: =IFERROR(VLOOKUP(R49,'شهر 9 تفصيلي'!$B$5:$AEB$965,1,0),"") ->  | AB49: 41 | AC49: 20294 | AD49: 88 | AE49: FALSE | AF49: 41 | AG49: FALSE | AH49: 41 | AI49: FALSE
B50: 42 | C50: 20295 | D50: 1271 | F50: 110 | I50: =IFERROR(VLOOKUP(D50,BUS!$C$4:$AEB$946,4,0),"") -> MUB | P50: =IFERROR(VLOOKUP(K50,BUS!$C$4:$AEB$946,4,0),"") ->  | W50: =IFERROR(VLOOKUP(R50,BUS!$C$4:$AEB$946,4,0),"") ->  | Y50: =IFERROR(VLOOKUP(D50,'شهر 9 تفصيلي'!$B$5:$AEB$965,1,0),"") -> 1271 | Z50: =IFERROR(VLOOKUP(K50,'شهر 9 تفصيلي'!$B$5:$AEB$965,1,0),"") ->  | AA50: =IFERROR(VLOOKUP(R50,'شهر 9 تفصيلي'!$B$5:$AEB$965,1,0),"") ->  | AB50: 42 | AC50: 20295 | AD50: 89 | AE50: FALSE | AF50: 42 | AG50: FALSE | AH50: 42 | AI50: FALSE
B51: 43 | C51: 20296 | D51: 1300 | F51: 300 | I51: =IFERROR(VLOOKUP(D51,BUS!$C$4:$AEB$946,4,0),"") -> MUB | P51: =IFERROR(VLOOKUP(K51,BUS!$C$4:$AEB$946,4,0),"") ->  | W51: =IFERROR(VLOOKUP(R51,BUS!$C$4:$AEB$946,4,0),"") ->  | Y51: =IFERROR(VLOOKUP(D51,'شهر 9 تفصيلي'!$B$5:$AEB$965,1,0),"") -> 1300 | Z51: =IFERROR(VLOOKUP(K51,'شهر 9 تفصيلي'!$B$5:$AEB$965,1,0),"") ->  | AA51: =IFERROR(VLOOKUP(R51,'شهر 9 تفصيلي'!$B$5:$AEB$965,1,0),"") ->  | AB51: 43 | AC51: 20296 | AD51: 90 | AE51: FALSE | AF51: 43 | AG51: FALSE | AH51: 43 | AI51: FALSE
B52: 44 | C52: 20297 | D52: 4039 | F52: 245 | I52: =IFERROR(VLOOKUP(D52,BUS!$C$4:$AEB$946,4,0),"") -> MUB | P52: =IFERROR(VLOOKUP(K52,BUS!$C$4:$AEB$946,4,0),"") ->  | W52: =IFERROR(VLOOKUP(R52,BUS!$C$4:$AEB$946,4,0),"") ->  | Y52: =IFERROR(VLOOKUP(D52,'شهر 9 تفصيلي'!$B$5:$AEB$965,1,0),"") -> 4039 | Z52: =IFERROR(VLOOKUP(K52,'شهر 9 تفصيلي'!$B$5:$AEB$965,1,0),"") ->  | AA52: =IFERROR(VLOOKUP(R52,'شهر 9 تفصيلي'!$B$5:$AEB$965,1,0),"") ->  | AB52: 44 | AC52: 20297 | AD52: 91 | AE52: FALSE | AF52: 44 | AG52: FALSE | AH52: 44 | AI52: FALSE
B53: 45 | C53: 20298 | D53: 1285 | F53: 200 | I53: =IFERROR(VLOOKUP(D53,BUS!$C$4:$AEB$946,4,0),"") -> MUB | P53: =IFERROR(VLOOKUP(K53,BUS!$C$4:$AEB$946,4,0),"") ->  | W53: =IFERROR(VLOOKUP(R53,BUS!$C$4:$AEB$946,4,0),"") ->  | Y53: =IFERROR(VLOOKUP(D53,'شهر 9 تفصيلي'!$B$5:$AEB$965,1,0),"") -> 1285 | Z53: =IFERROR(VLOOKUP(K53,'شهر 9 تفصيلي'!$B$5:$AEB$965,1,0),"") ->  | AA53: =IFERROR(VLOOKUP(R53,'شهر 9 تفصيلي'!$B$5:$AEB$965,1,0),"") ->  | AB53: 45 | AC53: 20298 | AD53: 92 | AE53: FALSE | AF53: 45 | AG53: FALSE | AH53: 45 | AI53: FALSE
B54: 46 | C54: 20300 | D54: 1811 | F54: 60 | I54: =IFERROR(VLOOKUP(D54,BUS!$C$4:$AEB$946,4,0),"") -> MUB | P54: =IFERROR(VLOOKUP(K54,BUS!$C$4:$AEB$946,4,0),"") ->  | W54: =IFERROR(VLOOKUP(R54,BUS!$C$4:$AEB$946,4,0),"") ->  | Y54: =IFERROR(VLOOKUP(D54,'شهر 9 تفصيلي'!$B$5:$AEB$965,1,0),"") -> 1811 | Z54: =IFERROR(VLOOKUP(K54,'شهر 9 تفصيلي'!$B$5:$AEB$965,1,0),"") ->  | AA54: =IFERROR(VLOOKUP(R54,'شهر 9 تفصيلي'!$B$5:$AEB$965,1,0),"") ->  | AB54: 46 | AC54: 20300 | AD54: 93 | AE54: FALSE | AF54: 46 | AG54: FALSE | AH54: 46 | AI54: FALSE
B55: 47 | C55: 20301 | D55: 1808 | F55: 140 | I55: =IFERROR(VLOOKUP(D55,BUS!$C$4:$AEB$946,4,0),"") -> MUB | P55: =IFERROR(VLOOKUP(K55,BUS!$C$4:$AEB$946,4,0),"") ->  | W55: =IFERROR(VLOOKUP(R55,BUS!$C$4:$AEB$946,4,0),"") ->  | Y55: =IFERROR(VLOOKUP(D55,'شهر 9 تفصيلي'!$B$5:$AEB$965,1,0),"") -> 1808 | Z55: =IFERROR(VLOOKUP(K55,'شهر 9 تفصيلي'!$B$5:$AEB$965,1,0),"") ->  | AA55: =IFERROR(VLOOKUP(R55,'شهر 9 تفصيلي'!$B$5:$AEB$965,1,0),"") ->  | AB55: 47 | AC55: 20301 | AD55: 94 | AE55: FALSE | AF55: 47 | AG55: FALSE | AH55: 47 | AI55: FALSE
D56: TOTAL | F56: =SUM(F9:F55) -> 7759 | K56: TOTAL | M56: =SUM(M9:M55) -> 1044 | R56: TOTAL | T56: =SUM(T9:T55) -> 260
B57: Area manager | D57: Operation manager ( Bus D.) | K57: General manager ( Bus D) | T57: Maher-Hassan-2018 | AC57: Maher-Hassan-2018
B64: Checking the station manager
B65: =B7 -> 2021-09-02 | F65: التاريخ / | I65: =I7 ->  | M65: اليـــــــــــوم / | P65: محطة خشمان ( الماسة 7 ) | W65: 2
B66: S.NO | C66: رقم الفاتوره ديزل | D66: BUS | E66: الكيلو D | F66: D | G66: الوقت | H66: المراقب | I66: To | J66: رقم الفاتوره 95 | K66: BUS | L66: الكيلو 95 | M66: 95 | N66: الوقت | O66: المراقب | P66: To | Q66: رقم الفاتوره 91 | R66: BUS | S66: الكيلو 91 | T66: 91 | U66: الوقت | V66: المراقب | W66: To
B67: 48 | C67: 20302 | D67: 1204 | F67: 160 | I67: =IFERROR(VLOOKUP(D67,BUS!$C$4:$AEB$946,4,0),"") -> MUB | P67: =IFERROR(VLOOKUP(K67,BUS!$C$4:$AEB$946,4,0),"") ->  | W67: =IFERROR(VLOOKUP(R67,BUS!$C$4:$AEB$946,4,0),"") ->  | Y67: =IFERROR(VLOOKUP(D67,'شهر 9 تفصيلي'!$B$5:$AEB$965,1,0),"") -> 1204 | Z67: =IFERROR(VLOOKUP(K67,'شهر 9 تفصيلي'!$B$5:$AEB$965,1,0),"") ->  | AA67: =IFERROR(VLOOKUP(R67,'شهر 9 تفصيلي'!$B$5:$AEB$965,1,0),"") -> 
B68: 49 | C68: 20304 | D68: 1101 | F68: 190 | I68: =IFERROR(VLOOKUP(D68,BUS!$C$4:$AEB$946,4,0),"") -> MUB | P68: =IFERROR(VLOOKUP(K68,BUS!$C$4:$AEB$946,4,0),"") ->  | W68: =IFERROR(VLOOKUP(R68,BUS!$C$4:$AEB$946,4,0),"") ->  | Y68: =IFERROR(VLOOKUP(D68,'شهر 9 تفصيلي'!$B$5:$AEB$965,1,0),"") -> 1101 | Z68: =IFERROR(VLOOKUP(K68,'شهر 9 تفصيلي'!$B$5:$AEB$965,1,0),"") ->  | AA68: =IFERROR(VLOOKUP(R68,'شهر 9 تفصيلي'!$B$5:$AEB$965,1,0),"") -> 
B69: 50 | C69: 20305 | D69: 1051 | F69: 110 | I69: =IFERROR(VLOOKUP(D69,BUS!$C$4:$AEB$946,4,0),"") -> MUB | P69: =IFERROR(VLOOKUP(K69,BUS!$C$4:$AEB$946,4,0),"") ->  | W69: =IFERROR(VLOOKUP(R69,BUS!$C$4:$AEB$946,4,0),"") ->  | Y69: =IFERROR(VLOOKUP(D69,'شهر 9 تفصيلي'!$B$5:$AEB$965,1,0),"") -> 1051 | Z69: =IFERROR(VLOOKUP(K69,'شهر 9 تفصيلي'!$B$5:$AEB$965,1,0),"") ->  | AA69: =IFERROR(VLOOKUP(R69,'شهر 9 تفصيلي'!$B$5:$AEB$965,1,0),"") -> 
B70: 51 | C70: 20306 | D70: 1074 | F70: 216 | I70: =IFERROR(VLOOKUP(D70,BUS!$C$4:$AEB$946,4,0),"") -> MUB | P70: =IFERROR(VLOOKUP(K70,BUS!$C$4:$AEB$946,4,0),"") ->  | W70: =IFERROR(VLOOKUP(R70,BUS!$C$4:$AEB$946,4,0),"") ->  | Y70: =IFERROR(VLOOKUP(D70,'شهر 9 تفصيلي'!$B$5:$AEB$965,1,0),"") -> 1074 | Z70: =IFERROR(VLOOKUP(K70,'شهر 9 تفصيلي'!$B$5:$AEB$965,1,0),"") ->  | AA70: =IFERROR(VLOOKUP(R70,'شهر 9 تفصيلي'!$B$5:$AEB$965,1,0),"") -> 
B71: 52 | C71: 20307 | D71: 1114 | F71: 125 | I71: =IFERROR(VLOOKUP(D71,BUS!$C$4:$AEB$946,4,0),"") -> DHA | P71: =IFERROR(VLOOKUP(K71,BUS!$C$4:$AEB$946,4,0),"") ->  | W71: =IFERROR(VLOOKUP(R71,BUS!$C$4:$AEB$946,4,0),"") ->  | Y71: =IFERROR(VLOOKUP(D71,'شهر 9 تفصيلي'!$B$5:$AEB$965,1,0),"") -> 1114 | Z71: =IFERROR(VLOOKUP(K71,'شهر 9 تفصيلي'!$B$5:$AEB$965,1,0),"") ->  | AA71: =IFERROR(VLOOKUP(R71,'شهر 9 تفصيلي'!$B$5:$AEB$965,1,0),"") -> 
B72: 53 | C72: 20308 | D72: 1059 | F72: 85 | I72: =IFERROR(VLOOKUP(D72,BUS!$C$4:$AEB$946,4,0),"") -> DHA | P72: =IFERROR(VLOOKUP(K72,BUS!$C$4:$AEB$946,4,0),"") ->  | W72: =IFERROR(VLOOKUP(R72,BUS!$C$4:$AEB$946,4,0),"") ->  | Y72: =IFERROR(VLOOKUP(D72,'شهر 9 تفصيلي'!$B$5:$AEB$965,1,0),"") -> 1059 | Z72: =IFERROR(VLOOKUP(K72,'شهر 9 تفصيلي'!$B$5:$AEB$965,1,0),"") ->  | AA72: =IFERROR(VLOOKUP(R72,'شهر 9 تفصيلي'!$B$5:$AEB$965,1,0),"") -> 
B73: 54 | C73: 20309 | D73: 1050 | F73: 110 | I73: =IFERROR(VLOOKUP(D73,BUS!$C$4:$AEB$946,4,0),"") -> DHA | P73: =IFERROR(VLOOKUP(K73,BUS!$C$4:$AEB$946,4,0),"") ->  | W73: =IFERROR(VLOOKUP(R73,BUS!$C$4:$AEB$946,4,0),"") ->  | Y73: =IFERROR(VLOOKUP(D73,'شهر 9 تفصيلي'!$B$5:$AEB$965,1,0),"") -> 1050 | Z73: =IFERROR(VLOOKUP(K73,'شهر 9 تفصيلي'!$B$5:$AEB$965,1,0),"") ->  | AA73: =IFERROR(VLOOKUP(R73,'شهر 9 تفصيلي'!$B$5:$AEB$965,1,0),"") -> 
B74: 55 | I74: =IFERROR(VLOOKUP(D74,BUS!$C$4:$AEB$946,4,0),"") ->  | P74: =IFERROR(VLOOKUP(K74,BUS!$C$4:$AEB$946,4,0),"") ->  | W74: =IFERROR(VLOOKUP(R74,BUS!$C$4:$AEB$946,4,0),"") ->  | Y74: =IFERROR(VLOOKUP(D74,'شهر 9 تفصيلي'!$B$5:$AEB$965,1,0),"") ->  | Z74: =IFERROR(VLOOKUP(K74,'شهر 9 تفصيلي'!$B$5:$AEB$965,1,0),"") ->  | AA74: =IFERROR(VLOOKUP(R74,'شهر 9 تفصيلي'!$B$5:$AEB$965,1,0),"") -> 
B75: 56 | I75: =IFERROR(VLOOKUP(D75,BUS!$C$4:$AEB$946,4,0),"") ->  | P75: =IFERROR(VLOOKUP(K75,BUS!$C$4:$AEB$946,4,0),"") ->  | W75: =IFERROR(VLOOKUP(R75,BUS!$C$4:$AEB$946,4,0),"") ->  | Y75: =IFERROR(VLOOKUP(D75,'شهر 9 تفصيلي'!$B$5:$AEB$965,1,0),"") ->  | Z75: =IFERROR(VLOOKUP(K75,'شهر 9 تفصيلي'!$B$5:$AEB$965,1,0),"") ->  | AA75: =IFERROR(VLOOKUP(R75,'شهر 9 تفصيلي'!$B$5:$AEB$965,1,0),"") -> 
B76: 57 | I76: =IFERROR(VLOOKUP(D76,BUS!$C$4:$AEB$946,4,0),"") ->  | P76: =IFERROR(VLOOKUP(K76,BUS!$C$4:$AEB$946,4,0),"") ->  | W76: =IFERROR(VLOOKUP(R76,BUS!$C$4:$AEB$946,4,0),"") ->  | Y76: =IFERROR(VLOOKUP(D76,'شهر 9 تفصيلي'!$B$5:$AEB$965,1,0),"") ->  | Z76: =IFERROR(VLOOKUP(K76,'شهر 9 تفصيلي'!$B$5:$AEB$965,1,0),"") ->  | AA76: =IFERROR(VLOOKUP(R76,'شهر 9 تفصيلي'!$B$5:$AEB$965,1,0),"") -> 
B77: 58 | I77: =IFERROR(VLOOKUP(D77,BUS!$C$4:$AEB$946,4,0),"") ->  | P77: =IFERROR(VLOOKUP(K77,BUS!$C$4:$AEB$946,4,0),"") ->  | W77: =IFERROR(VLOOKUP(R77,BUS!$C$4:$AEB$946,4,0),"") ->  | Y77: =IFERROR(VLOOKUP(D77,'شهر 9 تفصيلي'!$B$5:$AEB$965,1,0),"") ->  | Z77: =IFERROR(VLOOKUP(K77,'شهر 9 تفصيلي'!$B$5:$AEB$965,1,0),"") ->  | AA77: =IFERROR(VLOOKUP(R77,'شهر 9 تفصيلي'!$B$5:$AEB$965,1,0),"") -> 
B78: 59 | I78: =IFERROR(VLOOKUP(D78,BUS!$C$4:$AEB$946,4,0),"") ->  | P78: =IFERROR(VLOOKUP(K78,BUS!$C$4:$AEB$946,4,0),"") ->  | W78: =IFERROR(VLOOKUP(R78,BUS!$C$4:$AEB$946,4,0),"") ->  | Y78: =IFERROR(VLOOKUP(D78,'شهر 9 تفصيلي'!$B$5:$AEB$965,1,0),"") ->  | Z78: =IFERROR(VLOOKUP(K78,'شهر 9 تفصيلي'!$B$5:$AEB$965,1,0),"") ->  | AA78: =IFERROR(VLOOKUP(R78,'شهر 9 تفصيلي'!$B$5:$AEB$965,1,0),"") -> 
B79: 60 | I79: =IFERROR(VLOOKUP(D79,BUS!$C$4:$AEB$946,4,0),"") ->  | P79: =IFERROR(VLOOKUP(K79,BUS!$C$4:$AEB$946,4,0),"") ->  | W79: =IFERROR(VLOOKUP(R79,BUS!$C$4:$AEB$946,4,0),"") ->  | Y79: =IFERROR(VLOOKUP(D79,'شهر 9 تفصيلي'!$B$5:$AEB$965,1,0),"") ->  | Z79: =IFERROR(VLOOKUP(K79,'شهر 9 تفصيلي'!$B$5:$AEB$965,1,0),"") ->  | AA79: =IFERROR(VLOOKUP(R79,'شهر 9 تفصيلي'!$B$5:$AEB$965,1,0),"") -> 
B80: 61 | I80: =IFERROR(VLOOKUP(D80,BUS!$C$4:$AEB$946,4,0),"") ->  | P80: =IFERROR(VLOOKUP(K80,BUS!$C$4:$AEB$946,4,0),"") ->  | W80: =IFERROR(VLOOKUP(R80,BUS!$C$4:$AEB$946,4,0),"") ->  | Y80: =IFERROR(VLOOKUP(D80,'شهر 9 تفصيلي'!$B$5:$AEB$965,1,0),"") ->  | Z80: =IFERROR(VLOOKUP(K80,'شهر 9 تفصيلي'!$B$5:$AEB$965,1,0),"") ->  | AA80: =IFERROR(VLOOKUP(R80,'شهر 9 تفصيلي'!$B$5:$AEB$965,1,0),"") -> 
B81: 62 | I81: =IFERROR(VLOOKUP(D81,BUS!$C$4:$AEB$946,4,0),"") ->  | P81: =IFERROR(VLOOKUP(K81,BUS!$C$4:$AEB$946,4,0),"") ->  | W81: =IFERROR(VLOOKUP(R81,BUS!$C$4:$AEB$946,4,0),"") ->  | Y81: =IFERROR(VLOOKUP(D81,'شهر 9 تفصيلي'!$B$5:$AEB$965,1,0),"") ->  | Z81: =IFERROR(VLOOKUP(K81,'شهر 9 تفصيلي'!$B$5:$AEB$965,1,0),"") ->  | AA81: =IFERROR(VLOOKUP(R81,'شهر 9 تفصيلي'!$B$5:$AEB$965,1,0),"") -> 
B82: 63 | I82: =IFERROR(VLOOKUP(D82,BUS!$C$4:$AEB$946,4,0),"") ->  | P82: =IFERROR(VLOOKUP(K82,BUS!$C$4:$AEB$946,4,0),"") ->  | W82: =IFERROR(VLOOKUP(R82,BUS!$C$4:$AEB$946,4,0),"") ->  | Y82: =IFERROR(VLOOKUP(D82,'شهر 9 تفصيلي'!$B$5:$AEB$965,1,0),"") ->  | Z82: =IFERROR(VLOOKUP(K82,'شهر 9 تفصيلي'!$B$5:$AEB$965,1,0),"") ->  | AA82: =IFERROR(VLOOKUP(R82,'شهر 9 تفصيلي'!$B$5:$AEB$965,1,0),"") -> 
B83: 64 | I83: =IFERROR(VLOOKUP(D83,BUS!$C$4:$AEB$946,4,0),"") ->  | P83: =IFERROR(VLOOKUP(K83,BUS!$C$4:$AEB$946,4,0),"") ->  | W83: =IFERROR(VLOOKUP(R83,BUS!$C$4:$AEB$946,4,0),"") ->  | Y83: =IFERROR(VLOOKUP(D83,'شهر 9 تفصيلي'!$B$5:$AEB$965,1,0),"") ->  | Z83: =IFERROR(VLOOKUP(K83,'شهر 9 تفصيلي'!$B$5:$AEB$965,1,0),"") ->  | AA83: =IFERROR(VLOOKUP(R83,'شهر 9 تفصيلي'!$B$5:$AEB$965,1,0),"") -> 
B84: 65 | I84: =IFERROR(VLOOKUP(D84,BUS!$C$4:$AEB$946,4,0),"") ->  | P84: =IFERROR(VLOOKUP(K84,BUS!$C$4:$AEB$946,4,0),"") ->  | W84: =IFERROR(VLOOKUP(R84,BUS!$C$4:$AEB$946,4,0),"") ->  | Y84: =IFERROR(VLOOKUP(D84,'شهر 9 تفصيلي'!$B$5:$AEB$965,1,0),"") ->  | Z84: =IFERROR(VLOOKUP(K84,'شهر 9 تفصيلي'!$B$5:$AEB$965,1,0),"") ->  | AA84: =IFERROR(VLOOKUP(R84,'شهر 9 تفصيلي'!$B$5:$AEB$965,1,0),"") -> 
B85: 66 | I85: =IFERROR(VLOOKUP(D85,BUS!$C$4:$AEB$946,4,0),"") ->  | P85: =IFERROR(VLOOKUP(K85,BUS!$C$4:$AEB$946,4,0),"") ->  | W85: =IFERROR(VLOOKUP(R85,BUS!$C$4:$AEB$946,4,0),"") ->  | Y85: =IFERROR(VLOOKUP(D85,'شهر 9 تفصيلي'!$B$5:$AEB$965,1,0),"") ->  | Z85: =IFERROR(VLOOKUP(K85,'شهر 9 تفصيلي'!$B$5:$AEB$965,1,0),"") ->  | AA85: =IFERROR(VLOOKUP(R85,'شهر 9 تفصيلي'!$B$5:$AEB$965,1,0),"") -> 
B86: 67 | I86: =IFERROR(VLOOKUP(D86,BUS!$C$4:$AEB$946,4,0),"") ->  | P86: =IFERROR(VLOOKUP(K86,BUS!$C$4:$AEB$946,4,0),"") ->  | W86: =IFERROR(VLOOKUP(R86,BUS!$C$4:$AEB$946,4,0),"") ->  | Y86: =IFERROR(VLOOKUP(D86,'شهر 9 تفصيلي'!$B$5:$AEB$965,1,0),"") ->  | Z86: =IFERROR(VLOOKUP(K86,'شهر 9 تفصيلي'!$B$5:$AEB$965,1,0),"") ->  | AA86: =IFERROR(VLOOKUP(R86,'شهر 9 تفصيلي'!$B$5:$AEB$965,1,0),"") -> 
B87: 68 | I87: =IFERROR(VLOOKUP(D87,BUS!$C$4:$AEB$946,4,0),"") ->  | P87: =IFERROR(VLOOKUP(K87,BUS!$C$4:$AEB$946,4,0),"") ->  | W87: =IFERROR(VLOOKUP(R87,BUS!$C$4:$AEB$946,4,0),"") ->  | Y87: =IFERROR(VLOOKUP(D87,'شهر 9 تفصيلي'!$B$5:$AEB$965,1,0),"") ->  | Z87: =IFERROR(VLOOKUP(K87,'شهر 9 تفصيلي'!$B$5:$AEB$965,1,0),"") ->  | AA87: =IFERROR(VLOOKUP(R87,'شهر 9 تفصيلي'!$B$5:$AEB$965,1,0),"") -> 
B88: 69 | I88: =IFERROR(VLOOKUP(D88,BUS!$C$4:$AEB$946,4,0),"") ->  | P88: =IFERROR(VLOOKUP(K88,BUS!$C$4:$AEB$946,4,0),"") ->  | W88: =IFERROR(VLOOKUP(R88,BUS!$C$4:$AEB$946,4,0),"") ->  | Y88: =IFERROR(VLOOKUP(D88,'شهر 9 تفصيلي'!$B$5:$AEB$965,1,0),"") ->  | Z88: =IFERROR(VLOOKUP(K88,'شهر 9 تفصيلي'!$B$5:$AEB$965,1,0),"") ->  | AA88: =IFERROR(VLOOKUP(R88,'شهر 9 تفصيلي'!$B$5:$AEB$965,1,0),"") -> 
B89: 70 | I89: =IFERROR(VLOOKUP(D89,BUS!$C$4:$AEB$946,4,0),"") ->  | P89: =IFERROR(VLOOKUP(K89,BUS!$C$4:$AEB$946,4,0),"") ->  | W89: =IFERROR(VLOOKUP(R89,BUS!$C$4:$AEB$946,4,0),"") ->  | Y89: =IFERROR(VLOOKUP(D89,'شهر 9 تفصيلي'!$B$5:$AEB$965,1,0),"") ->  | Z89: =IFERROR(VLOOKUP(K89,'شهر 9 تفصيلي'!$B$5:$AEB$965,1,0),"") ->  | AA89: =IFERROR(VLOOKUP(R89,'شهر 9 تفصيلي'!$B$5:$AEB$965,1,0),"") -> 
B90: 71 | I90: =IFERROR(VLOOKUP(D90,BUS!$C$4:$AEB$946,4,0),"") ->  | P90: =IFERROR(VLOOKUP(K90,BUS!$C$4:$AEB$946,4,0),"") ->  | W90: =IFERROR(VLOOKUP(R90,BUS!$C$4:$AEB$946,4,0),"") ->  | Y90: =IFERROR(VLOOKUP(D90,'شهر 9 تفصيلي'!$B$5:$AEB$965,1,0),"") ->  | Z90: =IFERROR(VLOOKUP(K90,'شهر 9 تفصيلي'!$B$5:$AEB$965,1,0),"") ->  | AA90: =IFERROR(VLOOKUP(R90,'شهر 9 تفصيلي'!$B$5:$AEB$965,1,0),"") -> 
B91: 72 | I91: =IFERROR(VLOOKUP(D91,BUS!$C$4:$AEB$946,4,0),"") ->  | P91: =IFERROR(VLOOKUP(K91,BUS!$C$4:$AEB$946,4,0),"") ->  | W91: =IFERROR(VLOOKUP(R91,BUS!$C$4:$AEB$946,4,0),"") ->  | Y91: =IFERROR(VLOOKUP(D91,'شهر 9 تفصيلي'!$B$5:$AEB$965,1,0),"") ->  | Z91: =IFERROR(VLOOKUP(K91,'شهر 9 تفصيلي'!$B$5:$AEB$965,1,0),"") ->  | AA91: =IFERROR(VLOOKUP(R91,'شهر 9 تفصيلي'!$B$5:$AEB$965,1,0),"") -> 
B92: 73 | I92: =IFERROR(VLOOKUP(D92,BUS!$C$4:$AEB$946,4,0),"") ->  | P92: =IFERROR(VLOOKUP(K92,BUS!$C$4:$AEB$946,4,0),"") ->  | W92: =IFERROR(VLOOKUP(R92,BUS!$C$4:$AEB$946,4,0),"") ->  | Y92: =IFERROR(VLOOKUP(D92,'شهر 9 تفصيلي'!$B$5:$AEB$965,1,0),"") ->  | Z92: =IFERROR(VLOOKUP(K92,'شهر 9 تفصيلي'!$B$5:$AEB$965,1,0),"") ->  | AA92: =IFERROR(VLOOKUP(R92,'شهر 9 تفصيلي'!$B$5:$AEB$965,1,0),"") -> 
B93: 74 | I93: =IFERROR(VLOOKUP(D93,BUS!$C$4:$AEB$946,4,0),"") ->  | P93: =IFERROR(VLOOKUP(K93,BUS!$C$4:$AEB$946,4,0),"") ->  | W93: =IFERROR(VLOOKUP(R93,BUS!$C$4:$AEB$946,4,0),"") ->  | Y93: =IFERROR(VLOOKUP(D93,'شهر 9 تفصيلي'!$B$5:$AEB$965,1,0),"") ->  | Z93: =IFERROR(VLOOKUP(K93,'شهر 9 تفصيلي'!$B$5:$AEB$965,1,0),"") ->  | AA93: =IFERROR(VLOOKUP(R93,'شهر 9 تفصيلي'!$B$5:$AEB$965,1,0),"") -> 
B94: 75 | I94: =IFERROR(VLOOKUP(D94,BUS!$C$4:$AEB$946,4,0),"") ->  | P94: =IFERROR(VLOOKUP(K94,BUS!$C$4:$AEB$946,4,0),"") ->  | W94: =IFERROR(VLOOKUP(R94,BUS!$C$4:$AEB$946,4,0),"") ->  | Y94: =IFERROR(VLOOKUP(D94,'شهر 9 تفصيلي'!$B$5:$AEB$965,1,0),"") ->  | Z94: =IFERROR(VLOOKUP(K94,'شهر 9 تفصيلي'!$B$5:$AEB$965,1,0),"") ->  | AA94: =IFERROR(VLOOKUP(R94,'شهر 9 تفصيلي'!$B$5:$AEB$965,1,0),"") -> 
B95: 76 | I95: =IFERROR(VLOOKUP(D95,BUS!$C$4:$AEB$946,4,0),"") ->  | P95: =IFERROR(VLOOKUP(K95,BUS!$C$4:$AEB$946,4,0),"") ->  | W95: =IFERROR(VLOOKUP(R95,BUS!$C$4:$AEB$946,4,0),"") ->  | Y95: =IFERROR(VLOOKUP(D95,'شهر 9 تفصيلي'!$B$5:$AEB$965,1,0),"") ->  | Z95: =IFERROR(VLOOKUP(K95,'شهر 9 تفصيلي'!$B$5:$AEB$965,1,0),"") ->  | AA95: =IFERROR(VLOOKUP(R95,'شهر 9 تفصيلي'!$B$5:$AEB$965,1,0),"") -> 
B96: 77 | I96: =IFERROR(VLOOKUP(D96,BUS!$C$4:$AEB$946,4,0),"") ->  | P96: =IFERROR(VLOOKUP(K96,BUS!$C$4:$AEB$946,4,0),"") ->  | W96: =IFERROR(VLOOKUP(R96,BUS!$C$4:$AEB$946,4,0),"") ->  | Y96: =IFERROR(VLOOKUP(D96,'شهر 9 تفصيلي'!$B$5:$AEB$965,1,0),"") ->  | Z96: =IFERROR(VLOOKUP(K96,'شهر 9 تفصيلي'!$B$5:$AEB$965,1,0),"") ->  | AA96: =IFERROR(VLOOKUP(R96,'شهر 9 تفصيلي'!$B$5:$AEB$965,1,0),"") -> 
B97: 78 | I97: =IFERROR(VLOOKUP(D97,BUS!$C$4:$AEB$946,4,0),"") ->  | P97: =IFERROR(VLOOKUP(K97,BUS!$C$4:$AEB$946,4,0),"") ->  | W97: =IFERROR(VLOOKUP(R97,BUS!$C$4:$AEB$946,4,0),"") ->  | Y97: =IFERROR(VLOOKUP(D97,'شهر 9 تفصيلي'!$B$5:$AEB$965,1,0),"") ->  | Z97: =IFERROR(VLOOKUP(K97,'شهر 9 تفصيلي'!$B$5:$AEB$965,1,0),"") ->  | AA97: =IFERROR(VLOOKUP(R97,'شهر 9 تفصيلي'!$B$5:$AEB$965,1,0),"") -> 
B98: 79 | I98: =IFERROR(VLOOKUP(D98,BUS!$C$4:$AEB$946,4,0),"") ->  | P98: =IFERROR(VLOOKUP(K98,BUS!$C$4:$AEB$946,4,0),"") ->  | W98: =IFERROR(VLOOKUP(R98,BUS!$C$4:$AEB$946,4,0),"") ->  | Y98: =IFERROR(VLOOKUP(D98,'شهر 9 تفصيلي'!$B$5:$AEB$965,1,0),"") ->  | Z98: =IFERROR(VLOOKUP(K98,'شهر 9 تفصيلي'!$B$5:$AEB$965,1,0),"") ->  | AA98: =IFERROR(VLOOKUP(R98,'شهر 9 تفصيلي'!$B$5:$AEB$965,1,0),"") -> 
B99: 80 | I99: =IFERROR(VLOOKUP(D99,BUS!$C$4:$AEB$946,4,0),"") ->  | P99: =IFERROR(VLOOKUP(K99,BUS!$C$4:$AEB$946,4,0),"") ->  | W99: =IFERROR(VLOOKUP(R99,BUS!$C$4:$AEB$946,4,0),"") ->  | Y99: =IFERROR(VLOOKUP(D99,'شهر 9 تفصيلي'!$B$5:$AEB$965,1,0),"") ->  | Z99: =IFERROR(VLOOKUP(K99,'شهر 9 تفصيلي'!$B$5:$AEB$965,1,0),"") ->  | AA99: =IFERROR(VLOOKUP(R99,'شهر 9 تفصيلي'!$B$5:$AEB$965,1,0),"") -> 
B100: 81 | I100: =IFERROR(VLOOKUP(D100,BUS!$C$4:$AEB$946,4,0),"") ->  | P100: =IFERROR(VLOOKUP(K100,BUS!$C$4:$AEB$946,4,0),"") ->  | W100: =IFERROR(VLOOKUP(R100,BUS!$C$4:$AEB$946,4,0),"") ->  | Y100: =IFERROR(VLOOKUP(D100,'شهر 9 تفصيلي'!$B$5:$AEB$965,1,0),"") ->  | Z100: =IFERROR(VLOOKUP(K100,'شهر 9 تفصيلي'!$B$5:$AEB$965,1,0),"") ->  | AA100: =IFERROR(VLOOKUP(R100,'شهر 9 تفصيلي'!$B$5:$AEB$965,1,0),"") -> 
B101: 82 | I101: =IFERROR(VLOOKUP(D101,BUS!$C$4:$AEB$946,4,0),"") ->  | P101: =IFERROR(VLOOKUP(K101,BUS!$C$4:$AEB$946,4,0),"") ->  | W101: =IFERROR(VLOOKUP(R101,BUS!$C$4:$AEB$946,4,0),"") ->  | Y101: =IFERROR(VLOOKUP(D101,'شهر 9 تفصيلي'!$B$5:$AEB$965,1,0),"") ->  | Z101: =IFERROR(VLOOKUP(K101,'شهر 9 تفصيلي'!$B$5:$AEB$965,1,0),"") ->  | AA101: =IFERROR(VLOOKUP(R101,'شهر 9 تفصيلي'!$B$5:$AEB$965,1,0),"") -> 
B102: 83 | I102: =IFERROR(VLOOKUP(D102,BUS!$C$4:$AEB$946,4,0),"") ->  | P102: =IFERROR(VLOOKUP(K102,BUS!$C$4:$AEB$946,4,0),"") ->  | W102: =IFERROR(VLOOKUP(R102,BUS!$C$4:$AEB$946,4,0),"") ->  | Y102: =IFERROR(VLOOKUP(D102,'شهر 9 تفصيلي'!$B$5:$AEB$965,1,0),"") ->  | Z102: =IFERROR(VLOOKUP(K102,'شهر 9 تفصيلي'!$B$5:$AEB$965,1,0),"") ->  | AA102: =IFERROR(VLOOKUP(R102,'شهر 9 تفصيلي'!$B$5:$AEB$965,1,0),"") -> 
B103: 84 | I103: =IFERROR(VLOOKUP(D103,BUS!$C$4:$AEB$946,4,0),"") ->  | P103: =IFERROR(VLOOKUP(K103,BUS!$C$4:$AEB$946,4,0),"") ->  | W103: =IFERROR(VLOOKUP(R103,BUS!$C$4:$AEB$946,4,0),"") ->  | Y103: =IFERROR(VLOOKUP(D103,'شهر 9 تفصيلي'!$B$5:$AEB$965,1,0),"") ->  | Z103: =IFERROR(VLOOKUP(K103,'شهر 9 تفصيلي'!$B$5:$AEB$965,1,0),"") ->  | AA103: =IFERROR(VLOOKUP(R103,'شهر 9 تفصيلي'!$B$5:$AEB$965,1,0),"") -> 
B104: 85 | I104: =IFERROR(VLOOKUP(D104,BUS!$C$4:$AEB$946,4,0),"") ->  | P104: =IFERROR(VLOOKUP(K104,BUS!$C$4:$AEB$946,4,0),"") ->  | W104: =IFERROR(VLOOKUP(R104,BUS!$C$4:$AEB$946,4,0),"") ->  | Y104: =IFERROR(VLOOKUP(D104,'شهر 9 تفصيلي'!$B$5:$AEB$965,1,0),"") ->  | Z104: =IFERROR(VLOOKUP(K104,'شهر 9 تفصيلي'!$B$5:$AEB$965,1,0),"") ->  | AA104: =IFERROR(VLOOKUP(R104,'شهر 9 تفصيلي'!$B$5:$AEB$965,1,0),"") -> 
B105: 86 | I105: =IFERROR(VLOOKUP(D105,BUS!$C$4:$AEB$946,4,0),"") ->  | P105: =IFERROR(VLOOKUP(K105,BUS!$C$4:$AEB$946,4,0),"") ->  | W105: =IFERROR(VLOOKUP(R105,BUS!$C$4:$AEB$946,4,0),"") ->  | Y105: =IFERROR(VLOOKUP(D105,'شهر 9 تفصيلي'!$B$5:$AEB$965,1,0),"") ->  | Z105: =IFERROR(VLOOKUP(K105,'شهر 9 تفصيلي'!$B$5:$AEB$965,1,0),"") ->  | AA105: =IFERROR(VLOOKUP(R105,'شهر 9 تفصيلي'!$B$5:$AEB$965,1,0),"") -> 
B106: 87 | I106: =IFERROR(VLOOKUP(D106,BUS!$C$4:$AEB$946,4,0),"") ->  | P106: =IFERROR(VLOOKUP(K106,BUS!$C$4:$AEB$946,4,0),"") ->  | W106: =IFERROR(VLOOKUP(R106,BUS!$C$4:$AEB$946,4,0),"") ->  | Y106: =IFERROR(VLOOKUP(D106,'شهر 9 تفصيلي'!$B$5:$AEB$965,1,0),"") ->  | Z106: =IFERROR(VLOOKUP(K106,'شهر 9 تفصيلي'!$B$5:$AEB$965,1,0),"") ->  | AA106: =IFERROR(VLOOKUP(R106,'شهر 9 تفصيلي'!$B$5:$AEB$965,1,0),"") -> 
B107: 88 | I107: =IFERROR(VLOOKUP(D107,BUS!$C$4:$AEB$946,4,0),"") ->  | P107: =IFERROR(VLOOKUP(K107,BUS!$C$4:$AEB$946,4,0),"") ->  | W107: =IFERROR(VLOOKUP(R107,BUS!$C$4:$AEB$946,4,0),"") ->  | Y107: =IFERROR(VLOOKUP(D107,'شهر 9 تفصيلي'!$B$5:$AEB$965,1,0),"") ->  | Z107: =IFERROR(VLOOKUP(K107,'شهر 9 تفصيلي'!$B$5:$AEB$965,1,0),"") ->  | AA107: =IFERROR(VLOOKUP(R107,'شهر 9 تفصيلي'!$B$5:$AEB$965,1,0),"") -> 
B108: 89 | I108: =IFERROR(VLOOKUP(D108,BUS!$C$4:$AEB$946,4,0),"") ->  | P108: =IFERROR(VLOOKUP(K108,BUS!$C$4:$AEB$946,4,0),"") ->  | W108: =IFERROR(VLOOKUP(R108,BUS!$C$4:$AEB$946,4,0),"") ->  | Y108: =IFERROR(VLOOKUP(D108,'شهر 9 تفصيلي'!$B$5:$AEB$965,1,0),"") ->  | Z108: =IFERROR(VLOOKUP(K108,'شهر 9 تفصيلي'!$B$5:$AEB$965,1,0),"") ->  | AA108: =IFERROR(VLOOKUP(R108,'شهر 9 تفصيلي'!$B$5:$AEB$965,1,0),"") -> 
B109: 90 | I109: =IFERROR(VLOOKUP(D109,BUS!$C$4:$AEB$946,4,0),"") ->  | P109: =IFERROR(VLOOKUP(K109,BUS!$C$4:$AEB$946,4,0),"") ->  | W109: =IFERROR(VLOOKUP(R109,BUS!$C$4:$AEB$946,4,0),"") ->  | Y109: =IFERROR(VLOOKUP(D109,'شهر 9 تفصيلي'!$B$5:$AEB$965,1,0),"") ->  | Z109: =IFERROR(VLOOKUP(K109,'شهر 9 تفصيلي'!$B$5:$AEB$965,1,0),"") ->  | AA109: =IFERROR(VLOOKUP(R109,'شهر 9 تفصيلي'!$B$5:$AEB$965,1,0),"") -> 
B110: 91 | I110: =IFERROR(VLOOKUP(D110,BUS!$C$4:$AEB$946,4,0),"") ->  | P110: =IFERROR(VLOOKUP(K110,BUS!$C$4:$AEB$946,4,0),"") ->  | W110: =IFERROR(VLOOKUP(R110,BUS!$C$4:$AEB$946,4,0),"") ->  | Y110: =IFERROR(VLOOKUP(D110,'شهر 9 تفصيلي'!$B$5:$AEB$965,1,0),"") ->  | Z110: =IFERROR(VLOOKUP(K110,'شهر 9 تفصيلي'!$B$5:$AEB$965,1,0),"") ->  | AA110: =IFERROR(VLOOKUP(R110,'شهر 9 تفصيلي'!$B$5:$AEB$965,1,0),"") -> 
B111: 92 | I111: =IFERROR(VLOOKUP(D111,BUS!$C$4:$AEB$946,4,0),"") ->  | P111: =IFERROR(VLOOKUP(K111,BUS!$C$4:$AEB$946,4,0),"") ->  | W111: =IFERROR(VLOOKUP(R111,BUS!$C$4:$AEB$946,4,0),"") ->  | Y111: =IFERROR(VLOOKUP(D111,'شهر 9 تفصيلي'!$B$5:$AEB$965,1,0),"") ->  | Z111: =IFERROR(VLOOKUP(K111,'شهر 9 تفصيلي'!$B$5:$AEB$965,1,0),"") ->  | AA111: =IFERROR(VLOOKUP(R111,'شهر 9 تفصيلي'!$B$5:$AEB$965,1,0),"") -> 
B112: TOTAL | F112: =SUM(F67:F111)+F56 -> 8755 | K112: TOTAL | M112: =SUM(M67:M111)+M56 -> 1044 | R112: TOTAL | T112: =SUM(T67:T111)+T56 -> 260
B113: Area manager | D113: Operation manager ( Bus D.) | K113: General manager ( Bus D) | T113: Maher-Hassan-2018
AB120: محطة خشمان ( الماسة 7 )
B121: Checking the station manager | AB121: =I122 -> 
B122: =B7 -> 2021-09-02 | F122: التاريخ / | I122: =I7 ->  | M122: اليـــــــــــوم / | P122: محطة خشمان ( الماسة 7 ) | W122: 3 | AB122: ='شهر 9 تفصيلي'!$A$1+3 -> 2021-09-04
B123: S.NO | C123: رقم الفاتوره ديزل | D123: BUS | E123: الكيلو D | F123: D | G123: الوقت | H123: المراقب | I123: To | J123: رقم الفاتوره 95 | K123: BUS | L123: الكيلو 95 | M123: 95 | N123: الوقت | O123: المراقب | P123: To | Q123: رقم الفاتوره 91 | R123: BUS | S123: الكيلو 91 | T123: 91 | U123: الوقت | V123: المراقب | W123: To | AB123: S.NO | AC123: رقم الفاتوره ديزل | AG123: رقم الفاتوره 95 | AI123: رقم الفاتوره 91
B124: 93 | I124: =IFERROR(VLOOKUP(D124,BUS!$C$4:$AEB$946,4,0),"") ->  | P124: =IFERROR(VLOOKUP(K124,BUS!$C$4:$AEB$946,4,0),"") ->  | W124: =IFERROR(VLOOKUP(R124,BUS!$C$4:$AEB$946,4,0),"") ->  | Y124: =IFERROR(VLOOKUP(D124,'شهر 9 تفصيلي'!$B$5:$AEB$965,1,0),"") ->  | Z124: =IFERROR(VLOOKUP(K124,'شهر 9 تفصيلي'!$B$5:$AEB$965,1,0),"") ->  | AA124: =IFERROR(VLOOKUP(R124,'شهر 9 تفصيلي'!$B$5:$AEB$965,1,0),"") ->  | AB124: 93 | AC124: =C124 -> 0 | AG124: =J124 -> 0 | AI124: =Q124 -> 0
B125: 94 | I125: =IFERROR(VLOOKUP(D125,BUS!$C$4:$AEB$946,4,0),"") ->  | P125: =IFERROR(VLOOKUP(K125,BUS!$C$4:$AEB$946,4,0),"") ->  | W125: =IFERROR(VLOOKUP(R125,BUS!$C$4:$AEB$946,4,0),"") ->  | Y125: =IFERROR(VLOOKUP(D125,'شهر 9 تفصيلي'!$B$5:$AEB$965,1,0),"") ->  | Z125: =IFERROR(VLOOKUP(K125,'شهر 9 تفصيلي'!$B$5:$AEB$965,1,0),"") ->  | AA125: =IFERROR(VLOOKUP(R125,'شهر 9 تفصيلي'!$B$5:$AEB$965,1,0),"") ->  | AB125: 94 | AC125: =C125 -> 0 | AG125: =J125 -> 0 | AI125: =Q125 -> 0
B126: 95 | I126: =IFERROR(VLOOKUP(D126,BUS!$C$4:$AEB$946,4,0),"") ->  | P126: =IFERROR(VLOOKUP(K126,BUS!$C$4:$AEB$946,4,0),"") ->  | W126: =IFERROR(VLOOKUP(R126,BUS!$C$4:$AEB$946,4,0),"") ->  | Y126: =IFERROR(VLOOKUP(D126,'شهر 9 تفصيلي'!$B$5:$AEB$965,1,0),"") ->  | Z126: =IFERROR(VLOOKUP(K126,'شهر 9 تفصيلي'!$B$5:$AEB$965,1,0),"") ->  | AA126: =IFERROR(VLOOKUP(R126,'شهر 9 تفصيلي'!$B$5:$AEB$965,1,0),"") ->  | AB126: 95 | AC126: 0 | AG126: 0 | AI126: 0
B127: 96 | I127: =IFERROR(VLOOKUP(D127,BUS!$C$4:$AEB$946,4,0),"") ->  | P127: =IFERROR(VLOOKUP(K127,BUS!$C$4:$AEB$946,4,0),"") ->  | W127: =IFERROR(VLOOKUP(R127,BUS!$C$4:$AEB$946,4,0),"") ->  | Y127: =IFERROR(VLOOKUP(D127,'شهر 9 تفصيلي'!$B$5:$AEB$965,1,0),"") ->  | Z127: =IFERROR(VLOOKUP(K127,'شهر 9 تفصيلي'!$B$5:$AEB$965,1,0),"") ->  | AA127: =IFERROR(VLOOKUP(R127,'شهر 9 تفصيلي'!$B$5:$AEB$965,1,0),"") ->  | AB127: 96 | AC127: 0 | AG127: 0 | AI127: 0
B128: 97 | I128: =IFERROR(VLOOKUP(D128,BUS!$C$4:$AEB$946,4,0),"") ->  | P128: =IFERROR(VLOOKUP(K128,BUS!$C$4:$AEB$946,4,0),"") ->  | W128: =IFERROR(VLOOKUP(R128,BUS!$C$4:$AEB$946,4,0),"") ->  | Y128: =IFERROR(VLOOKUP(D128,'شهر 9 تفصيلي'!$B$5:$AEB$965,1,0),"") ->  | Z128: =IFERROR(VLOOKUP(K128,'شهر 9 تفصيلي'!$B$5:$AEB$965,1,0),"") ->  | AA128: =IFERROR(VLOOKUP(R128,'شهر 9 تفصيلي'!$B$5:$AEB$965,1,0),"") ->  | AB128: 97 | AC128: 0 | AG128: 0 | AI128: 0
B129: 98 | I129: =IFERROR(VLOOKUP(D129,BUS!$C$4:$AEB$946,4,0),"") ->  | P129: =IFERROR(VLOOKUP(K129,BUS!$C$4:$AEB$946,4,0),"") ->  | W129: =IFERROR(VLOOKUP(R129,BUS!$C$4:$AEB$946,4,0),"") ->  | Y129: =IFERROR(VLOOKUP(D129,'شهر 9 تفصيلي'!$B$5:$AEB$965,1,0),"") ->  | Z129: =IFERROR(VLOOKUP(K129,'شهر 9 تفصيلي'!$B$5:$AEB$965,1,0),"") ->  | AA129: =IFERROR(VLOOKUP(R129,'شهر 9 تفصيلي'!$B$5:$AEB$965,1,0),"") ->  | AB129: 98 | AC129: 0 | AG129: 0 | AI129: 0
B130: 99 | I130: =IFERROR(VLOOKUP(D130,BUS!$C$4:$AEB$946,4,0),"") ->  | P130: =IFERROR(VLOOKUP(K130,BUS!$C$4:$AEB$946,4,0),"") ->  | W130: =IFERROR(VLOOKUP(R130,BUS!$C$4:$AEB$946,4,0),"") ->  | Y130: =IFERROR(VLOOKUP(D130,'شهر 9 تفصيلي'!$B$5:$AEB$965,1,0),"") ->  | Z130: =IFERROR(VLOOKUP(K130,'شهر 9 تفصيلي'!$B$5:$AEB$965,1,0),"") ->  | AA130: =IFERROR(VLOOKUP(R130,'شهر 9 تفصيلي'!$B$5:$AEB$965,1,0),"") ->  | AB130: 99 | AC130: 0 | AG130: 0 | AI130: 0
B131: 100 | I131: =IFERROR(VLOOKUP(D131,BUS!$C$4:$AEB$946,4,0),"") ->  | P131: =IFERROR(VLOOKUP(K131,BUS!$C$4:$AEB$946,4,0),"") ->  | W131: =IFERROR(VLOOKUP(R131,BUS!$C$4:$AEB$946,4,0),"") ->  | Y131: =IFERROR(VLOOKUP(D131,'شهر 9 تفصيلي'!$B$5:$AEB$965,1,0),"") ->  | Z131: =IFERROR(VLOOKUP(K131,'شهر 9 تفصيلي'!$B$5:$AEB$965,1,0),"") ->  | AA131: =IFERROR(VLOOKUP(R131,'شهر 9 تفصيلي'!$B$5:$AEB$965,1,0),"") ->  | AB131: 100 | AC131: 0 | AG131: 0 | AI131: 0
B132: 101 | I132: =IFERROR(VLOOKUP(D132,BUS!$C$4:$AEB$946,4,0),"") ->  | P132: =IFERROR(VLOOKUP(K132,BUS!$C$4:$AEB$946,4,0),"") ->  | W132: =IFERROR(VLOOKUP(R132,BUS!$C$4:$AEB$946,4,0),"") ->  | Y132: =IFERROR(VLOOKUP(D132,'شهر 9 تفصيلي'!$B$5:$AEB$965,1,0),"") ->  | Z132: =IFERROR(VLOOKUP(K132,'شهر 9 تفصيلي'!$B$5:$AEB$965,1,0),"") ->  | AA132: =IFERROR(VLOOKUP(R132,'شهر 9 تفصيلي'!$B$5:$AEB$965,1,0),"") ->  | AB132: 101 | AC132: 0 | AG132: 0 | AI132: 0
B133: 102 | I133: =IFERROR(VLOOKUP(D133,BUS!$C$4:$AEB$946,4,0),"") ->  | P133: =IFERROR(VLOOKUP(K133,BUS!$C$4:$AEB$946,4,0),"") ->  | W133: =IFERROR(VLOOKUP(R133,BUS!$C$4:$AEB$946,4,0),"") ->  | Y133: =IFERROR(VLOOKUP(D133,'شهر 9 تفصيلي'!$B$5:$AEB$965,1,0),"") ->  | Z133: =IFERROR(VLOOKUP(K133,'شهر 9 تفصيلي'!$B$5:$AEB$965,1,0),"") ->  | AA133: =IFERROR(VLOOKUP(R133,'شهر 9 تفصيلي'!$B$5:$AEB$965,1,0),"") ->  | AB133: 102 | AC133: 0 | AG133: 0 | AI133: 0
B134: 103 | I134: =IFERROR(VLOOKUP(D134,BUS!$C$4:$AEB$946,4,0),"") ->  | P134: =IFERROR(VLOOKUP(K134,BUS!$C$4:$AEB$946,4,0),"") ->  | W134: =IFERROR(VLOOKUP(R134,BUS!$C$4:$AEB$946,4,0),"") ->  | Y134: =IFERROR(VLOOKUP(D134,'شهر 9 تفصيلي'!$B$5:$AEB$965,1,0),"") ->  | Z134: =IFERROR(VLOOKUP(K134,'شهر 9 تفصيلي'!$B$5:$AEB$965,1,0),"") ->  | AA134: =IFERROR(VLOOKUP(R134,'شهر 9 تفصيلي'!$B$5:$AEB$965,1,0),"") ->  | AB134: 103 | AC134: 0 | AG134: 0 | AI134: 0
B135: 104 | I135: =IFERROR(VLOOKUP(D135,BUS!$C$4:$AEB$946,4,0),"") ->  | P135: =IFERROR(VLOOKUP(K135,BUS!$C$4:$AEB$946,4,0),"") ->  | W135: =IFERROR(VLOOKUP(R135,BUS!$C$4:$AEB$946,4,0),"") ->  | Y135: =IFERROR(VLOOKUP(D135,'شهر 9 تفصيلي'!$B$5:$AEB$965,1,0),"") ->  | Z135: =IFERROR(VLOOKUP(K135,'شهر 9 تفصيلي'!$B$5:$AEB$965,1,0),"") ->  | AA135: =IFERROR(VLOOKUP(R135,'شهر 9 تفصيلي'!$B$5:$AEB$965,1,0),"") ->  | AB135: 104 | AC135: 0 | AG135: 0 | AI135: 0
B136: 105 | I136: =IFERROR(VLOOKUP(D136,BUS!$C$4:$AEB$946,4,0),"") ->  | P136: =IFERROR(VLOOKUP(K136,BUS!$C$4:$AEB$946,4,0),"") ->  | W136: =IFERROR(VLOOKUP(R136,BUS!$C$4:$AEB$946,4,0),"") ->  | Y136: =IFERROR(VLOOKUP(D136,'شهر 9 تفصيلي'!$B$5:$AEB$965,1,0),"") ->  | Z136: =IFERROR(VLOOKUP(K136,'شهر 9 تفصيلي'!$B$5:$AEB$965,1,0),"") ->  | AA136: =IFERROR(VLOOKUP(R136,'شهر 9 تفصيلي'!$B$5:$AEB$965,1,0),"") ->  | AB136: 105 | AC136: 0 | AG136: 0 | AI136: 0
B137: 106 | I137: =IFERROR(VLOOKUP(D137,BUS!$C$4:$AEB$946,4,0),"") ->  | P137: =IFERROR(VLOOKUP(K137,BUS!$C$4:$AEB$946,4,0),"") ->  | W137: =IFERROR(VLOOKUP(R137,BUS!$C$4:$AEB$946,4,0),"") ->  | Y137: =IFERROR(VLOOKUP(D137,'شهر 9 تفصيلي'!$B$5:$AEB$965,1,0),"") ->  | Z137: =IFERROR(VLOOKUP(K137,'شهر 9 تفصيلي'!$B$5:$AEB$965,1,0),"") ->  | AA137: =IFERROR(VLOOKUP(R137,'شهر 9 تفصيلي'!$B$5:$AEB$965,1,0),"") ->  | AB137: 106 | AC137: 0 | AG137: 0 | AI137: 0
B138: 107 | I138: =IFERROR(VLOOKUP(D138,BUS!$C$4:$AEB$946,4,0),"") ->  | P138: =IFERROR(VLOOKUP(K138,BUS!$C$4:$AEB$946,4,0),"") ->  | W138: =IFERROR(VLOOKUP(R138,BUS!$C$4:$AEB$946,4,0),"") ->  | Y138: =IFERROR(VLOOKUP(D138,'شهر 9 تفصيلي'!$B$5:$AEB$965,1,0),"") ->  | Z138: =IFERROR(VLOOKUP(K138,'شهر 9 تفصيلي'!$B$5:$AEB$965,1,0),"") ->  | AA138: =IFERROR(VLOOKUP(R138,'شهر 9 تفصيلي'!$B$5:$AEB$965,1,0),"") ->  | AB138: 107 | AC138: 0 | AG138: 0 | AI138: 0
B139: 108 | I139: =IFERROR(VLOOKUP(D139,BUS!$C$4:$AEB$946,4,0),"") ->  | P139: =IFERROR(VLOOKUP(K139,BUS!$C$4:$AEB$946,4,0),"") ->  | W139: =IFERROR(VLOOKUP(R139,BUS!$C$4:$AEB$946,4,0),"") ->  | Y139: =IFERROR(VLOOKUP(D139,'شهر 9 تفصيلي'!$B$5:$AEB$965,1,0),"") ->  | Z139: =IFERROR(VLOOKUP(K139,'شهر 9 تفصيلي'!$B$5:$AEB$965,1,0),"") ->  | AA139: =IFERROR(VLOOKUP(R139,'شهر 9 تفصيلي'!$B$5:$AEB$965,1,0),"") ->  | AB139: 108 | AC139: 0 | AG139: 0 | AI139: 0
B140: 109 | I140: =IFERROR(VLOOKUP(D140,BUS!$C$4:$AEB$946,4,0),"") ->  | P140: =IFERROR(VLOOKUP(K140,BUS!$C$4:$AEB$946,4,0),"") ->  | W140: =IFERROR(VLOOKUP(R140,BUS!$C$4:$AEB$946,4,0),"") ->  | Y140: =IFERROR(VLOOKUP(D140,'شهر 9 تفصيلي'!$B$5:$AEB$965,1,0),"") ->  | Z140: =IFERROR(VLOOKUP(K140,'شهر 9 تفصيلي'!$B$5:$AEB$965,1,0),"") ->  | AA140: =IFERROR(VLOOKUP(R140,'شهر 9 تفصيلي'!$B$5:$AEB$965,1,0),"") ->  | AB140: 109 | AC140: 0 | AG140: 0 | AI140: 0
B141: 110 | I141: =IFERROR(VLOOKUP(D141,BUS!$C$4:$AEB$946,4,0),"") ->  | P141: =IFERROR(VLOOKUP(K141,BUS!$C$4:$AEB$946,4,0),"") ->  | W141: =IFERROR(VLOOKUP(R141,BUS!$C$4:$AEB$946,4,0),"") ->  | Y141: =IFERROR(VLOOKUP(D141,'شهر 9 تفصيلي'!$B$5:$AEB$965,1,0),"") ->  | Z141: =IFERROR(VLOOKUP(K141,'شهر 9 تفصيلي'!$B$5:$AEB$965,1,0),"") ->  | AA141: =IFERROR(VLOOKUP(R141,'شهر 9 تفصيلي'!$B$5:$AEB$965,1,0),"") ->  | AB141: 110 | AC141: 0 | AG141: 0 | AI141: 0
B142: 111 | I142: =IFERROR(VLOOKUP(D142,BUS!$C$4:$AEB$946,4,0),"") ->  | P142: =IFERROR(VLOOKUP(K142,BUS!$C$4:$AEB$946,4,0),"") ->  | W142: =IFERROR(VLOOKUP(R142,BUS!$C$4:$AEB$946,4,0),"") ->  | Y142: =IFERROR(VLOOKUP(D142,'شهر 9 تفصيلي'!$B$5:$AEB$965,1,0),"") ->  | Z142: =IFERROR(VLOOKUP(K142,'شهر 9 تفصيلي'!$B$5:$AEB$965,1,0),"") ->  | AA142: =IFERROR(VLOOKUP(R142,'شهر 9 تفصيلي'!$B$5:$AEB$965,1,0),"") ->  | AB142: 111 | AC142: 0 | AG142: 0 | AI142: 0
B143: 112 | I143: =IFERROR(VLOOKUP(D143,BUS!$C$4:$AEB$946,4,0),"") ->  | P143: =IFERROR(VLOOKUP(K143,BUS!$C$4:$AEB$946,4,0),"") ->  | W143: =IFERROR(VLOOKUP(R143,BUS!$C$4:$AEB$946,4,0),"") ->  | Y143: =IFERROR(VLOOKUP(D143,'شهر 9 تفصيلي'!$B$5:$AEB$965,1,0),"") ->  | Z143: =IFERROR(VLOOKUP(K143,'شهر 9 تفصيلي'!$B$5:$AEB$965,1,0),"") ->  | AA143: =IFERROR(VLOOKUP(R143,'شهر 9 تفصيلي'!$B$5:$AEB$965,1,0),"") ->  | AB143: 112 | AC143: 0 | AG143: 0 | AI143: 0
B144: 113 | I144: =IFERROR(VLOOKUP(D144,BUS!$C$4:$AEB$946,4,0),"") ->  | P144: =IFERROR(VLOOKUP(K144,BUS!$C$4:$AEB$946,4,0),"") ->  | W144: =IFERROR(VLOOKUP(R144,BUS!$C$4:$AEB$946,4,0),"") ->  | Y144: =IFERROR(VLOOKUP(D144,'شهر 9 تفصيلي'!$B$5:$AEB$965,1,0),"") ->  | Z144: =IFERROR(VLOOKUP(K144,'شهر 9 تفصيلي'!$B$5:$AEB$965,1,0),"") ->  | AA144: =IFERROR(VLOOKUP(R144,'شهر 9 تفصيلي'!$B$5:$AEB$965,1,0),"") ->  | AB144: 113 | AC144: 0 | AG144: 0 | AI144: 0
B145: 114 | I145: =IFERROR(VLOOKUP(D145,BUS!$C$4:$AEB$946,4,0),"") ->  | P145: =IFERROR(VLOOKUP(K145,BUS!$C$4:$AEB$946,4,0),"") ->  | W145: =IFERROR(VLOOKUP(R145,BUS!$C$4:$AEB$946,4,0),"") ->  | Y145: =IFERROR(VLOOKUP(D145,'شهر 9 تفصيلي'!$B$5:$AEB$965,1,0),"") ->  | Z145: =IFERROR(VLOOKUP(K145,'شهر 9 تفصيلي'!$B$5:$AEB$965,1,0),"") ->  | AA145: =IFERROR(VLOOKUP(R145,'شهر 9 تفصيلي'!$B$5:$AEB$965,1,0),"") ->  | AB145: 114 | AC145: 0 | AG145: 0 | AI145: 0
B146: 115 | I146: =IFERROR(VLOOKUP(D146,BUS!$C$4:$AEB$946,4,0),"") ->  | P146: =IFERROR(VLOOKUP(K146,BUS!$C$4:$AEB$946,4,0),"") ->  | W146: =IFERROR(VLOOKUP(R146,BUS!$C$4:$AEB$946,4,0),"") ->  | Y146: =IFERROR(VLOOKUP(D146,'شهر 9 تفصيلي'!$B$5:$AEB$965,1,0),"") ->  | Z146: =IFERROR(VLOOKUP(K146,'شهر 9 تفصيلي'!$B$5:$AEB$965,1,0),"") ->  | AA146: =IFERROR(VLOOKUP(R146,'شهر 9 تفصيلي'!$B$5:$AEB$965,1,0),"") ->  | AB146: 115 | AC146: 0 | AG146: 0 | AI146: 0
B147: 116 | I147: =IFERROR(VLOOKUP(D147,BUS!$C$4:$AEB$946,4,0),"") ->  | P147: =IFERROR(VLOOKUP(K147,BUS!$C$4:$AEB$946,4,0),"") ->  | W147: =IFERROR(VLOOKUP(R147,BUS!$C$4:$AEB$946,4,0),"") ->  | Y147: =IFERROR(VLOOKUP(D147,'شهر 9 تفصيلي'!$B$5:$AEB$965,1,0),"") ->  | Z147: =IFERROR(VLOOKUP(K147,'شهر 9 تفصيلي'!$B$5:$AEB$965,1,0),"") ->  | AA147: =IFERROR(VLOOKUP(R147,'شهر 9 تفصيلي'!$B$5:$AEB$965,1,0),"") ->  | AB147: 116 | AC147: 0 | AG147: 0 | AI147: 0
B148: 117 | I148: =IFERROR(VLOOKUP(D148,BUS!$C$4:$AEB$946,4,0),"") ->  | P148: =IFERROR(VLOOKUP(K148,BUS!$C$4:$AEB$946,4,0),"") ->  | W148: =IFERROR(VLOOKUP(R148,BUS!$C$4:$AEB$946,4,0),"") ->  | Y148: =IFERROR(VLOOKUP(D148,'شهر 9 تفصيلي'!$B$5:$AEB$965,1,0),"") ->  | Z148: =IFERROR(VLOOKUP(K148,'شهر 9 تفصيلي'!$B$5:$AEB$965,1,0),"") ->  | AA148: =IFERROR(VLOOKUP(R148,'شهر 9 تفصيلي'!$B$5:$AEB$965,1,0),"") ->  | AB148: 117 | AC148: 0 | AG148: 0 | AI148: 0
B149: 118 | I149: =IFERROR(VLOOKUP(D149,BUS!$C$4:$AEB$946,4,0),"") ->  | P149: =IFERROR(VLOOKUP(K149,BUS!$C$4:$AEB$946,4,0),"") ->  | W149: =IFERROR(VLOOKUP(R149,BUS!$C$4:$AEB$946,4,0),"") ->  | Y149: =IFERROR(VLOOKUP(D149,'شهر 9 تفصيلي'!$B$5:$AEB$965,1,0),"") ->  | Z149: =IFERROR(VLOOKUP(K149,'شهر 9 تفصيلي'!$B$5:$AEB$965,1,0),"") ->  | AA149: =IFERROR(VLOOKUP(R149,'شهر 9 تفصيلي'!$B$5:$AEB$965,1,0),"") ->  | AB149: 118 | AC149: 0 | AG149: 0 | AI149: 0
B150: 119 | I150: =IFERROR(VLOOKUP(D150,BUS!$C$4:$AEB$946,4,0),"") ->  | P150: =IFERROR(VLOOKUP(K150,BUS!$C$4:$AEB$946,4,0),"") ->  | W150: =IFERROR(VLOOKUP(R150,BUS!$C$4:$AEB$946,4,0),"") ->  | Y150: =IFERROR(VLOOKUP(D150,'شهر 9 تفصيلي'!$B$5:$AEB$965,1,0),"") ->  | Z150: =IFERROR(VLOOKUP(K150,'شهر 9 تفصيلي'!$B$5:$AEB$965,1,0),"") ->  | AA150: =IFERROR(VLOOKUP(R150,'شهر 9 تفصيلي'!$B$5:$AEB$965,1,0),"") ->  | AB150: 119 | AC150: 0 | AG150: 0 | AI150: 0
B151: 120 | I151: =IFERROR(VLOOKUP(D151,BUS!$C$4:$AEB$946,4,0),"") ->  | P151: =IFERROR(VLOOKUP(K151,BUS!$C$4:$AEB$946,4,0),"") ->  | W151: =IFERROR(VLOOKUP(R151,BUS!$C$4:$AEB$946,4,0),"") ->  | Y151: =IFERROR(VLOOKUP(D151,'شهر 9 تفصيلي'!$B$5:$AEB$965,1,0),"") ->  | Z151: =IFERROR(VLOOKUP(K151,'شهر 9 تفصيلي'!$B$5:$AEB$965,1,0),"") ->  | AA151: =IFERROR(VLOOKUP(R151,'شهر 9 تفصيلي'!$B$5:$AEB$965,1,0),"") ->  | AB151: 120 | AC151: 0 | AG151: 0 | AI151: 0
B152: 121 | I152: =IFERROR(VLOOKUP(D152,BUS!$C$4:$AEB$946,4,0),"") ->  | P152: =IFERROR(VLOOKUP(K152,BUS!$C$4:$AEB$946,4,0),"") ->  | W152: =IFERROR(VLOOKUP(R152,BUS!$C$4:$AEB$946,4,0),"") ->  | Y152: =IFERROR(VLOOKUP(D152,'شهر 9 تفصيلي'!$B$5:$AEB$965,1,0),"") ->  | Z152: =IFERROR(VLOOKUP(K152,'شهر 9 تفصيلي'!$B$5:$AEB$965,1,0),"") ->  | AA152: =IFERROR(VLOOKUP(R152,'شهر 9 تفصيلي'!$B$5:$AEB$965,1,0),"") ->  | AB152: 121 | AC152: 0 | AG152: 0 | AI152: 0
B153: 122 | I153: =IFERROR(VLOOKUP(D153,BUS!$C$4:$AEB$946,4,0),"") ->  | P153: =IFERROR(VLOOKUP(K153,BUS!$C$4:$AEB$946,4,0),"") ->  | W153: =IFERROR(VLOOKUP(R153,BUS!$C$4:$AEB$946,4,0),"") ->  | Y153: =IFERROR(VLOOKUP(D153,'شهر 9 تفصيلي'!$B$5:$AEB$965,1,0),"") ->  | Z153: =IFERROR(VLOOKUP(K153,'شهر 9 تفصيلي'!$B$5:$AEB$965,1,0),"") ->  | AA153: =IFERROR(VLOOKUP(R153,'شهر 9 تفصيلي'!$B$5:$AEB$965,1,0),"") ->  | AB153: 122 | AC153: 0 | AG153: 0 | AI153: 0
B154: 123 | I154: =IFERROR(VLOOKUP(D154,BUS!$C$4:$AEB$946,4,0),"") ->  | P154: =IFERROR(VLOOKUP(K154,BUS!$C$4:$AEB$946,4,0),"") ->  | W154: =IFERROR(VLOOKUP(R154,BUS!$C$4:$AEB$946,4,0),"") ->  | Y154: =IFERROR(VLOOKUP(D154,'شهر 9 تفصيلي'!$B$5:$AEB$965,1,0),"") ->  | Z154: =IFERROR(VLOOKUP(K154,'شهر 9 تفصيلي'!$B$5:$AEB$965,1,0),"") ->  | AA154: =IFERROR(VLOOKUP(R154,'شهر 9 تفصيلي'!$B$5:$AEB$965,1,0),"") ->  | AB154: 123 | AC154: 0 | AG154: 0 | AI154: 0
B155: 124 | I155: =IFERROR(VLOOKUP(D155,BUS!$C$4:$AEB$946,4,0),"") ->  | P155: =IFERROR(VLOOKUP(K155,BUS!$C$4:$AEB$946,4,0),"") ->  | W155: =IFERROR(VLOOKUP(R155,BUS!$C$4:$AEB$946,4,0),"") ->  | Y155: =IFERROR(VLOOKUP(D155,'شهر 9 تفصيلي'!$B$5:$AEB$965,1,0),"") ->  | Z155: =IFERROR(VLOOKUP(K155,'شهر 9 تفصيلي'!$B$5:$AEB$965,1,0),"") ->  | AA155: =IFERROR(VLOOKUP(R155,'شهر 9 تفصيلي'!$B$5:$AEB$965,1,0),"") ->  | AB155: 124 | AC155: 0 | AG155: 0 | AI155: 0
B156: 125 | I156: =IFERROR(VLOOKUP(D156,BUS!$C$4:$AEB$946,4,0),"") ->  | P156: =IFERROR(VLOOKUP(K156,BUS!$C$4:$AEB$946,4,0),"") ->  | W156: =IFERROR(VLOOKUP(R156,BUS!$C$4:$AEB$946,4,0),"") ->  | Y156: =IFERROR(VLOOKUP(D156,'شهر 9 تفصيلي'!$B$5:$AEB$965,1,0),"") ->  | Z156: =IFERROR(VLOOKUP(K156,'شهر 9 تفصيلي'!$B$5:$AEB$965,1,0),"") ->  | AA156: =IFERROR(VLOOKUP(R156,'شهر 9 تفصيلي'!$B$5:$AEB$965,1,0),"") ->  | AB156: 125 | AC156: 0 | AG156: 0 | AI156: 0
B157: 126 | I157: =IFERROR(VLOOKUP(D157,BUS!$C$4:$AEB$946,4,0),"") ->  | P157: =IFERROR(VLOOKUP(K157,BUS!$C$4:$AEB$946,4,0),"") ->  | W157: =IFERROR(VLOOKUP(R157,BUS!$C$4:$AEB$946,4,0),"") ->  | Y157: =IFERROR(VLOOKUP(D157,'شهر 9 تفصيلي'!$B$5:$AEB$965,1,0),"") ->  | Z157: =IFERROR(VLOOKUP(K157,'شهر 9 تفصيلي'!$B$5:$AEB$965,1,0),"") ->  | AA157: =IFERROR(VLOOKUP(R157,'شهر 9 تفصيلي'!$B$5:$AEB$965,1,0),"") ->  | AB157: 126 | AC157: 0 | AG157: 0 | AI157: 0
B158: 127 | I158: =IFERROR(VLOOKUP(D158,BUS!$C$4:$AEB$946,4,0),"") ->  | P158: =IFERROR(VLOOKUP(K158,BUS!$C$4:$AEB$946,4,0),"") ->  | W158: =IFERROR(VLOOKUP(R158,BUS!$C$4:$AEB$946,4,0),"") ->  | Y158: =IFERROR(VLOOKUP(D158,'شهر 9 تفصيلي'!$B$5:$AEB$965,1,0),"") ->  | Z158: =IFERROR(VLOOKUP(K158,'شهر 9 تفصيلي'!$B$5:$AEB$965,1,0),"") ->  | AA158: =IFERROR(VLOOKUP(R158,'شهر 9 تفصيلي'!$B$5:$AEB$965,1,0),"") ->  | AB158: 127 | AC158: 0 | AG158: 0 | AI158: 0
B159: 128 | I159: =IFERROR(VLOOKUP(D159,BUS!$C$4:$AEB$946,4,0),"") ->  | P159: =IFERROR(VLOOKUP(K159,BUS!$C$4:$AEB$946,4,0),"") ->  | W159: =IFERROR(VLOOKUP(R159,BUS!$C$4:$AEB$946,4,0),"") ->  | Y159: =IFERROR(VLOOKUP(D159,'شهر 9 تفصيلي'!$B$5:$AEB$965,1,0),"") ->  | Z159: =IFERROR(VLOOKUP(K159,'شهر 9 تفصيلي'!$B$5:$AEB$965,1,0),"") ->  | AA159: =IFERROR(VLOOKUP(R159,'شهر 9 تفصيلي'!$B$5:$AEB$965,1,0),"") ->  | AB159: 128 | AC159: 0 | AG159: 0 | AI159: 0
B160: 129 | I160: =IFERROR(VLOOKUP(D160,BUS!$C$4:$AEB$946,4,0),"") ->  | P160: =IFERROR(VLOOKUP(K160,BUS!$C$4:$AEB$946,4,0),"") ->  | W160: =IFERROR(VLOOKUP(R160,BUS!$C$4:$AEB$946,4,0),"") ->  | Y160: =IFERROR(VLOOKUP(D160,'شهر 9 تفصيلي'!$B$5:$AEB$965,1,0),"") ->  | Z160: =IFERROR(VLOOKUP(K160,'شهر 9 تفصيلي'!$B$5:$AEB$965,1,0),"") ->  | AA160: =IFERROR(VLOOKUP(R160,'شهر 9 تفصيلي'!$B$5:$AEB$965,1,0),"") ->  | AB160: 129 | AC160: 0 | AG160: 0 | AI160: 0
B161: 130 | I161: =IFERROR(VLOOKUP(D161,BUS!$C$4:$AEB$946,4,0),"") ->  | P161: =IFERROR(VLOOKUP(K161,BUS!$C$4:$AEB$946,4,0),"") ->  | W161: =IFERROR(VLOOKUP(R161,BUS!$C$4:$AEB$946,4,0),"") ->  | Y161: =IFERROR(VLOOKUP(D161,'شهر 9 تفصيلي'!$B$5:$AEB$965,1,0),"") ->  | Z161: =IFERROR(VLOOKUP(K161,'شهر 9 تفصيلي'!$B$5:$AEB$965,1,0),"") ->  | AA161: =IFERROR(VLOOKUP(R161,'شهر 9 تفصيلي'!$B$5:$AEB$965,1,0),"") ->  | AB161: 130 | AC161: 0 | AG161: 0 | AI161: 0
B162: 131 | I162: =IFERROR(VLOOKUP(D162,BUS!$C$4:$AEB$946,4,0),"") ->  | P162: =IFERROR(VLOOKUP(K162,BUS!$C$4:$AEB$946,4,0),"") ->  | W162: =IFERROR(VLOOKUP(R162,BUS!$C$4:$AEB$946,4,0),"") ->  | Y162: =IFERROR(VLOOKUP(D162,'شهر 9 تفصيلي'!$B$5:$AEB$965,1,0),"") ->  | Z162: =IFERROR(VLOOKUP(K162,'شهر 9 تفصيلي'!$B$5:$AEB$965,1,0),"") ->  | AA162: =IFERROR(VLOOKUP(R162,'شهر 9 تفصيلي'!$B$5:$AEB$965,1,0),"") ->  | AB162: 131 | AC162: 0 | AG162: 0 | AI162: 0
B163: 132 | I163: =IFERROR(VLOOKUP(D163,BUS!$C$4:$AEB$946,4,0),"") ->  | P163: =IFERROR(VLOOKUP(K163,BUS!$C$4:$AEB$946,4,0),"") ->  | W163: =IFERROR(VLOOKUP(R163,BUS!$C$4:$AEB$946,4,0),"") ->  | Y163: =IFERROR(VLOOKUP(D163,'شهر 9 تفصيلي'!$B$5:$AEB$965,1,0),"") ->  | Z163: =IFERROR(VLOOKUP(K163,'شهر 9 تفصيلي'!$B$5:$AEB$965,1,0),"") ->  | AA163: =IFERROR(VLOOKUP(R163,'شهر 9 تفصيلي'!$B$5:$AEB$965,1,0),"") ->  | AB163: 132 | AC163: 0 | AG163: 0 | AI163: 0
B164: 133 | I164: =IFERROR(VLOOKUP(D164,BUS!$C$4:$AEB$946,4,0),"") ->  | P164: =IFERROR(VLOOKUP(K164,BUS!$C$4:$AEB$946,4,0),"") ->  | W164: =IFERROR(VLOOKUP(R164,BUS!$C$4:$AEB$946,4,0),"") ->  | Y164: =IFERROR(VLOOKUP(D164,'شهر 9 تفصيلي'!$B$5:$AEB$965,1,0),"") ->  | Z164: =IFERROR(VLOOKUP(K164,'شهر 9 تفصيلي'!$B$5:$AEB$965,1,0),"") ->  | AA164: =IFERROR(VLOOKUP(R164,'شهر 9 تفصيلي'!$B$5:$AEB$965,1,0),"") ->  | AB164: 133 | AC164: 0 | AG164: 0 | AI164: 0
B165: 134 | I165: =IFERROR(VLOOKUP(D165,BUS!$C$4:$AEB$946,4,0),"") ->  | P165: =IFERROR(VLOOKUP(K165,BUS!$C$4:$AEB$946,4,0),"") ->  | W165: =IFERROR(VLOOKUP(R165,BUS!$C$4:$AEB$946,4,0),"") ->  | Y165: =IFERROR(VLOOKUP(D165,'شهر 9 تفصيلي'!$B$5:$AEB$965,1,0),"") ->  | Z165: =IFERROR(VLOOKUP(K165,'شهر 9 تفصيلي'!$B$5:$AEB$965,1,0),"") ->  | AA165: =IFERROR(VLOOKUP(R165,'شهر 9 تفصيلي'!$B$5:$AEB$965,1,0),"") ->  | AB165: 134 | AC165: 0 | AG165: 0 | AI165: 0
B166: 135 | I166: =IFERROR(VLOOKUP(D166,BUS!$C$4:$AEB$946,4,0),"") ->  | P166: =IFERROR(VLOOKUP(K166,BUS!$C$4:$AEB$946,4,0),"") ->  | W166: =IFERROR(VLOOKUP(R166,BUS!$C$4:$AEB$946,4,0),"") ->  | Y166: =IFERROR(VLOOKUP(D166,'شهر 9 تفصيلي'!$B$5:$AEB$965,1,0),"") ->  | Z166: =IFERROR(VLOOKUP(K166,'شهر 9 تفصيلي'!$B$5:$AEB$965,1,0),"") ->  | AA166: =IFERROR(VLOOKUP(R166,'شهر 9 تفصيلي'!$B$5:$AEB$965,1,0),"") ->  | AB166: 135 | AC166: 0 | AG166: 0 | AI166: 0
B167: 136 | I167: =IFERROR(VLOOKUP(D167,BUS!$C$4:$AEB$946,4,0),"") ->  | P167: =IFERROR(VLOOKUP(K167,BUS!$C$4:$AEB$946,4,0),"") ->  | W167: =IFERROR(VLOOKUP(R167,BUS!$C$4:$AEB$946,4,0),"") ->  | Y167: =IFERROR(VLOOKUP(D167,'شهر 9 تفصيلي'!$B$5:$AEB$965,1,0),"") ->  | Z167: =IFERROR(VLOOKUP(K167,'شهر 9 تفصيلي'!$B$5:$AEB$965,1,0),"") ->  | AA167: =IFERROR(VLOOKUP(R167,'شهر 9 تفصيلي'!$B$5:$AEB$965,1,0),"") ->  | AB167: 136 | AC167: 0 | AG167: 0 | AI167: 0
B168: 137 | I168: =IFERROR(VLOOKUP(D168,BUS!$C$4:$AEB$946,4,0),"") ->  | P168: =IFERROR(VLOOKUP(K168,BUS!$C$4:$AEB$946,4,0),"") ->  | W168: =IFERROR(VLOOKUP(R168,BUS!$C$4:$AEB$946,4,0),"") ->  | Y168: =IFERROR(VLOOKUP(D168,'شهر 9 تفصيلي'!$B$5:$AEB$965,1,0),"") ->  | Z168: =IFERROR(VLOOKUP(K168,'شهر 9 تفصيلي'!$B$5:$AEB$965,1,0),"") ->  | AA168: =IFERROR(VLOOKUP(R168,'شهر 9 تفصيلي'!$B$5:$AEB$965,1,0),"") ->  | AB168: 137 | AC168: 0 | AG168: 0 | AI168: 0
B169: TOTAL | F169: =SUM(F124:F168)+F112 -> 8755 | I169: ـــــــــــــــــــــــــــــــــــ | K169: TOTAL | M169: =SUM(M124:M168)+M112 -> 1044 | P169: ـــــــــــــــــــــــــــــــــــ | R169: TOTAL | T169: =SUM(T124:T168)+T112 -> 260 | W169: ـــــــــــــــــــــــــــــــــــ | AB169: 46 | AC169: 0 | AG169: 0 | AI169: 0
B170: Area manager | D170: Operation manager ( Bus D.) | K170: General manager ( Bus D) | T170: Maher-Hassan-2018 | AB170: 47 | AC170: 0 | AG170: 0 | AI170: 0

Sheet 3
AB5: محطة خشمان ( الماسة 7 )
B6: Checking the station manager | AB6: كشف بأرقام الفواتير اليومية
B7: ='شهر 9 تفصيلي'!$A$1+2 -> 2021-09-03 | F7: التاريخ / | I7: =#REF! ->  | M7: اليـــوم / | P7: محطة خشمان ( الماسة 7 ) | W7: 1 | AB7: =B7 -> 2021-09-03 | AF7: =I7 -> 
B8: S.NO | C8: رقم الفاتوره ديزل | D8: BUS | E8: الكيلو D | F8: D | G8: الوقت | H8: المراقب | I8: To | J8: رقم الفاتوره 95 | K8: BUS | L8: الكيلو 95 | M8: 95 | N8: الوقت | O8: المراقب | P8: To | Q8: رقم الفاتوره 91 | R8: BUS | S8: الكيلو 91 | T8: 91 | U8: الوقت | V8: المراقب | W8: To | AC8: رقم الفاتوره ديزل | AE8: رقم الفاتوره ديزل | AG8: رقم الفاتوره 95 | AI8: رقم الفاتوره 91
B9: 1 | C9: 20345 | D9: 1094 | F9: 195 | I9: =IFERROR(VLOOKUP(D9,BUS!$C$4:$AEB$946,4,0),"") -> DHA | J9: 1240 | K9: 1561 | M9: 98 | P9: =IFERROR(VLOOKUP(K9,BUS!$C$4:$AEB$946,4,0),"") -> MUB | Q9: 4060 | R9: 4091 | T9: 33 | W9: =IFERROR(VLOOKUP(R9,BUS!$C$4:$AEB$946,4,0),"") -> MUB | Y9: =IFERROR(VLOOKUP(D9,'شهر 9 تفصيلي'!$B$5:$AEB$965,1,0),"") -> 1094 | Z9: =IFERROR(VLOOKUP(K9,'شهر 9 تفصيلي'!$B$5:$AEB$965,1,0),"") -> 1561 | AA9: =IFERROR(VLOOKUP(R9,'شهر 9 تفصيلي'!$B$5:$AEB$965,1,0),"") -> 4091 | AB9: 1 | AC9: =IF(C9>0,C9) -> 20345 | AD9: 48 | AE9: =IF(C67>0,C67) -> FALSE | AF9: 1 | AG9: =IF(J9>0,J9) -> 1240 | AH9: 1 | AI9: =IF(Q9>0,Q9) -> 4060
B10: 2 | C10: 20344 | D10: 1821 | F10: 345 | I10: =IFERROR(VLOOKUP(D10,BUS!$C$4:$AEB$946,4,0),"") -> MUB | J10: 1239 | K10: 1511 | M10: 47 | P10: =IFERROR(VLOOKUP(K10,BUS!$C$4:$AEB$946,4,0),"") -> MUB | Q10: 4061 | R10: 6073 | T10: 45 | W10: =IFERROR(VLOOKUP(R10,BUS!$C$4:$AEB$946,4,0),"") -> بديل | Y10: =IFERROR(VLOOKUP(D10,'شهر 9 تفصيلي'!$B$5:$AEB$965,1,0),"") -> 1821 | Z10: =IFERROR(VLOOKUP(K10,'شهر 9 تفصيلي'!$B$5:$AEB$965,1,0),"") -> 1511 | AA10: =IFERROR(VLOOKUP(R10,'شهر 9 تفصيلي'!$B$5:$AEB$965,1,0),"") -> 6073 | AB10: 2 | AC10: =IF(C10>0,C10) -> 20344 | AD10: 49 | AE10: =IF(C68>0,C68) -> FALSE | AF10: 2 | AG10: =IF(J10>0,J10) -> 1239 | AH10: 2 | AI10: =IF(Q10>0,Q10) -> 4061
B11: 3 | C11: 20343 | D11: 1051 | F11: 165 | I11: =IFERROR(VLOOKUP(D11,BUS!$C$4:$AEB$946,4,0),"") -> MUB | J11: 1238 | K11: 1557 | M11: 98 | P11: =IFERROR(VLOOKUP(K11,BUS!$C$4:$AEB$946,4,0),"") -> MUB | Q11: 4986 | R11: الورشه | T11: 60 | W11: =IFERROR(VLOOKUP(R11,BUS!$C$4:$AEB$946,4,0),"") -> MUB | Y11: =IFERROR(VLOOKUP(D11,'شهر 9 تفصيلي'!$B$5:$AEB$965,1,0),"") -> 1051 | Z11: =IFERROR(VLOOKUP(K11,'شهر 9 تفصيلي'!$B$5:$AEB$965,1,0),"") -> 1557 | AA11: =IFERROR(VLOOKUP(R11,'شهر 9 تفصيلي'!$B$5:$AEB$965,1,0),"") -> الورشه | AB11: 3 | AC11: 20343 | AD11: 50 | AE11: FALSE | AF11: 3 | AG11: 1238 | AH11: 3 | AI11: 4986
B12: 4 | C12: 20342 | D12: 1809 | F12: 200 | I12: =IFERROR(VLOOKUP(D12,BUS!$C$4:$AEB$946,4,0),"") -> MUB | P12: =IFERROR(VLOOKUP(K12,BUS!$C$4:$AEB$946,4,0),"") ->  | Q12: 4059 | R12: se81 | T12: 36 | W12: =IFERROR(VLOOKUP(R12,BUS!$C$4:$AEB$946,4,0),"") -> MUB | Y12: =IFERROR(VLOOKUP(D12,'شهر 9 تفصيلي'!$B$5:$AEB$965,1,0),"") -> 1809 | Z12: =IFERROR(VLOOKUP(K12,'شهر 9 تفصيلي'!$B$5:$AEB$965,1,0),"") ->  | AA12: =IFERROR(VLOOKUP(R12,'شهر 9 تفصيلي'!$B$5:$AEB$965,1,0),"") -> SE81 | AB12: 4 | AC12: 20342 | AD12: 51 | AE12: FALSE | AF12: 4 | AG12: FALSE | AH12: 4 | AI12: 4059
B13: 5 | C13: 20341 | D13: 1204 | F13: 220 | I13: =IFERROR(VLOOKUP(D13,BUS!$C$4:$AEB$946,4,0),"") -> MUB | P13: =IFERROR(VLOOKUP(K13,BUS!$C$4:$AEB$946,4,0),"") ->  | Q13: 4064 | R13: se81 | T13: 32 | W13: =IFERROR(VLOOKUP(R13,BUS!$C$4:$AEB$946,4,0),"") -> MUB | Y13: =IFERROR(VLOOKUP(D13,'شهر 9 تفصيلي'!$B$5:$AEB$965,1,0),"") -> 1204 | Z13: =IFERROR(VLOOKUP(K13,'شهر 9 تفصيلي'!$B$5:$AEB$965,1,0),"") ->  | AA13: =IFERROR(VLOOKUP(R13,'شهر 9 تفصيلي'!$B$5:$AEB$965,1,0),"") -> SE81 | AB13: 5 | AC13: 20341 | AD13: 52 | AE13: FALSE | AF13: 5 | AG13: FALSE | AH13: 5 | AI13: 4064
B14: 6 | C14: 20340 | D14: 1297 | F14: 270 | I14: =IFERROR(VLOOKUP(D14,BUS!$C$4:$AEB$946,4,0),"") -> DHA | P14: =IFERROR(VLOOKUP(K14,BUS!$C$4:$AEB$946,4,0),"") ->  | Q14: 4063 | R14: 4013 | T14: 37 | W14: =IFERROR(VLOOKUP(R14,BUS!$C$4:$AEB$946,4,0),"") -> MUB | Y14: =IFERROR(VLOOKUP(D14,'شهر 9 تفصيلي'!$B$5:$AEB$965,1,0),"") -> 1297 | Z14: =IFERROR(VLOOKUP(K14,'شهر 9 تفصيلي'!$B$5:$AEB$965,1,0),"") ->  | AA14: =IFERROR(VLOOKUP(R14,'شهر 9 تفصيلي'!$B$5:$AEB$965,1,0),"") -> 4013 | AB14: 6 | AC14: 20340 | AD14: 53 | AE14: FALSE | AF14: 6 | AG14: FALSE | AH14: 6 | AI14: 4063
B15: 7 | C15: 20339 | D15: 1820 | F15: 70 | I15: =IFERROR(VLOOKUP(D15,BUS!$C$4:$AEB$946,4,0),"") -> MUB | P15: =IFERROR(VLOOKUP(K15,BUS!$C$4:$AEB$946,4,0),"") ->  | Q15: 4062 | R15: 6059 | T15: 44 | W15: =IFERROR(VLOOKUP(R15,BUS!$C$4:$AEB$946,4,0),"") -> بديل | Y15: =IFERROR(VLOOKUP(D15,'شهر 9 تفصيلي'!$B$5:$AEB$965,1,0),"") -> 1820 | Z15: =IFERROR(VLOOKUP(K15,'شهر 9 تفصيلي'!$B$5:$AEB$965,1,0),"") ->  | AA15: =IFERROR(VLOOKUP(R15,'شهر 9 تفصيلي'!$B$5:$AEB$965,1,0),"") -> 6059 | AB15: 7 | AC15: 20339 | AD15: 54 | AE15: FALSE | AF15: 7 | AG15: FALSE | AH15: 7 | AI15: 4062
B16: 8 | C16: 20338 | D16: 1059 | F16: 235 | I16: =IFERROR(VLOOKUP(D16,BUS!$C$4:$AEB$946,4,0),"") -> DHA | P16: =IFERROR(VLOOKUP(K16,BUS!$C$4:$AEB$946,4,0),"") ->  | W16: =IFERROR(VLOOKUP(R16,BUS!$C$4:$AEB$946,4,0),"") ->  | Y16: =IFERROR(VLOOKUP(D16,'شهر 9 تفصيلي'!$B$5:$AEB$965,1,0),"") -> 1059 | Z16: =IFERROR(VLOOKUP(K16,'شهر 9 تفصيلي'!$B$5:$AEB$965,1,0),"") ->  | AA16: =IFERROR(VLOOKUP(R16,'شهر 9 تفصيلي'!$B$5:$AEB$965,1,0),"") ->  | AB16: 8 | AC16: 20338 | AD16: 55 | AE16: FALSE | AF16: 8 | AG16: FALSE | AH16: 8 | AI16: FALSE
B17: 9 | C17: 20337 | D17: 1804 | F17: 280 | I17: =IFERROR(VLOOKUP(D17,BUS!$C$4:$AEB$946,4,0),"") -> MUB | P17: =IFERROR(VLOOKUP(K17,BUS!$C$4:$AEB$946,4,0),"") ->  | W17: =IFERROR(VLOOKUP(R17,BUS!$C$4:$AEB$946,4,0),"") ->  | Y17: =IFERROR(VLOOKUP(D17,'شهر 9 تفصيلي'!$B$5:$AEB$965,1,0),"") -> 1804 | Z17: =IFERROR(VLOOKUP(K17,'شهر 9 تفصيلي'!$B$5:$AEB$965,1,0),"") ->  | AA17: =IFERROR(VLOOKUP(R17,'شهر 9 تفصيلي'!$B$5:$AEB$965,1,0),"") ->  | AB17: 9 | AC17: 20337 | AD17: 56 | AE17: FALSE | AF17: 9 | AG17: FALSE | AH17: 9 | AI17: FALSE
B18: 10 | C18: 20336 | D18: 1074 | F18: 190 | I18: =IFERROR(VLOOKUP(D18,BUS!$C$4:$AEB$946,4,0),"") -> MUB | P18: =IFERROR(VLOOKUP(K18,BUS!$C$4:$AEB$946,4,0),"") ->  | W18: =IFERROR(VLOOKUP(R18,BUS!$C$4:$AEB$946,4,0),"") ->  | Y18: =IFERROR(VLOOKUP(D18,'شهر 9 تفصيلي'!$B$5:$AEB$965,1,0),"") -> 1074 | Z18: =IFERROR(VLOOKUP(K18,'شهر 9 تفصيلي'!$B$5:$AEB$965,1,0),"") ->  | AA18: =IFERROR(VLOOKUP(R18,'شهر 9 تفصيلي'!$B$5:$AEB$965,1,0),"") ->  | AB18: 10 | AC18: 20336 | AD18: 57 | AE18: FALSE | AF18: 10 | AG18: FALSE | AH18: 10 | AI18: FALSE
B19: 11 | C19: 20335 | D19: 1356 | F19: 155 | I19: =IFERROR(VLOOKUP(D19,BUS!$C$4:$AEB$946,4,0),"") -> MUB | P19: =IFERROR(VLOOKUP(K19,BUS!$C$4:$AEB$946,4,0),"") ->  | W19: =IFERROR(VLOOKUP(R19,BUS!$C$4:$AEB$946,4,0),"") ->  | Y19: =IFERROR(VLOOKUP(D19,'شهر 9 تفصيلي'!$B$5:$AEB$965,1,0),"") -> 1356 | Z19: =IFERROR(VLOOKUP(K19,'شهر 9 تفصيلي'!$B$5:$AEB$965,1,0),"") ->  | AA19: =IFERROR(VLOOKUP(R19,'شهر 9 تفصيلي'!$B$5:$AEB$965,1,0),"") ->  | AB19: 11 | AC19: 20335 | AD19: 58 | AE19: FALSE | AF19: 11 | AG19: FALSE | AH19: 11 | AI19: FALSE
B20: 12 | C20: 20334 | D20: 1208 | F20: 195 | I20: =IFERROR(VLOOKUP(D20,BUS!$C$4:$AEB$946,4,0),"") -> MUB | P20: =IFERROR(VLOOKUP(K20,BUS!$C$4:$AEB$946,4,0),"") ->  | W20: =IFERROR(VLOOKUP(R20,BUS!$C$4:$AEB$946,4,0),"") ->  | Y20: =IFERROR(VLOOKUP(D20,'شهر 9 تفصيلي'!$B$5:$AEB$965,1,0),"") -> 1208 | Z20: =IFERROR(VLOOKUP(K20,'شهر 9 تفصيلي'!$B$5:$AEB$965,1,0),"") ->  | AA20: =IFERROR(VLOOKUP(R20,'شهر 9 تفصيلي'!$B$5:$AEB$965,1,0),"") ->  | AB20: 12 | AC20: 20334 | AD20: 59 | AE20: FALSE | AF20: 12 | AG20: FALSE | AH20: 12 | AI20: FALSE
B21: 13 | C21: 20348 | D21: 1659 | F21: 50 | I21: =IFERROR(VLOOKUP(D21,BUS!$C$4:$AEB$946,4,0),"") -> MUB | P21: =IFERROR(VLOOKUP(K21,BUS!$C$4:$AEB$946,4,0),"") ->  | W21: =IFERROR(VLOOKUP(R21,BUS!$C$4:$AEB$946,4,0),"") ->  | Y21: =IFERROR(VLOOKUP(D21,'شهر 9 تفصيلي'!$B$5:$AEB$965,1,0),"") -> 1659 | Z21: =IFERROR(VLOOKUP(K21,'شهر 9 تفصيلي'!$B$5:$AEB$965,1,0),"") ->  | AA21: =IFERROR(VLOOKUP(R21,'شهر 9 تفصيلي'!$B$5:$AEB$965,1,0),"") ->  | AB21: 13 | AC21: 20348 | AD21: 60 | AE21: FALSE | AF21: 13 | AG21: FALSE | AH21: 13 | AI21: FALSE
B22: 14 | C22: 20347 | D22: 1808 | F22: 185 | I22: =IFERROR(VLOOKUP(D22,BUS!$C$4:$AEB$946,4,0),"") -> MUB | P22: =IFERROR(VLOOKUP(K22,BUS!$C$4:$AEB$946,4,0),"") ->  | W22: =IFERROR(VLOOKUP(R22,BUS!$C$4:$AEB$946,4,0),"") ->  | Y22: =IFERROR(VLOOKUP(D22,'شهر 9 تفصيلي'!$B$5:$AEB$965,1,0),"") -> 1808 | Z22: =IFERROR(VLOOKUP(K22,'شهر 9 تفصيلي'!$B$5:$AEB$965,1,0),"") ->  | AA22: =IFERROR(VLOOKUP(R22,'شهر 9 تفصيلي'!$B$5:$AEB$965,1,0),"") ->  | AB22: 14 | AC22: 20347 | AD22: 61 | AE22: FALSE | AF22: 14 | AG22: FALSE | AH22: 14 | AI22: FALSE
B23: 15 | C23: 20346 | D23: 1255 | F23: 210 | I23: =IFERROR(VLOOKUP(D23,BUS!$C$4:$AEB$946,4,0),"") -> DHA | P23: =IFERROR(VLOOKUP(K23,BUS!$C$4:$AEB$946,4,0),"") ->  | W23: =IFERROR(VLOOKUP(R23,BUS!$C$4:$AEB$946,4,0),"") ->  | Y23: =IFERROR(VLOOKUP(D23,'شهر 9 تفصيلي'!$B$5:$AEB$965,1,0),"") -> 1255 | Z23: =IFERROR(VLOOKUP(K23,'شهر 9 تفصيلي'!$B$5:$AEB$965,1,0),"") ->  | AA23: =IFERROR(VLOOKUP(R23,'شهر 9 تفصيلي'!$B$5:$AEB$965,1,0),"") ->  | AB23: 15 | AC23: 20346 | AD23: 62 | AE23: FALSE | AF23: 15 | AG23: FALSE | AH23: 15 | AI23: FALSE
B24: 16 | C24: 20316 | D24: 1255 | F24: 80 | I24: =IFERROR(VLOOKUP(D24,BUS!$C$4:$AEB$946,4,0),"") -> DHA | P24: =IFERROR(VLOOKUP(K24,BUS!$C$4:$AEB$946,4,0),"") ->  | W24: =IFERROR(VLOOKUP(R24,BUS!$C$4:$AEB$946,4,0),"") ->  | Y24: =IFERROR(VLOOKUP(D24,'شهر 9 تفصيلي'!$B$5:$AEB$965,1,0),"") -> 1255 | Z24: =IFERROR(VLOOKUP(K24,'شهر 9 تفصيلي'!$B$5:$AEB$965,1,0),"") ->  | AA24: =IFERROR(VLOOKUP(R24,'شهر 9 تفصيلي'!$B$5:$AEB$965,1,0),"") ->  | AB24: 16 | AC24: 20316 | AD24: 63 | AE24: FALSE | AF24: 16 | AG24: FALSE | AH24: 16 | AI24: FALSE
B25: 17 | C25: 20318 | D25: 1043 | F25: 230 | I25: =IFERROR(VLOOKUP(D25,BUS!$C$4:$AEB$946,4,0),"") -> MUB | P25: =IFERROR(VLOOKUP(K25,BUS!$C$4:$AEB$946,4,0),"") ->  | W25: =IFERROR(VLOOKUP(R25,BUS!$C$4:$AEB$946,4,0),"") ->  | Y25: =IFERROR(VLOOKUP(D25,'شهر 9 تفصيلي'!$B$5:$AEB$965,1,0),"") -> 1043 | Z25: =IFERROR(VLOOKUP(K25,'شهر 9 تفصيلي'!$B$5:$AEB$965,1,0),"") ->  | AA25: =IFERROR(VLOOKUP(R25,'شهر 9 تفصيلي'!$B$5:$AEB$965,1,0),"") ->  | AB25: 17 | AC25: 20318 | AD25: 64 | AE25: FALSE | AF25: 17 | AG25: FALSE | AH25: 17 | AI25: FALSE
B26: 18 | C26: 20317 | D26: 1293 | F26: 295 | I26: =IFERROR(VLOOKUP(D26,BUS!$C$4:$AEB$946,4,0),"") -> MUB | P26: =IFERROR(VLOOKUP(K26,BUS!$C$4:$AEB$946,4,0),"") ->  | W26: =IFERROR(VLOOKUP(R26,BUS!$C$4:$AEB$946,4,0),"") ->  | Y26: =IFERROR(VLOOKUP(D26,'شهر 9 تفصيلي'!$B$5:$AEB$965,1,0),"") -> 1293 | Z26: =IFERROR(VLOOKUP(K26,'شهر 9 تفصيلي'!$B$5:$AEB$965,1,0),"") ->  | AA26: =IFERROR(VLOOKUP(R26,'شهر 9 تفصيلي'!$B$5:$AEB$965,1,0),"") ->  | AB26: 18 | AC26: 20317 | AD26: 65 | AE26: FALSE | AF26: 18 | AG26: FALSE | AH26: 18 | AI26: FALSE
B27: 19 | C27: 20319 | D27: 1659 | F27: 62 | I27: =IFERROR(VLOOKUP(D27,BUS!$C$4:$AEB$946,4,0),"") -> MUB | P27: =IFERROR(VLOOKUP(K27,BUS!$C$4:$AEB$946,4,0),"") ->  | W27: =IFERROR(VLOOKUP(R27,BUS!$C$4:$AEB$946,4,0),"") ->  | Y27: =IFERROR(VLOOKUP(D27,'شهر 9 تفصيلي'!$B$5:$AEB$965,1,0),"") -> 1659 | Z27: =IFERROR(VLOOKUP(K27,'شهر 9 تفصيلي'!$B$5:$AEB$965,1,0),"") ->  | AA27: =IFERROR(VLOOKUP(R27,'شهر 9 تفصيلي'!$B$5:$AEB$965,1,0),"") ->  | AB27: 19 | AC27: 20319 | AD27: 66 | AE27: FALSE | AF27: 19 | AG27: FALSE | AH27: 19 | AI27: FALSE
B28: 20 | C28: 20320 | D28: 1332 | F28: 180 | I28: =IFERROR(VLOOKUP(D28,BUS!$C$4:$AEB$946,4,0),"") -> MUB | P28: =IFERROR(VLOOKUP(K28,BUS!$C$4:$AEB$946,4,0),"") ->  | W28: =IFERROR(VLOOKUP(R28,BUS!$C$4:$AEB$946,4,0),"") ->  | Y28: =IFERROR(VLOOKUP(D28,'شهر 9 تفصيلي'!$B$5:$AEB$965,1,0),"") -> 1332 | Z28: =IFERROR(VLOOKUP(K28,'شهر 9 تفصيلي'!$B$5:$AEB$965,1,0),"") ->  | AA28: =IFERROR(VLOOKUP(R28,'شهر 9 تفصيلي'!$B$5:$AEB$965,1,0),"") ->  | AB28: 20 | AC28: 20320 | AD28: 67 | AE28: FALSE | AF28: 20 | AG28: FALSE | AH28: 20 | AI28: FALSE
B29: 21 | C29: 20322 | D29: 1271 | F29: 185 | I29: =IFERROR(VLOOKUP(D29,BUS!$C$4:$AEB$946,4,0),"") -> MUB | P29: =IFERROR(VLOOKUP(K29,BUS!$C$4:$AEB$946,4,0),"") ->  | W29: =IFERROR(VLOOKUP(R29,BUS!$C$4:$AEB$946,4,0),"") ->  | Y29: =IFERROR(VLOOKUP(D29,'شهر 9 تفصيلي'!$B$5:$AEB$965,1,0),"") -> 1271 | Z29: =IFERROR(VLOOKUP(K29,'شهر 9 تفصيلي'!$B$5:$AEB$965,1,0),"") ->  | AA29: =IFERROR(VLOOKUP(R29,'شهر 9 تفصيلي'!$B$5:$AEB$965,1,0),"") ->  | AB29: 21 | AC29: 20322 | AD29: 68 | AE29: FALSE | AF29: 21 | AG29: FALSE | AH29: 21 | AI29: FALSE
B30: 22 | C30: 20323 | D30: 1013 | F30: 145 | I30: =IFERROR(VLOOKUP(D30,BUS!$C$4:$AEB$946,4,0),"") -> MUB | P30: =IFERROR(VLOOKUP(K30,BUS!$C$4:$AEB$946,4,0),"") ->  | W30: =IFERROR(VLOOKUP(R30,BUS!$C$4:$AEB$946,4,0),"") ->  | Y30: =IFERROR(VLOOKUP(D30,'شهر 9 تفصيلي'!$B$5:$AEB$965,1,0),"") -> 1013 | Z30: =IFERROR(VLOOKUP(K30,'شهر 9 تفصيلي'!$B$5:$AEB$965,1,0),"") ->  | AA30: =IFERROR(VLOOKUP(R30,'شهر 9 تفصيلي'!$B$5:$AEB$965,1,0),"") ->  | AB30: 22 | AC30: 20323 | AD30: 69 | AE30: FALSE | AF30: 22 | AG30: FALSE | AH30: 22 | AI30: FALSE
B31: 23 | C31: 20324 | D31: 1208 | F31: 160 | I31: =IFERROR(VLOOKUP(D31,BUS!$C$4:$AEB$946,4,0),"") -> MUB | P31: =IFERROR(VLOOKUP(K31,BUS!$C$4:$AEB$946,4,0),"") ->  | W31: =IFERROR(VLOOKUP(R31,BUS!$C$4:$AEB$946,4,0),"") ->  | Y31: =IFERROR(VLOOKUP(D31,'شهر 9 تفصيلي'!$B$5:$AEB$965,1,0),"") -> 1208 | Z31: =IFERROR(VLOOKUP(K31,'شهر 9 تفصيلي'!$B$5:$AEB$965,1,0),"") ->  | AA31: =IFERROR(VLOOKUP(R31,'شهر 9 تفصيلي'!$B$5:$AEB$965,1,0),"") ->  | AB31: 23 | AC31: 20324 | AD31: 70 | AE31: FALSE | AF31: 23 | AG31: FALSE | AH31: 23 | AI31: FALSE
B32: 24 | C32: 20325 | D32: 1225 | F32: 173 | I32: =IFERROR(VLOOKUP(D32,BUS!$C$4:$AEB$946,4,0),"") -> DHA | P32: =IFERROR(VLOOKUP(K32,BUS!$C$4:$AEB$946,4,0),"") ->  | W32: =IFERROR(VLOOKUP(R32,BUS!$C$4:$AEB$946,4,0),"") ->  | Y32: =IFERROR(VLOOKUP(D32,'شهر 9 تفصيلي'!$B$5:$AEB$965,1,0),"") -> 1225 | Z32: =IFERROR(VLOOKUP(K32,'شهر 9 تفصيلي'!$B$5:$AEB$965,1,0),"") ->  | AA32: =IFERROR(VLOOKUP(R32,'شهر 9 تفصيلي'!$B$5:$AEB$965,1,0),"") ->  | AB32: 24 | AC32: 20325 | AD32: 71 | AE32: FALSE | AF32: 24 | AG32: FALSE | AH32: 24 | AI32: FALSE
B33: 25 | C33: 20326 | D33: 1811 | F33: 165 | I33: =IFERROR(VLOOKUP(D33,BUS!$C$4:$AEB$946,4,0),"") -> MUB | P33: =IFERROR(VLOOKUP(K33,BUS!$C$4:$AEB$946,4,0),"") ->  | W33: =IFERROR(VLOOKUP(R33,BUS!$C$4:$AEB$946,4,0),"") ->  | Y33: =IFERROR(VLOOKUP(D33,'شهر 9 تفصيلي'!$B$5:$AEB$965,1,0),"") -> 1811 | Z33: =IFERROR(VLOOKUP(K33,'شهر 9 تفصيلي'!$B$5:$AEB$965,1,0),"") ->  | AA33: =IFERROR(VLOOKUP(R33,'شهر 9 تفصيلي'!$B$5:$AEB$965,1,0),"") ->  | AB33: 25 | AC33: 20326 | AD33: 72 | AE33: FALSE | AF33: 25 | AG33: FALSE | AH33: 25 | AI33: FALSE
B34: 26 | C34: 20327 | D34: 1237 | F34: 115 | I34: =IFERROR(VLOOKUP(D34,BUS!$C$4:$AEB$946,4,0),"") -> MUB | P34: =IFERROR(VLOOKUP(K34,BUS!$C$4:$AEB$946,4,0),"") ->  | W34: =IFERROR(VLOOKUP(R34,BUS!$C$4:$AEB$946,4,0),"") ->  | Y34: =IFERROR(VLOOKUP(D34,'شهر 9 تفصيلي'!$B$5:$AEB$965,1,0),"") -> 1237 | Z34: =IFERROR(VLOOKUP(K34,'شهر 9 تفصيلي'!$B$5:$AEB$965,1,0),"") ->  | AA34: =IFERROR(VLOOKUP(R34,'شهر 9 تفصيلي'!$B$5:$AEB$965,1,0),"") ->  | AB34: 26 | AC34: 20327 | AD34: 73 | AE34: FALSE | AF34: 26 | AG34: FALSE | AH34: 26 | AI34: FALSE
B35: 27 | C35: 20328 | D35: 1050 | F35: 110 | I35: =IFERROR(VLOOKUP(D35,BUS!$C$4:$AEB$946,4,0),"") -> DHA | P35: =IFERROR(VLOOKUP(K35,BUS!$C$4:$AEB$946,4,0),"") ->  | W35: =IFERROR(VLOOKUP(R35,BUS!$C$4:$AEB$946,4,0),"") ->  | Y35: =IFERROR(VLOOKUP(D35,'شهر 9 تفصيلي'!$B$5:$AEB$965,1,0),"") -> 1050 | Z35: =IFERROR(VLOOKUP(K35,'شهر 9 تفصيلي'!$B$5:$AEB$965,1,0),"") ->  | AA35: =IFERROR(VLOOKUP(R35,'شهر 9 تفصيلي'!$B$5:$AEB$965,1,0),"") ->  | AB35: 27 | AC35: 20328 | AD35: 74 | AE35: FALSE | AF35: 27 | AG35: FALSE | AH35: 27 | AI35: FALSE
B36: 28 | C36: 20329 | D36: 1121 | F36: 130 | I36: =IFERROR(VLOOKUP(D36,BUS!$C$4:$AEB$946,4,0),"") -> DHA | P36: =IFERROR(VLOOKUP(K36,BUS!$C$4:$AEB$946,4,0),"") ->  | W36: =IFERROR(VLOOKUP(R36,BUS!$C$4:$AEB$946,4,0),"") ->  | Y36: =IFERROR(VLOOKUP(D36,'شهر 9 تفصيلي'!$B$5:$AEB$965,1,0),"") -> 1121 | Z36: =IFERROR(VLOOKUP(K36,'شهر 9 تفصيلي'!$B$5:$AEB$965,1,0),"") ->  | AA36: =IFERROR(VLOOKUP(R36,'شهر 9 تفصيلي'!$B$5:$AEB$965,1,0),"") ->  | AB36: 28 | AC36: 20329 | AD36: 75 | AE36: FALSE | AF36: 28 | AG36: FALSE | AH36: 28 | AI36: FALSE
B37: 29 | C37: 20330 | D37: 1291 | F37: 190 | I37: =IFERROR(VLOOKUP(D37,BUS!$C$4:$AEB$946,4,0),"") -> MUB | P37: =IFERROR(VLOOKUP(K37,BUS!$C$4:$AEB$946,4,0),"") ->  | W37: =IFERROR(VLOOKUP(R37,BUS!$C$4:$AEB$946,4,0),"") ->  | Y37: =IFERROR(VLOOKUP(D37,'شهر 9 تفصيلي'!$B$5:$AEB$965,1,0),"") -> 1291 | Z37: =IFERROR(VLOOKUP(K37,'شهر 9 تفصيلي'!$B$5:$AEB$965,1,0),"") ->  | AA37: =IFERROR(VLOOKUP(R37,'شهر 9 تفصيلي'!$B$5:$AEB$965,1,0),"") ->  | AB37: 29 | AC37: 20330 | AD37: 76 | AE37: FALSE | AF37: 29 | AG37: FALSE | AH37: 29 | AI37: FALSE
B38: 30 | C38: 20331 | D38: 1294 | F38: 270 | I38: =IFERROR(VLOOKUP(D38,BUS!$C$4:$AEB$946,4,0),"") -> MUB | P38: =IFERROR(VLOOKUP(K38,BUS!$C$4:$AEB$946,4,0),"") ->  | W38: =IFERROR(VLOOKUP(R38,BUS!$C$4:$AEB$946,4,0),"") ->  | Y38: =IFERROR(VLOOKUP(D38,'شهر 9 تفصيلي'!$B$5:$AEB$965,1,0),"") -> 1294 | Z38: =IFERROR(VLOOKUP(K38,'شهر 9 تفصيلي'!$B$5:$AEB$965,1,0),"") ->  | AA38: =IFERROR(VLOOKUP(R38,'شهر 9 تفصيلي'!$B$5:$AEB$965,1,0),"") ->  | AB38: 30 | AC38: 20331 | AD38: 77 | AE38: FALSE | AF38: 30 | AG38: FALSE | AH38: 30 | AI38: FALSE
B39: 31 | C39: 20332 | D39: 1815 | F39: 90 | I39: =IFERROR(VLOOKUP(D39,BUS!$C$4:$AEB$946,4,0),"") -> MUB | P39: =IFERROR(VLOOKUP(K39,BUS!$C$4:$AEB$946,4,0),"") ->  | W39: =IFERROR(VLOOKUP(R39,BUS!$C$4:$AEB$946,4,0),"") ->  | Y39: =IFERROR(VLOOKUP(D39,'شهر 9 تفصيلي'!$B$5:$AEB$965,1,0),"") -> 1815 | Z39: =IFERROR(VLOOKUP(K39,'شهر 9 تفصيلي'!$B$5:$AEB$965,1,0),"") ->  | AA39: =IFERROR(VLOOKUP(R39,'شهر 9 تفصيلي'!$B$5:$AEB$965,1,0),"") ->  | AB39: 31 | AC39: 20332 | AD39: 78 | AE39: FALSE | AF39: 31 | AG39: FALSE | AH39: 31 | AI39: FALSE
B40: 32 | C40: 20333 | D40: 1061 | F40: 180 | I40: =IFERROR(VLOOKUP(D40,BUS!$C$4:$AEB$946,4,0),"") -> MUB | P40: =IFERROR(VLOOKUP(K40,BUS!$C$4:$AEB$946,4,0),"") ->  | W40: =IFERROR(VLOOKUP(R40,BUS!$C$4:$AEB$946,4,0),"") ->  | Y40: =IFERROR(VLOOKUP(D40,'شهر 9 تفصيلي'!$B$5:$AEB$965,1,0),"") -> 1061 | Z40: =IFERROR(VLOOKUP(K40,'شهر 9 تفصيلي'!$B$5:$AEB$965,1,0),"") ->  | AA40: =IFERROR(VLOOKUP(R40,'شهر 9 تفصيلي'!$B$5:$AEB$965,1,0),"") ->  | AB40: 32 | AC40: 20333 | AD40: 79 | AE40: FALSE | AF40: 32 | AG40: FALSE | AH40: 32 | AI40: FALSE
B41: 33 | I41: =IFERROR(VLOOKUP(D41,BUS!$C$4:$AEB$946,4,0),"") ->  | P41: =IFERROR(VLOOKUP(K41,BUS!$C$4:$AEB$946,4,0),"") ->  | W41: =IFERROR(VLOOKUP(R41,BUS!$C$4:$AEB$946,4,0),"") ->  | Y41: =IFERROR(VLOOKUP(D41,'شهر 9 تفصيلي'!$B$5:$AEB$965,1,0),"") ->  | Z41: =IFERROR(VLOOKUP(K41,'شهر 9 تفصيلي'!$B$5:$AEB$965,1,0),"") ->  | AA41: =IFERROR(VLOOKUP(R41,'شهر 9 تفصيلي'!$B$5:$AEB$965,1,0),"") ->  | AB41: 33 | AC41: FALSE | AD41: 80 | AE41: FALSE | AF41: 33 | AG41: FALSE | AH41: 33 | AI41: FALSE
B42: 34 | I42: =IFERROR(VLOOKUP(D42,BUS!$C$4:$AEB$946,4,0),"") ->  | P42: =IFERROR(VLOOKUP(K42,BUS!$C$4:$AEB$946,4,0),"") ->  | W42: =IFERROR(VLOOKUP(R42,BUS!$C$4:$AEB$946,4,0),"") ->  | Y42: =IFERROR(VLOOKUP(D42,'شهر 9 تفصيلي'!$B$5:$AEB$965,1,0),"") ->  | Z42: =IFERROR(VLOOKUP(K42,'شهر 9 تفصيلي'!$B$5:$AEB$965,1,0),"") ->  | AA42: =IFERROR(VLOOKUP(R42,'شهر 9 تفصيلي'!$B$5:$AEB$965,1,0),"") ->  | AB42: 34 | AC42: FALSE | AD42: 81 | AE42: FALSE | AF42: 34 | AG42: FALSE | AH42: 34 | AI42: FALSE
B43: 35 | I43: =IFERROR(VLOOKUP(D43,BUS!$C$4:$AEB$946,4,0),"") ->  | P43: =IFERROR(VLOOKUP(K43,BUS!$C$4:$AEB$946,4,0),"") ->  | W43: =IFERROR(VLOOKUP(R43,BUS!$C$4:$AEB$946,4,0),"") ->  | Y43: =IFERROR(VLOOKUP(D43,'شهر 9 تفصيلي'!$B$5:$AEB$965,1,0),"") ->  | Z43: =IFERROR(VLOOKUP(K43,'شهر 9 تفصيلي'!$B$5:$AEB$965,1,0),"") ->  | AA43: =IFERROR(VLOOKUP(R43,'شهر 9 تفصيلي'!$B$5:$AEB$965,1,0),"") ->  | AB43: 35 | AC43: FALSE | AD43: 82 | AE43: FALSE | AF43: 35 | AG43: FALSE | AH43: 35 | AI43: FALSE
B44: 36 | I44: =IFERROR(VLOOKUP(D44,BUS!$C$4:$AEB$946,4,0),"") ->  | P44: =IFERROR(VLOOKUP(K44,BUS!$C$4:$AEB$946,4,0),"") ->  | W44: =IFERROR(VLOOKUP(R44,BUS!$C$4:$AEB$946,4,0),"") ->  | Y44: =IFERROR(VLOOKUP(D44,'شهر 9 تفصيلي'!$B$5:$AEB$965,1,0),"") ->  | Z44: =IFERROR(VLOOKUP(K44,'شهر 9 تفصيلي'!$B$5:$AEB$965,1,0),"") ->  | AA44: =IFERROR(VLOOKUP(R44,'شهر 9 تفصيلي'!$B$5:$AEB$965,1,0),"") ->  | AB44: 36 | AC44: FALSE | AD44: 83 | AE44: FALSE | AF44: 36 | AG44: FALSE | AH44: 36 | AI44: FALSE
B45: 37 | I45: =IFERROR(VLOOKUP(D45,BUS!$C$4:$AEB$946,4,0),"") ->  | P45: =IFERROR(VLOOKUP(K45,BUS!$C$4:$AEB$946,4,0),"") ->  | W45: =IFERROR(VLOOKUP(R45,BUS!$C$4:$AEB$946,4,0),"") ->  | Y45: =IFERROR(VLOOKUP(D45,'شهر 9 تفصيلي'!$B$5:$AEB$965,1,0),"") ->  | Z45: =IFERROR(VLOOKUP(K45,'شهر 9 تفصيلي'!$B$5:$AEB$965,1,0),"") ->  | AA45: =IFERROR(VLOOKUP(R45,'شهر 9 تفصيلي'!$B$5:$AEB$965,1,0),"") ->  | AB45: 37 | AC45: FALSE | AD45: 84 | AE45: FALSE | AF45: 37 | AG45: FALSE | AH45: 37 | AI45: FALSE
B46: 38 | I46: =IFERROR(VLOOKUP(D46,BUS!$C$4:$AEB$946,4,0),"") ->  | P46: =IFERROR(VLOOKUP(K46,BUS!$C$4:$AEB$946,4,0),"") ->  | W46: =IFERROR(VLOOKUP(R46,BUS!$C$4:$AEB$946,4,0),"") ->  | Y46: =IFERROR(VLOOKUP(D46,'شهر 9 تفصيلي'!$B$5:$AEB$965,1,0),"") ->  | Z46: =IFERROR(VLOOKUP(K46,'شهر 9 تفصيلي'!$B$5:$AEB$965,1,0),"") ->  | AA46: =IFERROR(VLOOKUP(R46,'شهر 9 تفصيلي'!$B$5:$AEB$965,1,0),"") ->  | AB46: 38 | AC46: FALSE | AD46: 85 | AE46: FALSE | AF46: 38 | AG46: FALSE | AH46: 38 | AI46: FALSE
B47: 39 | I47: =IFERROR(VLOOKUP(D47,BUS!$C$4:$AEB$946,4,0),"") ->  | P47: =IFERROR(VLOOKUP(K47,BUS!$C$4:$AEB$946,4,0),"") ->  | W47: =IFERROR(VLOOKUP(R47,BUS!$C$4:$AEB$946,4,0),"") ->  | Y47: =IFERROR(VLOOKUP(D47,'شهر 9 تفصيلي'!$B$5:$AEB$965,1,0),"") ->  | Z47: =IFERROR(VLOOKUP(K47,'شهر 9 تفصيلي'!$B$5:$AEB$965,1,0),"") ->  | AA47: =IFERROR(VLOOKUP(R47,'شهر 9 تفصيلي'!$B$5:$AEB$965,1,0),"") ->  | AB47: 39 | AC47: FALSE | AD47: 86 | AE47: FALSE | AF47: 39 | AG47: FALSE | AH47: 39 | AI47: FALSE
B48: 40 | I48: =IFERROR(VLOOKUP(D48,BUS!$C$4:$AEB$946,4,0),"") ->  | P48: =IFERROR(VLOOKUP(K48,BUS!$C$4:$AEB$946,4,0),"") ->  | W48: =IFERROR(VLOOKUP(R48,BUS!$C$4:$AEB$946,4,0),"") ->  | Y48: =IFERROR(VLOOKUP(D48,'شهر 9 تفصيلي'!$B$5:$AEB$965,1,0),"") ->  | Z48: =IFERROR(VLOOKUP(K48,'شهر 9 تفصيلي'!$B$5:$AEB$965,1,0),"") ->  | AA48: =IFERROR(VLOOKUP(R48,'شهر 9 تفصيلي'!$B$5:$AEB$965,1,0),"") ->  | AB48: 40 | AC48: FALSE | AD48: 87 | AE48: FALSE | AF48: 40 | AG48: FALSE | AH48: 40 | AI48: FALSE
B49: 41 | I49: =IFERROR(VLOOKUP(D49,BUS!$C$4:$AEB$946,4,0),"") ->  | P49: =IFERROR(VLOOKUP(K49,BUS!$C$4:$AEB$946,4,0),"") ->  | W49: =IFERROR(VLOOKUP(R49,BUS!$C$4:$AEB$946,4,0),"") ->  | Y49: =IFERROR(VLOOKUP(D49,'شهر 9 تفصيلي'!$B$5:$AEB$965,1,0),"") ->  | Z49: =IFERROR(VLOOKUP(K49,'شهر 9 تفصيلي'!$B$5:$AEB$965,1,0),"") ->  | AA49: =IFERROR(VLOOKUP(R49,'شهر 9 تفصيلي'!$B$5:$AEB$965,1,0),"") ->  | AB49: 41 | AC49: FALSE | AD49: 88 | AE49: FALSE | AF49: 41 | AG49: FALSE | AH49: 41 | AI49: FALSE
B50: 42 | I50: =IFERROR(VLOOKUP(D50,BUS!$C$4:$AEB$946,4,0),"") ->  | P50: =IFERROR(VLOOKUP(K50,BUS!$C$4:$AEB$946,4,0),"") ->  | W50: =IFERROR(VLOOKUP(R50,BUS!$C$4:$AEB$946,4,0),"") ->  | Y50: =IFERROR(VLOOKUP(D50,'شهر 9 تفصيلي'!$B$5:$AEB$965,1,0),"") ->  | Z50: =IFERROR(VLOOKUP(K50,'شهر 9 تفصيلي'!$B$5:$AEB$965,1,0),"") ->  | AA50: =IFERROR(VLOOKUP(R50,'شهر 9 تفصيلي'!$B$5:$AEB$965,1,0),"") ->  | AB50: 42 | AC50: FALSE | AD50: 89 | AE50: FALSE | AF50: 42 | AG50: FALSE | AH50: 42 | AI50: FALSE
B51: 43 | I51: =IFERROR(VLOOKUP(D51,BUS!$C$4:$AEB$946,4,0),"") ->  | P51: =IFERROR(VLOOKUP(K51,BUS!$C$4:$AEB$946,4,0),"") ->  | W51: =IFERROR(VLOOKUP(R51,BUS!$C$4:$AEB$946,4,0),"") ->  | Y51: =IFERROR(VLOOKUP(D51,'شهر 9 تفصيلي'!$B$5:$AEB$965,1,0),"") ->  | Z51: =IFERROR(VLOOKUP(K51,'شهر 9 تفصيلي'!$B$5:$AEB$965,1,0),"") ->  | AA51: =IFERROR(VLOOKUP(R51,'شهر 9 تفصيلي'!$B$5:$AEB$965,1,0),"") ->  | AB51: 43 | AC51: FALSE | AD51: 90 | AE51: FALSE | AF51: 43 | AG51: FALSE | AH51: 43 | AI51: FALSE
B52: 44 | I52: =IFERROR(VLOOKUP(D52,BUS!$C$4:$AEB$946,4,0),"") ->  | P52: =IFERROR(VLOOKUP(K52,BUS!$C$4:$AEB$946,4,0),"") ->  | W52: =IFERROR(VLOOKUP(R52,BUS!$C$4:$AEB$946,4,0),"") ->  | Y52: =IFERROR(VLOOKUP(D52,'شهر 9 تفصيلي'!$B$5:$AEB$965,1,0),"") ->  | Z52: =IFERROR(VLOOKUP(K52,'شهر 9 تفصيلي'!$B$5:$AEB$965,1,0),"") ->  | AA52: =IFERROR(VLOOKUP(R52,'شهر 9 تفصيلي'!$B$5:$AEB$965,1,0),"") ->  | AB52: 44 | AC52: FALSE | AD52: 91 | AE52: FALSE | AF52: 44 | AG52: FALSE | AH52: 44 | AI52: FALSE
B53: 45 | I53: =IFERROR(VLOOKUP(D53,BUS!$C$4:$AEB$946,4,0),"") ->  | P53: =IFERROR(VLOOKUP(K53,BUS!$C$4:$AEB$946,4,0),"") ->  | W53: =IFERROR(VLOOKUP(R53,BUS!$C$4:$AEB$946,4,0),"") ->  | Y53: =IFERROR(VLOOKUP(D53,'شهر 9 تفصيلي'!$B$5:$AEB$965,1,0),"") ->  | Z53: =IFERROR(VLOOKUP(K53,'شهر 9 تفصيلي'!$B$5:$AEB$965,1,0),"") ->  | AA53: =IFERROR(VLOOKUP(R53,'شهر 9 تفصيلي'!$B$5:$AEB$965,1,0),"") ->  | AB53: 45 | AC53: FALSE | AD53: 92 | AE53: FALSE | AF53: 45 | AG53: FALSE | AH53: 45 | AI53: FALSE
B54: 46 | I54: =IFERROR(VLOOKUP(D54,BUS!$C$4:$AEB$946,4,0),"") ->  | P54: =IFERROR(VLOOKUP(K54,BUS!$C$4:$AEB$946,4,0),"") ->  | W54: =IFERROR(VLOOKUP(R54,BUS!$C$4:$AEB$946,4,0),"") ->  | Y54: =IFERROR(VLOOKUP(D54,'شهر 9 تفصيلي'!$B$5:$AEB$965,1,0),"") ->  | Z54: =IFERROR(VLOOKUP(K54,'شهر 9 تفصيلي'!$B$5:$AEB$965,1,0),"") ->  | AA54: =IFERROR(VLOOKUP(R54,'شهر 9 تفصيلي'!$B$5:$AEB$965,1,0),"") ->  | AB54: 46 | AC54: FALSE | AD54: 93 | AE54: FALSE | AF54: 46 | AG54: FALSE | AH54: 46 | AI54: FALSE
B55: 47 | I55: =IFERROR(VLOOKUP(D55,BUS!$C$4:$AEB$946,4,0),"") ->  | P55: =IFERROR(VLOOKUP(K55,BUS!$C$4:$AEB$946,4,0),"") ->  | W55: =IFERROR(VLOOKUP(R55,BUS!$C$4:$AEB$946,4,0),"") ->  | Y55: =IFERROR(VLOOKUP(D55,'شهر 9 تفصيلي'!$B$5:$AEB$965,1,0),"") ->  | Z55: =IFERROR(VLOOKUP(K55,'شهر 9 تفصيلي'!$B$5:$AEB$965,1,0),"") ->  | AA55: =IFERROR(VLOOKUP(R55,'شهر 9 تفصيلي'!$B$5:$AEB$965,1,0),"") ->  | AB55: 47 | AC55: FALSE | AD55: 94 | AE55: FALSE | AF55: 47 | AG55: FALSE | AH55: 47 | AI55: FALSE
D56: TOTAL | F56: =SUM(F9:F55) -> 5725 | K56: TOTAL | M56: =SUM(M9:M55) -> 243 | R56: TOTAL | T56: =SUM(T9:T55) -> 287
B57: Area manager | D57: Operation manager ( Bus D.) | K57: General manager ( Bus D) | T57: Maher-Hassan-2018 | AC57: Maher-Hassan-2018
B64: Checking the station manager
B65: =B7 -> 2021-09-03 | F65: التاريخ / | I65: =I7 ->  | M65: اليـــــــــــوم / | P65: محطة خشمان ( الماسة 7 ) | W65: 2
B66: S.NO | C66: رقم الفاتوره ديزل | D66: BUS | E66: الكيلو D | F66: D | G66: الوقت | H66: المراقب | I66: To | J66: رقم الفاتوره 95 | K66: BUS | L66: الكيلو 95 | M66: 95 | N66: الوقت | O66: المراقب | P66: To | Q66: رقم الفاتوره 91 | R66: BUS | S66: الكيلو 91 | T66: 91 | U66: الوقت | V66: المراقب | W66: To
B67: 48 | I67: =IFERROR(VLOOKUP(D67,BUS!$C$4:$AEB$946,4,0),"") ->  | P67: =IFERROR(VLOOKUP(K67,BUS!$C$4:$AEB$946,4,0),"") ->  | W67: =IFERROR(VLOOKUP(R67,BUS!$C$4:$AEB$946,4,0),"") ->  | Y67: =IFERROR(VLOOKUP(D67,'شهر 9 تفصيلي'!$B$5:$AEB$965,1,0),"") ->  | Z67: =IFERROR(VLOOKUP(K67,'شهر 9 تفصيلي'!$B$5:$AEB$965,1,0),"") ->  | AA67: =IFERROR(VLOOKUP(R67,'شهر 9 تفصيلي'!$B$5:$AEB$965,1,0),"") -> 
B68: 49 | I68: =IFERROR(VLOOKUP(D68,BUS!$C$4:$AEB$946,4,0),"") ->  | P68: =IFERROR(VLOOKUP(K68,BUS!$C$4:$AEB$946,4,0),"") ->  | W68: =IFERROR(VLOOKUP(R68,BUS!$C$4:$AEB$946,4,0),"") ->  | Y68: =IFERROR(VLOOKUP(D68,'شهر 9 تفصيلي'!$B$5:$AEB$965,1,0),"") ->  | Z68: =IFERROR(VLOOKUP(K68,'شهر 9 تفصيلي'!$B$5:$AEB$965,1,0),"") ->  | AA68: =IFERROR(VLOOKUP(R68,'شهر 9 تفصيلي'!$B$5:$AEB$965,1,0),"") -> 
B69: 50 | I69: =IFERROR(VLOOKUP(D69,BUS!$C$4:$AEB$946,4,0),"") ->  | P69: =IFERROR(VLOOKUP(K69,BUS!$C$4:$AEB$946,4,0),"") ->  | W69: =IFERROR(VLOOKUP(R69,BUS!$C$4:$AEB$946,4,0),"") ->  | Y69: =IFERROR(VLOOKUP(D69,'شهر 9 تفصيلي'!$B$5:$AEB$965,1,0),"") ->  | Z69: =IFERROR(VLOOKUP(K69,'شهر 9 تفصيلي'!$B$5:$AEB$965,1,0),"") ->  | AA69: =IFERROR(VLOOKUP(R69,'شهر 9 تفصيلي'!$B$5:$AEB$965,1,0),"") -> 
B70: 51 | I70: =IFERROR(VLOOKUP(D70,BUS!$C$4:$AEB$946,4,0),"") ->  | P70: =IFERROR(VLOOKUP(K70,BUS!$C$4:$AEB$946,4,0),"") ->  | W70: =IFERROR(VLOOKUP(R70,BUS!$C$4:$AEB$946,4,0),"") ->  | Y70: =IFERROR(VLOOKUP(D70,'شهر 9 تفصيلي'!$B$5:$AEB$965,1,0),"") ->  | Z70: =IFERROR(VLOOKUP(K70,'شهر 9 تفصيلي'!$B$5:$AEB$965,1,0),"") ->  | AA70: =IFERROR(VLOOKUP(R70,'شهر 9 تفصيلي'!$B$5:$AEB$965,1,0),"") -> 
B71: 52 | I71: =IFERROR(VLOOKUP(D71,BUS!$C$4:$AEB$946,4,0),"") ->  | P71: =IFERROR(VLOOKUP(K71,BUS!$C$4:$AEB$946,4,0),"") ->  | W71: =IFERROR(VLOOKUP(R71,BUS!$C$4:$AEB$946,4,0),"") ->  | Y71: =IFERROR(VLOOKUP(D71,'شهر 9 تفصيلي'!$B$5:$AEB$965,1,0),"") ->  | Z71: =IFERROR(VLOOKUP(K71,'شهر 9 تفصيلي'!$B$5:$AEB$965,1,0),"") ->  | AA71: =IFERROR(VLOOKUP(R71,'شهر 9 تفصيلي'!$B$5:$AEB$965,1,0),"") -> 
B72: 53 | I72: =IFERROR(VLOOKUP(D72,BUS!$C$4:$AEB$946,4,0),"") ->  | P72: =IFERROR(VLOOKUP(K72,BUS!$C$4:$AEB$946,4,0),"") ->  | W72: =IFERROR(VLOOKUP(R72,BUS!$C$4:$AEB$946,4,0),"") ->  | Y72: =IFERROR(VLOOKUP(D72,'شهر 9 تفصيلي'!$B$5:$AEB$965,1,0),"") ->  | Z72: =IFERROR(VLOOKUP(K72,'شهر 9 تفصيلي'!$B$5:$AEB$965,1,0),"") ->  | AA72: =IFERROR(VLOOKUP(R72,'شهر 9 تفصيلي'!$B$5:$AEB$965,1,0),"") -> 
B73: 54 | I73: =IFERROR(VLOOKUP(D73,BUS!$C$4:$AEB$946,4,0),"") ->  | P73: =IFERROR(VLOOKUP(K73,BUS!$C$4:$AEB$946,4,0),"") ->  | W73: =IFERROR(VLOOKUP(R73,BUS!$C$4:$AEB$946,4,0),"") ->  | Y73: =IFERROR(VLOOKUP(D73,'شهر 9 تفصيلي'!$B$5:$AEB$965,1,0),"") ->  | Z73: =IFERROR(VLOOKUP(K73,'شهر 9 تفصيلي'!$B$5:$AEB$965,1,0),"") ->  | AA73: =IFERROR(VLOOKUP(R73,'شهر 9 تفصيلي'!$B$5:$AEB$965,1,0),"") -> 
B74: 55 | I74: =IFERROR(VLOOKUP(D74,BUS!$C$4:$AEB$946,4,0),"") ->  | P74: =IFERROR(VLOOKUP(K74,BUS!$C$4:$AEB$946,4,0),"") ->  | W74: =IFERROR(VLOOKUP(R74,BUS!$C$4:$AEB$946,4,0),"") ->  | Y74: =IFERROR(VLOOKUP(D74,'شهر 9 تفصيلي'!$B$5:$AEB$965,1,0),"") ->  | Z74: =IFERROR(VLOOKUP(K74,'شهر 9 تفصيلي'!$B$5:$AEB$965,1,0),"") ->  | AA74: =IFERROR(VLOOKUP(R74,'شهر 9 تفصيلي'!$B$5:$AEB$965,1,0),"") -> 
B75: 56 | I75: =IFERROR(VLOOKUP(D75,BUS!$C$4:$AEB$946,4,0),"") ->  | P75: =IFERROR(VLOOKUP(K75,BUS!$C$4:$AEB$946,4,0),"") ->  | W75: =IFERROR(VLOOKUP(R75,BUS!$C$4:$AEB$946,4,0),"") ->  | Y75: =IFERROR(VLOOKUP(D75,'شهر 9 تفصيلي'!$B$5:$AEB$965,1,0),"") ->  | Z75: =IFERROR(VLOOKUP(K75,'شهر 9 تفصيلي'!$B$5:$AEB$965,1,0),"") ->  | AA75: =IFERROR(VLOOKUP(R75,'شهر 9 تفصيلي'!$B$5:$AEB$965,1,0),"") -> 
B76: 57 | I76: =IFERROR(VLOOKUP(D76,BUS!$C$4:$AEB$946,4,0),"") ->  | P76: =IFERROR(VLOOKUP(K76,BUS!$C$4:$AEB$946,4,0),"") ->  | W76: =IFERROR(VLOOKUP(R76,BUS!$C$4:$AEB$946,4,0),"") ->  | Y76: =IFERROR(VLOOKUP(D76,'شهر 9 تفصيلي'!$B$5:$AEB$965,1,0),"") ->  | Z76: =IFERROR(VLOOKUP(K76,'شهر 9 تفصيلي'!$B$5:$AEB$965,1,0),"") ->  | AA76: =IFERROR(VLOOKUP(R76,'شهر 9 تفصيلي'!$B$5:$AEB$965,1,0),"") -> 
B77: 58 | I77: =IFERROR(VLOOKUP(D77,BUS!$C$4:$AEB$946,4,0),"") ->  | P77: =IFERROR(VLOOKUP(K77,BUS!$C$4:$AEB$946,4,0),"") ->  | W77: =IFERROR(VLOOKUP(R77,BUS!$C$4:$AEB$946,4,0),"") ->  | Y77: =IFERROR(VLOOKUP(D77,'شهر 9 تفصيلي'!$B$5:$AEB$965,1,0),"") ->  | Z77: =IFERROR(VLOOKUP(K77,'شهر 9 تفصيلي'!$B$5:$AEB$965,1,0),"") ->  | AA77: =IFERROR(VLOOKUP(R77,'شهر 9 تفصيلي'!$B$5:$AEB$965,1,0),"") -> 
B78: 59 | I78: =IFERROR(VLOOKUP(D78,BUS!$C$4:$AEB$946,4,0),"") ->  | P78: =IFERROR(VLOOKUP(K78,BUS!$C$4:$AEB$946,4,0),"") ->  | W78: =IFERROR(VLOOKUP(R78,BUS!$C$4:$AEB$946,4,0),"") ->  | Y78: =IFERROR(VLOOKUP(D78,'شهر 9 تفصيلي'!$B$5:$AEB$965,1,0),"") ->  | Z78: =IFERROR(VLOOKUP(K78,'شهر 9 تفصيلي'!$B$5:$AEB$965,1,0),"") ->  | AA78: =IFERROR(VLOOKUP(R78,'شهر 9 تفصيلي'!$B$5:$AEB$965,1,0),"") -> 
B79: 60 | I79: =IFERROR(VLOOKUP(D79,BUS!$C$4:$AEB$946,4,0),"") ->  | P79: =IFERROR(VLOOKUP(K79,BUS!$C$4:$AEB$946,4,0),"") ->  | W79: =IFERROR(VLOOKUP(R79,BUS!$C$4:$AEB$946,4,0),"") ->  | Y79: =IFERROR(VLOOKUP(D79,'شهر 9 تفصيلي'!$B$5:$AEB$965,1,0),"") ->  | Z79: =IFERROR(VLOOKUP(K79,'شهر 9 تفصيلي'!$B$5:$AEB$965,1,0),"") ->  | AA79: =IFERROR(VLOOKUP(R79,'شهر 9 تفصيلي'!$B$5:$AEB$965,1,0),"") -> 
B80: 61 | I80: =IFERROR(VLOOKUP(D80,BUS!$C$4:$AEB$946,4,0),"") ->  | P80: =IFERROR(VLOOKUP(K80,BUS!$C$4:$AEB$946,4,0),"") ->  | W80: =IFERROR(VLOOKUP(R80,BUS!$C$4:$AEB$946,4,0),"") ->  | Y80: =IFERROR(VLOOKUP(D80,'شهر 9 تفصيلي'!$B$5:$AEB$965,1,0),"") ->  | Z80: =IFERROR(VLOOKUP(K80,'شهر 9 تفصيلي'!$B$5:$AEB$965,1,0),"") ->  | AA80: =IFERROR(VLOOKUP(R80,'شهر 9 تفصيلي'!$B$5:$AEB$965,1,0),"") -> 
B81: 62 | I81: =IFERROR(VLOOKUP(D81,BUS!$C$4:$AEB$946,4,0),"") ->  | P81: =IFERROR(VLOOKUP(K81,BUS!$C$4:$AEB$946,4,0),"") ->  | W81: =IFERROR(VLOOKUP(R81,BUS!$C$4:$AEB$946,4,0),"") ->  | Y81: =IFERROR(VLOOKUP(D81,'شهر 9 تفصيلي'!$B$5:$AEB$965,1,0),"") ->  | Z81: =IFERROR(VLOOKUP(K81,'شهر 9 تفصيلي'!$B$5:$AEB$965,1,0),"") ->  | AA81: =IFERROR(VLOOKUP(R81,'شهر 9 تفصيلي'!$B$5:$AEB$965,1,0),"") -> 
B82: 63 | I82: =IFERROR(VLOOKUP(D82,BUS!$C$4:$AEB$946,4,0),"") ->  | P82: =IFERROR(VLOOKUP(K82,BUS!$C$4:$AEB$946,4,0),"") ->  | W82: =IFERROR(VLOOKUP(R82,BUS!$C$4:$AEB$946,4,0),"") ->  | Y82: =IFERROR(VLOOKUP(D82,'شهر 9 تفصيلي'!$B$5:$AEB$965,1,0),"") ->  | Z82: =IFERROR(VLOOKUP(K82,'شهر 9 تفصيلي'!$B$5:$AEB$965,1,0),"") ->  | AA82: =IFERROR(VLOOKUP(R82,'شهر 9 تفصيلي'!$B$5:$AEB$965,1,0),"") -> 
B83: 64 | I83: =IFERROR(VLOOKUP(D83,BUS!$C$4:$AEB$946,4,0),"") ->  | P83: =IFERROR(VLOOKUP(K83,BUS!$C$4:$AEB$946,4,0),"") ->  | W83: =IFERROR(VLOOKUP(R83,BUS!$C$4:$AEB$946,4,0),"") ->  | Y83: =IFERROR(VLOOKUP(D83,'شهر 9 تفصيلي'!$B$5:$AEB$965,1,0),"") ->  | Z83: =IFERROR(VLOOKUP(K83,'شهر 9 تفصيلي'!$B$5:$AEB$965,1,0),"") ->  | AA83: =IFERROR(VLOOKUP(R83,'شهر 9 تفصيلي'!$B$5:$AEB$965,1,0),"") -> 
B84: 65 | I84: =IFERROR(VLOOKUP(D84,BUS!$C$4:$AEB$946,4,0),"") ->  | P84: =IFERROR(VLOOKUP(K84,BUS!$C$4:$AEB$946,4,0),"") ->  | W84: =IFERROR(VLOOKUP(R84,BUS!$C$4:$AEB$946,4,0),"") ->  | Y84: =IFERROR(VLOOKUP(D84,'شهر 9 تفصيلي'!$B$5:$AEB$965,1,0),"") ->  | Z84: =IFERROR(VLOOKUP(K84,'شهر 9 تفصيلي'!$B$5:$AEB$965,1,0),"") ->  | AA84: =IFERROR(VLOOKUP(R84,'شهر 9 تفصيلي'!$B$5:$AEB$965,1,0),"") -> 
B85: 66 | I85: =IFERROR(VLOOKUP(D85,BUS!$C$4:$AEB$946,4,0),"") ->  | P85: =IFERROR(VLOOKUP(K85,BUS!$C$4:$AEB$946,4,0),"") ->  | W85: =IFERROR(VLOOKUP(R85,BUS!$C$4:$AEB$946,4,0),"") ->  | Y85: =IFERROR(VLOOKUP(D85,'شهر 9 تفصيلي'!$B$5:$AEB$965,1,0),"") ->  | Z85: =IFERROR(VLOOKUP(K85,'شهر 9 تفصيلي'!$B$5:$AEB$965,1,0),"") ->  | AA85: =IFERROR(VLOOKUP(R85,'شهر 9 تفصيلي'!$B$5:$AEB$965,1,0),"") -> 
B86: 67 | I86: =IFERROR(VLOOKUP(D86,BUS!$C$4:$AEB$946,4,0),"") ->  | P86: =IFERROR(VLOOKUP(K86,BUS!$C$4:$AEB$946,4,0),"") ->  | W86: =IFERROR(VLOOKUP(R86,BUS!$C$4:$AEB$946,4,0),"") ->  | Y86: =IFERROR(VLOOKUP(D86,'شهر 9 تفصيلي'!$B$5:$AEB$965,1,0),"") ->  | Z86: =IFERROR(VLOOKUP(K86,'شهر 9 تفصيلي'!$B$5:$AEB$965,1,0),"") ->  | AA86: =IFERROR(VLOOKUP(R86,'شهر 9 تفصيلي'!$B$5:$AEB$965,1,0),"") -> 
B87: 68 | I87: =IFERROR(VLOOKUP(D87,BUS!$C$4:$AEB$946,4,0),"") ->  | P87: =IFERROR(VLOOKUP(K87,BUS!$C$4:$AEB$946,4,0),"") ->  | W87: =IFERROR(VLOOKUP(R87,BUS!$C$4:$AEB$946,4,0),"") ->  | Y87: =IFERROR(VLOOKUP(D87,'شهر 9 تفصيلي'!$B$5:$AEB$965,1,0),"") ->  | Z87: =IFERROR(VLOOKUP(K87,'شهر 9 تفصيلي'!$B$5:$AEB$965,1,0),"") ->  | AA87: =IFERROR(VLOOKUP(R87,'شهر 9 تفصيلي'!$B$5:$AEB$965,1,0),"") -> 
B88: 69 | I88: =IFERROR(VLOOKUP(D88,BUS!$C$4:$AEB$946,4,0),"") ->  | P88: =IFERROR(VLOOKUP(K88,BUS!$C$4:$AEB$946,4,0),"") ->  | W88: =IFERROR(VLOOKUP(R88,BUS!$C$4:$AEB$946,4,0),"") ->  | Y88: =IFERROR(VLOOKUP(D88,'شهر 9 تفصيلي'!$B$5:$AEB$965,1,0),"") ->  | Z88: =IFERROR(VLOOKUP(K88,'شهر 9 تفصيلي'!$B$5:$AEB$965,1,0),"") ->  | AA88: =IFERROR(VLOOKUP(R88,'شهر 9 تفصيلي'!$B$5:$AEB$965,1,0),"") -> 
B89: 70 | I89: =IFERROR(VLOOKUP(D89,BUS!$C$4:$AEB$946,4,0),"") ->  | P89: =IFERROR(VLOOKUP(K89,BUS!$C$4:$AEB$946,4,0),"") ->  | W89: =IFERROR(VLOOKUP(R89,BUS!$C$4:$AEB$946,4,0),"") ->  | Y89: =IFERROR(VLOOKUP(D89,'شهر 9 تفصيلي'!$B$5:$AEB$965,1,0),"") ->  | Z89: =IFERROR(VLOOKUP(K89,'شهر 9 تفصيلي'!$B$5:$AEB$965,1,0),"") ->  | AA89: =IFERROR(VLOOKUP(R89,'شهر 9 تفصيلي'!$B$5:$AEB$965,1,0),"") -> 
B90: 71 | I90: =IFERROR(VLOOKUP(D90,BUS!$C$4:$AEB$946,4,0),"") ->  | P90: =IFERROR(VLOOKUP(K90,BUS!$C$4:$AEB$946,4,0),"") ->  | W90: =IFERROR(VLOOKUP(R90,BUS!$C$4:$AEB$946,4,0),"") ->  | Y90: =IFERROR(VLOOKUP(D90,'شهر 9 تفصيلي'!$B$5:$AEB$965,1,0),"") ->  | Z90: =IFERROR(VLOOKUP(K90,'شهر 9 تفصيلي'!$B$5:$AEB$965,1,0),"") ->  | AA90: =IFERROR(VLOOKUP(R90,'شهر 9 تفصيلي'!$B$5:$AEB$965,1,0),"") -> 
B91: 72 | I91: =IFERROR(VLOOKUP(D91,BUS!$C$4:$AEB$946,4,0),"") ->  | P91: =IFERROR(VLOOKUP(K91,BUS!$C$4:$AEB$946,4,0),"") ->  | W91: =IFERROR(VLOOKUP(R91,BUS!$C$4:$AEB$946,4,0),"") ->  | Y91: =IFERROR(VLOOKUP(D91,'شهر 9 تفصيلي'!$B$5:$AEB$965,1,0),"") ->  | Z91: =IFERROR(VLOOKUP(K91,'شهر 9 تفصيلي'!$B$5:$AEB$965,1,0),"") ->  | AA91: =IFERROR(VLOOKUP(R91,'شهر 9 تفصيلي'!$B$5:$AEB$965,1,0),"") -> 
B92: 73 | I92: =IFERROR(VLOOKUP(D92,BUS!$C$4:$AEB$946,4,0),"") ->  | P92: =IFERROR(VLOOKUP(K92,BUS!$C$4:$AEB$946,4,0),"") ->  | W92: =IFERROR(VLOOKUP(R92,BUS!$C$4:$AEB$946,4,0),"") ->  | Y92: =IFERROR(VLOOKUP(D92,'شهر 9 تفصيلي'!$B$5:$AEB$965,1,0),"") ->  | Z92: =IFERROR(VLOOKUP(K92,'شهر 9 تفصيلي'!$B$5:$AEB$965,1,0),"") ->  | AA92: =IFERROR(VLOOKUP(R92,'شهر 9 تفصيلي'!$B$5:$AEB$965,1,0),"") -> 
B93: 74 | I93: =IFERROR(VLOOKUP(D93,BUS!$C$4:$AEB$946,4,0),"") ->  | P93: =IFERROR(VLOOKUP(K93,BUS!$C$4:$AEB$946,4,0),"") ->  | W93: =IFERROR(VLOOKUP(R93,BUS!$C$4:$AEB$946,4,0),"") ->  | Y93: =IFERROR(VLOOKUP(D93,'شهر 9 تفصيلي'!$B$5:$AEB$965,1,0),"") ->  | Z93: =IFERROR(VLOOKUP(K93,'شهر 9 تفصيلي'!$B$5:$AEB$965,1,0),"") ->  | AA93: =IFERROR(VLOOKUP(R93,'شهر 9 تفصيلي'!$B$5:$AEB$965,1,0),"") -> 
B94: 75 | I94: =IFERROR(VLOOKUP(D94,BUS!$C$4:$AEB$946,4,0),"") ->  | P94: =IFERROR(VLOOKUP(K94,BUS!$C$4:$AEB$946,4,0),"") ->  | W94: =IFERROR(VLOOKUP(R94,BUS!$C$4:$AEB$946,4,0),"") ->  | Y94: =IFERROR(VLOOKUP(D94,'شهر 9 تفصيلي'!$B$5:$AEB$965,1,0),"") ->  | Z94: =IFERROR(VLOOKUP(K94,'شهر 9 تفصيلي'!$B$5:$AEB$965,1,0),"") ->  | AA94: =IFERROR(VLOOKUP(R94,'شهر 9 تفصيلي'!$B$5:$AEB$965,1,0),"") -> 
B95: 76 | I95: =IFERROR(VLOOKUP(D95,BUS!$C$4:$AEB$946,4,0),"") ->  | P95: =IFERROR(VLOOKUP(K95,BUS!$C$4:$AEB$946,4,0),"") ->  | W95: =IFERROR(VLOOKUP(R95,BUS!$C$4:$AEB$946,4,0),"") ->  | Y95: =IFERROR(VLOOKUP(D95,'شهر 9 تفصيلي'!$B$5:$AEB$965,1,0),"") ->  | Z95: =IFERROR(VLOOKUP(K95,'شهر 9 تفصيلي'!$B$5:$AEB$965,1,0),"") ->  | AA95: =IFERROR(VLOOKUP(R95,'شهر 9 تفصيلي'!$B$5:$AEB$965,1,0),"") -> 
B96: 77 | I96: =IFERROR(VLOOKUP(D96,BUS!$C$4:$AEB$946,4,0),"") ->  | P96: =IFERROR(VLOOKUP(K96,BUS!$C$4:$AEB$946,4,0),"") ->  | W96: =IFERROR(VLOOKUP(R96,BUS!$C$4:$AEB$946,4,0),"") ->  | Y96: =IFERROR(VLOOKUP(D96,'شهر 9 تفصيلي'!$B$5:$AEB$965,1,0),"") ->  | Z96: =IFERROR(VLOOKUP(K96,'شهر 9 تفصيلي'!$B$5:$AEB$965,1,0),"") ->  | AA96: =IFERROR(VLOOKUP(R96,'شهر 9 تفصيلي'!$B$5:$AEB$965,1,0),"") -> 
B97: 78 | I97: =IFERROR(VLOOKUP(D97,BUS!$C$4:$AEB$946,4,0),"") ->  | P97: =IFERROR(VLOOKUP(K97,BUS!$C$4:$AEB$946,4,0),"") ->  | W97: =IFERROR(VLOOKUP(R97,BUS!$C$4:$AEB$946,4,0),"") ->  | Y97: =IFERROR(VLOOKUP(D97,'شهر 9 تفصيلي'!$B$5:$AEB$965,1,0),"") ->  | Z97: =IFERROR(VLOOKUP(K97,'شهر 9 تفصيلي'!$B$5:$AEB$965,1,0),"") ->  | AA97: =IFERROR(VLOOKUP(R97,'شهر 9 تفصيلي'!$B$5:$AEB$965,1,0),"") -> 
B98: 79 | I98: =IFERROR(VLOOKUP(D98,BUS!$C$4:$AEB$946,4,0),"") ->  | P98: =IFERROR(VLOOKUP(K98,BUS!$C$4:$AEB$946,4,0),"") ->  | W98: =IFERROR(VLOOKUP(R98,BUS!$C$4:$AEB$946,4,0),"") ->  | Y98: =IFERROR(VLOOKUP(D98,'شهر 9 تفصيلي'!$B$5:$AEB$965,1,0),"") ->  | Z98: =IFERROR(VLOOKUP(K98,'شهر 9 تفصيلي'!$B$5:$AEB$965,1,0),"") ->  | AA98: =IFERROR(VLOOKUP(R98,'شهر 9 تفصيلي'!$B$5:$AEB$965,1,0),"") -> 
B99: 80 | I99: =IFERROR(VLOOKUP(D99,BUS!$C$4:$AEB$946,4,0),"") ->  | P99: =IFERROR(VLOOKUP(K99,BUS!$C$4:$AEB$946,4,0),"") ->  | W99: =IFERROR(VLOOKUP(R99,BUS!$C$4:$AEB$946,4,0),"") ->  | Y99: =IFERROR(VLOOKUP(D99,'شهر 9 تفصيلي'!$B$5:$AEB$965,1,0),"") ->  | Z99: =IFERROR(VLOOKUP(K99,'شهر 9 تفصيلي'!$B$5:$AEB$965,1,0),"") ->  | AA99: =IFERROR(VLOOKUP(R99,'شهر 9 تفصيلي'!$B$5:$AEB$965,1,0),"") -> 
B100: 81 | I100: =IFERROR(VLOOKUP(D100,BUS!$C$4:$AEB$946,4,0),"") ->  | P100: =IFERROR(VLOOKUP(K100,BUS!$C$4:$AEB$946,4,0),"") ->  | W100: =IFERROR(VLOOKUP(R100,BUS!$C$4:$AEB$946,4,0),"") ->  | Y100: =IFERROR(VLOOKUP(D100,'شهر 9 تفصيلي'!$B$5:$AEB$965,1,0),"") ->  | Z100: =IFERROR(VLOOKUP(K100,'شهر 9 تفصيلي'!$B$5:$AEB$965,1,0),"") ->  | AA100: =IFERROR(VLOOKUP(R100,'شهر 9 تفصيلي'!$B$5:$AEB$965,1,0),"") -> 
B101: 82 | I101: =IFERROR(VLOOKUP(D101,BUS!$C$4:$AEB$946,4,0),"") ->  | P101: =IFERROR(VLOOKUP(K101,BUS!$C$4:$AEB$946,4,0),"") ->  | W101: =IFERROR(VLOOKUP(R101,BUS!$C$4:$AEB$946,4,0),"") ->  | Y101: =IFERROR(VLOOKUP(D101,'شهر 9 تفصيلي'!$B$5:$AEB$965,1,0),"") ->  | Z101: =IFERROR(VLOOKUP(K101,'شهر 9 تفصيلي'!$B$5:$AEB$965,1,0),"") ->  | AA101: =IFERROR(VLOOKUP(R101,'شهر 9 تفصيلي'!$B$5:$AEB$965,1,0),"") -> 
B102: 83 | I102: =IFERROR(VLOOKUP(D102,BUS!$C$4:$AEB$946,4,0),"") ->  | P102: =IFERROR(VLOOKUP(K102,BUS!$C$4:$AEB$946,4,0),"") ->  | W102: =IFERROR(VLOOKUP(R102,BUS!$C$4:$AEB$946,4,0),"") ->  | Y102: =IFERROR(VLOOKUP(D102,'شهر 9 تفصيلي'!$B$5:$AEB$965,1,0),"") ->  | Z102: =IFERROR(VLOOKUP(K102,'شهر 9 تفصيلي'!$B$5:$AEB$965,1,0),"") ->  | AA102: =IFERROR(VLOOKUP(R102,'شهر 9 تفصيلي'!$B$5:$AEB$965,1,0),"") -> 
B103: 84 | I103: =IFERROR(VLOOKUP(D103,BUS!$C$4:$AEB$946,4,0),"") ->  | P103: =IFERROR(VLOOKUP(K103,BUS!$C$4:$AEB$946,4,0),"") ->  | W103: =IFERROR(VLOOKUP(R103,BUS!$C$4:$AEB$946,4,0),"") ->  | Y103: =IFERROR(VLOOKUP(D103,'شهر 9 تفصيلي'!$B$5:$AEB$965,1,0),"") ->  | Z103: =IFERROR(VLOOKUP(K103,'شهر 9 تفصيلي'!$B$5:$AEB$965,1,0),"") ->  | AA103: =IFERROR(VLOOKUP(R103,'شهر 9 تفصيلي'!$B$5:$AEB$965,1,0),"") -> 
B104: 85 | I104: =IFERROR(VLOOKUP(D104,BUS!$C$4:$AEB$946,4,0),"") ->  | P104: =IFERROR(VLOOKUP(K104,BUS!$C$4:$AEB$946,4,0),"") ->  | W104: =IFERROR(VLOOKUP(R104,BUS!$C$4:$AEB$946,4,0),"") ->  | Y104: =IFERROR(VLOOKUP(D104,'شهر 9 تفصيلي'!$B$5:$AEB$965,1,0),"") ->  | Z104: =IFERROR(VLOOKUP(K104,'شهر 9 تفصيلي'!$B$5:$AEB$965,1,0),"") ->  | AA104: =IFERROR(VLOOKUP(R104,'شهر 9 تفصيلي'!$B$5:$AEB$965,1,0),"") -> 
B105: 86 | I105: =IFERROR(VLOOKUP(D105,BUS!$C$4:$AEB$946,4,0),"") ->  | P105: =IFERROR(VLOOKUP(K105,BUS!$C$4:$AEB$946,4,0),"") ->  | W105: =IFERROR(VLOOKUP(R105,BUS!$C$4:$AEB$946,4,0),"") ->  | Y105: =IFERROR(VLOOKUP(D105,'شهر 9 تفصيلي'!$B$5:$AEB$965,1,0),"") ->  | Z105: =IFERROR(VLOOKUP(K105,'شهر 9 تفصيلي'!$B$5:$AEB$965,1,0),"") ->  | AA105: =IFERROR(VLOOKUP(R105,'شهر 9 تفصيلي'!$B$5:$AEB$965,1,0),"") -> 
B106: 87 | I106: =IFERROR(VLOOKUP(D106,BUS!$C$4:$AEB$946,4,0),"") ->  | P106: =IFERROR(VLOOKUP(K106,BUS!$C$4:$AEB$946,4,0),"") ->  | W106: =IFERROR(VLOOKUP(R106,BUS!$C$4:$AEB$946,4,0),"") ->  | Y106: =IFERROR(VLOOKUP(D106,'شهر 9 تفصيلي'!$B$5:$AEB$965,1,0),"") ->  | Z106: =IFERROR(VLOOKUP(K106,'شهر 9 تفصيلي'!$B$5:$AEB$965,1,0),"") ->  | AA106: =IFERROR(VLOOKUP(R106,'شهر 9 تفصيلي'!$B$5:$AEB$965,1,0),"") -> 
B107: 88 | I107: =IFERROR(VLOOKUP(D107,BUS!$C$4:$AEB$946,4,0),"") ->  | P107: =IFERROR(VLOOKUP(K107,BUS!$C$4:$AEB$946,4,0),"") ->  | W107: =IFERROR(VLOOKUP(R107,BUS!$C$4:$AEB$946,4,0),"") ->  | Y107: =IFERROR(VLOOKUP(D107,'شهر 9 تفصيلي'!$B$5:$AEB$965,1,0),"") ->  | Z107: =IFERROR(VLOOKUP(K107,'شهر 9 تفصيلي'!$B$5:$AEB$965,1,0),"") ->  | AA107: =IFERROR(VLOOKUP(R107,'شهر 9 تفصيلي'!$B$5:$AEB$965,1,0),"") -> 
B108: 89 | I108: =IFERROR(VLOOKUP(D108,BUS!$C$4:$AEB$946,4,0),"") ->  | P108: =IFERROR(VLOOKUP(K108,BUS!$C$4:$AEB$946,4,0),"") ->  | W108: =IFERROR(VLOOKUP(R108,BUS!$C$4:$AEB$946,4,0),"") ->  | Y108: =IFERROR(VLOOKUP(D108,'شهر 9 تفصيلي'!$B$5:$AEB$965,1,0),"") ->  | Z108: =IFERROR(VLOOKUP(K108,'شهر 9 تفصيلي'!$B$5:$AEB$965,1,0),"") ->  | AA108: =IFERROR(VLOOKUP(R108,'شهر 9 تفصيلي'!$B$5:$AEB$965,1,0),"") -> 
B109: 90 | I109: =IFERROR(VLOOKUP(D109,BUS!$C$4:$AEB$946,4,0),"") ->  | P109: =IFERROR(VLOOKUP(K109,BUS!$C$4:$AEB$946,4,0),"") ->  | W109: =IFERROR(VLOOKUP(R109,BUS!$C$4:$AEB$946,4,0),"") ->  | Y109: =IFERROR(VLOOKUP(D109,'شهر 9 تفصيلي'!$B$5:$AEB$965,1,0),"") ->  | Z109: =IFERROR(VLOOKUP(K109,'شهر 9 تفصيلي'!$B$5:$AEB$965,1,0),"") ->  | AA109: =IFERROR(VLOOKUP(R109,'شهر 9 تفصيلي'!$B$5:$AEB$965,1,0),"") -> 
B110: 91 | I110: =IFERROR(VLOOKUP(D110,BUS!$C$4:$AEB$946,4,0),"") ->  | P110: =IFERROR(VLOOKUP(K110,BUS!$C$4:$AEB$946,4,0),"") ->  | W110: =IFERROR(VLOOKUP(R110,BUS!$C$4:$AEB$946,4,0),"") ->  | Y110: =IFERROR(VLOOKUP(D110,'شهر 9 تفصيلي'!$B$5:$AEB$965,1,0),"") ->  | Z110: =IFERROR(VLOOKUP(K110,'شهر 9 تفصيلي'!$B$5:$AEB$965,1,0),"") ->  | AA110: =IFERROR(VLOOKUP(R110,'شهر 9 تفصيلي'!$B$5:$AEB$965,1,0),"") -> 
B111: 92 | I111: =IFERROR(VLOOKUP(D111,BUS!$C$4:$AEB$946,4,0),"") ->  | P111: =IFERROR(VLOOKUP(K111,BUS!$C$4:$AEB$946,4,0),"") ->  | W111: =IFERROR(VLOOKUP(R111,BUS!$C$4:$AEB$946,4,0),"") ->  | Y111: =IFERROR(VLOOKUP(D111,'شهر 9 تفصيلي'!$B$5:$AEB$965,1,0),"") ->  | Z111: =IFERROR(VLOOKUP(K111,'شهر 9 تفصيلي'!$B$5:$AEB$965,1,0),"") ->  | AA111: =IFERROR(VLOOKUP(R111,'شهر 9 تفصيلي'!$B$5:$AEB$965,1,0),"") -> 
B112: TOTAL | F112: =SUM(F67:F111)+F56 -> 5725 | I112: ـــــــــــــــــــــــــــــــــــ | K112: TOTAL | M112: =SUM(M67:M111)+M56 -> 243 | P112: ـــــــــــــــــــــــــــــــــــ | R112: TOTAL | T112: =SUM(T67:T111)+T56 -> 287 | W112: ـــــــــــــــــــــــــــــــــــ
B113: Area manager | D113: Operation manager ( Bus D.) | K113: General manager ( Bus D) | T113: Maher-Hassan-2018
AB120: محطة خشمان ( الماسة 7 )
B121: Checking the station manager | AB121: =I122 -> 
B122: =B7 -> 2021-09-03 | F122: التاريخ / | I122: =I7 ->  | M122: اليـــــــــــوم / | P122: محطة خشمان ( الماسة 7 ) | W122: 3 | AB122: ='شهر 9 تفصيلي'!$A$1+3 -> 2021-09-04
B123: S.NO | C123: رقم الفاتوره ديزل | D123: BUS | E123: الكيلو D | F123: D | G123: الوقت | H123: المراقب | I123: To | J123: رقم الفاتوره 95 | K123: BUS | L123: الكيلو 95 | M123: 95 | N123: الوقت | O123: المراقب | P123: To | Q123: رقم الفاتوره 91 | R123: BUS | S123: الكيلو 91 | T123: 91 | U123: الوقت | V123: المراقب | W123: To | AB123: S.NO | AC123: رقم الفاتوره ديزل | AG123: رقم الفاتوره 95 | AI123: رقم الفاتوره 91
B124: 93 | I124: =IFERROR(VLOOKUP(D124,BUS!$C$4:$AEB$946,4,0),"") ->  | P124: =IFERROR(VLOOKUP(K124,BUS!$C$4:$AEB$946,4,0),"") ->  | W124: =IFERROR(VLOOKUP(R124,BUS!$C$4:$AEB$946,4,0),"") ->  | Y124: =IFERROR(VLOOKUP(D124,'شهر 9 تفصيلي'!$B$5:$AEB$965,1,0),"") ->  | Z124: =IFERROR(VLOOKUP(K124,'شهر 9 تفصيلي'!$B$5:$AEB$965,1,0),"") ->  | AA124: =IFERROR(VLOOKUP(R124,'شهر 9 تفصيلي'!$B$5:$AEB$965,1,0),"") ->  | AB124: 93 | AC124: =C124 -> 0 | AG124: =J124 -> 0 | AI124: =Q124 -> 0
B125: 94 | I125: =IFERROR(VLOOKUP(D125,BUS!$C$4:$AEB$946,4,0),"") ->  | P125: =IFERROR(VLOOKUP(K125,BUS!$C$4:$AEB$946,4,0),"") ->  | W125: =IFERROR(VLOOKUP(R125,BUS!$C$4:$AEB$946,4,0),"") ->  | Y125: =IFERROR(VLOOKUP(D125,'شهر 9 تفصيلي'!$B$5:$AEB$965,1,0),"") ->  | Z125: =IFERROR(VLOOKUP(K125,'شهر 9 تفصيلي'!$B$5:$AEB$965,1,0),"") ->  | AA125: =IFERROR(VLOOKUP(R125,'شهر 9 تفصيلي'!$B$5:$AEB$965,1,0),"") ->  | AB125: 94 | AC125: =C125 -> 0 | AG125: =J125 -> 0 | AI125: =Q125 -> 0
B126: 95 | I126: =IFERROR(VLOOKUP(D126,BUS!$C$4:$AEB$946,4,0),"") ->  | P126: =IFERROR(VLOOKUP(K126,BUS!$C$4:$AEB$946,4,0),"") ->  | W126: =IFERROR(VLOOKUP(R126,BUS!$C$4:$AEB$946,4,0),"") ->  | Y126: =IFERROR(VLOOKUP(D126,'شهر 9 تفصيلي'!$B$5:$AEB$965,1,0),"") ->  | Z126: =IFERROR(VLOOKUP(K126,'شهر 9 تفصيلي'!$B$5:$AEB$965,1,0),"") ->  | AA126: =IFERROR(VLOOKUP(R126,'شهر 9 تفصيلي'!$B$5:$AEB$965,1,0),"") ->  | AB126: 95 | AC126: 0 | AG126: 0 | AI126: 0
B127: 96 | I127: =IFERROR(VLOOKUP(D127,BUS!$C$4:$AEB$946,4,0),"") ->  | P127: =IFERROR(VLOOKUP(K127,BUS!$C$4:$AEB$946,4,0),"") ->  | W127: =IFERROR(VLOOKUP(R127,BUS!$C$4:$AEB$946,4,0),"") ->  | Y127: =IFERROR(VLOOKUP(D127,'شهر 9 تفصيلي'!$B$5:$AEB$965,1,0),"") ->  | Z127: =IFERROR(VLOOKUP(K127,'شهر 9 تفصيلي'!$B$5:$AEB$965,1,0),"") ->  | AA127: =IFERROR(VLOOKUP(R127,'شهر 9 تفصيلي'!$B$5:$AEB$965,1,0),"") ->  | AB127: 96 | AC127: 0 | AG127: 0 | AI127: 0
B128: 97 | I128: =IFERROR(VLOOKUP(D128,BUS!$C$4:$AEB$946,4,0),"") ->  | P128: =IFERROR(VLOOKUP(K128,BUS!$C$4:$AEB$946,4,0),"") ->  | W128: =IFERROR(VLOOKUP(R128,BUS!$C$4:$AEB$946,4,0),"") ->  | Y128: =IFERROR(VLOOKUP(D128,'شهر 9 تفصيلي'!$B$5:$AEB$965,1,0),"") ->  | Z128: =IFERROR(VLOOKUP(K128,'شهر 9 تفصيلي'!$B$5:$AEB$965,1,0),"") ->  | AA128: =IFERROR(VLOOKUP(R128,'شهر 9 تفصيلي'!$B$5:$AEB$965,1,0),"") ->  | AB128: 97 | AC128: 0 | AG128: 0 | AI128: 0
B129: 98 | I129: =IFERROR(VLOOKUP(D129,BUS!$C$4:$AEB$946,4,0),"") ->  | P129: =IFERROR(VLOOKUP(K129,BUS!$C$4:$AEB$946,4,0),"") ->  | W129: =IFERROR(VLOOKUP(R129,BUS!$C$4:$AEB$946,4,0),"") ->  | Y129: =IFERROR(VLOOKUP(D129,'شهر 9 تفصيلي'!$B$5:$AEB$965,1,0),"") ->  | Z129: =IFERROR(VLOOKUP(K129,'شهر 9 تفصيلي'!$B$5:$AEB$965,1,0),"") ->  | AA129: =IFERROR(VLOOKUP(R129,'شهر 9 تفصيلي'!$B$5:$AEB$965,1,0),"") ->  | AB129: 98 | AC129: 0 | AG129: 0 | AI129: 0
B130: 99 | I130: =IFERROR(VLOOKUP(D130,BUS!$C$4:$AEB$946,4,0),"") ->  | P130: =IFERROR(VLOOKUP(K130,BUS!$C$4:$AEB$946,4,0),"") ->  | W130: =IFERROR(VLOOKUP(R130,BUS!$C$4:$AEB$946,4,0),"") ->  | Y130: =IFERROR(VLOOKUP(D130,'شهر 9 تفصيلي'!$B$5:$AEB$965,1,0),"") ->  | Z130: =IFERROR(VLOOKUP(K130,'شهر 9 تفصيلي'!$B$5:$AEB$965,1,0),"") ->  | AA130: =IFERROR(VLOOKUP(R130,'شهر 9 تفصيلي'!$B$5:$AEB$965,1,0),"") ->  | AB130: 99 | AC130: 0 | AG130: 0 | AI130: 0
B131: 100 | I131: =IFERROR(VLOOKUP(D131,BUS!$C$4:$AEB$946,4,0),"") ->  | P131: =IFERROR(VLOOKUP(K131,BUS!$C$4:$AEB$946,4,0),"") ->  | W131: =IFERROR(VLOOKUP(R131,BUS!$C$4:$AEB$946,4,0),"") ->  | Y131: =IFERROR(VLOOKUP(D131,'شهر 9 تفصيلي'!$B$5:$AEB$965,1,0),"") ->  | Z131: =IFERROR(VLOOKUP(K131,'شهر 9 تفصيلي'!$B$5:$AEB$965,1,0),"") ->  | AA131: =IFERROR(VLOOKUP(R131,'شهر 9 تفصيلي'!$B$5:$AEB$965,1,0),"") ->  | AB131: 100 | AC131: 0 | AG131: 0 | AI131: 0
B132: 101 | I132: =IFERROR(VLOOKUP(D132,BUS!$C$4:$AEB$946,4,0),"") ->  | P132: =IFERROR(VLOOKUP(K132,BUS!$C$4:$AEB$946,4,0),"") ->  | W132: =IFERROR(VLOOKUP(R132,BUS!$C$4:$AEB$946,4,0),"") ->  | Y132: =IFERROR(VLOOKUP(D132,'شهر 9 تفصيلي'!$B$5:$AEB$965,1,0),"") ->  | Z132: =IFERROR(VLOOKUP(K132,'شهر 9 تفصيلي'!$B$5:$AEB$965,1,0),"") ->  | AA132: =IFERROR(VLOOKUP(R132,'شهر 9 تفصيلي'!$B$5:$AEB$965,1,0),"") ->  | AB132: 101 | AC132: 0 | AG132: 0 | AI132: 0
B133: 102 | I133: =IFERROR(VLOOKUP(D133,BUS!$C$4:$AEB$946,4,0),"") ->  | P133: =IFERROR(VLOOKUP(K133,BUS!$C$4:$AEB$946,4,0),"") ->  | W133: =IFERROR(VLOOKUP(R133,BUS!$C$4:$AEB$946,4,0),"") ->  | Y133: =IFERROR(VLOOKUP(D133,'شهر 9 تفصيلي'!$B$5:$AEB$965,1,0),"") ->  | Z133: =IFERROR(VLOOKUP(K133,'شهر 9 تفصيلي'!$B$5:$AEB$965,1,0),"") ->  | AA133: =IFERROR(VLOOKUP(R133,'شهر 9 تفصيلي'!$B$5:$AEB$965,1,0),"") ->  | AB133: 102 | AC133: 0 | AG133: 0 | AI133: 0
B134: 103 | I134: =IFERROR(VLOOKUP(D134,BUS!$C$4:$AEB$946,4,0),"") ->  | P134: =IFERROR(VLOOKUP(K134,BUS!$C$4:$AEB$946,4,0),"") ->  | W134: =IFERROR(VLOOKUP(R134,BUS!$C$4:$AEB$946,4,0),"") ->  | Y134: =IFERROR(VLOOKUP(D134,'شهر 9 تفصيلي'!$B$5:$AEB$965,1,0),"") ->  | Z134: =IFERROR(VLOOKUP(K134,'شهر 9 تفصيلي'!$B$5:$AEB$965,1,0),"") ->  | AA134: =IFERROR(VLOOKUP(R134,'شهر 9 تفصيلي'!$B$5:$AEB$965,1,0),"") ->  | AB134: 103 | AC134: 0 | AG134: 0 | AI134: 0
B135: 104 | I135: =IFERROR(VLOOKUP(D135,BUS!$C$4:$AEB$946,4,0),"") ->  | P135: =IFERROR(VLOOKUP(K135,BUS!$C$4:$AEB$946,4,0),"") ->  | W135: =IFERROR(VLOOKUP(R135,BUS!$C$4:$AEB$946,4,0),"") ->  | Y135: =IFERROR(VLOOKUP(D135,'شهر 9 تفصيلي'!$B$5:$AEB$965,1,0),"") ->  | Z135: =IFERROR(VLOOKUP(K135,'شهر 9 تفصيلي'!$B$5:$AEB$965,1,0),"") ->  | AA135: =IFERROR(VLOOKUP(R135,'شهر 9 تفصيلي'!$B$5:$AEB$965,1,0),"") ->  | AB135: 104 | AC135: 0 | AG135: 0 | AI135: 0
B136: 105 | I136: =IFERROR(VLOOKUP(D136,BUS!$C$4:$AEB$946,4,0),"") ->  | P136: =IFERROR(VLOOKUP(K136,BUS!$C$4:$AEB$946,4,0),"") ->  | W136: =IFERROR(VLOOKUP(R136,BUS!$C$4:$AEB$946,4,0),"") ->  | Y136: =IFERROR(VLOOKUP(D136,'شهر 9 تفصيلي'!$B$5:$AEB$965,1,0),"") ->  | Z136: =IFERROR(VLOOKUP(K136,'شهر 9 تفصيلي'!$B$5:$AEB$965,1,0),"") ->  | AA136: =IFERROR(VLOOKUP(R136,'شهر 9 تفصيلي'!$B$5:$AEB$965,1,0),"") ->  | AB136: 105 | AC136: 0 | AG136: 0 | AI136: 0
B137: 106 | I137: =IFERROR(VLOOKUP(D137,BUS!$C$4:$AEB$946,4,0),"") ->  | P137: =IFERROR(VLOOKUP(K137,BUS!$C$4:$AEB$946,4,0),"") ->  | W137: =IFERROR(VLOOKUP(R137,BUS!$C$4:$AEB$946,4,0),"") ->  | Y137: =IFERROR(VLOOKUP(D137,'شهر 9 تفصيلي'!$B$5:$AEB$965,1,0),"") ->  | Z137: =IFERROR(VLOOKUP(K137,'شهر 9 تفصيلي'!$B$5:$AEB$965,1,0),"") ->  | AA137: =IFERROR(VLOOKUP(R137,'شهر 9 تفصيلي'!$B$5:$AEB$965,1,0),"") ->  | AB137: 106 | AC137: 0 | AG137: 0 | AI137: 0
B138: 107 | I138: =IFERROR(VLOOKUP(D138,BUS!$C$4:$AEB$946,4,0),"") ->  | P138: =IFERROR(VLOOKUP(K138,BUS!$C$4:$AEB$946,4,0),"") ->  | W138: =IFERROR(VLOOKUP(R138,BUS!$C$4:$AEB$946,4,0),"") ->  | Y138: =IFERROR(VLOOKUP(D138,'شهر 9 تفصيلي'!$B$5:$AEB$965,1,0),"") ->  | Z138: =IFERROR(VLOOKUP(K138,'شهر 9 تفصيلي'!$B$5:$AEB$965,1,0),"") ->  | AA138: =IFERROR(VLOOKUP(R138,'شهر 9 تفصيلي'!$B$5:$AEB$965,1,0),"") ->  | AB138: 107 | AC138: 0 | AG138: 0 | AI138: 0
B139: 108 | I139: =IFERROR(VLOOKUP(D139,BUS!$C$4:$AEB$946,4,0),"") ->  | P139: =IFERROR(VLOOKUP(K139,BUS!$C$4:$AEB$946,4,0),"") ->  | W139: =IFERROR(VLOOKUP(R139,BUS!$C$4:$AEB$946,4,0),"") ->  | Y139: =IFERROR(VLOOKUP(D139,'شهر 9 تفصيلي'!$B$5:$AEB$965,1,0),"") ->  | Z139: =IFERROR(VLOOKUP(K139,'شهر 9 تفصيلي'!$B$5:$AEB$965,1,0),"") ->  | AA139: =IFERROR(VLOOKUP(R139,'شهر 9 تفصيلي'!$B$5:$AEB$965,1,0),"") ->  | AB139: 108 | AC139: 0 | AG139: 0 | AI139: 0
B140: 109 | I140: =IFERROR(VLOOKUP(D140,BUS!$C$4:$AEB$946,4,0),"") ->  | P140: =IFERROR(VLOOKUP(K140,BUS!$C$4:$AEB$946,4,0),"") ->  | W140: =IFERROR(VLOOKUP(R140,BUS!$C$4:$AEB$946,4,0),"") ->  | Y140: =IFERROR(VLOOKUP(D140,'شهر 9 تفصيلي'!$B$5:$AEB$965,1,0),"") ->  | Z140: =IFERROR(VLOOKUP(K140,'شهر 9 تفصيلي'!$B$5:$AEB$965,1,0),"") ->  | AA140: =IFERROR(VLOOKUP(R140,'شهر 9 تفصيلي'!$B$5:$AEB$965,1,0),"") ->  | AB140: 109 | AC140: 0 | AG140: 0 | AI140: 0
B141: 110 | I141: =IFERROR(VLOOKUP(D141,BUS!$C$4:$AEB$946,4,0),"") ->  | P141: =IFERROR(VLOOKUP(K141,BUS!$C$4:$AEB$946,4,0),"") ->  | W141: =IFERROR(VLOOKUP(R141,BUS!$C$4:$AEB$946,4,0),"") ->  | Y141: =IFERROR(VLOOKUP(D141,'شهر 9 تفصيلي'!$B$5:$AEB$965,1,0),"") ->  | Z141: =IFERROR(VLOOKUP(K141,'شهر 9 تفصيلي'!$B$5:$AEB$965,1,0),"") ->  | AA141: =IFERROR(VLOOKUP(R141,'شهر 9 تفصيلي'!$B$5:$AEB$965,1,0),"") ->  | AB141: 110 | AC141: 0 | AG141: 0 | AI141: 0
B142: 111 | I142: =IFERROR(VLOOKUP(D142,BUS!$C$4:$AEB$946,4,0),"") ->  | P142: =IFERROR(VLOOKUP(K142,BUS!$C$4:$AEB$946,4,0),"") ->  | W142: =IFERROR(VLOOKUP(R142,BUS!$C$4:$AEB$946,4,0),"") ->  | Y142: =IFERROR(VLOOKUP(D142,'شهر 9 تفصيلي'!$B$5:$AEB$965,1,0),"") ->  | Z142: =IFERROR(VLOOKUP(K142,'شهر 9 تفصيلي'!$B$5:$AEB$965,1,0),"") ->  | AA142: =IFERROR(VLOOKUP(R142,'شهر 9 تفصيلي'!$B$5:$AEB$965,1,0),"") ->  | AB142: 111 | AC142: 0 | AG142: 0 | AI142: 0
B143: 112 | I143: =IFERROR(VLOOKUP(D143,BUS!$C$4:$AEB$946,4,0),"") ->  | P143: =IFERROR(VLOOKUP(K143,BUS!$C$4:$AEB$946,4,0),"") ->  | W143: =IFERROR(VLOOKUP(R143,BUS!$C$4:$AEB$946,4,0),"") ->  | Y143: =IFERROR(VLOOKUP(D143,'شهر 9 تفصيلي'!$B$5:$AEB$965,1,0),"") ->  | Z143: =IFERROR(VLOOKUP(K143,'شهر 9 تفصيلي'!$B$5:$AEB$965,1,0),"") ->  | AA143: =IFERROR(VLOOKUP(R143,'شهر 9 تفصيلي'!$B$5:$AEB$965,1,0),"") ->  | AB143: 112 | AC143: 0 | AG143: 0 | AI143: 0
B144: 113 | I144: =IFERROR(VLOOKUP(D144,BUS!$C$4:$AEB$946,4,0),"") ->  | P144: =IFERROR(VLOOKUP(K144,BUS!$C$4:$AEB$946,4,0),"") ->  | W144: =IFERROR(VLOOKUP(R144,BUS!$C$4:$AEB$946,4,0),"") ->  | Y144: =IFERROR(VLOOKUP(D144,'شهر 9 تفصيلي'!$B$5:$AEB$965,1,0),"") ->  | Z144: =IFERROR(VLOOKUP(K144,'شهر 9 تفصيلي'!$B$5:$AEB$965,1,0),"") ->  | AA144: =IFERROR(VLOOKUP(R144,'شهر 9 تفصيلي'!$B$5:$AEB$965,1,0),"") ->  | AB144: 113 | AC144: 0 | AG144: 0 | AI144: 0
B145: 114 | I145: =IFERROR(VLOOKUP(D145,BUS!$C$4:$AEB$946,4,0),"") ->  | P145: =IFERROR(VLOOKUP(K145,BUS!$C$4:$AEB$946,4,0),"") ->  | W145: =IFERROR(VLOOKUP(R145,BUS!$C$4:$AEB$946,4,0),"") ->  | Y145: =IFERROR(VLOOKUP(D145,'شهر 9 تفصيلي'!$B$5:$AEB$965,1,0),"") ->  | Z145: =IFERROR(VLOOKUP(K145,'شهر 9 تفصيلي'!$B$5:$AEB$965,1,0),"") ->  | AA145: =IFERROR(VLOOKUP(R145,'شهر 9 تفصيلي'!$B$5:$AEB$965,1,0),"") ->  | AB145: 114 | AC145: 0 | AG145: 0 | AI145: 0
B146: 115 | I146: =IFERROR(VLOOKUP(D146,BUS!$C$4:$AEB$946,4,0),"") ->  | P146: =IFERROR(VLOOKUP(K146,BUS!$C$4:$AEB$946,4,0),"") ->  | W146: =IFERROR(VLOOKUP(R146,BUS!$C$4:$AEB$946,4,0),"") ->  | Y146: =IFERROR(VLOOKUP(D146,'شهر 9 تفصيلي'!$B$5:$AEB$965,1,0),"") ->  | Z146: =IFERROR(VLOOKUP(K146,'شهر 9 تفصيلي'!$B$5:$AEB$965,1,0),"") ->  | AA146: =IFERROR(VLOOKUP(R146,'شهر 9 تفصيلي'!$B$5:$AEB$965,1,0),"") ->  | AB146: 115 | AC146: 0 | AG146: 0 | AI146: 0
B147: 116 | I147: =IFERROR(VLOOKUP(D147,BUS!$C$4:$AEB$946,4,0),"") ->  | P147: =IFERROR(VLOOKUP(K147,BUS!$C$4:$AEB$946,4,0),"") ->  | W147: =IFERROR(VLOOKUP(R147,BUS!$C$4:$AEB$946,4,0),"") ->  | Y147: =IFERROR(VLOOKUP(D147,'شهر 9 تفصيلي'!$B$5:$AEB$965,1,0),"") ->  | Z147: =IFERROR(VLOOKUP(K147,'شهر 9 تفصيلي'!$B$5:$AEB$965,1,0),"") ->  | AA147: =IFERROR(VLOOKUP(R147,'شهر 9 تفصيلي'!$B$5:$AEB$965,1,0),"") ->  | AB147: 116 | AC147: 0 | AG147: 0 | AI147: 0
B148: 117 | I148: =IFERROR(VLOOKUP(D148,BUS!$C$4:$AEB$946,4,0),"") ->  | P148: =IFERROR(VLOOKUP(K148,BUS!$C$4:$AEB$946,4,0),"") ->  | W148: =IFERROR(VLOOKUP(R148,BUS!$C$4:$AEB$946,4,0),"") ->  | Y148: =IFERROR(VLOOKUP(D148,'شهر 9 تفصيلي'!$B$5:$AEB$965,1,0),"") ->  | Z148: =IFERROR(VLOOKUP(K148,'شهر 9 تفصيلي'!$B$5:$AEB$965,1,0),"") ->  | AA148: =IFERROR(VLOOKUP(R148,'شهر 9 تفصيلي'!$B$5:$AEB$965,1,0),"") ->  | AB148: 117 | AC148: 0 | AG148: 0 | AI148: 0
B149: 118 | I149: =IFERROR(VLOOKUP(D149,BUS!$C$4:$AEB$946,4,0),"") ->  | P149: =IFERROR(VLOOKUP(K149,BUS!$C$4:$AEB$946,4,0),"") ->  | W149: =IFERROR(VLOOKUP(R149,BUS!$C$4:$AEB$946,4,0),"") ->  | Y149: =IFERROR(VLOOKUP(D149,'شهر 9 تفصيلي'!$B$5:$AEB$965,1,0),"") ->  | Z149: =IFERROR(VLOOKUP(K149,'شهر 9 تفصيلي'!$B$5:$AEB$965,1,0),"") ->  | AA149: =IFERROR(VLOOKUP(R149,'شهر 9 تفصيلي'!$B$5:$AEB$965,1,0),"") ->  | AB149: 118 | AC149: 0 | AG149: 0 | AI149: 0
B150: 119 | I150: =IFERROR(VLOOKUP(D150,BUS!$C$4:$AEB$946,4,0),"") ->  | P150: =IFERROR(VLOOKUP(K150,BUS!$C$4:$AEB$946,4,0),"") ->  | W150: =IFERROR(VLOOKUP(R150,BUS!$C$4:$AEB$946,4,0),"") ->  | Y150: =IFERROR(VLOOKUP(D150,'شهر 9 تفصيلي'!$B$5:$AEB$965,1,0),"") ->  | Z150: =IFERROR(VLOOKUP(K150,'شهر 9 تفصيلي'!$B$5:$AEB$965,1,0),"") ->  | AA150: =IFERROR(VLOOKUP(R150,'شهر 9 تفصيلي'!$B$5:$AEB$965,1,0),"") ->  | AB150: 119 | AC150: 0 | AG150: 0 | AI150: 0
B151: 120 | I151: =IFERROR(VLOOKUP(D151,BUS!$C$4:$AEB$946,4,0),"") ->  | P151: =IFERROR(VLOOKUP(K151,BUS!$C$4:$AEB$946,4,0),"") ->  | W151: =IFERROR(VLOOKUP(R151,BUS!$C$4:$AEB$946,4,0),"") ->  | Y151: =IFERROR(VLOOKUP(D151,'شهر 9 تفصيلي'!$B$5:$AEB$965,1,0),"") ->  | Z151: =IFERROR(VLOOKUP(K151,'شهر 9 تفصيلي'!$B$5:$AEB$965,1,0),"") ->  | AA151: =IFERROR(VLOOKUP(R151,'شهر 9 تفصيلي'!$B$5:$AEB$965,1,0),"") ->  | AB151: 120 | AC151: 0 | AG151: 0 | AI151: 0
B152: 121 | I152: =IFERROR(VLOOKUP(D152,BUS!$C$4:$AEB$946,4,0),"") ->  | P152: =IFERROR(VLOOKUP(K152,BUS!$C$4:$AEB$946,4,0),"") ->  | W152: =IFERROR(VLOOKUP(R152,BUS!$C$4:$AEB$946,4,0),"") ->  | Y152: =IFERROR(VLOOKUP(D152,'شهر 9 تفصيلي'!$B$5:$AEB$965,1,0),"") ->  | Z152: =IFERROR(VLOOKUP(K152,'شهر 9 تفصيلي'!$B$5:$AEB$965,1,0),"") ->  | AA152: =IFERROR(VLOOKUP(R152,'شهر 9 تفصيلي'!$B$5:$AEB$965,1,0),"") ->  | AB152: 121 | AC152: 0 | AG152: 0 | AI152: 0
B153: 122 | I153: =IFERROR(VLOOKUP(D153,BUS!$C$4:$AEB$946,4,0),"") ->  | P153: =IFERROR(VLOOKUP(K153,BUS!$C$4:$AEB$946,4,0),"") ->  | W153: =IFERROR(VLOOKUP(R153,BUS!$C$4:$AEB$946,4,0),"") ->  | Y153: =IFERROR(VLOOKUP(D153,'شهر 9 تفصيلي'!$B$5:$AEB$965,1,0),"") ->  | Z153: =IFERROR(VLOOKUP(K153,'شهر 9 تفصيلي'!$B$5:$AEB$965,1,0),"") ->  | AA153: =IFERROR(VLOOKUP(R153,'شهر 9 تفصيلي'!$B$5:$AEB$965,1,0),"") ->  | AB153: 122 | AC153: 0 | AG153: 0 | AI153: 0
B154: 123 | I154: =IFERROR(VLOOKUP(D154,BUS!$C$4:$AEB$946,4,0),"") ->  | P154: =IFERROR(VLOOKUP(K154,BUS!$C$4:$AEB$946,4,0),"") ->  | W154: =IFERROR(VLOOKUP(R154,BUS!$C$4:$AEB$946,4,0),"") ->  | Y154: =IFERROR(VLOOKUP(D154,'شهر 9 تفصيلي'!$B$5:$AEB$965,1,0),"") ->  | Z154: =IFERROR(VLOOKUP(K154,'شهر 9 تفصيلي'!$B$5:$AEB$965,1,0),"") ->  | AA154: =IFERROR(VLOOKUP(R154,'شهر 9 تفصيلي'!$B$5:$AEB$965,1,0),"") ->  | AB154: 123 | AC154: 0 | AG154: 0 | AI154: 0
B155: 124 | I155: =IFERROR(VLOOKUP(D155,BUS!$C$4:$AEB$946,4,0),"") ->  | P155: =IFERROR(VLOOKUP(K155,BUS!$C$4:$AEB$946,4,0),"") ->  | W155: =IFERROR(VLOOKUP(R155,BUS!$C$4:$AEB$946,4,0),"") ->  | Y155: =IFERROR(VLOOKUP(D155,'شهر 9 تفصيلي'!$B$5:$AEB$965,1,0),"") ->  | Z155: =IFERROR(VLOOKUP(K155,'شهر 9 تفصيلي'!$B$5:$AEB$965,1,0),"") ->  | AA155: =IFERROR(VLOOKUP(R155,'شهر 9 تفصيلي'!$B$5:$AEB$965,1,0),"") ->  | AB155: 124 | AC155: 0 | AG155: 0 | AI155: 0
B156: 125 | I156: =IFERROR(VLOOKUP(D156,BUS!$C$4:$AEB$946,4,0),"") ->  | P156: =IFERROR(VLOOKUP(K156,BUS!$C$4:$AEB$946,4,0),"") ->  | W156: =IFERROR(VLOOKUP(R156,BUS!$C$4:$AEB$946,4,0),"") ->  | Y156: =IFERROR(VLOOKUP(D156,'شهر 9 تفصيلي'!$B$5:$AEB$965,1,0),"") ->  | Z156: =IFERROR(VLOOKUP(K156,'شهر 9 تفصيلي'!$B$5:$AEB$965,1,0),"") ->  | AA156: =IFERROR(VLOOKUP(R156,'شهر 9 تفصيلي'!$B$5:$AEB$965,1,0),"") ->  | AB156: 125 | AC156: 0 | AG156: 0 | AI156: 0
B157: 126 | I157: =IFERROR(VLOOKUP(D157,BUS!$C$4:$AEB$946,4,0),"") ->  | P157: =IFERROR(VLOOKUP(K157,BUS!$C$4:$AEB$946,4,0),"") ->  | W157: =IFERROR(VLOOKUP(R157,BUS!$C$4:$AEB$946,4,0),"") ->  | Y157: =IFERROR(VLOOKUP(D157,'شهر 9 تفصيلي'!$B$5:$AEB$965,1,0),"") ->  | Z157: =IFERROR(VLOOKUP(K157,'شهر 9 تفصيلي'!$B$5:$AEB$965,1,0),"") ->  | AA157: =IFERROR(VLOOKUP(R157,'شهر 9 تفصيلي'!$B$5:$AEB$965,1,0),"") ->  | AB157: 126 | AC157: 0 | AG157: 0 | AI157: 0
B158: 127 | I158: =IFERROR(VLOOKUP(D158,BUS!$C$4:$AEB$946,4,0),"") ->  | P158: =IFERROR(VLOOKUP(K158,BUS!$C$4:$AEB$946,4,0),"") ->  | W158: =IFERROR(VLOOKUP(R158,BUS!$C$4:$AEB$946,4,0),"") ->  | Y158: =IFERROR(VLOOKUP(D158,'شهر 9 تفصيلي'!$B$5:$AEB$965,1,0),"") ->  | Z158: =IFERROR(VLOOKUP(K158,'شهر 9 تفصيلي'!$B$5:$AEB$965,1,0),"") ->  | AA158: =IFERROR(VLOOKUP(R158,'شهر 9 تفصيلي'!$B$5:$AEB$965,1,0),"") ->  | AB158: 127 | AC158: 0 | AG158: 0 | AI158: 0
B159: 128 | I159: =IFERROR(VLOOKUP(D159,BUS!$C$4:$AEB$946,4,0),"") ->  | P159: =IFERROR(VLOOKUP(K159,BUS!$C$4:$AEB$946,4,0),"") ->  | W159: =IFERROR(VLOOKUP(R159,BUS!$C$4:$AEB$946,4,0),"") ->  | Y159: =IFERROR(VLOOKUP(D159,'شهر 9 تفصيلي'!$B$5:$AEB$965,1,0),"") ->  | Z159: =IFERROR(VLOOKUP(K159,'شهر 9 تفصيلي'!$B$5:$AEB$965,1,0),"") ->  | AA159: =IFERROR(VLOOKUP(R159,'شهر 9 تفصيلي'!$B$5:$AEB$965,1,0),"") ->  | AB159: 128 | AC159: 0 | AG159: 0 | AI159: 0
B160: 129 | I160: =IFERROR(VLOOKUP(D160,BUS!$C$4:$AEB$946,4,0),"") ->  | P160: =IFERROR(VLOOKUP(K160,BUS!$C$4:$AEB$946,4,0),"") ->  | W160: =IFERROR(VLOOKUP(R160,BUS!$C$4:$AEB$946,4,0),"") ->  | Y160: =IFERROR(VLOOKUP(D160,'شهر 9 تفصيلي'!$B$5:$AEB$965,1,0),"") ->  | Z160: =IFERROR(VLOOKUP(K160,'شهر 9 تفصيلي'!$B$5:$AEB$965,1,0),"") ->  | AA160: =IFERROR(VLOOKUP(R160,'شهر 9 تفصيلي'!$B$5:$AEB$965,1,0),"") ->  | AB160: 129 | AC160: 0 | AG160: 0 | AI160: 0
B161: 130 | I161: =IFERROR(VLOOKUP(D161,BUS!$C$4:$AEB$946,4,0),"") ->  | P161: =IFERROR(VLOOKUP(K161,BUS!$C$4:$AEB$946,4,0),"") ->  | W161: =IFERROR(VLOOKUP(R161,BUS!$C$4:$AEB$946,4,0),"") ->  | Y161: =IFERROR(VLOOKUP(D161,'شهر 9 تفصيلي'!$B$5:$AEB$965,1,0),"") ->  | Z161: =IFERROR(VLOOKUP(K161,'شهر 9 تفصيلي'!$B$5:$AEB$965,1,0),"") ->  | AA161: =IFERROR(VLOOKUP(R161,'شهر 9 تفصيلي'!$B$5:$AEB$965,1,0),"") ->  | AB161: 130 | AC161: 0 | AG161: 0 | AI161: 0
B162: 131 | I162: =IFERROR(VLOOKUP(D162,BUS!$C$4:$AEB$946,4,0),"") ->  | P162: =IFERROR(VLOOKUP(K162,BUS!$C$4:$AEB$946,4,0),"") ->  | W162: =IFERROR(VLOOKUP(R162,BUS!$C$4:$AEB$946,4,0),"") ->  | Y162: =IFERROR(VLOOKUP(D162,'شهر 9 تفصيلي'!$B$5:$AEB$965,1,0),"") ->  | Z162: =IFERROR(VLOOKUP(K162,'شهر 9 تفصيلي'!$B$5:$AEB$965,1,0),"") ->  | AA162: =IFERROR(VLOOKUP(R162,'شهر 9 تفصيلي'!$B$5:$AEB$965,1,0),"") ->  | AB162: 131 | AC162: 0 | AG162: 0 | AI162: 0
B163: 132 | I163: =IFERROR(VLOOKUP(D163,BUS!$C$4:$AEB$946,4,0),"") ->  | P163: =IFERROR(VLOOKUP(K163,BUS!$C$4:$AEB$946,4,0),"") ->  | W163: =IFERROR(VLOOKUP(R163,BUS!$C$4:$AEB$946,4,0),"") ->  | Y163: =IFERROR(VLOOKUP(D163,'شهر 9 تفصيلي'!$B$5:$AEB$965,1,0),"") ->  | Z163: =IFERROR(VLOOKUP(K163,'شهر 9 تفصيلي'!$B$5:$AEB$965,1,0),"") ->  | AA163: =IFERROR(VLOOKUP(R163,'شهر 9 تفصيلي'!$B$5:$AEB$965,1,0),"") ->  | AB163: 132 | AC163: 0 | AG163: 0 | AI163: 0
B164: 133 | I164: =IFERROR(VLOOKUP(D164,BUS!$C$4:$AEB$946,4,0),"") ->  | P164: =IFERROR(VLOOKUP(K164,BUS!$C$4:$AEB$946,4,0),"") ->  | W164: =IFERROR(VLOOKUP(R164,BUS!$C$4:$AEB$946,4,0),"") ->  | Y164: =IFERROR(VLOOKUP(D164,'شهر 9 تفصيلي'!$B$5:$AEB$965,1,0),"") ->  | Z164: =IFERROR(VLOOKUP(K164,'شهر 9 تفصيلي'!$B$5:$AEB$965,1,0),"") ->  | AA164: =IFERROR(VLOOKUP(R164,'شهر 9 تفصيلي'!$B$5:$AEB$965,1,0),"") ->  | AB164: 133 | AC164: 0 | AG164: 0 | AI164: 0
B165: 134 | I165: =IFERROR(VLOOKUP(D165,BUS!$C$4:$AEB$946,4,0),"") ->  | P165: =IFERROR(VLOOKUP(K165,BUS!$C$4:$AEB$946,4,0),"") ->  | W165: =IFERROR(VLOOKUP(R165,BUS!$C$4:$AEB$946,4,0),"") ->  | Y165: =IFERROR(VLOOKUP(D165,'شهر 9 تفصيلي'!$B$5:$AEB$965,1,0),"") ->  | Z165: =IFERROR(VLOOKUP(K165,'شهر 9 تفصيلي'!$B$5:$AEB$965,1,0),"") ->  | AA165: =IFERROR(VLOOKUP(R165,'شهر 9 تفصيلي'!$B$5:$AEB$965,1,0),"") ->  | AB165: 134 | AC165: 0 | AG165: 0 | AI165: 0
B166: 135 | I166: =IFERROR(VLOOKUP(D166,BUS!$C$4:$AEB$946,4,0),"") ->  | P166: =IFERROR(VLOOKUP(K166,BUS!$C$4:$AEB$946,4,0),"") ->  | W166: =IFERROR(VLOOKUP(R166,BUS!$C$4:$AEB$946,4,0),"") ->  | Y166: =IFERROR(VLOOKUP(D166,'شهر 9 تفصيلي'!$B$5:$AEB$965,1,0),"") ->  | Z166: =IFERROR(VLOOKUP(K166,'شهر 9 تفصيلي'!$B$5:$AEB$965,1,0),"") ->  | AA166: =IFERROR(VLOOKUP(R166,'شهر 9 تفصيلي'!$B$5:$AEB$965,1,0),"") ->  | AB166: 135 | AC166: 0 | AG166: 0 | AI166: 0
B167: 136 | I167: =IFERROR(VLOOKUP(D167,BUS!$C$4:$AEB$946,4,0),"") ->  | P167: =IFERROR(VLOOKUP(K167,BUS!$C$4:$AEB$946,4,0),"") ->  | W167: =IFERROR(VLOOKUP(R167,BUS!$C$4:$AEB$946,4,0),"") ->  | Y167: =IFERROR(VLOOKUP(D167,'شهر 9 تفصيلي'!$B$5:$AEB$965,1,0),"") ->  | Z167: =IFERROR(VLOOKUP(K167,'شهر 9 تفصيلي'!$B$5:$AEB$965,1,0),"") ->  | AA167: =IFERROR(VLOOKUP(R167,'شهر 9 تفصيلي'!$B$5:$AEB$965,1,0),"") ->  | AB167: 136 | AC167: 0 | AG167: 0 | AI167: 0
B168: 137 | I168: =IFERROR(VLOOKUP(D168,BUS!$C$4:$AEB$946,4,0),"") ->  | P168: =IFERROR(VLOOKUP(K168,BUS!$C$4:$AEB$946,4,0),"") ->  | W168: =IFERROR(VLOOKUP(R168,BUS!$C$4:$AEB$946,4,0),"") ->  | Y168: =IFERROR(VLOOKUP(D168,'شهر 9 تفصيلي'!$B$5:$AEB$965,1,0),"") ->  | Z168: =IFERROR(VLOOKUP(K168,'شهر 9 تفصيلي'!$B$5:$AEB$965,1,0),"") ->  | AA168: =IFERROR(VLOOKUP(R168,'شهر 9 تفصيلي'!$B$5:$AEB$965,1,0),"") ->  | AB168: 137 | AC168: 0 | AG168: 0 | AI168: 0
B169: TOTAL | F169: =SUM(F124:F168)+F112 -> 5725 | I169: ـــــــــــــــــــــــــــــــــــ | K169: TOTAL | M169: =SUM(M124:M168)+M112 -> 243 | P169: ـــــــــــــــــــــــــــــــــــ | R169: TOTAL | T169: =SUM(T124:T168)+T112 -> 287 | W169: ـــــــــــــــــــــــــــــــــــ | AB169: 46 | AC169: 0 | AG169: 0 | AI169: 0
B170: Area manager | D170: Operation manager ( Bus D.) | K170: General manager ( Bus D) | T170: Maher-Hassan-2018 | AB170: 47 | AC170: 0 | AG170: 0 | AI170: 0

Sheet 4
AB5: محطة خشمان ( الماسة 7 )
B6: Checking the station manager | AB6: كشف بأرقام الفواتير اليومية
B7: ='شهر 9 تفصيلي'!$A$1+3 -> 2021-09-04 | F7: التاريخ / | I7: =#REF! ->  | M7: اليـــوم / | P7: محطة خشمان ( الماسة 7 ) | W7: 1 | AB7: =B7 -> 2021-09-04 | AF7: =I7 -> 
B8: S.NO | C8: رقم الفاتوره ديزل | D8: BUS | E8: الكيلو D | F8: D | G8: الوقت | H8: المراقب | I8: To | J8: رقم الفاتوره 95 | K8: BUS | L8: الكيلو 95 | M8: 95 | N8: الوقت | O8: المراقب | P8: To | Q8: رقم الفاتوره 91 | R8: BUS | S8: الكيلو 91 | T8: 91 | U8: الوقت | V8: المراقب | W8: To | AC8: رقم الفاتوره ديزل | AE8: رقم الفاتوره ديزل | AG8: رقم الفاتوره 95 | AI8: رقم الفاتوره 91
B9: 1 | C9: 20349 | D9: 1015 | F9: 265 | I9: =IFERROR(VLOOKUP(D9,BUS!$C$4:$AEB$946,4,0),"") -> MUB | J9: 1243 | K9: 1557 | M9: 52 | P9: =IFERROR(VLOOKUP(K9,BUS!$C$4:$AEB$946,4,0),"") -> MUB | Q9: 4067 | R9: se82 | T9: 40 | W9: =IFERROR(VLOOKUP(R9,BUS!$C$4:$AEB$946,4,0),"") -> MUB | Y9: =IFERROR(VLOOKUP(D9,'شهر 9 تفصيلي'!$B$5:$AEB$965,1,0),"") -> 1015 | Z9: =IFERROR(VLOOKUP(K9,'شهر 9 تفصيلي'!$B$5:$AEB$965,1,0),"") -> 1557 | AA9: =IFERROR(VLOOKUP(R9,'شهر 9 تفصيلي'!$B$5:$AEB$965,1,0),"") -> SE82 | AB9: 1 | AC9: =IF(C9>0,C9) -> 20349 | AD9: 48 | AE9: =IF(C67>0,C67) -> FALSE | AF9: 1 | AG9: =IF(J9>0,J9) -> 1243 | AH9: 1 | AI9: =IF(Q9>0,Q9) -> 4067
B10: 2 | C10: 20350 | D10: 1261 | F10: 280 | I10: =IFERROR(VLOOKUP(D10,BUS!$C$4:$AEB$946,4,0),"") -> DHA | J10: 1241 | K10: 1589 | M10: 92 | P10: =IFERROR(VLOOKUP(K10,BUS!$C$4:$AEB$946,4,0),"") -> UDH | Q10: 4066 | R10: 4016 | T10: 52 | W10: =IFERROR(VLOOKUP(R10,BUS!$C$4:$AEB$946,4,0),"") -> MUB | Y10: =IFERROR(VLOOKUP(D10,'شهر 9 تفصيلي'!$B$5:$AEB$965,1,0),"") -> 1261 | Z10: =IFERROR(VLOOKUP(K10,'شهر 9 تفصيلي'!$B$5:$AEB$965,1,0),"") -> 1589 | AA10: =IFERROR(VLOOKUP(R10,'شهر 9 تفصيلي'!$B$5:$AEB$965,1,0),"") -> 4016 | AB10: 2 | AC10: =IF(C10>0,C10) -> 20350 | AD10: 49 | AE10: =IF(C68>0,C68) -> FALSE | AF10: 2 | AG10: =IF(J10>0,J10) -> 1241 | AH10: 2 | AI10: =IF(Q10>0,Q10) -> 4066
B11: 3 | C11: 20351 | D11: 1811 | F11: 255 | I11: =IFERROR(VLOOKUP(D11,BUS!$C$4:$AEB$946,4,0),"") -> MUB | J11: 1242 | K11: 1525 | M11: 31 | P11: =IFERROR(VLOOKUP(K11,BUS!$C$4:$AEB$946,4,0),"") -> MUB | Q11: 4065 | R11: 6027 | T11: 72 | W11: =IFERROR(VLOOKUP(R11,BUS!$C$4:$AEB$946,4,0),"") -> MUB | Y11: =IFERROR(VLOOKUP(D11,'شهر 9 تفصيلي'!$B$5:$AEB$965,1,0),"") -> 1811 | Z11: =IFERROR(VLOOKUP(K11,'شهر 9 تفصيلي'!$B$5:$AEB$965,1,0),"") -> 1525 | AA11: =IFERROR(VLOOKUP(R11,'شهر 9 تفصيلي'!$B$5:$AEB$965,1,0),"") -> 6027 | AB11: 3 | AC11: 20351 | AD11: 50 | AE11: FALSE | AF11: 3 | AG11: 1242 | AH11: 3 | AI11: 4065
B12: 4 | C12: 20352 | D12: 1276 | F12: 270 | I12: =IFERROR(VLOOKUP(D12,BUS!$C$4:$AEB$946,4,0),"") -> MUB | J12: 1247 | K12: 1595 | M12: 66 | P12: =IFERROR(VLOOKUP(K12,BUS!$C$4:$AEB$946,4,0),"") -> DHA | W12: =IFERROR(VLOOKUP(R12,BUS!$C$4:$AEB$946,4,0),"") ->  | Y12: =IFERROR(VLOOKUP(D12,'شهر 9 تفصيلي'!$B$5:$AEB$965,1,0),"") -> 1276 | Z12: =IFERROR(VLOOKUP(K12,'شهر 9 تفصيلي'!$B$5:$AEB$965,1,0),"") -> 1595 | AA12: =IFERROR(VLOOKUP(R12,'شهر 9 تفصيلي'!$B$5:$AEB$965,1,0),"") ->  | AB12: 4 | AC12: 20352 | AD12: 51 | AE12: FALSE | AF12: 4 | AG12: 1247 | AH12: 4 | AI12: FALSE
B13: 5 | C13: 20353 | D13: 1013 | F13: 200 | I13: =IFERROR(VLOOKUP(D13,BUS!$C$4:$AEB$946,4,0),"") -> MUB | J13: 1244 | K13: 1588 | M13: 46 | P13: =IFERROR(VLOOKUP(K13,BUS!$C$4:$AEB$946,4,0),"") -> UDH | W13: =IFERROR(VLOOKUP(R13,BUS!$C$4:$AEB$946,4,0),"") ->  | Y13: =IFERROR(VLOOKUP(D13,'شهر 9 تفصيلي'!$B$5:$AEB$965,1,0),"") -> 1013 | Z13: =IFERROR(VLOOKUP(K13,'شهر 9 تفصيلي'!$B$5:$AEB$965,1,0),"") -> 1588 | AA13: =IFERROR(VLOOKUP(R13,'شهر 9 تفصيلي'!$B$5:$AEB$965,1,0),"") ->  | AB13: 5 | AC13: 20353 | AD13: 52 | AE13: FALSE | AF13: 5 | AG13: 1244 | AH13: 5 | AI13: FALSE
B14: 6 | C14: 20357 | D14: 1332 | F14: 180 | I14: =IFERROR(VLOOKUP(D14,BUS!$C$4:$AEB$946,4,0),"") -> MUB | J14: 1245 | K14: 1556 | M14: 93 | P14: =IFERROR(VLOOKUP(K14,BUS!$C$4:$AEB$946,4,0),"") -> MUB | W14: =IFERROR(VLOOKUP(R14,BUS!$C$4:$AEB$946,4,0),"") ->  | Y14: =IFERROR(VLOOKUP(D14,'شهر 9 تفصيلي'!$B$5:$AEB$965,1,0),"") -> 1332 | Z14: =IFERROR(VLOOKUP(K14,'شهر 9 تفصيلي'!$B$5:$AEB$965,1,0),"") -> 1556 | AA14: =IFERROR(VLOOKUP(R14,'شهر 9 تفصيلي'!$B$5:$AEB$965,1,0),"") ->  | AB14: 6 | AC14: 20357 | AD14: 53 | AE14: FALSE | AF14: 6 | AG14: 1245 | AH14: 6 | AI14: FALSE
B15: 7 | C15: 20358 | D15: 1271 | F15: 190 | I15: =IFERROR(VLOOKUP(D15,BUS!$C$4:$AEB$946,4,0),"") -> MUB | J15: 1246 | K15: 1503 | M15: 65 | P15: =IFERROR(VLOOKUP(K15,BUS!$C$4:$AEB$946,4,0),"") -> MUB | W15: =IFERROR(VLOOKUP(R15,BUS!$C$4:$AEB$946,4,0),"") ->  | Y15: =IFERROR(VLOOKUP(D15,'شهر 9 تفصيلي'!$B$5:$AEB$965,1,0),"") -> 1271 | Z15: =IFERROR(VLOOKUP(K15,'شهر 9 تفصيلي'!$B$5:$AEB$965,1,0),"") -> 1503 | AA15: =IFERROR(VLOOKUP(R15,'شهر 9 تفصيلي'!$B$5:$AEB$965,1,0),"") ->  | AB15: 7 | AC15: 20358 | AD15: 54 | AE15: FALSE | AF15: 7 | AG15: 1246 | AH15: 7 | AI15: FALSE
B16: 8 | C16: 20359 | D16: 1327 | F16: 185 | I16: =IFERROR(VLOOKUP(D16,BUS!$C$4:$AEB$946,4,0),"") -> MUB | P16: =IFERROR(VLOOKUP(K16,BUS!$C$4:$AEB$946,4,0),"") ->  | W16: =IFERROR(VLOOKUP(R16,BUS!$C$4:$AEB$946,4,0),"") ->  | Y16: =IFERROR(VLOOKUP(D16,'شهر 9 تفصيلي'!$B$5:$AEB$965,1,0),"") -> 1327 | Z16: =IFERROR(VLOOKUP(K16,'شهر 9 تفصيلي'!$B$5:$AEB$965,1,0),"") ->  | AA16: =IFERROR(VLOOKUP(R16,'شهر 9 تفصيلي'!$B$5:$AEB$965,1,0),"") ->  | AB16: 8 | AC16: 20359 | AD16: 55 | AE16: FALSE | AF16: 8 | AG16: FALSE | AH16: 8 | AI16: FALSE
B17: 9 | C17: 20360 | D17: 1142 | F17: 250 | I17: =IFERROR(VLOOKUP(D17,BUS!$C$4:$AEB$946,4,0),"") -> MUB | P17: =IFERROR(VLOOKUP(K17,BUS!$C$4:$AEB$946,4,0),"") ->  | W17: =IFERROR(VLOOKUP(R17,BUS!$C$4:$AEB$946,4,0),"") ->  | Y17: =IFERROR(VLOOKUP(D17,'شهر 9 تفصيلي'!$B$5:$AEB$965,1,0),"") -> 1142 | Z17: =IFERROR(VLOOKUP(K17,'شهر 9 تفصيلي'!$B$5:$AEB$965,1,0),"") ->  | AA17: =IFERROR(VLOOKUP(R17,'شهر 9 تفصيلي'!$B$5:$AEB$965,1,0),"") ->  | AB17: 9 | AC17: 20360 | AD17: 56 | AE17: FALSE | AF17: 9 | AG17: FALSE | AH17: 9 | AI17: FALSE
B18: 10 | C18: 20361 | D18: 1358 | F18: 100 | I18: =IFERROR(VLOOKUP(D18,BUS!$C$4:$AEB$946,4,0),"") -> MUB | P18: =IFERROR(VLOOKUP(K18,BUS!$C$4:$AEB$946,4,0),"") ->  | W18: =IFERROR(VLOOKUP(R18,BUS!$C$4:$AEB$946,4,0),"") ->  | Y18: =IFERROR(VLOOKUP(D18,'شهر 9 تفصيلي'!$B$5:$AEB$965,1,0),"") -> 1358 | Z18: =IFERROR(VLOOKUP(K18,'شهر 9 تفصيلي'!$B$5:$AEB$965,1,0),"") ->  | AA18: =IFERROR(VLOOKUP(R18,'شهر 9 تفصيلي'!$B$5:$AEB$965,1,0),"") ->  | AB18: 10 | AC18: 20361 | AD18: 57 | AE18: FALSE | AF18: 10 | AG18: FALSE | AH18: 10 | AI18: FALSE
B19: 11 | C19: 20362 | D19: 1083 | F19: 235 | I19: =IFERROR(VLOOKUP(D19,BUS!$C$4:$AEB$946,4,0),"") -> MUB | P19: =IFERROR(VLOOKUP(K19,BUS!$C$4:$AEB$946,4,0),"") ->  | W19: =IFERROR(VLOOKUP(R19,BUS!$C$4:$AEB$946,4,0),"") ->  | Y19: =IFERROR(VLOOKUP(D19,'شهر 9 تفصيلي'!$B$5:$AEB$965,1,0),"") -> 1083 | Z19: =IFERROR(VLOOKUP(K19,'شهر 9 تفصيلي'!$B$5:$AEB$965,1,0),"") ->  | AA19: =IFERROR(VLOOKUP(R19,'شهر 9 تفصيلي'!$B$5:$AEB$965,1,0),"") ->  | AB19: 11 | AC19: 20362 | AD19: 58 | AE19: FALSE | AF19: 11 | AG19: FALSE | AH19: 11 | AI19: FALSE
B20: 12 | C20: 20363 | D20: 1294 | F20: 160 | I20: =IFERROR(VLOOKUP(D20,BUS!$C$4:$AEB$946,4,0),"") -> MUB | P20: =IFERROR(VLOOKUP(K20,BUS!$C$4:$AEB$946,4,0),"") ->  | W20: =IFERROR(VLOOKUP(R20,BUS!$C$4:$AEB$946,4,0),"") ->  | Y20: =IFERROR(VLOOKUP(D20,'شهر 9 تفصيلي'!$B$5:$AEB$965,1,0),"") -> 1294 | Z20: =IFERROR(VLOOKUP(K20,'شهر 9 تفصيلي'!$B$5:$AEB$965,1,0),"") ->  | AA20: =IFERROR(VLOOKUP(R20,'شهر 9 تفصيلي'!$B$5:$AEB$965,1,0),"") ->  | AB20: 12 | AC20: 20363 | AD20: 59 | AE20: FALSE | AF20: 12 | AG20: FALSE | AH20: 12 | AI20: FALSE
B21: 13 | C21: 20364 | D21: 1061 | F21: 145 | I21: =IFERROR(VLOOKUP(D21,BUS!$C$4:$AEB$946,4,0),"") -> MUB | P21: =IFERROR(VLOOKUP(K21,BUS!$C$4:$AEB$946,4,0),"") ->  | W21: =IFERROR(VLOOKUP(R21,BUS!$C$4:$AEB$946,4,0),"") ->  | Y21: =IFERROR(VLOOKUP(D21,'شهر 9 تفصيلي'!$B$5:$AEB$965,1,0),"") -> 1061 | Z21: =IFERROR(VLOOKUP(K21,'شهر 9 تفصيلي'!$B$5:$AEB$965,1,0),"") ->  | AA21: =IFERROR(VLOOKUP(R21,'شهر 9 تفصيلي'!$B$5:$AEB$965,1,0),"") ->  | AB21: 13 | AC21: 20364 | AD21: 60 | AE21: FALSE | AF21: 13 | AG21: FALSE | AH21: 13 | AI21: FALSE
B22: 14 | C22: 20365 | D22: 1271 | F22: 120 | I22: =IFERROR(VLOOKUP(D22,BUS!$C$4:$AEB$946,4,0),"") -> MUB | P22: =IFERROR(VLOOKUP(K22,BUS!$C$4:$AEB$946,4,0),"") ->  | W22: =IFERROR(VLOOKUP(R22,BUS!$C$4:$AEB$946,4,0),"") ->  | Y22: =IFERROR(VLOOKUP(D22,'شهر 9 تفصيلي'!$B$5:$AEB$965,1,0),"") -> 1271 | Z22: =IFERROR(VLOOKUP(K22,'شهر 9 تفصيلي'!$B$5:$AEB$965,1,0),"") ->  | AA22: =IFERROR(VLOOKUP(R22,'شهر 9 تفصيلي'!$B$5:$AEB$965,1,0),"") ->  | AB22: 14 | AC22: 20365 | AD22: 61 | AE22: FALSE | AF22: 14 | AG22: FALSE | AH22: 14 | AI22: FALSE
B23: 15 | C23: 20367 | D23: 1327 | F23: 105 | I23: =IFERROR(VLOOKUP(D23,BUS!$C$4:$AEB$946,4,0),"") -> MUB | P23: =IFERROR(VLOOKUP(K23,BUS!$C$4:$AEB$946,4,0),"") ->  | W23: =IFERROR(VLOOKUP(R23,BUS!$C$4:$AEB$946,4,0),"") ->  | Y23: =IFERROR(VLOOKUP(D23,'شهر 9 تفصيلي'!$B$5:$AEB$965,1,0),"") -> 1327 | Z23: =IFERROR(VLOOKUP(K23,'شهر 9 تفصيلي'!$B$5:$AEB$965,1,0),"") ->  | AA23: =IFERROR(VLOOKUP(R23,'شهر 9 تفصيلي'!$B$5:$AEB$965,1,0),"") ->  | AB23: 15 | AC23: 20367 | AD23: 62 | AE23: FALSE | AF23: 15 | AG23: FALSE | AH23: 15 | AI23: FALSE
B24: 16 | C24: 20368 | D24: 1811 | F24: 100 | I24: =IFERROR(VLOOKUP(D24,BUS!$C$4:$AEB$946,4,0),"") -> MUB | P24: =IFERROR(VLOOKUP(K24,BUS!$C$4:$AEB$946,4,0),"") ->  | W24: =IFERROR(VLOOKUP(R24,BUS!$C$4:$AEB$946,4,0),"") ->  | Y24: =IFERROR(VLOOKUP(D24,'شهر 9 تفصيلي'!$B$5:$AEB$965,1,0),"") -> 1811 | Z24: =IFERROR(VLOOKUP(K24,'شهر 9 تفصيلي'!$B$5:$AEB$965,1,0),"") ->  | AA24: =IFERROR(VLOOKUP(R24,'شهر 9 تفصيلي'!$B$5:$AEB$965,1,0),"") ->  | AB24: 16 | AC24: 20368 | AD24: 63 | AE24: FALSE | AF24: 16 | AG24: FALSE | AH24: 16 | AI24: FALSE
B25: 17 | C25: 20369 | D25: 1237 | F25: 195 | I25: =IFERROR(VLOOKUP(D25,BUS!$C$4:$AEB$946,4,0),"") -> MUB | P25: =IFERROR(VLOOKUP(K25,BUS!$C$4:$AEB$946,4,0),"") ->  | W25: =IFERROR(VLOOKUP(R25,BUS!$C$4:$AEB$946,4,0),"") ->  | Y25: =IFERROR(VLOOKUP(D25,'شهر 9 تفصيلي'!$B$5:$AEB$965,1,0),"") -> 1237 | Z25: =IFERROR(VLOOKUP(K25,'شهر 9 تفصيلي'!$B$5:$AEB$965,1,0),"") ->  | AA25: =IFERROR(VLOOKUP(R25,'شهر 9 تفصيلي'!$B$5:$AEB$965,1,0),"") ->  | AB25: 17 | AC25: 20369 | AD25: 64 | AE25: FALSE | AF25: 17 | AG25: FALSE | AH25: 17 | AI25: FALSE
B26: 18 | C26: 20370 | D26: 1051 | F26: 115 | I26: =IFERROR(VLOOKUP(D26,BUS!$C$4:$AEB$946,4,0),"") -> MUB | P26: =IFERROR(VLOOKUP(K26,BUS!$C$4:$AEB$946,4,0),"") ->  | W26: =IFERROR(VLOOKUP(R26,BUS!$C$4:$AEB$946,4,0),"") ->  | Y26: =IFERROR(VLOOKUP(D26,'شهر 9 تفصيلي'!$B$5:$AEB$965,1,0),"") -> 1051 | Z26: =IFERROR(VLOOKUP(K26,'شهر 9 تفصيلي'!$B$5:$AEB$965,1,0),"") ->  | AA26: =IFERROR(VLOOKUP(R26,'شهر 9 تفصيلي'!$B$5:$AEB$965,1,0),"") ->  | AB26: 18 | AC26: 20370 | AD26: 65 | AE26: FALSE | AF26: 18 | AG26: FALSE | AH26: 18 | AI26: FALSE
B27: 19 | C27: 20371 | D27: 1059 | F27: 200 | I27: =IFERROR(VLOOKUP(D27,BUS!$C$4:$AEB$946,4,0),"") -> DHA | P27: =IFERROR(VLOOKUP(K27,BUS!$C$4:$AEB$946,4,0),"") ->  | W27: =IFERROR(VLOOKUP(R27,BUS!$C$4:$AEB$946,4,0),"") ->  | Y27: =IFERROR(VLOOKUP(D27,'شهر 9 تفصيلي'!$B$5:$AEB$965,1,0),"") -> 1059 | Z27: =IFERROR(VLOOKUP(K27,'شهر 9 تفصيلي'!$B$5:$AEB$965,1,0),"") ->  | AA27: =IFERROR(VLOOKUP(R27,'شهر 9 تفصيلي'!$B$5:$AEB$965,1,0),"") ->  | AB27: 19 | AC27: 20371 | AD27: 66 | AE27: FALSE | AF27: 19 | AG27: FALSE | AH27: 19 | AI27: FALSE
B28: 20 | C28: 20372 | D28: 1819 | F28: 140 | I28: =IFERROR(VLOOKUP(D28,BUS!$C$4:$AEB$946,4,0),"") -> MUB | P28: =IFERROR(VLOOKUP(K28,BUS!$C$4:$AEB$946,4,0),"") ->  | W28: =IFERROR(VLOOKUP(R28,BUS!$C$4:$AEB$946,4,0),"") ->  | Y28: =IFERROR(VLOOKUP(D28,'شهر 9 تفصيلي'!$B$5:$AEB$965,1,0),"") -> 1819 | Z28: =IFERROR(VLOOKUP(K28,'شهر 9 تفصيلي'!$B$5:$AEB$965,1,0),"") ->  | AA28: =IFERROR(VLOOKUP(R28,'شهر 9 تفصيلي'!$B$5:$AEB$965,1,0),"") ->  | AB28: 20 | AC28: 20372 | AD28: 67 | AE28: FALSE | AF28: 20 | AG28: FALSE | AH28: 20 | AI28: FALSE
B29: 21 | C29: 20373 | D29: 1114 | F29: 180 | I29: =IFERROR(VLOOKUP(D29,BUS!$C$4:$AEB$946,4,0),"") -> DHA | P29: =IFERROR(VLOOKUP(K29,BUS!$C$4:$AEB$946,4,0),"") ->  | W29: =IFERROR(VLOOKUP(R29,BUS!$C$4:$AEB$946,4,0),"") ->  | Y29: =IFERROR(VLOOKUP(D29,'شهر 9 تفصيلي'!$B$5:$AEB$965,1,0),"") -> 1114 | Z29: =IFERROR(VLOOKUP(K29,'شهر 9 تفصيلي'!$B$5:$AEB$965,1,0),"") ->  | AA29: =IFERROR(VLOOKUP(R29,'شهر 9 تفصيلي'!$B$5:$AEB$965,1,0),"") ->  | AB29: 21 | AC29: 20373 | AD29: 68 | AE29: FALSE | AF29: 21 | AG29: FALSE | AH29: 21 | AI29: FALSE
B30: 22 | C30: 20374 | D30: 0 5 | F30: 39 | I30: =IFERROR(VLOOKUP(D30,BUS!$C$4:$AEB$946,4,0),"") -> MUB | P30: =IFERROR(VLOOKUP(K30,BUS!$C$4:$AEB$946,4,0),"") ->  | W30: =IFERROR(VLOOKUP(R30,BUS!$C$4:$AEB$946,4,0),"") ->  | Y30: =IFERROR(VLOOKUP(D30,'شهر 9 تفصيلي'!$B$5:$AEB$965,1,0),"") -> 0 5 | Z30: =IFERROR(VLOOKUP(K30,'شهر 9 تفصيلي'!$B$5:$AEB$965,1,0),"") ->  | AA30: =IFERROR(VLOOKUP(R30,'شهر 9 تفصيلي'!$B$5:$AEB$965,1,0),"") ->  | AB30: 22 | AC30: 20374 | AD30: 69 | AE30: FALSE | AF30: 22 | AG30: FALSE | AH30: 22 | AI30: FALSE
B31: 23 | C31: 20375 | D31: 1050 | F31: 125 | I31: =IFERROR(VLOOKUP(D31,BUS!$C$4:$AEB$946,4,0),"") -> DHA | P31: =IFERROR(VLOOKUP(K31,BUS!$C$4:$AEB$946,4,0),"") ->  | W31: =IFERROR(VLOOKUP(R31,BUS!$C$4:$AEB$946,4,0),"") ->  | Y31: =IFERROR(VLOOKUP(D31,'شهر 9 تفصيلي'!$B$5:$AEB$965,1,0),"") -> 1050 | Z31: =IFERROR(VLOOKUP(K31,'شهر 9 تفصيلي'!$B$5:$AEB$965,1,0),"") ->  | AA31: =IFERROR(VLOOKUP(R31,'شهر 9 تفصيلي'!$B$5:$AEB$965,1,0),"") ->  | AB31: 23 | AC31: 20375 | AD31: 70 | AE31: FALSE | AF31: 23 | AG31: FALSE | AH31: 23 | AI31: FALSE
B32: 24 | C32: 20399 | D32: 1086 | F32: 160 | I32: =IFERROR(VLOOKUP(D32,BUS!$C$4:$AEB$946,4,0),"") -> MUB | P32: =IFERROR(VLOOKUP(K32,BUS!$C$4:$AEB$946,4,0),"") ->  | W32: =IFERROR(VLOOKUP(R32,BUS!$C$4:$AEB$946,4,0),"") ->  | Y32: =IFERROR(VLOOKUP(D32,'شهر 9 تفصيلي'!$B$5:$AEB$965,1,0),"") -> 1086 | Z32: =IFERROR(VLOOKUP(K32,'شهر 9 تفصيلي'!$B$5:$AEB$965,1,0),"") ->  | AA32: =IFERROR(VLOOKUP(R32,'شهر 9 تفصيلي'!$B$5:$AEB$965,1,0),"") ->  | AB32: 24 | AC32: 20399 | AD32: 71 | AE32: FALSE | AF32: 24 | AG32: FALSE | AH32: 24 | AI32: FALSE
B33: 25 | C33: 20376 | D33: 1101 | F33: 155 | I33: =IFERROR(VLOOKUP(D33,BUS!$C$4:$AEB$946,4,0),"") -> MUB | P33: =IFERROR(VLOOKUP(K33,BUS!$C$4:$AEB$946,4,0),"") ->  | W33: =IFERROR(VLOOKUP(R33,BUS!$C$4:$AEB$946,4,0),"") ->  | Y33: =IFERROR(VLOOKUP(D33,'شهر 9 تفصيلي'!$B$5:$AEB$965,1,0),"") -> 1101 | Z33: =IFERROR(VLOOKUP(K33,'شهر 9 تفصيلي'!$B$5:$AEB$965,1,0),"") ->  | AA33: =IFERROR(VLOOKUP(R33,'شهر 9 تفصيلي'!$B$5:$AEB$965,1,0),"") ->  | AB33: 25 | AC33: 20376 | AD33: 72 | AE33: FALSE | AF33: 25 | AG33: FALSE | AH33: 25 | AI33: FALSE
B34: 26 | C34: 20377 | D34: 1824 | F34: 210 | I34: =IFERROR(VLOOKUP(D34,BUS!$C$4:$AEB$946,4,0),"") -> MUB | P34: =IFERROR(VLOOKUP(K34,BUS!$C$4:$AEB$946,4,0),"") ->  | W34: =IFERROR(VLOOKUP(R34,BUS!$C$4:$AEB$946,4,0),"") ->  | Y34: =IFERROR(VLOOKUP(D34,'شهر 9 تفصيلي'!$B$5:$AEB$965,1,0),"") -> 1824 | Z34: =IFERROR(VLOOKUP(K34,'شهر 9 تفصيلي'!$B$5:$AEB$965,1,0),"") ->  | AA34: =IFERROR(VLOOKUP(R34,'شهر 9 تفصيلي'!$B$5:$AEB$965,1,0),"") ->  | AB34: 26 | AC34: 20377 | AD34: 73 | AE34: FALSE | AF34: 26 | AG34: FALSE | AH34: 26 | AI34: FALSE
B35: 27 | C35: 20378 | D35: 1298 | F35: 165 | I35: =IFERROR(VLOOKUP(D35,BUS!$C$4:$AEB$946,4,0),"") -> DHA | P35: =IFERROR(VLOOKUP(K35,BUS!$C$4:$AEB$946,4,0),"") ->  | W35: =IFERROR(VLOOKUP(R35,BUS!$C$4:$AEB$946,4,0),"") ->  | Y35: =IFERROR(VLOOKUP(D35,'شهر 9 تفصيلي'!$B$5:$AEB$965,1,0),"") -> 1298 | Z35: =IFERROR(VLOOKUP(K35,'شهر 9 تفصيلي'!$B$5:$AEB$965,1,0),"") ->  | AA35: =IFERROR(VLOOKUP(R35,'شهر 9 تفصيلي'!$B$5:$AEB$965,1,0),"") ->  | AB35: 27 | AC35: 20378 | AD35: 74 | AE35: FALSE | AF35: 27 | AG35: FALSE | AH35: 27 | AI35: FALSE
B36: 28 | C36: 20379 | D36: 1276 | F36: 50 | I36: =IFERROR(VLOOKUP(D36,BUS!$C$4:$AEB$946,4,0),"") -> MUB | P36: =IFERROR(VLOOKUP(K36,BUS!$C$4:$AEB$946,4,0),"") ->  | W36: =IFERROR(VLOOKUP(R36,BUS!$C$4:$AEB$946,4,0),"") ->  | Y36: =IFERROR(VLOOKUP(D36,'شهر 9 تفصيلي'!$B$5:$AEB$965,1,0),"") -> 1276 | Z36: =IFERROR(VLOOKUP(K36,'شهر 9 تفصيلي'!$B$5:$AEB$965,1,0),"") ->  | AA36: =IFERROR(VLOOKUP(R36,'شهر 9 تفصيلي'!$B$5:$AEB$965,1,0),"") ->  | AB36: 28 | AC36: 20379 | AD36: 75 | AE36: FALSE | AF36: 28 | AG36: FALSE | AH36: 28 | AI36: FALSE
B37: 29 | C37: 20380 | D37: 1205 | F37: 200 | I37: =IFERROR(VLOOKUP(D37,BUS!$C$4:$AEB$946,4,0),"") -> MUB | P37: =IFERROR(VLOOKUP(K37,BUS!$C$4:$AEB$946,4,0),"") ->  | W37: =IFERROR(VLOOKUP(R37,BUS!$C$4:$AEB$946,4,0),"") ->  | Y37: =IFERROR(VLOOKUP(D37,'شهر 9 تفصيلي'!$B$5:$AEB$965,1,0),"") -> 1205 | Z37: =IFERROR(VLOOKUP(K37,'شهر 9 تفصيلي'!$B$5:$AEB$965,1,0),"") ->  | AA37: =IFERROR(VLOOKUP(R37,'شهر 9 تفصيلي'!$B$5:$AEB$965,1,0),"") ->  | AB37: 29 | AC37: 20380 | AD37: 76 | AE37: FALSE | AF37: 29 | AG37: FALSE | AH37: 29 | AI37: FALSE
B38: 30 | C38: 20382 | D38: 1808 | F38: 210 | I38: =IFERROR(VLOOKUP(D38,BUS!$C$4:$AEB$946,4,0),"") -> MUB | P38: =IFERROR(VLOOKUP(K38,BUS!$C$4:$AEB$946,4,0),"") ->  | W38: =IFERROR(VLOOKUP(R38,BUS!$C$4:$AEB$946,4,0),"") ->  | Y38: =IFERROR(VLOOKUP(D38,'شهر 9 تفصيلي'!$B$5:$AEB$965,1,0),"") -> 1808 | Z38: =IFERROR(VLOOKUP(K38,'شهر 9 تفصيلي'!$B$5:$AEB$965,1,0),"") ->  | AA38: =IFERROR(VLOOKUP(R38,'شهر 9 تفصيلي'!$B$5:$AEB$965,1,0),"") ->  | AB38: 30 | AC38: 20382 | AD38: 77 | AE38: FALSE | AF38: 30 | AG38: FALSE | AH38: 30 | AI38: FALSE
B39: 31 | C39: 20383 | D39: 1821 | F39: 190 | I39: =IFERROR(VLOOKUP(D39,BUS!$C$4:$AEB$946,4,0),"") -> MUB | P39: =IFERROR(VLOOKUP(K39,BUS!$C$4:$AEB$946,4,0),"") ->  | W39: =IFERROR(VLOOKUP(R39,BUS!$C$4:$AEB$946,4,0),"") ->  | Y39: =IFERROR(VLOOKUP(D39,'شهر 9 تفصيلي'!$B$5:$AEB$965,1,0),"") -> 1821 | Z39: =IFERROR(VLOOKUP(K39,'شهر 9 تفصيلي'!$B$5:$AEB$965,1,0),"") ->  | AA39: =IFERROR(VLOOKUP(R39,'شهر 9 تفصيلي'!$B$5:$AEB$965,1,0),"") ->  | AB39: 31 | AC39: 20383 | AD39: 78 | AE39: FALSE | AF39: 31 | AG39: FALSE | AH39: 31 | AI39: FALSE
B40: 32 | C40: 20384 | D40: 1820 | F40: 230 | I40: =IFERROR(VLOOKUP(D40,BUS!$C$4:$AEB$946,4,0),"") -> MUB | P40: =IFERROR(VLOOKUP(K40,BUS!$C$4:$AEB$946,4,0),"") ->  | W40: =IFERROR(VLOOKUP(R40,BUS!$C$4:$AEB$946,4,0),"") ->  | Y40: =IFERROR(VLOOKUP(D40,'شهر 9 تفصيلي'!$B$5:$AEB$965,1,0),"") -> 1820 | Z40: =IFERROR(VLOOKUP(K40,'شهر 9 تفصيلي'!$B$5:$AEB$965,1,0),"") ->  | AA40: =IFERROR(VLOOKUP(R40,'شهر 9 تفصيلي'!$B$5:$AEB$965,1,0),"") ->  | AB40: 32 | AC40: 20384 | AD40: 79 | AE40: FALSE | AF40: 32 | AG40: FALSE | AH40: 32 | AI40: FALSE
B41: 33 | C41: 20385 | D41: 1294 | F41: 55 | I41: =IFERROR(VLOOKUP(D41,BUS!$C$4:$AEB$946,4,0),"") -> MUB | P41: =IFERROR(VLOOKUP(K41,BUS!$C$4:$AEB$946,4,0),"") ->  | W41: =IFERROR(VLOOKUP(R41,BUS!$C$4:$AEB$946,4,0),"") ->  | Y41: =IFERROR(VLOOKUP(D41,'شهر 9 تفصيلي'!$B$5:$AEB$965,1,0),"") -> 1294 | Z41: =IFERROR(VLOOKUP(K41,'شهر 9 تفصيلي'!$B$5:$AEB$965,1,0),"") ->  | AA41: =IFERROR(VLOOKUP(R41,'شهر 9 تفصيلي'!$B$5:$AEB$965,1,0),"") ->  | AB41: 33 | AC41: 20385 | AD41: 80 | AE41: FALSE | AF41: 33 | AG41: FALSE | AH41: 33 | AI41: FALSE
B42: 34 | C42: 20386 | D42: 1074 | F42: 135 | I42: =IFERROR(VLOOKUP(D42,BUS!$C$4:$AEB$946,4,0),"") -> MUB | P42: =IFERROR(VLOOKUP(K42,BUS!$C$4:$AEB$946,4,0),"") ->  | W42: =IFERROR(VLOOKUP(R42,BUS!$C$4:$AEB$946,4,0),"") ->  | Y42: =IFERROR(VLOOKUP(D42,'شهر 9 تفصيلي'!$B$5:$AEB$965,1,0),"") -> 1074 | Z42: =IFERROR(VLOOKUP(K42,'شهر 9 تفصيلي'!$B$5:$AEB$965,1,0),"") ->  | AA42: =IFERROR(VLOOKUP(R42,'شهر 9 تفصيلي'!$B$5:$AEB$965,1,0),"") ->  | AB42: 34 | AC42: 20386 | AD42: 81 | AE42: FALSE | AF42: 34 | AG42: FALSE | AH42: 34 | AI42: FALSE
B43: 35 | C43: 20387 | D43: 1260 | F43: 200 | I43: =IFERROR(VLOOKUP(D43,BUS!$C$4:$AEB$946,4,0),"") -> DHA | P43: =IFERROR(VLOOKUP(K43,BUS!$C$4:$AEB$946,4,0),"") ->  | W43: =IFERROR(VLOOKUP(R43,BUS!$C$4:$AEB$946,4,0),"") ->  | Y43: =IFERROR(VLOOKUP(D43,'شهر 9 تفصيلي'!$B$5:$AEB$965,1,0),"") -> 1260 | Z43: =IFERROR(VLOOKUP(K43,'شهر 9 تفصيلي'!$B$5:$AEB$965,1,0),"") ->  | AA43: =IFERROR(VLOOKUP(R43,'شهر 9 تفصيلي'!$B$5:$AEB$965,1,0),"") ->  | AB43: 35 | AC43: 20387 | AD43: 82 | AE43: FALSE | AF43: 35 | AG43: FALSE | AH43: 35 | AI43: FALSE
B44: 36 | C44: 20388 | D44: 1017 | F44: 185 | I44: =IFERROR(VLOOKUP(D44,BUS!$C$4:$AEB$946,4,0),"") -> MUB | P44: =IFERROR(VLOOKUP(K44,BUS!$C$4:$AEB$946,4,0),"") ->  | W44: =IFERROR(VLOOKUP(R44,BUS!$C$4:$AEB$946,4,0),"") ->  | Y44: =IFERROR(VLOOKUP(D44,'شهر 9 تفصيلي'!$B$5:$AEB$965,1,0),"") -> 1017 | Z44: =IFERROR(VLOOKUP(K44,'شهر 9 تفصيلي'!$B$5:$AEB$965,1,0),"") ->  | AA44: =IFERROR(VLOOKUP(R44,'شهر 9 تفصيلي'!$B$5:$AEB$965,1,0),"") ->  | AB44: 36 | AC44: 20388 | AD44: 83 | AE44: FALSE | AF44: 36 | AG44: FALSE | AH44: 36 | AI44: FALSE
B45: 37 | C45: 20389 | D45: 1083 | F45: 70 | I45: =IFERROR(VLOOKUP(D45,BUS!$C$4:$AEB$946,4,0),"") -> MUB | P45: =IFERROR(VLOOKUP(K45,BUS!$C$4:$AEB$946,4,0),"") ->  | W45: =IFERROR(VLOOKUP(R45,BUS!$C$4:$AEB$946,4,0),"") ->  | Y45: =IFERROR(VLOOKUP(D45,'شهر 9 تفصيلي'!$B$5:$AEB$965,1,0),"") -> 1083 | Z45: =IFERROR(VLOOKUP(K45,'شهر 9 تفصيلي'!$B$5:$AEB$965,1,0),"") ->  | AA45: =IFERROR(VLOOKUP(R45,'شهر 9 تفصيلي'!$B$5:$AEB$965,1,0),"") ->  | AB45: 37 | AC45: 20389 | AD45: 84 | AE45: FALSE | AF45: 37 | AG45: FALSE | AH45: 37 | AI45: FALSE
B46: 38 | C46: 20390 | D46: 1253 | F46: 140 | I46: =IFERROR(VLOOKUP(D46,BUS!$C$4:$AEB$946,4,0),"") -> MUB | P46: =IFERROR(VLOOKUP(K46,BUS!$C$4:$AEB$946,4,0),"") ->  | W46: =IFERROR(VLOOKUP(R46,BUS!$C$4:$AEB$946,4,0),"") ->  | Y46: =IFERROR(VLOOKUP(D46,'شهر 9 تفصيلي'!$B$5:$AEB$965,1,0),"") -> 1253 | Z46: =IFERROR(VLOOKUP(K46,'شهر 9 تفصيلي'!$B$5:$AEB$965,1,0),"") ->  | AA46: =IFERROR(VLOOKUP(R46,'شهر 9 تفصيلي'!$B$5:$AEB$965,1,0),"") ->  | AB46: 38 | AC46: 20390 | AD46: 85 | AE46: FALSE | AF46: 38 | AG46: FALSE | AH46: 38 | AI46: FALSE
B47: 39 | C47: 20391 | D47: 1237 | F47: 65 | I47: =IFERROR(VLOOKUP(D47,BUS!$C$4:$AEB$946,4,0),"") -> MUB | P47: =IFERROR(VLOOKUP(K47,BUS!$C$4:$AEB$946,4,0),"") ->  | W47: =IFERROR(VLOOKUP(R47,BUS!$C$4:$AEB$946,4,0),"") ->  | Y47: =IFERROR(VLOOKUP(D47,'شهر 9 تفصيلي'!$B$5:$AEB$965,1,0),"") -> 1237 | Z47: =IFERROR(VLOOKUP(K47,'شهر 9 تفصيلي'!$B$5:$AEB$965,1,0),"") ->  | AA47: =IFERROR(VLOOKUP(R47,'شهر 9 تفصيلي'!$B$5:$AEB$965,1,0),"") ->  | AB47: 39 | AC47: 20391 | AD47: 86 | AE47: FALSE | AF47: 39 | AG47: FALSE | AH47: 39 | AI47: FALSE
B48: 40 | C48: 20392 | D48: 1811 | F48: 75 | I48: =IFERROR(VLOOKUP(D48,BUS!$C$4:$AEB$946,4,0),"") -> MUB | P48: =IFERROR(VLOOKUP(K48,BUS!$C$4:$AEB$946,4,0),"") ->  | W48: =IFERROR(VLOOKUP(R48,BUS!$C$4:$AEB$946,4,0),"") ->  | Y48: =IFERROR(VLOOKUP(D48,'شهر 9 تفصيلي'!$B$5:$AEB$965,1,0),"") -> 1811 | Z48: =IFERROR(VLOOKUP(K48,'شهر 9 تفصيلي'!$B$5:$AEB$965,1,0),"") ->  | AA48: =IFERROR(VLOOKUP(R48,'شهر 9 تفصيلي'!$B$5:$AEB$965,1,0),"") ->  | AB48: 40 | AC48: 20392 | AD48: 87 | AE48: FALSE | AF48: 40 | AG48: FALSE | AH48: 40 | AI48: FALSE
B49: 41 | C49: 20393 | D49: 1297 | F49: 65 | I49: =IFERROR(VLOOKUP(D49,BUS!$C$4:$AEB$946,4,0),"") -> DHA | P49: =IFERROR(VLOOKUP(K49,BUS!$C$4:$AEB$946,4,0),"") ->  | W49: =IFERROR(VLOOKUP(R49,BUS!$C$4:$AEB$946,4,0),"") ->  | Y49: =IFERROR(VLOOKUP(D49,'شهر 9 تفصيلي'!$B$5:$AEB$965,1,0),"") -> 1297 | Z49: =IFERROR(VLOOKUP(K49,'شهر 9 تفصيلي'!$B$5:$AEB$965,1,0),"") ->  | AA49: =IFERROR(VLOOKUP(R49,'شهر 9 تفصيلي'!$B$5:$AEB$965,1,0),"") ->  | AB49: 41 | AC49: 20393 | AD49: 88 | AE49: FALSE | AF49: 41 | AG49: FALSE | AH49: 41 | AI49: FALSE
B50: 42 | C50: 20395 | D50: 1659 | F50: 45 | I50: =IFERROR(VLOOKUP(D50,BUS!$C$4:$AEB$946,4,0),"") -> MUB | P50: =IFERROR(VLOOKUP(K50,BUS!$C$4:$AEB$946,4,0),"") ->  | W50: =IFERROR(VLOOKUP(R50,BUS!$C$4:$AEB$946,4,0),"") ->  | Y50: =IFERROR(VLOOKUP(D50,'شهر 9 تفصيلي'!$B$5:$AEB$965,1,0),"") -> 1659 | Z50: =IFERROR(VLOOKUP(K50,'شهر 9 تفصيلي'!$B$5:$AEB$965,1,0),"") ->  | AA50: =IFERROR(VLOOKUP(R50,'شهر 9 تفصيلي'!$B$5:$AEB$965,1,0),"") ->  | AB50: 42 | AC50: 20395 | AD50: 89 | AE50: FALSE | AF50: 42 | AG50: FALSE | AH50: 42 | AI50: FALSE
B51: 43 | C51: 20396 | D51: 1300 | F51: 100 | I51: =IFERROR(VLOOKUP(D51,BUS!$C$4:$AEB$946,4,0),"") -> MUB | P51: =IFERROR(VLOOKUP(K51,BUS!$C$4:$AEB$946,4,0),"") ->  | W51: =IFERROR(VLOOKUP(R51,BUS!$C$4:$AEB$946,4,0),"") ->  | Y51: =IFERROR(VLOOKUP(D51,'شهر 9 تفصيلي'!$B$5:$AEB$965,1,0),"") -> 1300 | Z51: =IFERROR(VLOOKUP(K51,'شهر 9 تفصيلي'!$B$5:$AEB$965,1,0),"") ->  | AA51: =IFERROR(VLOOKUP(R51,'شهر 9 تفصيلي'!$B$5:$AEB$965,1,0),"") ->  | AB51: 43 | AC51: 20396 | AD51: 90 | AE51: FALSE | AF51: 43 | AG51: FALSE | AH51: 43 | AI51: FALSE
B52: 44 | C52: 20397 | D52: 1290 | F52: 255 | I52: =IFERROR(VLOOKUP(D52,BUS!$C$4:$AEB$946,4,0),"") -> MUB | P52: =IFERROR(VLOOKUP(K52,BUS!$C$4:$AEB$946,4,0),"") ->  | W52: =IFERROR(VLOOKUP(R52,BUS!$C$4:$AEB$946,4,0),"") ->  | Y52: =IFERROR(VLOOKUP(D52,'شهر 9 تفصيلي'!$B$5:$AEB$965,1,0),"") -> 1290 | Z52: =IFERROR(VLOOKUP(K52,'شهر 9 تفصيلي'!$B$5:$AEB$965,1,0),"") ->  | AA52: =IFERROR(VLOOKUP(R52,'شهر 9 تفصيلي'!$B$5:$AEB$965,1,0),"") ->  | AB52: 44 | AC52: 20397 | AD52: 91 | AE52: FALSE | AF52: 44 | AG52: FALSE | AH52: 44 | AI52: FALSE
B53: 45 | C53: 20398 | D53: 1001 | E53: 12000 | F53: 165 | I53: =IFERROR(VLOOKUP(D53,BUS!$C$4:$AEB$946,4,0),"") -> MUB | P53: =IFERROR(VLOOKUP(K53,BUS!$C$4:$AEB$946,4,0),"") ->  | W53: =IFERROR(VLOOKUP(R53,BUS!$C$4:$AEB$946,4,0),"") ->  | Y53: =IFERROR(VLOOKUP(D53,'شهر 9 تفصيلي'!$B$5:$AEB$965,1,0),"") -> 1001 | Z53: =IFERROR(VLOOKUP(K53,'شهر 9 تفصيلي'!$B$5:$AEB$965,1,0),"") ->  | AA53: =IFERROR(VLOOKUP(R53,'شهر 9 تفصيلي'!$B$5:$AEB$965,1,0),"") ->  | AB53: 45 | AC53: 20398 | AD53: 92 | AE53: FALSE | AF53: 45 | AG53: FALSE | AH53: 45 | AI53: FALSE
B54: 46 | I54: =IFERROR(VLOOKUP(D54,BUS!$C$4:$AEB$946,4,0),"") ->  | P54: =IFERROR(VLOOKUP(K54,BUS!$C$4:$AEB$946,4,0),"") ->  | W54: =IFERROR(VLOOKUP(R54,BUS!$C$4:$AEB$946,4,0),"") ->  | Y54: =IFERROR(VLOOKUP(D54,'شهر 9 تفصيلي'!$B$5:$AEB$965,1,0),"") ->  | Z54: =IFERROR(VLOOKUP(K54,'شهر 9 تفصيلي'!$B$5:$AEB$965,1,0),"") ->  | AA54: =IFERROR(VLOOKUP(R54,'شهر 9 تفصيلي'!$B$5:$AEB$965,1,0),"") ->  | AB54: 46 | AC54: FALSE | AD54: 93 | AE54: FALSE | AF54: 46 | AG54: FALSE | AH54: 46 | AI54: FALSE
B55: 47 | I55: =IFERROR(VLOOKUP(D55,BUS!$C$4:$AEB$946,4,0),"") ->  | P55: =IFERROR(VLOOKUP(K55,BUS!$C$4:$AEB$946,4,0),"") ->  | W55: =IFERROR(VLOOKUP(R55,BUS!$C$4:$AEB$946,4,0),"") ->  | Y55: =IFERROR(VLOOKUP(D55,'شهر 9 تفصيلي'!$B$5:$AEB$965,1,0),"") ->  | Z55: =IFERROR(VLOOKUP(K55,'شهر 9 تفصيلي'!$B$5:$AEB$965,1,0),"") ->  | AA55: =IFERROR(VLOOKUP(R55,'شهر 9 تفصيلي'!$B$5:$AEB$965,1,0),"") ->  | AB55: 47 | AC55: FALSE | AD55: 94 | AE55: FALSE | AF55: 47 | AG55: FALSE | AH55: 47 | AI55: FALSE
D56: TOTAL | F56: =SUM(F9:F55) -> 7159 | K56: TOTAL | M56: =SUM(M9:M55) -> 445 | R56: TOTAL | T56: =SUM(T9:T55) -> 164
B57: Area manager | D57: Operation manager ( Bus D.) | K57: General manager ( Bus D) | T57: Maher-Hassan-2018 | AC57: Maher-Hassan-2018
B64: Checking the station manager
B65: =B7 -> 2021-09-04 | F65: التاريخ / | I65: =I7 ->  | M65: اليـــــــــــوم / | P65: محطة خشمان ( الماسة 7 ) | W65: 2
B66: S.NO | C66: رقم الفاتوره ديزل | D66: BUS | E66: الكيلو D | F66: D | G66: الوقت | H66: المراقب | I66: To | J66: رقم الفاتوره 95 | K66: BUS | L66: الكيلو 95 | M66: 95 | N66: الوقت | O66: المراقب | P66: To | Q66: رقم الفاتوره 91 | R66: BUS | S66: الكيلو 91 | T66: 91 | U66: الوقت | V66: المراقب | W66: To
B67: 48 | I67: =IFERROR(VLOOKUP(D67,BUS!$C$4:$AEB$946,4,0),"") ->  | P67: =IFERROR(VLOOKUP(K67,BUS!$C$4:$AEB$946,4,0),"") ->  | W67: =IFERROR(VLOOKUP(R67,BUS!$C$4:$AEB$946,4,0),"") ->  | Y67: =IFERROR(VLOOKUP(D67,'شهر 9 تفصيلي'!$B$5:$AEB$965,1,0),"") ->  | Z67: =IFERROR(VLOOKUP(K67,'شهر 9 تفصيلي'!$B$5:$AEB$965,1,0),"") ->  | AA67: =IFERROR(VLOOKUP(R67,'شهر 9 تفصيلي'!$B$5:$AEB$965,1,0),"") -> 
B68: 49 | I68: =IFERROR(VLOOKUP(D68,BUS!$C$4:$AEB$946,4,0),"") ->  | P68: =IFERROR(VLOOKUP(K68,BUS!$C$4:$AEB$946,4,0),"") ->  | W68: =IFERROR(VLOOKUP(R68,BUS!$C$4:$AEB$946,4,0),"") ->  | Y68: =IFERROR(VLOOKUP(D68,'شهر 9 تفصيلي'!$B$5:$AEB$965,1,0),"") ->  | Z68: =IFERROR(VLOOKUP(K68,'شهر 9 تفصيلي'!$B$5:$AEB$965,1,0),"") ->  | AA68: =IFERROR(VLOOKUP(R68,'شهر 9 تفصيلي'!$B$5:$AEB$965,1,0),"") -> 
B69: 50 | I69: =IFERROR(VLOOKUP(D69,BUS!$C$4:$AEB$946,4,0),"") ->  | P69: =IFERROR(VLOOKUP(K69,BUS!$C$4:$AEB$946,4,0),"") ->  | W69: =IFERROR(VLOOKUP(R69,BUS!$C$4:$AEB$946,4,0),"") ->  | Y69: =IFERROR(VLOOKUP(D69,'شهر 9 تفصيلي'!$B$5:$AEB$965,1,0),"") ->  | Z69: =IFERROR(VLOOKUP(K69,'شهر 9 تفصيلي'!$B$5:$AEB$965,1,0),"") ->  | AA69: =IFERROR(VLOOKUP(R69,'شهر 9 تفصيلي'!$B$5:$AEB$965,1,0),"") -> 
B70: 51 | I70: =IFERROR(VLOOKUP(D70,BUS!$C$4:$AEB$946,4,0),"") ->  | P70: =IFERROR(VLOOKUP(K70,BUS!$C$4:$AEB$946,4,0),"") ->  | W70: =IFERROR(VLOOKUP(R70,BUS!$C$4:$AEB$946,4,0),"") ->  | Y70: =IFERROR(VLOOKUP(D70,'شهر 9 تفصيلي'!$B$5:$AEB$965,1,0),"") ->  | Z70: =IFERROR(VLOOKUP(K70,'شهر 9 تفصيلي'!$B$5:$AEB$965,1,0),"") ->  | AA70: =IFERROR(VLOOKUP(R70,'شهر 9 تفصيلي'!$B$5:$AEB$965,1,0),"") -> 
B71: 52 | I71: =IFERROR(VLOOKUP(D71,BUS!$C$4:$AEB$946,4,0),"") ->  | P71: =IFERROR(VLOOKUP(K71,BUS!$C$4:$AEB$946,4,0),"") ->  | W71: =IFERROR(VLOOKUP(R71,BUS!$C$4:$AEB$946,4,0),"") ->  | Y71: =IFERROR(VLOOKUP(D71,'شهر 9 تفصيلي'!$B$5:$AEB$965,1,0),"") ->  | Z71: =IFERROR(VLOOKUP(K71,'شهر 9 تفصيلي'!$B$5:$AEB$965,1,0),"") ->  | AA71: =IFERROR(VLOOKUP(R71,'شهر 9 تفصيلي'!$B$5:$AEB$965,1,0),"") -> 
B72: 53 | I72: =IFERROR(VLOOKUP(D72,BUS!$C$4:$AEB$946,4,0),"") ->  | P72: =IFERROR(VLOOKUP(K72,BUS!$C$4:$AEB$946,4,0),"") ->  | W72: =IFERROR(VLOOKUP(R72,BUS!$C$4:$AEB$946,4,0),"") ->  | Y72: =IFERROR(VLOOKUP(D72,'شهر 9 تفصيلي'!$B$5:$AEB$965,1,0),"") ->  | Z72: =IFERROR(VLOOKUP(K72,'شهر 9 تفصيلي'!$B$5:$AEB$965,1,0),"") ->  | AA72: =IFERROR(VLOOKUP(R72,'شهر 9 تفصيلي'!$B$5:$AEB$965,1,0),"") -> 
B73: 54 | I73: =IFERROR(VLOOKUP(D73,BUS!$C$4:$AEB$946,4,0),"") ->  | P73: =IFERROR(VLOOKUP(K73,BUS!$C$4:$AEB$946,4,0),"") ->  | W73: =IFERROR(VLOOKUP(R73,BUS!$C$4:$AEB$946,4,0),"") ->  | Y73: =IFERROR(VLOOKUP(D73,'شهر 9 تفصيلي'!$B$5:$AEB$965,1,0),"") ->  | Z73: =IFERROR(VLOOKUP(K73,'شهر 9 تفصيلي'!$B$5:$AEB$965,1,0),"") ->  | AA73: =IFERROR(VLOOKUP(R73,'شهر 9 تفصيلي'!$B$5:$AEB$965,1,0),"") -> 
B74: 55 | I74: =IFERROR(VLOOKUP(D74,BUS!$C$4:$AEB$946,4,0),"") ->  | P74: =IFERROR(VLOOKUP(K74,BUS!$C$4:$AEB$946,4,0),"") ->  | W74: =IFERROR(VLOOKUP(R74,BUS!$C$4:$AEB$946,4,0),"") ->  | Y74: =IFERROR(VLOOKUP(D74,'شهر 9 تفصيلي'!$B$5:$AEB$965,1,0),"") ->  | Z74: =IFERROR(VLOOKUP(K74,'شهر 9 تفصيلي'!$B$5:$AEB$965,1,0),"") ->  | AA74: =IFERROR(VLOOKUP(R74,'شهر 9 تفصيلي'!$B$5:$AEB$965,1,0),"") -> 
B75: 56 | I75: =IFERROR(VLOOKUP(D75,BUS!$C$4:$AEB$946,4,0),"") ->  | P75: =IFERROR(VLOOKUP(K75,BUS!$C$4:$AEB$946,4,0),"") ->  | W75: =IFERROR(VLOOKUP(R75,BUS!$C$4:$AEB$946,4,0),"") ->  | Y75: =IFERROR(VLOOKUP(D75,'شهر 9 تفصيلي'!$B$5:$AEB$965,1,0),"") ->  | Z75: =IFERROR(VLOOKUP(K75,'شهر 9 تفصيلي'!$B$5:$AEB$965,1,0),"") ->  | AA75: =IFERROR(VLOOKUP(R75,'شهر 9 تفصيلي'!$B$5:$AEB$965,1,0),"") -> 
B76: 57 | I76: =IFERROR(VLOOKUP(D76,BUS!$C$4:$AEB$946,4,0),"") ->  | P76: =IFERROR(VLOOKUP(K76,BUS!$C$4:$AEB$946,4,0),"") ->  | W76: =IFERROR(VLOOKUP(R76,BUS!$C$4:$AEB$946,4,0),"") ->  | Y76: =IFERROR(VLOOKUP(D76,'شهر 9 تفصيلي'!$B$5:$AEB$965,1,0),"") ->  | Z76: =IFERROR(VLOOKUP(K76,'شهر 9 تفصيلي'!$B$5:$AEB$965,1,0),"") ->  | AA76: =IFERROR(VLOOKUP(R76,'شهر 9 تفصيلي'!$B$5:$AEB$965,1,0),"") -> 
B77: 58 | I77: =IFERROR(VLOOKUP(D77,BUS!$C$4:$AEB$946,4,0),"") ->  | P77: =IFERROR(VLOOKUP(K77,BUS!$C$4:$AEB$946,4,0),"") ->  | W77: =IFERROR(VLOOKUP(R77,BUS!$C$4:$AEB$946,4,0),"") ->  | Y77: =IFERROR(VLOOKUP(D77,'شهر 9 تفصيلي'!$B$5:$AEB$965,1,0),"") ->  | Z77: =IFERROR(VLOOKUP(K77,'شهر 9 تفصيلي'!$B$5:$AEB$965,1,0),"") ->  | AA77: =IFERROR(VLOOKUP(R77,'شهر 9 تفصيلي'!$B$5:$AEB$965,1,0),"") -> 
B78: 59 | I78: =IFERROR(VLOOKUP(D78,BUS!$C$4:$AEB$946,4,0),"") ->  | P78: =IFERROR(VLOOKUP(K78,BUS!$C$4:$AEB$946,4,0),"") ->  | W78: =IFERROR(VLOOKUP(R78,BUS!$C$4:$AEB$946,4,0),"") ->  | Y78: =IFERROR(VLOOKUP(D78,'شهر 9 تفصيلي'!$B$5:$AEB$965,1,0),"") ->  | Z78: =IFERROR(VLOOKUP(K78,'شهر 9 تفصيلي'!$B$5:$AEB$965,1,0),"") ->  | AA78: =IFERROR(VLOOKUP(R78,'شهر 9 تفصيلي'!$B$5:$AEB$965,1,0),"") -> 
B79: 60 | I79: =IFERROR(VLOOKUP(D79,BUS!$C$4:$AEB$946,4,0),"") ->  | P79: =IFERROR(VLOOKUP(K79,BUS!$C$4:$AEB$946,4,0),"") ->  | W79: =IFERROR(VLOOKUP(R79,BUS!$C$4:$AEB$946,4,0),"") ->  | Y79: =IFERROR(VLOOKUP(D79,'شهر 9 تفصيلي'!$B$5:$AEB$965,1,0),"") ->  | Z79: =IFERROR(VLOOKUP(K79,'شهر 9 تفصيلي'!$B$5:$AEB$965,1,0),"") ->  | AA79: =IFERROR(VLOOKUP(R79,'شهر 9 تفصيلي'!$B$5:$AEB$965,1,0),"") -> 
B80: 61 | I80: =IFERROR(VLOOKUP(D80,BUS!$C$4:$AEB$946,4,0),"") ->  | P80: =IFERROR(VLOOKUP(K80,BUS!$C$4:$AEB$946,4,0),"") ->  | W80: =IFERROR(VLOOKUP(R80,BUS!$C$4:$AEB$946,4,0),"") ->  | Y80: =IFERROR(VLOOKUP(D80,'شهر 9 تفصيلي'!$B$5:$AEB$965,1,0),"") ->  | Z80: =IFERROR(VLOOKUP(K80,'شهر 9 تفصيلي'!$B$5:$AEB$965,1,0),"") ->  | AA80: =IFERROR(VLOOKUP(R80,'شهر 9 تفصيلي'!$B$5:$AEB$965,1,0),"") -> 
B81: 62 | I81: =IFERROR(VLOOKUP(D81,BUS!$C$4:$AEB$946,4,0),"") ->  | P81: =IFERROR(VLOOKUP(K81,BUS!$C$4:$AEB$946,4,0),"") ->  | W81: =IFERROR(VLOOKUP(R81,BUS!$C$4:$AEB$946,4,0),"") ->  | Y81: =IFERROR(VLOOKUP(D81,'شهر 9 تفصيلي'!$B$5:$AEB$965,1,0),"") ->  | Z81: =IFERROR(VLOOKUP(K81,'شهر 9 تفصيلي'!$B$5:$AEB$965,1,0),"") ->  | AA81: =IFERROR(VLOOKUP(R81,'شهر 9 تفصيلي'!$B$5:$AEB$965,1,0),"") -> 
B82: 63 | I82: =IFERROR(VLOOKUP(D82,BUS!$C$4:$AEB$946,4,0),"") ->  | P82: =IFERROR(VLOOKUP(K82,BUS!$C$4:$AEB$946,4,0),"") ->  | W82: =IFERROR(VLOOKUP(R82,BUS!$C$4:$AEB$946,4,0),"") ->  | Y82: =IFERROR(VLOOKUP(D82,'شهر 9 تفصيلي'!$B$5:$AEB$965,1,0),"") ->  | Z82: =IFERROR(VLOOKUP(K82,'شهر 9 تفصيلي'!$B$5:$AEB$965,1,0),"") ->  | AA82: =IFERROR(VLOOKUP(R82,'شهر 9 تفصيلي'!$B$5:$AEB$965,1,0),"") -> 
B83: 64 | I83: =IFERROR(VLOOKUP(D83,BUS!$C$4:$AEB$946,4,0),"") ->  | P83: =IFERROR(VLOOKUP(K83,BUS!$C$4:$AEB$946,4,0),"") ->  | W83: =IFERROR(VLOOKUP(R83,BUS!$C$4:$AEB$946,4,0),"") ->  | Y83: =IFERROR(VLOOKUP(D83,'شهر 9 تفصيلي'!$B$5:$AEB$965,1,0),"") ->  | Z83: =IFERROR(VLOOKUP(K83,'شهر 9 تفصيلي'!$B$5:$AEB$965,1,0),"") ->  | AA83: =IFERROR(VLOOKUP(R83,'شهر 9 تفصيلي'!$B$5:$AEB$965,1,0),"") -> 
B84: 65 | I84: =IFERROR(VLOOKUP(D84,BUS!$C$4:$AEB$946,4,0),"") ->  | P84: =IFERROR(VLOOKUP(K84,BUS!$C$4:$AEB$946,4,0),"") ->  | W84: =IFERROR(VLOOKUP(R84,BUS!$C$4:$AEB$946,4,0),"") ->  | Y84: =IFERROR(VLOOKUP(D84,'شهر 9 تفصيلي'!$B$5:$AEB$965,1,0),"") ->  | Z84: =IFERROR(VLOOKUP(K84,'شهر 9 تفصيلي'!$B$5:$AEB$965,1,0),"") ->  | AA84: =IFERROR(VLOOKUP(R84,'شهر 9 تفصيلي'!$B$5:$AEB$965,1,0),"") -> 
B85: 66 | I85: =IFERROR(VLOOKUP(D85,BUS!$C$4:$AEB$946,4,0),"") ->  | P85: =IFERROR(VLOOKUP(K85,BUS!$C$4:$AEB$946,4,0),"") ->  | W85: =IFERROR(VLOOKUP(R85,BUS!$C$4:$AEB$946,4,0),"") ->  | Y85: =IFERROR(VLOOKUP(D85,'شهر 9 تفصيلي'!$B$5:$AEB$965,1,0),"") ->  | Z85: =IFERROR(VLOOKUP(K85,'شهر 9 تفصيلي'!$B$5:$AEB$965,1,0),"") ->  | AA85: =IFERROR(VLOOKUP(R85,'شهر 9 تفصيلي'!$B$5:$AEB$965,1,0),"") -> 
B86: 67 | I86: =IFERROR(VLOOKUP(D86,BUS!$C$4:$AEB$946,4,0),"") ->  | P86: =IFERROR(VLOOKUP(K86,BUS!$C$4:$AEB$946,4,0),"") ->  | W86: =IFERROR(VLOOKUP(R86,BUS!$C$4:$AEB$946,4,0),"") ->  | Y86: =IFERROR(VLOOKUP(D86,'شهر 9 تفصيلي'!$B$5:$AEB$965,1,0),"") ->  | Z86: =IFERROR(VLOOKUP(K86,'شهر 9 تفصيلي'!$B$5:$AEB$965,1,0),"") ->  | AA86: =IFERROR(VLOOKUP(R86,'شهر 9 تفصيلي'!$B$5:$AEB$965,1,0),"") -> 
B87: 68 | I87: =IFERROR(VLOOKUP(D87,BUS!$C$4:$AEB$946,4,0),"") ->  | P87: =IFERROR(VLOOKUP(K87,BUS!$C$4:$AEB$946,4,0),"") ->  | W87: =IFERROR(VLOOKUP(R87,BUS!$C$4:$AEB$946,4,0),"") ->  | Y87: =IFERROR(VLOOKUP(D87,'شهر 9 تفصيلي'!$B$5:$AEB$965,1,0),"") ->  | Z87: =IFERROR(VLOOKUP(K87,'شهر 9 تفصيلي'!$B$5:$AEB$965,1,0),"") ->  | AA87: =IFERROR(VLOOKUP(R87,'شهر 9 تفصيلي'!$B$5:$AEB$965,1,0),"") -> 
B88: 69 | I88: =IFERROR(VLOOKUP(D88,BUS!$C$4:$AEB$946,4,0),"") ->  | P88: =IFERROR(VLOOKUP(K88,BUS!$C$4:$AEB$946,4,0),"") ->  | W88: =IFERROR(VLOOKUP(R88,BUS!$C$4:$AEB$946,4,0),"") ->  | Y88: =IFERROR(VLOOKUP(D88,'شهر 9 تفصيلي'!$B$5:$AEB$965,1,0),"") ->  | Z88: =IFERROR(VLOOKUP(K88,'شهر 9 تفصيلي'!$B$5:$AEB$965,1,0),"") ->  | AA88: =IFERROR(VLOOKUP(R88,'شهر 9 تفصيلي'!$B$5:$AEB$965,1,0),"") -> 
B89: 70 | I89: =IFERROR(VLOOKUP(D89,BUS!$C$4:$AEB$946,4,0),"") ->  | P89: =IFERROR(VLOOKUP(K89,BUS!$C$4:$AEB$946,4,0),"") ->  | W89: =IFERROR(VLOOKUP(R89,BUS!$C$4:$AEB$946,4,0),"") ->  | Y89: =IFERROR(VLOOKUP(D89,'شهر 9 تفصيلي'!$B$5:$AEB$965,1,0),"") ->  | Z89: =IFERROR(VLOOKUP(K89,'شهر 9 تفصيلي'!$B$5:$AEB$965,1,0),"") ->  | AA89: =IFERROR(VLOOKUP(R89,'شهر 9 تفصيلي'!$B$5:$AEB$965,1,0),"") -> 
B90: 71 | I90: =IFERROR(VLOOKUP(D90,BUS!$C$4:$AEB$946,4,0),"") ->  | P90: =IFERROR(VLOOKUP(K90,BUS!$C$4:$AEB$946,4,0),"") ->  | W90: =IFERROR(VLOOKUP(R90,BUS!$C$4:$AEB$946,4,0),"") ->  | Y90: =IFERROR(VLOOKUP(D90,'شهر 9 تفصيلي'!$B$5:$AEB$965,1,0),"") ->  | Z90: =IFERROR(VLOOKUP(K90,'شهر 9 تفصيلي'!$B$5:$AEB$965,1,0),"") ->  | AA90: =IFERROR(VLOOKUP(R90,'شهر 9 تفصيلي'!$B$5:$AEB$965,1,0),"") -> 
B91: 72 | I91: =IFERROR(VLOOKUP(D91,BUS!$C$4:$AEB$946,4,0),"") ->  | P91: =IFERROR(VLOOKUP(K91,BUS!$C$4:$AEB$946,4,0),"") ->  | W91: =IFERROR(VLOOKUP(R91,BUS!$C$4:$AEB$946,4,0),"") ->  | Y91: =IFERROR(VLOOKUP(D91,'شهر 9 تفصيلي'!$B$5:$AEB$965,1,0),"") ->  | Z91: =IFERROR(VLOOKUP(K91,'شهر 9 تفصيلي'!$B$5:$AEB$965,1,0),"") ->  | AA91: =IFERROR(VLOOKUP(R91,'شهر 9 تفصيلي'!$B$5:$AEB$965,1,0),"") -> 
B92: 73 | I92: =IFERROR(VLOOKUP(D92,BUS!$C$4:$AEB$946,4,0),"") ->  | P92: =IFERROR(VLOOKUP(K92,BUS!$C$4:$AEB$946,4,0),"") ->  | W92: =IFERROR(VLOOKUP(R92,BUS!$C$4:$AEB$946,4,0),"") ->  | Y92: =IFERROR(VLOOKUP(D92,'شهر 9 تفصيلي'!$B$5:$AEB$965,1,0),"") ->  | Z92: =IFERROR(VLOOKUP(K92,'شهر 9 تفصيلي'!$B$5:$AEB$965,1,0),"") ->  | AA92: =IFERROR(VLOOKUP(R92,'شهر 9 تفصيلي'!$B$5:$AEB$965,1,0),"") -> 
B93: 74 | I93: =IFERROR(VLOOKUP(D93,BUS!$C$4:$AEB$946,4,0),"") ->  | P93: =IFERROR(VLOOKUP(K93,BUS!$C$4:$AEB$946,4,0),"") ->  | W93: =IFERROR(VLOOKUP(R93,BUS!$C$4:$AEB$946,4,0),"") ->  | Y93: =IFERROR(VLOOKUP(D93,'شهر 9 تفصيلي'!$B$5:$AEB$965,1,0),"") ->  | Z93: =IFERROR(VLOOKUP(K93,'شهر 9 تفصيلي'!$B$5:$AEB$965,1,0),"") ->  | AA93: =IFERROR(VLOOKUP(R93,'شهر 9 تفصيلي'!$B$5:$AEB$965,1,0),"") -> 
B94: 75 | I94: =IFERROR(VLOOKUP(D94,BUS!$C$4:$AEB$946,4,0),"") ->  | P94: =IFERROR(VLOOKUP(K94,BUS!$C$4:$AEB$946,4,0),"") ->  | W94: =IFERROR(VLOOKUP(R94,BUS!$C$4:$AEB$946,4,0),"") ->  | Y94: =IFERROR(VLOOKUP(D94,'شهر 9 تفصيلي'!$B$5:$AEB$965,1,0),"") ->  | Z94: =IFERROR(VLOOKUP(K94,'شهر 9 تفصيلي'!$B$5:$AEB$965,1,0),"") ->  | AA94: =IFERROR(VLOOKUP(R94,'شهر 9 تفصيلي'!$B$5:$AEB$965,1,0),"") -> 
B95: 76 | I95: =IFERROR(VLOOKUP(D95,BUS!$C$4:$AEB$946,4,0),"") ->  | P95: =IFERROR(VLOOKUP(K95,BUS!$C$4:$AEB$946,4,0),"") ->  | W95: =IFERROR(VLOOKUP(R95,BUS!$C$4:$AEB$946,4,0),"") ->  | Y95: =IFERROR(VLOOKUP(D95,'شهر 9 تفصيلي'!$B$5:$AEB$965,1,0),"") ->  | Z95: =IFERROR(VLOOKUP(K95,'شهر 9 تفصيلي'!$B$5:$AEB$965,1,0),"") ->  | AA95: =IFERROR(VLOOKUP(R95,'شهر 9 تفصيلي'!$B$5:$AEB$965,1,0),"") -> 
B96: 77 | I96: =IFERROR(VLOOKUP(D96,BUS!$C$4:$AEB$946,4,0),"") ->  | P96: =IFERROR(VLOOKUP(K96,BUS!$C$4:$AEB$946,4,0),"") ->  | W96: =IFERROR(VLOOKUP(R96,BUS!$C$4:$AEB$946,4,0),"") ->  | Y96: =IFERROR(VLOOKUP(D96,'شهر 9 تفصيلي'!$B$5:$AEB$965,1,0),"") ->  | Z96: =IFERROR(VLOOKUP(K96,'شهر 9 تفصيلي'!$B$5:$AEB$965,1,0),"") ->  | AA96: =IFERROR(VLOOKUP(R96,'شهر 9 تفصيلي'!$B$5:$AEB$965,1,0),"") -> 
B97: 78 | I97: =IFERROR(VLOOKUP(D97,BUS!$C$4:$AEB$946,4,0),"") ->  | P97: =IFERROR(VLOOKUP(K97,BUS!$C$4:$AEB$946,4,0),"") ->  | W97: =IFERROR(VLOOKUP(R97,BUS!$C$4:$AEB$946,4,0),"") ->  | Y97: =IFERROR(VLOOKUP(D97,'شهر 9 تفصيلي'!$B$5:$AEB$965,1,0),"") ->  | Z97: =IFERROR(VLOOKUP(K97,'شهر 9 تفصيلي'!$B$5:$AEB$965,1,0),"") ->  | AA97: =IFERROR(VLOOKUP(R97,'شهر 9 تفصيلي'!$B$5:$AEB$965,1,0),"") -> 
B98: 79 | I98: =IFERROR(VLOOKUP(D98,BUS!$C$4:$AEB$946,4,0),"") ->  | P98: =IFERROR(VLOOKUP(K98,BUS!$C$4:$AEB$946,4,0),"") ->  | W98: =IFERROR(VLOOKUP(R98,BUS!$C$4:$AEB$946,4,0),"") ->  | Y98: =IFERROR(VLOOKUP(D98,'شهر 9 تفصيلي'!$B$5:$AEB$965,1,0),"") ->  | Z98: =IFERROR(VLOOKUP(K98,'شهر 9 تفصيلي'!$B$5:$AEB$965,1,0),"") ->  | AA98: =IFERROR(VLOOKUP(R98,'شهر 9 تفصيلي'!$B$5:$AEB$965,1,0),"") -> 
B99: 80 | I99: =IFERROR(VLOOKUP(D99,BUS!$C$4:$AEB$946,4,0),"") ->  | P99: =IFERROR(VLOOKUP(K99,BUS!$C$4:$AEB$946,4,0),"") ->  | W99: =IFERROR(VLOOKUP(R99,BUS!$C$4:$AEB$946,4,0),"") ->  | Y99: =IFERROR(VLOOKUP(D99,'شهر 9 تفصيلي'!$B$5:$AEB$965,1,0),"") ->  | Z99: =IFERROR(VLOOKUP(K99,'شهر 9 تفصيلي'!$B$5:$AEB$965,1,0),"") ->  | AA99: =IFERROR(VLOOKUP(R99,'شهر 9 تفصيلي'!$B$5:$AEB$965,1,0),"") -> 
B100: 81 | I100: =IFERROR(VLOOKUP(D100,BUS!$C$4:$AEB$946,4,0),"") ->  | P100: =IFERROR(VLOOKUP(K100,BUS!$C$4:$AEB$946,4,0),"") ->  | W100: =IFERROR(VLOOKUP(R100,BUS!$C$4:$AEB$946,4,0),"") ->  | Y100: =IFERROR(VLOOKUP(D100,'شهر 9 تفصيلي'!$B$5:$AEB$965,1,0),"") ->  | Z100: =IFERROR(VLOOKUP(K100,'شهر 9 تفصيلي'!$B$5:$AEB$965,1,0),"") ->  | AA100: =IFERROR(VLOOKUP(R100,'شهر 9 تفصيلي'!$B$5:$AEB$965,1,0),"") -> 
B101: 82 | I101: =IFERROR(VLOOKUP(D101,BUS!$C$4:$AEB$946,4,0),"") ->  | P101: =IFERROR(VLOOKUP(K101,BUS!$C$4:$AEB$946,4,0),"") ->  | W101: =IFERROR(VLOOKUP(R101,BUS!$C$4:$AEB$946,4,0),"") ->  | Y101: =IFERROR(VLOOKUP(D101,'شهر 9 تفصيلي'!$B$5:$AEB$965,1,0),"") ->  | Z101: =IFERROR(VLOOKUP(K101,'شهر 9 تفصيلي'!$B$5:$AEB$965,1,0),"") ->  | AA101: =IFERROR(VLOOKUP(R101,'شهر 9 تفصيلي'!$B$5:$AEB$965,1,0),"") -> 
B102: 83 | I102: =IFERROR(VLOOKUP(D102,BUS!$C$4:$AEB$946,4,0),"") ->  | P102: =IFERROR(VLOOKUP(K102,BUS!$C$4:$AEB$946,4,0),"") ->  | W102: =IFERROR(VLOOKUP(R102,BUS!$C$4:$AEB$946,4,0),"") ->  | Y102: =IFERROR(VLOOKUP(D102,'شهر 9 تفصيلي'!$B$5:$AEB$965,1,0),"") ->  | Z102: =IFERROR(VLOOKUP(K102,'شهر 9 تفصيلي'!$B$5:$AEB$965,1,0),"") ->  | AA102: =IFERROR(VLOOKUP(R102,'شهر 9 تفصيلي'!$B$5:$AEB$965,1,0),"") -> 
B103: 84 | I103: =IFERROR(VLOOKUP(D103,BUS!$C$4:$AEB$946,4,0),"") ->  | P103: =IFERROR(VLOOKUP(K103,BUS!$C$4:$AEB$946,4,0),"") ->  | W103: =IFERROR(VLOOKUP(R103,BUS!$C$4:$AEB$946,4,0),"") ->  | Y103: =IFERROR(VLOOKUP(D103,'شهر 9 تفصيلي'!$B$5:$AEB$965,1,0),"") ->  | Z103: =IFERROR(VLOOKUP(K103,'شهر 9 تفصيلي'!$B$5:$AEB$965,1,0),"") ->  | AA103: =IFERROR(VLOOKUP(R103,'شهر 9 تفصيلي'!$B$5:$AEB$965,1,0),"") -> 
B104: 85 | I104: =IFERROR(VLOOKUP(D104,BUS!$C$4:$AEB$946,4,0),"") ->  | P104: =IFERROR(VLOOKUP(K104,BUS!$C$4:$AEB$946,4,0),"") ->  | W104: =IFERROR(VLOOKUP(R104,BUS!$C$4:$AEB$946,4,0),"") ->  | Y104: =IFERROR(VLOOKUP(D104,'شهر 9 تفصيلي'!$B$5:$AEB$965,1,0),"") ->  | Z104: =IFERROR(VLOOKUP(K104,'شهر 9 تفصيلي'!$B$5:$AEB$965,1,0),"") ->  | AA104: =IFERROR(VLOOKUP(R104,'شهر 9 تفصيلي'!$B$5:$AEB$965,1,0),"") -> 
B105: 86 | I105: =IFERROR(VLOOKUP(D105,BUS!$C$4:$AEB$946,4,0),"") ->  | P105: =IFERROR(VLOOKUP(K105,BUS!$C$4:$AEB$946,4,0),"") ->  | W105: =IFERROR(VLOOKUP(R105,BUS!$C$4:$AEB$946,4,0),"") ->  | Y105: =IFERROR(VLOOKUP(D105,'شهر 9 تفصيلي'!$B$5:$AEB$965,1,0),"") ->  | Z105: =IFERROR(VLOOKUP(K105,'شهر 9 تفصيلي'!$B$5:$AEB$965,1,0),"") ->  | AA105: =IFERROR(VLOOKUP(R105,'شهر 9 تفصيلي'!$B$5:$AEB$965,1,0),"") -> 
B106: 87 | I106: =IFERROR(VLOOKUP(D106,BUS!$C$4:$AEB$946,4,0),"") ->  | P106: =IFERROR(VLOOKUP(K106,BUS!$C$4:$AEB$946,4,0),"") ->  | W106: =IFERROR(VLOOKUP(R106,BUS!$C$4:$AEB$946,4,0),"") ->  | Y106: =IFERROR(VLOOKUP(D106,'شهر 9 تفصيلي'!$B$5:$AEB$965,1,0),"") ->  | Z106: =IFERROR(VLOOKUP(K106,'شهر 9 تفصيلي'!$B$5:$AEB$965,1,0),"") ->  | AA106: =IFERROR(VLOOKUP(R106,'شهر 9 تفصيلي'!$B$5:$AEB$965,1,0),"") -> 
B107: 88 | I107: =IFERROR(VLOOKUP(D107,BUS!$C$4:$AEB$946,4,0),"") ->  | P107: =IFERROR(VLOOKUP(K107,BUS!$C$4:$AEB$946,4,0),"") ->  | W107: =IFERROR(VLOOKUP(R107,BUS!$C$4:$AEB$946,4,0),"") ->  | Y107: =IFERROR(VLOOKUP(D107,'شهر 9 تفصيلي'!$B$5:$AEB$965,1,0),"") ->  | Z107: =IFERROR(VLOOKUP(K107,'شهر 9 تفصيلي'!$B$5:$AEB$965,1,0),"") ->  | AA107: =IFERROR(VLOOKUP(R107,'شهر 9 تفصيلي'!$B$5:$AEB$965,1,0),"") -> 
B108: 89 | I108: =IFERROR(VLOOKUP(D108,BUS!$C$4:$AEB$946,4,0),"") ->  | P108: =IFERROR(VLOOKUP(K108,BUS!$C$4:$AEB$946,4,0),"") ->  | W108: =IFERROR(VLOOKUP(R108,BUS!$C$4:$AEB$946,4,0),"") ->  | Y108: =IFERROR(VLOOKUP(D108,'شهر 9 تفصيلي'!$B$5:$AEB$965,1,0),"") ->  | Z108: =IFERROR(VLOOKUP(K108,'شهر 9 تفصيلي'!$B$5:$AEB$965,1,0),"") ->  | AA108: =IFERROR(VLOOKUP(R108,'شهر 9 تفصيلي'!$B$5:$AEB$965,1,0),"") -> 
B109: 90 | I109: =IFERROR(VLOOKUP(D109,BUS!$C$4:$AEB$946,4,0),"") ->  | P109: =IFERROR(VLOOKUP(K109,BUS!$C$4:$AEB$946,4,0),"") ->  | W109: =IFERROR(VLOOKUP(R109,BUS!$C$4:$AEB$946,4,0),"") ->  | Y109: =IFERROR(VLOOKUP(D109,'شهر 9 تفصيلي'!$B$5:$AEB$965,1,0),"") ->  | Z109: =IFERROR(VLOOKUP(K109,'شهر 9 تفصيلي'!$B$5:$AEB$965,1,0),"") ->  | AA109: =IFERROR(VLOOKUP(R109,'شهر 9 تفصيلي'!$B$5:$AEB$965,1,0),"") -> 
B110: 91 | I110: =IFERROR(VLOOKUP(D110,BUS!$C$4:$AEB$946,4,0),"") ->  | P110: =IFERROR(VLOOKUP(K110,BUS!$C$4:$AEB$946,4,0),"") ->  | W110: =IFERROR(VLOOKUP(R110,BUS!$C$4:$AEB$946,4,0),"") ->  | Y110: =IFERROR(VLOOKUP(D110,'شهر 9 تفصيلي'!$B$5:$AEB$965,1,0),"") ->  | Z110: =IFERROR(VLOOKUP(K110,'شهر 9 تفصيلي'!$B$5:$AEB$965,1,0),"") ->  | AA110: =IFERROR(VLOOKUP(R110,'شهر 9 تفصيلي'!$B$5:$AEB$965,1,0),"") -> 
B111: 92 | I111: =IFERROR(VLOOKUP(D111,BUS!$C$4:$AEB$946,4,0),"") ->  | P111: =IFERROR(VLOOKUP(K111,BUS!$C$4:$AEB$946,4,0),"") ->  | W111: =IFERROR(VLOOKUP(R111,BUS!$C$4:$AEB$946,4,0),"") ->  | Y111: =IFERROR(VLOOKUP(D111,'شهر 9 تفصيلي'!$B$5:$AEB$965,1,0),"") ->  | Z111: =IFERROR(VLOOKUP(K111,'شهر 9 تفصيلي'!$B$5:$AEB$965,1,0),"") ->  | AA111: =IFERROR(VLOOKUP(R111,'شهر 9 تفصيلي'!$B$5:$AEB$965,1,0),"") -> 
B112: TOTAL | F112: =SUM(F67:F111)+F56 -> 7159 | I112: ـــــــــــــــــــــــــــــــــــ | K112: TOTAL | M112: =SUM(M67:M111)+M56 -> 445 | P112: ـــــــــــــــــــــــــــــــــــ | R112: TOTAL | T112: =SUM(T67:T111)+T56 -> 164 | W112: ـــــــــــــــــــــــــــــــــــ
B113: Area manager | D113: Operation manager ( Bus D.) | K113: General manager ( Bus D) | T113: Maher-Hassan-2018
AB120: محطة خشمان ( الماسة 7 )
B121: Checking the station manager | AB121: =I122 -> 
B122: =B7 -> 2021-09-04 | F122: التاريخ / | I122: =I7 ->  | M122: اليـــــــــــوم / | P122: محطة خشمان ( الماسة 7 ) | W122: 3 | AB122: ='شهر 9 تفصيلي'!$A$1+3 -> 2021-09-04
B123: S.NO | C123: رقم الفاتوره ديزل | D123: BUS | E123: الكيلو D | F123: D | G123: الوقت | H123: المراقب | I123: To | J123: رقم الفاتوره 95 | K123: BUS | L123: الكيلو 95 | M123: 95 | N123: الوقت | O123: المراقب | P123: To | Q123: رقم الفاتوره 91 | R123: BUS | S123: الكيلو 91 | T123: 91 | U123: الوقت | V123: المراقب | W123: To | AB123: S.NO | AC123: رقم الفاتوره ديزل | AG123: رقم الفاتوره 95 | AI123: رقم الفاتوره 91
B124: 93 | I124: =IFERROR(VLOOKUP(D124,BUS!$C$4:$AEB$946,4,0),"") ->  | P124: =IFERROR(VLOOKUP(K124,BUS!$C$4:$AEB$946,4,0),"") ->  | W124: =IFERROR(VLOOKUP(R124,BUS!$C$4:$AEB$946,4,0),"") ->  | Y124: =IFERROR(VLOOKUP(D124,'شهر 9 تفصيلي'!$B$5:$AEB$965,1,0),"") ->  | Z124: =IFERROR(VLOOKUP(K124,'شهر 9 تفصيلي'!$B$5:$AEB$965,1,0),"") ->  | AA124: =IFERROR(VLOOKUP(R124,'شهر 9 تفصيلي'!$B$5:$AEB$965,1,0),"") ->  | AB124: 93 | AC124: =C124 -> 0 | AG124: =J124 -> 0 | AI124: =Q124 -> 0
B125: 94 | I125: =IFERROR(VLOOKUP(D125,BUS!$C$4:$AEB$946,4,0),"") ->  | P125: =IFERROR(VLOOKUP(K125,BUS!$C$4:$AEB$946,4,0),"") ->  | W125: =IFERROR(VLOOKUP(R125,BUS!$C$4:$AEB$946,4,0),"") ->  | Y125: =IFERROR(VLOOKUP(D125,'شهر 9 تفصيلي'!$B$5:$AEB$965,1,0),"") ->  | Z125: =IFERROR(VLOOKUP(K125,'شهر 9 تفصيلي'!$B$5:$AEB$965,1,0),"") ->  | AA125: =IFERROR(VLOOKUP(R125,'شهر 9 تفصيلي'!$B$5:$AEB$965,1,0),"") ->  | AB125: 94 | AC125: =C125 -> 0 | AG125: =J125 -> 0 | AI125: =Q125 -> 0
B126: 95 | I126: =IFERROR(VLOOKUP(D126,BUS!$C$4:$AEB$946,4,0),"") ->  | P126: =IFERROR(VLOOKUP(K126,BUS!$C$4:$AEB$946,4,0),"") ->  | W126: =IFERROR(VLOOKUP(R126,BUS!$C$4:$AEB$946,4,0),"") ->  | Y126: =IFERROR(VLOOKUP(D126,'شهر 9 تفصيلي'!$B$5:$AEB$965,1,0),"") ->  | Z126: =IFERROR(VLOOKUP(K126,'شهر 9 تفصيلي'!$B$5:$AEB$965,1,0),"") ->  | AA126: =IFERROR(VLOOKUP(R126,'شهر 9 تفصيلي'!$B$5:$AEB$965,1,0),"") ->  | AB126: 95 | AC126: 0 | AG126: 0 | AI126: 0
B127: 96 | I127: =IFERROR(VLOOKUP(D127,BUS!$C$4:$AEB$946,4,0),"") ->  | P127: =IFERROR(VLOOKUP(K127,BUS!$C$4:$AEB$946,4,0),"") ->  | W127: =IFERROR(VLOOKUP(R127,BUS!$C$4:$AEB$946,4,0),"") ->  | Y127: =IFERROR(VLOOKUP(D127,'شهر 9 تفصيلي'!$B$5:$AEB$965,1,0),"") ->  | Z127: =IFERROR(VLOOKUP(K127,'شهر 9 تفصيلي'!$B$5:$AEB$965,1,0),"") ->  | AA127: =IFERROR(VLOOKUP(R127,'شهر 9 تفصيلي'!$B$5:$AEB$965,1,0),"") ->  | AB127: 96 | AC127: 0 | AG127: 0 | AI127: 0
B128: 97 | I128: =IFERROR(VLOOKUP(D128,BUS!$C$4:$AEB$946,4,0),"") ->  | P128: =IFERROR(VLOOKUP(K128,BUS!$C$4:$AEB$946,4,0),"") ->  | W128: =IFERROR(VLOOKUP(R128,BUS!$C$4:$AEB$946,4,0),"") ->  | Y128: =IFERROR(VLOOKUP(D128,'شهر 9 تفصيلي'!$B$5:$AEB$965,1,0),"") ->  | Z128: =IFERROR(VLOOKUP(K128,'شهر 9 تفصيلي'!$B$5:$AEB$965,1,0),"") ->  | AA128: =IFERROR(VLOOKUP(R128,'شهر 9 تفصيلي'!$B$5:$AEB$965,1,0),"") ->  | AB128: 97 | AC128: 0 | AG128: 0 | AI128: 0
B129: 98 | I129: =IFERROR(VLOOKUP(D129,BUS!$C$4:$AEB$946,4,0),"") ->  | P129: =IFERROR(VLOOKUP(K129,BUS!$C$4:$AEB$946,4,0),"") ->  | W129: =IFERROR(VLOOKUP(R129,BUS!$C$4:$AEB$946,4,0),"") ->  | Y129: =IFERROR(VLOOKUP(D129,'شهر 9 تفصيلي'!$B$5:$AEB$965,1,0),"") ->  | Z129: =IFERROR(VLOOKUP(K129,'شهر 9 تفصيلي'!$B$5:$AEB$965,1,0),"") ->  | AA129: =IFERROR(VLOOKUP(R129,'شهر 9 تفصيلي'!$B$5:$AEB$965,1,0),"") ->  | AB129: 98 | AC129: 0 | AG129: 0 | AI129: 0
B130: 99 | I130: =IFERROR(VLOOKUP(D130,BUS!$C$4:$AEB$946,4,0),"") ->  | P130: =IFERROR(VLOOKUP(K130,BUS!$C$4:$AEB$946,4,0),"") ->  | W130: =IFERROR(VLOOKUP(R130,BUS!$C$4:$AEB$946,4,0),"") ->  | Y130: =IFERROR(VLOOKUP(D130,'شهر 9 تفصيلي'!$B$5:$AEB$965,1,0),"") ->  | Z130: =IFERROR(VLOOKUP(K130,'شهر 9 تفصيلي'!$B$5:$AEB$965,1,0),"") ->  | AA130: =IFERROR(VLOOKUP(R130,'شهر 9 تفصيلي'!$B$5:$AEB$965,1,0),"") ->  | AB130: 99 | AC130: 0 | AG130: 0 | AI130: 0
B131: 100 | I131: =IFERROR(VLOOKUP(D131,BUS!$C$4:$AEB$946,4,0),"") ->  | P131: =IFERROR(VLOOKUP(K131,BUS!$C$4:$AEB$946,4,0),"") ->  | W131: =IFERROR(VLOOKUP(R131,BUS!$C$4:$AEB$946,4,0),"") ->  | Y131: =IFERROR(VLOOKUP(D131,'شهر 9 تفصيلي'!$B$5:$AEB$965,1,0),"") ->  | Z131: =IFERROR(VLOOKUP(K131,'شهر 9 تفصيلي'!$B$5:$AEB$965,1,0),"") ->  | AA131: =IFERROR(VLOOKUP(R131,'شهر 9 تفصيلي'!$B$5:$AEB$965,1,0),"") ->  | AB131: 100 | AC131: 0 | AG131: 0 | AI131: 0
B132: 101 | I132: =IFERROR(VLOOKUP(D132,BUS!$C$4:$AEB$946,4,0),"") ->  | P132: =IFERROR(VLOOKUP(K132,BUS!$C$4:$AEB$946,4,0),"") ->  | W132: =IFERROR(VLOOKUP(R132,BUS!$C$4:$AEB$946,4,0),"") ->  | Y132: =IFERROR(VLOOKUP(D132,'شهر 9 تفصيلي'!$B$5:$AEB$965,1,0),"") ->  | Z132: =IFERROR(VLOOKUP(K132,'شهر 9 تفصيلي'!$B$5:$AEB$965,1,0),"") ->  | AA132: =IFERROR(VLOOKUP(R132,'شهر 9 تفصيلي'!$B$5:$AEB$965,1,0),"") ->  | AB132: 101 | AC132: 0 | AG132: 0 | AI132: 0
B133: 102 | I133: =IFERROR(VLOOKUP(D133,BUS!$C$4:$AEB$946,4,0),"") ->  | P133: =IFERROR(VLOOKUP(K133,BUS!$C$4:$AEB$946,4,0),"") ->  | W133: =IFERROR(VLOOKUP(R133,BUS!$C$4:$AEB$946,4,0),"") ->  | Y133: =IFERROR(VLOOKUP(D133,'شهر 9 تفصيلي'!$B$5:$AEB$965,1,0),"") ->  | Z133: =IFERROR(VLOOKUP(K133,'شهر 9 تفصيلي'!$B$5:$AEB$965,1,0),"") ->  | AA133: =IFERROR(VLOOKUP(R133,'شهر 9 تفصيلي'!$B$5:$AEB$965,1,0),"") ->  | AB133: 102 | AC133: 0 | AG133: 0 | AI133: 0
B134: 103 | I134: =IFERROR(VLOOKUP(D134,BUS!$C$4:$AEB$946,4,0),"") ->  | P134: =IFERROR(VLOOKUP(K134,BUS!$C$4:$AEB$946,4,0),"") ->  | W134: =IFERROR(VLOOKUP(R134,BUS!$C$4:$AEB$946,4,0),"") ->  | Y134: =IFERROR(VLOOKUP(D134,'شهر 9 تفصيلي'!$B$5:$AEB$965,1,0),"") ->  | Z134: =IFERROR(VLOOKUP(K134,'شهر 9 تفصيلي'!$B$5:$AEB$965,1,0),"") ->  | AA134: =IFERROR(VLOOKUP(R134,'شهر 9 تفصيلي'!$B$5:$AEB$965,1,0),"") ->  | AB134: 103 | AC134: 0 | AG134: 0 | AI134: 0
B135: 104 | I135: =IFERROR(VLOOKUP(D135,BUS!$C$4:$AEB$946,4,0),"") ->  | P135: =IFERROR(VLOOKUP(K135,BUS!$C$4:$AEB$946,4,0),"") ->  | W135: =IFERROR(VLOOKUP(R135,BUS!$C$4:$AEB$946,4,0),"") ->  | Y135: =IFERROR(VLOOKUP(D135,'شهر 9 تفصيلي'!$B$5:$AEB$965,1,0),"") ->  | Z135: =IFERROR(VLOOKUP(K135,'شهر 9 تفصيلي'!$B$5:$AEB$965,1,0),"") ->  | AA135: =IFERROR(VLOOKUP(R135,'شهر 9 تفصيلي'!$B$5:$AEB$965,1,0),"") ->  | AB135: 104 | AC135: 0 | AG135: 0 | AI135: 0
B136: 105 | I136: =IFERROR(VLOOKUP(D136,BUS!$C$4:$AEB$946,4,0),"") ->  | P136: =IFERROR(VLOOKUP(K136,BUS!$C$4:$AEB$946,4,0),"") ->  | W136: =IFERROR(VLOOKUP(R136,BUS!$C$4:$AEB$946,4,0),"") ->  | Y136: =IFERROR(VLOOKUP(D136,'شهر 9 تفصيلي'!$B$5:$AEB$965,1,0),"") ->  | Z136: =IFERROR(VLOOKUP(K136,'شهر 9 تفصيلي'!$B$5:$AEB$965,1,0),"") ->  | AA136: =IFERROR(VLOOKUP(R136,'شهر 9 تفصيلي'!$B$5:$AEB$965,1,0),"") ->  | AB136: 105 | AC136: 0 | AG136: 0 | AI136: 0
B137: 106 | I137: =IFERROR(VLOOKUP(D137,BUS!$C$4:$AEB$946,4,0),"") ->  | P137: =IFERROR(VLOOKUP(K137,BUS!$C$4:$AEB$946,4,0),"") ->  | W137: =IFERROR(VLOOKUP(R137,BUS!$C$4:$AEB$946,4,0),"") ->  | Y137: =IFERROR(VLOOKUP(D137,'شهر 9 تفصيلي'!$B$5:$AEB$965,1,0),"") ->  | Z137: =IFERROR(VLOOKUP(K137,'شهر 9 تفصيلي'!$B$5:$AEB$965,1,0),"") ->  | AA137: =IFERROR(VLOOKUP(R137,'شهر 9 تفصيلي'!$B$5:$AEB$965,1,0),"") ->  | AB137: 106 | AC137: 0 | AG137: 0 | AI137: 0
B138: 107 | I138: =IFERROR(VLOOKUP(D138,BUS!$C$4:$AEB$946,4,0),"") ->  | P138: =IFERROR(VLOOKUP(K138,BUS!$C$4:$AEB$946,4,0),"") ->  | W138: =IFERROR(VLOOKUP(R138,BUS!$C$4:$AEB$946,4,0),"") ->  | Y138: =IFERROR(VLOOKUP(D138,'شهر 9 تفصيلي'!$B$5:$AEB$965,1,0),"") ->  | Z138: =IFERROR(VLOOKUP(K138,'شهر 9 تفصيلي'!$B$5:$AEB$965,1,0),"") ->  | AA138: =IFERROR(VLOOKUP(R138,'شهر 9 تفصيلي'!$B$5:$AEB$965,1,0),"") ->  | AB138: 107 | AC138: 0 | AG138: 0 | AI138: 0
B139: 108 | I139: =IFERROR(VLOOKUP(D139,BUS!$C$4:$AEB$946,4,0),"") ->  | P139: =IFERROR(VLOOKUP(K139,BUS!$C$4:$AEB$946,4,0),"") ->  | W139: =IFERROR(VLOOKUP(R139,BUS!$C$4:$AEB$946,4,0),"") ->  | Y139: =IFERROR(VLOOKUP(D139,'شهر 9 تفصيلي'!$B$5:$AEB$965,1,0),"") ->  | Z139: =IFERROR(VLOOKUP(K139,'شهر 9 تفصيلي'!$B$5:$AEB$965,1,0),"") ->  | AA139: =IFERROR(VLOOKUP(R139,'شهر 9 تفصيلي'!$B$5:$AEB$965,1,0),"") ->  | AB139: 108 | AC139: 0 | AG139: 0 | AI139: 0
B140: 109 | I140: =IFERROR(VLOOKUP(D140,BUS!$C$4:$AEB$946,4,0),"") ->  | P140: =IFERROR(VLOOKUP(K140,BUS!$C$4:$AEB$946,4,0),"") ->  | W140: =IFERROR(VLOOKUP(R140,BUS!$C$4:$AEB$946,4,0),"") ->  | Y140: =IFERROR(VLOOKUP(D140,'شهر 9 تفصيلي'!$B$5:$AEB$965,1,0),"") ->  | Z140: =IFERROR(VLOOKUP(K140,'شهر 9 تفصيلي'!$B$5:$AEB$965,1,0),"") ->  | AA140: =IFERROR(VLOOKUP(R140,'شهر 9 تفصيلي'!$B$5:$AEB$965,1,0),"") ->  | AB140: 109 | AC140: 0 | AG140: 0 | AI140: 0
B141: 110 | I141: =IFERROR(VLOOKUP(D141,BUS!$C$4:$AEB$946,4,0),"") ->  | P141: =IFERROR(VLOOKUP(K141,BUS!$C$4:$AEB$946,4,0),"") ->  | W141: =IFERROR(VLOOKUP(R141,BUS!$C$4:$AEB$946,4,0),"") ->  | Y141: =IFERROR(VLOOKUP(D141,'شهر 9 تفصيلي'!$B$5:$AEB$965,1,0),"") ->  | Z141: =IFERROR(VLOOKUP(K141,'شهر 9 تفصيلي'!$B$5:$AEB$965,1,0),"") ->  | AA141: =IFERROR(VLOOKUP(R141,'شهر 9 تفصيلي'!$B$5:$AEB$965,1,0),"") ->  | AB141: 110 | AC141: 0 | AG141: 0 | AI141: 0
B142: 111 | I142: =IFERROR(VLOOKUP(D142,BUS!$C$4:$AEB$946,4,0),"") ->  | P142: =IFERROR(VLOOKUP(K142,BUS!$C$4:$AEB$946,4,0),"") ->  | W142: =IFERROR(VLOOKUP(R142,BUS!$C$4:$AEB$946,4,0),"") ->  | Y142: =IFERROR(VLOOKUP(D142,'شهر 9 تفصيلي'!$B$5:$AEB$965,1,0),"") ->  | Z142: =IFERROR(VLOOKUP(K142,'شهر 9 تفصيلي'!$B$5:$AEB$965,1,0),"") ->  | AA142: =IFERROR(VLOOKUP(R142,'شهر 9 تفصيلي'!$B$5:$AEB$965,1,0),"") ->  | AB142: 111 | AC142: 0 | AG142: 0 | AI142: 0
B143: 112 | I143: =IFERROR(VLOOKUP(D143,BUS!$C$4:$AEB$946,4,0),"") ->  | P143: =IFERROR(VLOOKUP(K143,BUS!$C$4:$AEB$946,4,0),"") ->  | W143: =IFERROR(VLOOKUP(R143,BUS!$C$4:$AEB$946,4,0),"") ->  | Y143: =IFERROR(VLOOKUP(D143,'شهر 9 تفصيلي'!$B$5:$AEB$965,1,0),"") ->  | Z143: =IFERROR(VLOOKUP(K143,'شهر 9 تفصيلي'!$B$5:$AEB$965,1,0),"") ->  | AA143: =IFERROR(VLOOKUP(R143,'شهر 9 تفصيلي'!$B$5:$AEB$965,1,0),"") ->  | AB143: 112 | AC143: 0 | AG143: 0 | AI143: 0
B144: 113 | I144: =IFERROR(VLOOKUP(D144,BUS!$C$4:$AEB$946,4,0),"") ->  | P144: =IFERROR(VLOOKUP(K144,BUS!$C$4:$AEB$946,4,0),"") ->  | W144: =IFERROR(VLOOKUP(R144,BUS!$C$4:$AEB$946,4,0),"") ->  | Y144: =IFERROR(VLOOKUP(D144,'شهر 9 تفصيلي'!$B$5:$AEB$965,1,0),"") ->  | Z144: =IFERROR(VLOOKUP(K144,'شهر 9 تفصيلي'!$B$5:$AEB$965,1,0),"") ->  | AA144: =IFERROR(VLOOKUP(R144,'شهر 9 تفصيلي'!$B$5:$AEB$965,1,0),"") ->  | AB144: 113 | AC144: 0 | AG144: 0 | AI144: 0
B145: 114 | I145: =IFERROR(VLOOKUP(D145,BUS!$C$4:$AEB$946,4,0),"") ->  | P145: =IFERROR(VLOOKUP(K145,BUS!$C$4:$AEB$946,4,0),"") ->  | W145: =IFERROR(VLOOKUP(R145,BUS!$C$4:$AEB$946,4,0),"") ->  | Y145: =IFERROR(VLOOKUP(D145,'شهر 9 تفصيلي'!$B$5:$AEB$965,1,0),"") ->  | Z145: =IFERROR(VLOOKUP(K145,'شهر 9 تفصيلي'!$B$5:$AEB$965,1,0),"") ->  | AA145: =IFERROR(VLOOKUP(R145,'شهر 9 تفصيلي'!$B$5:$AEB$965,1,0),"") ->  | AB145: 114 | AC145: 0 | AG145: 0 | AI145: 0
B146: 115 | I146: =IFERROR(VLOOKUP(D146,BUS!$C$4:$AEB$946,4,0),"") ->  | P146: =IFERROR(VLOOKUP(K146,BUS!$C$4:$AEB$946,4,0),"") ->  | W146: =IFERROR(VLOOKUP(R146,BUS!$C$4:$AEB$946,4,0),"") ->  | Y146: =IFERROR(VLOOKUP(D146,'شهر 9 تفصيلي'!$B$5:$AEB$965,1,0),"") ->  | Z146: =IFERROR(VLOOKUP(K146,'شهر 9 تفصيلي'!$B$5:$AEB$965,1,0),"") ->  | AA146: =IFERROR(VLOOKUP(R146,'شهر 9 تفصيلي'!$B$5:$AEB$965,1,0),"") ->  | AB146: 115 | AC146: 0 | AG146: 0 | AI146: 0
B147: 116 | I147: =IFERROR(VLOOKUP(D147,BUS!$C$4:$AEB$946,4,0),"") ->  | P147: =IFERROR(VLOOKUP(K147,BUS!$C$4:$AEB$946,4,0),"") ->  | W147: =IFERROR(VLOOKUP(R147,BUS!$C$4:$AEB$946,4,0),"") ->  | Y147: =IFERROR(VLOOKUP(D147,'شهر 9 تفصيلي'!$B$5:$AEB$965,1,0),"") ->  | Z147: =IFERROR(VLOOKUP(K147,'شهر 9 تفصيلي'!$B$5:$AEB$965,1,0),"") ->  | AA147: =IFERROR(VLOOKUP(R147,'شهر 9 تفصيلي'!$B$5:$AEB$965,1,0),"") ->  | AB147: 116 | AC147: 0 | AG147: 0 | AI147: 0
B148: 117 | I148: =IFERROR(VLOOKUP(D148,BUS!$C$4:$AEB$946,4,0),"") ->  | P148: =IFERROR(VLOOKUP(K148,BUS!$C$4:$AEB$946,4,0),"") ->  | W148: =IFERROR(VLOOKUP(R148,BUS!$C$4:$AEB$946,4,0),"") ->  | Y148: =IFERROR(VLOOKUP(D148,'شهر 9 تفصيلي'!$B$5:$AEB$965,1,0),"") ->  | Z148: =IFERROR(VLOOKUP(K148,'شهر 9 تفصيلي'!$B$5:$AEB$965,1,0),"") ->  | AA148: =IFERROR(VLOOKUP(R148,'شهر 9 تفصيلي'!$B$5:$AEB$965,1,0),"") ->  | AB148: 117 | AC148: 0 | AG148: 0 | AI148: 0
B149: 118 | I149: =IFERROR(VLOOKUP(D149,BUS!$C$4:$AEB$946,4,0),"") ->  | P149: =IFERROR(VLOOKUP(K149,BUS!$C$4:$AEB$946,4,0),"") ->  | W149: =IFERROR(VLOOKUP(R149,BUS!$C$4:$AEB$946,4,0),"") ->  | Y149: =IFERROR(VLOOKUP(D149,'شهر 9 تفصيلي'!$B$5:$AEB$965,1,0),"") ->  | Z149: =IFERROR(VLOOKUP(K149,'شهر 9 تفصيلي'!$B$5:$AEB$965,1,0),"") ->  | AA149: =IFERROR(VLOOKUP(R149,'شهر 9 تفصيلي'!$B$5:$AEB$965,1,0),"") ->  | AB149: 118 | AC149: 0 | AG149: 0 | AI149: 0
B150: 119 | I150: =IFERROR(VLOOKUP(D150,BUS!$C$4:$AEB$946,4,0),"") ->  | P150: =IFERROR(VLOOKUP(K150,BUS!$C$4:$AEB$946,4,0),"") ->  | W150: =IFERROR(VLOOKUP(R150,BUS!$C$4:$AEB$946,4,0),"") ->  | Y150: =IFERROR(VLOOKUP(D150,'شهر 9 تفصيلي'!$B$5:$AEB$965,1,0),"") ->  | Z150: =IFERROR(VLOOKUP(K150,'شهر 9 تفصيلي'!$B$5:$AEB$965,1,0),"") ->  | AA150: =IFERROR(VLOOKUP(R150,'شهر 9 تفصيلي'!$B$5:$AEB$965,1,0),"") ->  | AB150: 119 | AC150: 0 | AG150: 0 | AI150: 0
